Workbook

Sheet 1. Information Sheet
V1: Algoma Power Inc.
V2: Atikokan Hydro Inc.
V3: Attawapiskat Power Corporation
V4: Bluewater Power Distribution Corporation
V5: Brant County Power Inc.
V6: Brantford Power Inc.
V7: Burlington Hydro Inc.
V8: Cambridge and North Dumfries Hydro Inc.
V9: Canadian Niagara Power Inc.
V10: Centre Wellington Hydro Ltd.
V11: Chapleau Public Utilities Corporation
M12: Version | N12: 2.6 | V12: COLLUS PowerStream Corp.
V13: Cooperative Hydro Embrun Inc.
E14: Utility Name | F14: Milton Hydro Distribution Inc. | V14: E.L.K. Energy Inc.
V15: Enersource Hydro Mississauga Inc.
E16: Service Territory | F16: Town of Milton | V16: Entegrus Powerlines Inc.
V17: EnWin Utilities Ltd.
E18: Assigned EB Number | F18: EB-2015-0089 | V18: Erie Thames Powerlines Corporation
V19: Espanola Regional Hydro Distribution Corporation
E20: Name of Contact and Title | F20: Cameron McKenzie | V20: Essex Powerlines Corporation
V21: Festival Hydro Inc.
E22: Phone Number | F22: 289-429-5212 | V22: Fort Albany Power Corporation
V23: Fort Frances Power Corporation
E24: Email Address | F24: cameronmckenzie@miltonhydro.com | V24: Greater Sudbury Hydro Inc.
V25: Grimsby Power Inc.
V26: Guelph Hydro Electric Systems Inc.
B27: General Notes 1. Please ensure that your macros have been enabled. (Tools -> Macro -> Security) 2. Due to the time lag of deferral/variance account dispositions, this model assumes that all opening balances include previously disposed of amounts. Accordingly, all "Board Approved Dispositions" are deducted from the opening balance. 3. Please provide information in this model since the last time your balances were disposed. 4. For all Board-Approved dispositions, please ensure that the disposition amount has the same sign (e.g: debit balances are to have a positive figure and credit balance are to have a negative figure) as per the related Board decision. | V27: Haldimand County Hydro Inc.
V28: Halton Hills Hydro Inc.
B29: Notes | V29: Hearst Power Distribution Company Limited
V30: Horizon Utilities Corporation
C31: Pale green cells represent input cells. | V31: Hydro 2000 Inc.
V32: Hydro Hawkesbury Inc.
C33: Pale blue cells represent drop-down lists. The applicant should select the appropriate item from the drop-down list. | V33: Hydro One Brampton Networks Inc.
V34: Hydro One Networks Inc.
C35: White cells contain fixed values, automatically generated values or formulae. | V35: Hydro One Remote Communities Inc.
V36: Hydro Ottawa Limited
V37: Innpower Corporation
V38: Kashechewan Power Corporation
V39: Kenora Hydro Electric Corporation Ltd.
V40: Kingston Hydro Corporation
V41: Kitchener-Wilmot Hydro Inc.
V42: Lakefront Utilities Inc.
V43: Lakeland Power Distribution Ltd.
V44: London Hydro Inc.
V45: Midland Power Utility Corporation
V46: Milton Hydro Distribution Inc.
V47: Newmarket-Tay Power Distribution Ltd.
V48: Niagara Peninsula Energy Inc.
V49: Niagara-on-the-Lake Hydro Inc.
V50: Norfolk Power Distribution Inc.
V51: North Bay Hydro Distribution Limited
V52: Northern Ontario Wires Inc.
V53: Oakville Hydro Electricity Distribution Inc.
V54: Orangeville Hydro Limited
V55: Orillia Power Distribution Corporation
V56: Oshawa PUC Networks Inc.
V57: Ottawa River Power Corporation
V58: Peterborough Distribution Incorporated
V59: PowerStream Inc.
V60: PUC Distribution Inc.
V61: Renfrew Hydro Inc.
V62: Rideau St. Lawrence Distribution Inc.
V63: Sioux Lookout Hydro Inc.
V64: St. Thomas Energy Inc.
V65: Thunder Bay Hydro Electricity Distribution Inc.
V66: Tillsonburg Hydro Inc.
V67: Toronto Hydro-Electric System Limited
V68: Veridian Connections Inc.
V69: Wasaga Distribution Inc.
V70: Waterloo North Hydro Inc.
V71: Welland Hydro-Electric System Corp.
V72: Wellington North Power Inc.
V73: West Coast Huron Energy Inc.
V74: Westario Power Inc.
V75: Whitby Hydro Electric Corporation
V76: Woodstock Hydro Services Inc.

Sheet 2. 2015 Continuity Schedule
E19: 2009 | O19: 2010 | Y19: 2011 | AI19: 2012 | AS19: 2013 | BC19: 2014 | BM19: 2015 | BQ19: Projected Interest on Dec-31-14 Balances | BT19: 2.1.7 RRR
C20: Account Descriptions | D20: Account Number | E20: Opening Principal Amounts as of Jan-1-09 | F20: Transactions1 Debit / (Credit) during 2009 | G20: Board-Approved Disposition during 2009 | H20: Principal Adjustments2 during 2009 | I20: Closing Principal Balance as of Dec-31-09 | J20: Opening Interest Amounts as of Jan-1-09 | K20: Interest Jan-1 to Dec-31-09 | L20: Board-Approved Disposition during 2009 | M20: Interest Adjustments1 during 2009 | N20: Closing Interest Amounts as of Dec-31-09 | O20: Opening Principal Amounts as of Jan-1-10 | P20: Transactions2 Debit / (Credit) during 2010 | Q20: Board-Approved Disposition during 2010 | R20: Principal Adjustments2 during 2010 | S20: Closing Principal Balance as of Dec-31-10 | T20: Opening Interest Amounts as of Jan-1-10 | U20: Interest Jan-1 to Dec-31-10 | V20: Board-Approved Disposition during 2010 | W20: Interest Adjustments1 during 2010 | X20: Closing Interest Amounts as of Dec-31-10 | Y20: Opening Principal Amounts as of Jan-1-11 | Z20: Transactions2 Debit / (Credit) during 2011 | AA20: Board-Approved Disposition during 2011 | AB20: Principal Adjustments2 during 2011 | AC20: Closing Principal Balance as of Dec-31-11 | AD20: Opening Interest Amounts as of Jan-1-11 | AE20: Interest Jan-1 to Dec-31-11 | AF20: Board-Approved Disposition during 2011 | AG20: Interest Adjustments1 during 2011 | AH20: Closing Interest Amounts as of Dec-31-11 | AI20: Opening Principal Amounts as of Jan-1-12 | AJ20: Transactions2 Debit / (Credit) during 2012 | AK20: Board-Approved Disposition during 2012 | AL20: Principal Adjustments2 during 2012 | AM20: Closing Principal Balance as of Dec-31-12 | AN20: Opening Interest Amounts as of Jan-1-12 | AO20: Interest Jan-1 to Dec-31-12 | AP20: Board-Approved Disposition during 2012 | AQ20: Interest Adjustments1 during 2012 | AR20: Closing Interest Amounts as of Dec-31-12 | AS20: Opening Principal Amounts as of Jan-1-13 | AT20: Transactions2 Debit / (Credit) during 2013 | AU20: Board-Approved Disposition during 2013 | AV20: Principal Adjustments2 during 2013 | AW20: Closing Principal Balance as of Dec-31-13 | AX20: Opening Interest Amounts as of Jan-1-13 | AY20: Interest Jan-1 to Dec-31-13 | AZ20: Board-Approved Disposition during 2013 | BA20: Interest Adjustments1 during 2013 | BB20: Closing Interest Amounts as of Dec-31-13 | BC20: Opening Principal Amounts as of Jan-1-14 | BD20: Transactions2 Debit / (Credit) during 2014 | BE20: Board-Approved Disposition during 2014 | BF20: Principal Adjustments2 during 2014 | BG20: Closing Principal Balance as of Dec-31-14 | BH20: Opening Interest Amounts as of Jan-1-14 | BI20: Interest Jan-1 to Dec-31-14 | BJ20: Board-Approved Disposition during 2014 | BK20: Interest Adjustments1 during 2014 | BL20: Closing Interest Amounts as of Dec-31-14 | BM20: Principal Disposition during 2015 - instructed by Board | BN20: Interest Disposition during 2015 - instructed by Board | BO20: Closing Principal Balances as of Dec 31-14 Adjusted for Dispositions during 2015 | BP20: Closing Interest Balances as of Dec 31-13 Adjusted for Dispositions during 2014 | BQ20: Projected Interest from Jan 1, 2015 to December 31, 2015 on Dec 31 -14 balance adjusted for disposition during 2014 5 | BR20: Projected Interest from January 1, 2016 to April 30, 2016 on Dec 31 -14 balance adjusted for disposition during 2015 5 | BS20: Total Claim | BT20: As of Dec 31-14 | BU20: Variance RRR vs. 2014 Balance (Principal + Interest)
BS22: Claim before Forecasted Transactions
C23: Group 1 Accounts
A24: 1 | C24: LV Variance Account | D24: 1550 | I24: =E24+F24-G24+H24 -> 0 | N24: =J24+K24-L24+M24 -> 0 | O24: =I24 -> 0 | S24: =O24+P24-Q24+R24 -> 0 | T24: =N24 -> 0 | X24: =T24+U24-V24+W24 -> 0 | Y24: =S24 -> 0 | AC24: =Y24+Z24-AA24+SUM(AB24:AB24) -> 0 | AD24: =X24 -> 0 | AH24: =AD24+AE24-AF24+AG24 -> 0 | AI24: =AC24 -> 0 | AJ24: 84785 | AM24: =AI24+AJ24-AK24+SUM(AL24:AL24) -> 84785 | AN24: =AH24 -> 0 | AO24: -296 | AR24: =AN24+AO24-AP24+AQ24 -> -296 | AS24: =AM24 -> 84785 | AT24: =100651+271467.32-184146.11 -> 187972.21 | AU24: 1290 | AW24: =AS24+AT24-AU24+SUM(AV24:AV24) -> 271467.21 | AX24: =AR24 -> -296 | AY24: =2186+1484.41-2277.09+25 -> 1418.32 | AZ24: -362 | BB24: =AX24+AY24-AZ24+BA24 -> 1484.32 | BC24: =AW24 -> 271467.21 | BD24: =355338.3+55.47 -> 355393.77 | BG24: =BC24+BD24-BE24+SUM(BF24:BF24) -> 626860.98 | BH24: =BB24 -> 1484.32 | BI24: =6215.38 -> 6215.38 | BL24: =BH24+BI24-BJ24+BK24 -> 7699.7 | BO24: =BG24-BM24 -> 626860.98 | BP24: =BL24-BN24 -> 7699.7 | BQ24: =(+BO24*0.011)/12*9+(BO24*0.0147)/12*3 -> 7475.317186 | BR24: =+BO24*(0.011/12*4) -> 2298.49026 | BS24: =SUM(BO24:BR24) -> 644334.4874 | BT24: 634561.26 | BU24: =BT24-SUM(BG24,BL24) -> 0.5800000001
A25: 2 | C25: Smart Metering Entity Charge Variance Account | D25: 1551 | I25: =E25+F25-G25+H25 -> 0 | N25: =J25+K25-L25+M25 -> 0 | O25: =I25 -> 0 | S25: =O25+P25-Q25+SUM(R25:R25) -> 0 | T25: =N25 -> 0 | X25: =T25+U25-V25+W25 -> 0 | Y25: 0 | AC25: =Y25+Z25-AA25+SUM(AB25:AB25) -> 0 | AD25: =X25 -> 0 | AH25: =AD25+AE25-AF25+AG25 -> 0 | AI25: 0 | AM25: 0 | AN25: 0 | AR25: =AN25+AO25-AP25+AQ25 -> 0 | AS25: 0 | AT25: 1857.82 | AW25: 1857.82 | AX25: 0 | AY25: 279.14 | BB25: =AX25+AY25-AZ25+BA25 -> 279.14 | BC25: 1857.82 | BD25: -19009.06 | BG25: -17151.24 | BH25: 279.14 | BI25: -97.44 | BL25: =BH25+BI25-BJ25+BK25 -> 181.7 | BO25: =BG25-BM25 -> -17151.24 | BP25: =BL25-BN25 -> 181.7 | BQ25: =(+BO25*0.011)/12*9+(BO25*0.0147)/12*3 -> -204.528537 | BR25: =+BO25*(0.011/12*4) -> -62.88788 | BS25: =SUM(BO25:BR25) -> -17236.95642 | BT25: -16969.54 | BU25: =BT25-SUM(BG25,BL25) -> 0
A26: 3 | C26: RSVA - Wholesale Market Service Charge | D26: 1580 | I26: =E26+F26-G26+H26 -> 0 | N26: =J26+K26-L26+M26 -> 0 | O26: =I26 -> 0 | S26: =O26+P26-Q26+SUM(R26:R26) -> 0 | T26: =N26 -> 0 | X26: =T26+U26-V26+W26 -> 0 | Y26: 0 | AC26: 0 | AD26: 0 | AH26: =AD26+AE26-AF26+AG26 -> 0 | AI26: 0 | AJ26: -1778634 | AM26: -1778634 | AN26: 0 | AO26: -26644 | AR26: =AN26+AO26-AP26+AQ26 -> -26644 | AS26: -1778634 | AT26: =-68822.01-101237.45-90126.72-8368.16-130493.49-67801.64+47691.67+113854.19-19690.41-43555.29+8363.11+2130.37+21368.57 -> -336687.26 | AU26: -781071 | AW26: -1334250.26 | AX26: -26644 | AY26: =-2220.61-2083.32-2432.93-2473.45-1743.66-1769.33-1768.77-1626.62-1597.94-1705.58-1640.46-1692.48 -> -22755.15 | AZ26: -18343 | BB26: =AX26+AY26-AZ26+BA26 -> -31056.15 | BC26: -1334250.26 | BD26: -3788.08 | BG26: -1338038.34 | BH26: -31056.15 | BI26: -13976.6 | BL26: =BH26+BI26-BJ26+BK26 -> -45032.75 | BO26: -1338038.34 | BP26: -45032.75 | BQ26: -15956.1072 | BR26: -4906.14058 | BS26: =SUM(BO26:BR26) -> -1403933.338 | BT26: -1383070.97 | BU26: 0.1199999999
A27: 4 | C27: RSVA - Retail Transmission Network Charge | D27: 1584 | I27: 0 | N27: 0 | O27: 0 | S27: 0 | T27: 0 | X27: 0 | Y27: 0 | AC27: 0 | AD27: 0 | AH27: 0 | AI27: 0 | AJ27: 1500260 | AM27: 1500260 | AN27: 0 | AO27: 22437 | AR27: 22437 | AS27: 1500260 | AT27: =36254.78+53191.06+40277.68+3330.43-0.3-11922.08+143108.79+32224.39+138188.57-5330.25+109700.31+19557.77-17448.39+4072.82+31374.99 -> 576580.57 | AU27: 723934 | AW27: 1352906.57 | AX27: 22437 | AY27: =1873.06+1732.68+1984.73+1973.4+1120.47+1257.23+1339.37+1511.9+1456.69+1642.2+1612.86+1644.84 -> 19149.43 | AZ27: 17771 | BB27: 23815.43 | BC27: 1352906.57 | BD27: 269919.13 | BG27: 1622825.7 | BH27: 23815.43 | BI27: 22863.5 | BL27: 46678.93 | BO27: 1622825.7 | BP27: 46678.93 | BQ27: 19352.19647 | BR27: 5950.3609 | BS27: 1694807.187 | BT27: 1669504.99 | BU27: 0.3600000003
A28: 5 | C28: RSVA - Retail Transmission Connection Charge | D28: 1586 | I28: 0 | N28: 0 | O28: 0 | S28: 0 | T28: 0 | X28: 0 | Y28: 0 | AC28: 0 | AD28: 0 | AH28: 0 | AI28: 0 | AJ28: 825949 | AM28: 825949 | AN28: 0 | AO28: 12085 | AR28: 12085 | AS28: 825949 | AT28: =-5460.47+12738.57+7721.14+811.86-20040.07+81745.39+24138.69+95418.19-24029.54+68494.51+7523.51+11053.94+7290.23+0.3+21177.81 -> 288584.06 | AU28: 417403 | AW28: 697130.06 | AX28: 12085 | AY28: =1031.19+925.24+1040.28+1017.03+504.79+587.27+636.98+756.11+702.69+811.63+794.53+834.82 -> 9642.56 | AZ28: 9736 | BB28: 11991.56 | BC28: 697130.06 | BD28: 171372.05 | BG28: 868502.11 | BH28: 11991.56 | BI28: 12064.58 | BL28: 24056.14 | BO28: 868502.11 | BP28: 24056.14 | BQ28: 10356.88766 | BR28: 3184.507737 | BS28: 906099.6454 | BT28: 892558.06 | BU28: -0.1900000001
A29: 6 | C29: RSVA - Power (excluding Global Adjustment) | D29: 1588 | I29: 0 | N29: 0 | O29: 0 | S29: 0 | T29: 0 | X29: 0 | Y29: 0 | AC29: 0 | AD29: 0 | AH29: 0 | AI29: 0 | AJ29: -696161 | AM29: -696161 | AN29: 0 | AO29: -20021 | AR29: -20021 | AS29: -696161 | AT29: =563428.54-290567.28+28281.6-146493.49-226066.36-308257.74-11755.59+830398.37-722879.27+222558.02+70534.33-350348.8-47649.45+3 -> -388814.12 | AU29: -433017 | AW29: -651958.12 | AX29: -20021 | AY29: =-869.15-149.68-528.49-654.27-417.7-776.67-817.23+219.52-660.96-405.13-306.84-754.48-13015.6-17967 -> -37103.68 | AZ29: -17754 | BB29: -39370.68 | BC29: -651958.12 | BD29: -605465.5 | BG29: -1257423.62 | BH29: -39370.68 | BI29: -11527.19 | BL29: -50897.87 | BO29: -1257423.62 | BP29: -50897.87 | BQ29: -14994.77667 | BR29: -4610.553273 | BS29: -1327926.82 | BT29: -1308321.31 | BU29: 0.1800000002
A30: 7 | C30: RSVA - Global Adjustment | D30: 1589 | I30: 0 | N30: 0 | O30: 0 | S30: 0 | T30: 0 | X30: 0 | Y30: 0 | AC30: 0 | AD30: 0 | AH30: 0 | AI30: 0 | AJ30: 1339371 | AM30: 1339371 | AN30: 0 | AO30: 45891 | AR30: 45891 | AS30: 1339371 | AT30: =517455.19-343528.45+163306.89+57811.27-3+234455.5+786883.86-574201.32-643890.73+66789.24-133578.48+608385.89-328172.31+965448.64-1093380.58-349617.26 -> -65835.65 | AU30: 1643297 | AW30: -369761.65 | AX30: 45891 | AY30: =1672.19+2093.89+1889.34+2095.55+406.47+1344.09+672.01-131.89-208.33+544.29+130.23+1339.93+1+13015.6+17967 -> 42831.37 | AZ30: 63859 | BB30: 24863.37 | BC30: -369761.65 | BD30: 2539953.81 | BG30: 2170192.16 | BH30: 24863.37 | BI30: 11867.84 | BL30: 36731.21 | BO30: 2170192.16 | BP30: 36731.21 | BQ30: 25879.54151 | BR30: 7957.371253 | BS30: 2240760.283 | BT30: 2206922.95 | BU30: -0.4199999999
A31: 8 | C31: Disposition and Recovery/Refund of Regulatory Balances (2008) | D31: 1595 | I31: 0 | N31: 0 | O31: =I31 -> 0 | R31: -343455.62 | S31: -343455.62 | T31: =N31 -> 0 | W31: -240892 | X31: -240892 | Y31: =S31 -> -343455.62 | Z31: 754267.1 | AC31: 410811.48 | AD31: -240892 | AE31: 4796.98 | AH31: -236095.02 | AI31: 410811.48 | AM31: 410811.48 | AN31: -236095.02 | AO31: -158 | AR31: -236253.02 | AS31: =AM31 -> 410811.48 | AU31: 410811 | AW31: 0.4799999999 | AX31: -236253.02 | AY31: =6039+2013 -> 8052 | AZ31: =-158-228043 -> -228201 | BB31: -0.01999999999 | BC31: =AW31 -> 0.4799999999 | BG31: 0.4799999999 | BH31: -0.01999999999 | BL31: -0.01999999999 | BO31: 0.4799999999 | BP31: -0.01999999999 | BQ31: 0.005723999998 | BR31: 0.00176 | BS31: 0.4674839999 | BU31: -0.4599999999
A32: 9 | C32: Disposition and Recovery/Refund of Regulatory Balances (2009) | D32: 1595 | I32: 0 | N32: 0 | O32: 0 | S32: 0 | T32: 0 | X32: 0 | Y32: 0 | Z32: -142337.3 | AA32: -110929.53 | AC32: -31407.77 | AD32: 0 | AE32: 788.39 | AF32: -34987.28 | AH32: 35775.67 | AI32: -31407.77 | AM32: -31407.77 | AN32: 35775.67 | AR32: 35775.67 | AS32: -31407.77 | AU32: -31408 | AW32: 0.23 | AX32: 35775.67 | AY32: =-462-154 -> -616 | AZ32: 35160 | BB32: -0.33 | BC32: 0.23 | BG32: 0.23 | BH32: -0.33 | BL32: -0.33 | BO32: 0.23 | BP32: -0.33 | BQ32: 0.00274275 | BR32: 0.0008433333333 | BS32: -0.09641391669 | BU32: 0.1
A33: 10 | C33: Disposition and Recovery/Refund of Regulatory Balances (2010) | D33: 1595 | I33: =E33+F33-G33+H33 -> 0 | N33: =J33+K33-L33+M33 -> 0 | O33: =I33 -> 0 | S33: 0 | T33: =N33 -> 0 | X33: =T33+U33-V33+W33 -> 0 | Y33: 0 | AC33: 0 | AD33: 0 | AH33: =AD33+AE33-AF33+AG33 -> 0 | AI33: 0 | AM33: 0 | AN33: 0 | AR33: =AN33+AO33-AP33+AQ33 -> 0 | AS33: 0 | AW33: 0 | AX33: 0 | BB33: =AX33+AY33-AZ33+BA33 -> 0 | BC33: 0 | BD33: 198176.91 | BG33: 198176.91 | BH33: 0 | BI33: -57725.54 | BL33: =BH33+BI33-BJ33+BK33 -> -57725.54 | BO33: 198176.91 | BP33: -57725.54 | BQ33: 2363.259652 | BR33: 726.64867 | BS33: 143541.2783 | BT33: 140451 | BU33: -0.37
A34: 11 | C34: Disposition and Recovery/Refund of Regulatory Balances (2011) | D34: 1595 | I34: =E34+F34-G34+H34 -> 0 | N34: =J34+K34-L34+M34 -> 0 | O34: =I34 -> 0 | S34: =O34+P34-Q34+SUM(R34:R34) -> 0 | T34: =N34 -> 0 | X34: =T34+U34-V34+W34 -> 0 | Y34: 0 | AC34: =Y34+Z34-AA34+SUM(AB34:AB34) -> 0 | AD34: =X34 -> 0 | AH34: =AD34+AE34-AF34+AG34 -> 0 | AI34: 0 | AM34: 0 | AN34: 0 | AR34: =AN34+AO34-AP34+AQ34 -> 0 | AS34: 0 | AW34: 0 | AX34: 0 | BB34: =AX34+AY34-AZ34+BA34 -> 0 | BC34: 0 | BD34: -93058.19 | BG34: -93058.19 | BH34: 0 | BI34: -126228.34 | BL34: =BH34+BI34-BJ34+BK34 -> -126228.34 | BO34: -93058.19 | BP34: -126228.34 | BQ34: -1109.718916 | BR34: -341.2133633 | BS34: -220737.4623 | BT34: -219287 | BU34: -0.47
A35: 12 | C35: Disposition and Recovery/Refund of Regulatory Balances (2012) | D35: 1595 | I35: =E35+F35-G35+H35 -> 0 | N35: =J35+K35-L35+M35 -> 0 | O35: =I35 -> 0 | S35: =O35+P35-Q35+SUM(R35:R35) -> 0 | T35: =N35 -> 0 | X35: =T35+U35-V35+W35 -> 0 | Y35: 0 | AC35: =Y35+Z35-AA35+SUM(AB35:AB35) -> 0 | AD35: =X35 -> 0 | AH35: =AD35+AE35-AF35+AG35 -> 0 | AI35: 0 | AM35: 0 | AN35: 0 | AR35: =AN35+AO35-AP35+AQ35 -> 0 | AS35: 0 | AW35: 0 | AX35: 0 | BB35: =AX35+AY35-AZ35+BA35 -> 0 | BC35: 0 | BG35: 0 | BH35: 0 | BL35: =BH35+BI35-BJ35+BK35 -> 0 | BO35: 0 | BP35: 0 | BS35: 0 | BU35: 0
A36: 13 | C36: Disposition and Recovery/Refund of Regulatory Balances (2013) | D36: 1595 | I36: =E36+F36-G36+H36 -> 0 | N36: =J36+K36-L36+M36 -> 0 | O36: =I36 -> 0 | S36: =O36+P36-Q36+SUM(R36:R36) -> 0 | T36: =N36 -> 0 | X36: =T36+U36-V36+W36 -> 0 | Y36: 0 | AC36: =Y36+Z36-AA36+SUM(AB36:AB36) -> 0 | AD36: =X36 -> 0 | AH36: =AD36+AE36-AF36+AG36 -> 0 | AI36: 0 | AM36: 0 | AN36: 0 | AR36: =AN36+AO36-AP36+AQ36 -> 0 | AS36: 0 | AW36: 0 | AX36: 0 | BB36: =AX36+AY36-AZ36+BA36 -> 0 | BC36: 0 | BG36: 0 | BH36: 0 | BL36: =BH36+BI36-BJ36+BK36 -> 0 | BO36: 0 | BP36: 0 | BS36: =SUM(BO36:BR36) -> 0 | BU36: 0
A37: 14 | C37: Disposition and Recovery/Refund of Regulatory Balances (2014) | D37: 1595 | I37: =E37+F37-G37+H37 -> 0 | N37: =J37+K37-L37+M37 -> 0 | O37: =I37 -> 0 | S37: =O37+P37-Q37+SUM(R37:R37) -> 0 | T37: =N37 -> 0 | X37: =T37+U37-V37+W37 -> 0 | Y37: 0 | AC37: =Y37+Z37-AA37+SUM(AB37:AB37) -> 0 | AD37: =X37 -> 0 | AH37: =AD37+AE37-AF37+AG37 -> 0 | AI37: 0 | AM37: 0 | AN37: 0 | AR37: =AN37+AO37-AP37+AQ37 -> 0 | AS37: 0 | AW37: 0 | AX37: 0 | BB37: =AX37+AY37-AZ37+BA37 -> 0 | BC37: 0 | BG37: 0 | BH37: 0 | BL37: =BH37+BI37-BJ37+BK37 -> 0 | BO37: 0 | BP37: 0 | BS37: =SUM(BO37:BR37) -> 0 | BU37: 0
C39: Group 1 Sub-Total (including Account 1589 - Global Adjustment) | E39: =SUM(E24:E37) -> 0 | F39: 0 | G39: 0 | H39: 0 | I39: 0 | J39: 0 | K39: 0 | L39: 0 | M39: 0 | N39: 0 | O39: 0 | P39: 0 | Q39: 0 | R39: -343455.62 | S39: -343455.62 | T39: 0 | U39: 0 | V39: 0 | W39: -240892 | X39: -240892 | Y39: -343455.62 | Z39: 611929.8 | AA39: -110929.53 | AB39: 0 | AC39: 379403.71 | AD39: -240892 | AE39: 5585.37 | AF39: -34987.28 | AG39: 0 | AH39: -200319.35 | AI39: 379403.71 | AJ39: 1275570 | AK39: =SUM(AK24:AK37) -> 0 | AL39: 0 | AM39: 1654973.71 | AN39: -200319.35 | AO39: 33294 | AP39: 0 | AQ39: 0 | AR39: -167025.35 | AS39: 1654973.71 | AT39: 263657.63 | AU39: 1951239 | AV39: 0 | AW39: -32607.66 | AX39: -167025.35 | AY39: 20897.99 | AZ39: -138134 | BA39: 0 | BB39: -7993.36 | BC39: -32607.66 | BD39: 2813494.84 | BE39: 0 | BF39: 0 | BG39: 2780887.18 | BH39: -7993.36 | BI39: -156543.81 | BJ39: 0 | BK39: 0 | BL39: -164537.17 | BM39: 0 | BN39: 0 | BO39: 2780887.18 | BP39: -164537.17 | BQ39: 33162.07962 | BR39: 10196.58633 | BS39: 2659708.676 | BT39: 2616349.44 | BU39: -0.5699999998
C40: Group 1 Sub-Total (excluding Account 1589 - Global Adjustment) | E40: =E39-E41 -> 0 | F40: 0 | G40: 0 | H40: 0 | I40: 0 | J40: 0 | K40: 0 | L40: 0 | M40: 0 | N40: 0 | O40: 0 | P40: 0 | Q40: 0 | R40: -343455.62 | S40: -343455.62 | T40: 0 | U40: 0 | V40: 0 | W40: -240892 | X40: -240892 | Y40: -343455.62 | Z40: 611929.8 | AA40: -110929.53 | AB40: 0 | AC40: 379403.71 | AD40: -240892 | AE40: 5585.37 | AF40: -34987.28 | AG40: 0 | AH40: -200319.35 | AI40: =AI39-AI41 -> 379403.71 | AJ40: -63801 | AK40: 0 | AL40: 0 | AM40: 315602.71 | AN40: -200319.35 | AO40: -12597 | AP40: 0 | AQ40: 0 | AR40: -212916.35 | AS40: =AS39-AS41 -> 315602.71 | AT40: 329493.28 | AU40: 307942 | AV40: 0 | AW40: 337153.99 | AX40: -212916.35 | AY40: -21933.38 | AZ40: -201993 | BA40: 0 | BB40: -32856.73 | BC40: =BC39-BC41 -> 337153.99 | BD40: 273541.03 | BE40: 0 | BF40: 0 | BG40: 610695.02 | BH40: -32856.73 | BI40: -168411.65 | BJ40: 0 | BK40: 0 | BL40: -201268.38 | BM40: =BM39-BM41 -> 0 | BN40: 0 | BO40: 610695.02 | BP40: -201268.38 | BQ40: 7282.538113 | BR40: 2239.215073 | BS40: 418948.3932 | BT40: =BT39-BT41 -> 409426.49 | BU40: -0.1499999998
C41: =C30 -> RSVA - Global Adjustment | D41: 1589 | E41: =E30 -> 0 | F41: 0 | G41: 0 | H41: 0 | I41: 0 | J41: 0 | K41: 0 | L41: 0 | M41: 0 | N41: 0 | O41: 0 | P41: 0 | Q41: 0 | R41: 0 | S41: 0 | T41: 0 | U41: 0 | V41: 0 | W41: 0 | X41: 0 | Y41: 0 | Z41: 0 | AA41: 0 | AB41: 0 | AC41: 0 | AD41: 0 | AE41: 0 | AF41: 0 | AG41: 0 | AH41: 0 | AI41: 0 | AJ41: 1339371 | AK41: =AK30 -> 0 | AL41: 0 | AM41: 1339371 | AN41: 0 | AO41: 45891 | AP41: 0 | AQ41: 0 | AR41: 45891 | AS41: 1339371 | AT41: -65835.65 | AU41: 1643297 | AV41: 0 | AW41: -369761.65 | AX41: 45891 | AY41: 42831.37 | AZ41: 63859 | BA41: 0 | BB41: 24863.37 | BC41: =BC30 -> -369761.65 | BD41: 2539953.81 | BE41: 0 | BF41: 0 | BG41: 2170192.16 | BH41: 24863.37 | BI41: 11867.84 | BJ41: 0 | BK41: 0 | BL41: 36731.21 | BM41: 0 | BN41: 0 | BO41: 2170192.16 | BP41: 36731.21 | BQ41: 25879.54151 | BR41: 7957.371253 | BS41: 2240760.283 | BT41: =BT30 -> 2206922.95 | BU41: -0.4199999999
C43: Group 2 Accounts
A44: 15 | C44: Other Regulatory Assets - Sub-Account - Deferred IFRS Transition Costs | D44: 1508 | F44: 189730 | I44: =E44+F44-G44+H44 -> 189730 | N44: =J44+K44-L44+M44 -> 0 | O44: =I44 -> 189730 | P44: =135178.61-1915.64 -> 133262.97 | S44: =O44+P44-Q44+SUM(R44:R44) -> 322992.97 | T44: =N44 -> 0 | U44: 1915.64 | X44: =T44+U44-V44+W44 -> 1915.64 | Y44: =S44 -> 322992.97 | Z44: =94062.34-5409.95 -> 88652.39 | AC44: =Y44+Z44-AA44+SUM(AB44:AB44) -> 411645.36 | AD44: =X44 -> 1915.64 | AE44: 5409.95 | AH44: =AD44+AE44-AF44+AG44 -> 7325.59 | AI44: =AC44 -> 411645.36 | AJ44: =35968.91-6303.6 -> 29665.31 | AM44: =AI44+AJ44-AK44+SUM(AL44:AL44) -> 441310.67 | AN44: =AH44 -> 7325.59 | AO44: 6303.6 | AR44: =AN44+AO44-AP44+AQ44 -> 13629.19 | AS44: =AM44 -> 441310.67 | AW44: =AS44+AT44-AU44+SUM(AV44:AV44) -> 441310.67 | AX44: =AR44 -> 13629.19 | AY44: 6487.24 | BB44: =AX44+AY44-AZ44+BA44 -> 20116.43 | BC44: =AW44 -> 441310.67 | BF44: 5000 | BG44: =BC44+BD44-BE44+SUM(BF44:BF44) -> 446310.67 | BH44: =BB44 -> 20116.43 | BI44: 6487.24 | BL44: =BH44+BI44-BJ44+BK44 -> 26603.67 | BO44: =BG44-BM44 -> 446310.67 | BP44: =BL44-BN44 -> 26603.67 | BQ44: =(+BO44*0.011)/12*9+(BO44*0.0147)/12*3 -> 5322.25474 | BR44: =+BO44*(0.011/12*4) -> 1636.472457 | BS44: 479873.0672 | BT44: 467913.89 | BU44: =BT44-SUM(BG44,BL44) -> -5000.45
A45: 16 | C45: Other Regulatory Assets - Sub-Account - Incremental Capital Charges | D45: 1508 | F45: 2149.94 | I45: =E45+F45-G45+H45 -> 2149.94 | K45: 2.94 | N45: =J45+K45-L45+M45 -> 2.94 | O45: =I45 -> 2149.94 | P45: 1446.87 | S45: 3596.81 | T45: 2.94 | U45: 27.4 | X45: =T45+U45-V45+W45 -> 30.34 | Y45: 3596.81 | AA45: 2149.94 | AC45: 1446.87 | AD45: 30.34 | AE45: 34.37 | AF45: 22.89 | AH45: 41.82 | AI45: 1446.87 | AM45: 1446.87 | AN45: 41.82 | AO45: 21.3 | AR45: 63.12 | AS45: 1446.87 | AW45: 1446.87 | AX45: 63.12 | AY45: 21.3 | BB45: 84.42 | BC45: 1446.87 | BG45: 1446.87 | BH45: 84.42 | BI45: 21.3 | BL45: 105.72 | BO45: =BG45-BM45 -> 1446.87 | BP45: =BL45-BN45 -> 105.72 | BQ45: 17.25392475 | BR45: 5.30519 | BS45: 1575.149115 | BT45: =1446.87+41.82+21.3+21.3+21.3 -> 1552.59 | BU45: 0
A46: 17 | C46: Other Regulatory Assets - Sub-Account - Financial Assistance Payment and Recovery Variance - Ontario Clean Energy Benefit Act8 | D46: 1508 | Y46: 0 | AC46: 0 | AD46: 0 | AH46: 0 | AI46: 0 | AM46: 0 | AN46: 0 | AR46: 0 | AS46: 0 | AW46: 0 | AX46: 0 | BB46: 0 | BC46: 0 | BG46: 0 | BH46: 0 | BL46: 0 | BO46: 0 | BP46: 0 | BS46: 0 | BU46: 0
A47: 18 | C47: Other Regulatory Assets - Sub-Account - Financial Assistance Payment and Recovery Carrying Charges | D47: 1508 | Y47: 0 | AC47: 0 | AD47: 0 | AH47: 0 | AI47: 0 | AM47: 0 | AN47: 0 | AR47: 0 | AS47: 0 | AW47: 0 | AX47: 0 | BB47: 0 | BC47: 0 | BG47: 0 | BH47: 0 | BL47: 0 | BO47: 0 | BP47: 0 | BS47: 0 | BU47: 0
A48: 19 | C48: Other Regulatory Assets - Sub-Account - Other 4 | D48: 1508 | F48: -202.3 | I48: -202.3 | J48: -0.8 | N48: -0.8 | O48: -202.3 | P48: -216.33 | S48: -418.63 | T48: -0.8 | U48: -2.59 | X48: -3.39 | Y48: -418.63 | Z48: -64.93 | AA48: -202.3 | AC48: -281.26 | AD48: -3.39 | AE48: -5.15 | AF48: -1 | AH48: -7.54 | AI48: -281.26 | AM48: -281.26 | AN48: -7.54 | AO48: -4.13 | AR48: -11.67 | AS48: -281.26 | AW48: -281.26 | AX48: -11.67 | AY48: -4.13 | BB48: -15.8 | BC48: -281.26 | BG48: -281.26 | BH48: -15.8 | BI48: -4.13 | BL48: -19.93 | BO48: -281.26 | BP48: -19.93 | BQ48: =(+BO48*0.011)/12*9+(BO48*0.0147)/12*3 -> -3.3540255 | BR48: =+BO48*(0.011/12*4) -> -1.031286667 | BS48: -305.5753122 | BT48: =-281.26-7.54-4.13-4.13-4.13 -> -301.19 | BU48: 0
A49: 20 | C49: Retail Cost Variance Account - Retail | D49: 1518 | I49: 0 | N49: 0 | O49: 0 | S49: 0 | T49: 0 | X49: 0 | Y49: 0 | AC49: 0 | AD49: 0 | AH49: 0 | AI49: 0 | AM49: 0 | AN49: 0 | AR49: 0 | AS49: 0 | AW49: 0 | AX49: 0 | BB49: 0 | BC49: 0 | BG49: 0 | BH49: 0 | BL49: 0 | BO49: 0 | BP49: 0 | BS49: 0 | BU49: 0
A50: 21 | C50: Misc. Deferred Debits | D50: 1525 | I50: 0 | N50: 0 | O50: 0 | S50: 0 | T50: 0 | X50: 0 | Y50: 0 | AC50: 0 | AD50: 0 | AH50: 0 | AI50: 0 | AM50: 0 | AN50: 0 | AR50: 0 | AS50: 0 | AW50: 0 | AX50: 0 | BB50: 0 | BC50: 0 | BG50: 0 | BH50: 0 | BL50: 0 | BO50: 0 | BP50: 0 | BS50: 0 | BU50: 0
A51: 22 | C51: Board-Approved CDM Variance Account | D51: 1567 | N51: 0 | S51: 0 | T51: 0 | X51: =T51+U51-V51+W51 -> 0 | Y51: 0 | AC51: 0 | AD51: 0 | AH51: 0 | AI51: 0 | AM51: 0 | AN51: 0 | AR51: =AN51+AO51-AP51+AQ51 -> 0 | AS51: 0 | AW51: 0 | AX51: 0 | BB51: =AX51+AY51-AZ51+BA51 -> 0 | BC51: 0 | BG51: 0 | BH51: 0 | BL51: =BH51+BI51-BJ51+BK51 -> 0 | BO51: 0 | BP51: 0 | BS51: 0 | BU51: 0
A52: 23 | C52: Extra-Ordinary Event Costs | D52: 1572 | I52: 0 | N52: 0 | O52: =I52 -> 0 | S52: 0 | T52: 0 | X52: 0 | Y52: 0 | AC52: 0 | AD52: 0 | AH52: 0 | AI52: =AC52 -> 0 | AM52: 0 | AN52: 0 | AR52: =AN52+AO52-AP52+AQ52 -> 0 | AS52: =AM52 -> 0 | AW52: 0 | AX52: 0 | BB52: =AX52+AY52-AZ52+BA52 -> 0 | BC52: =AW52 -> 0 | BG52: 0 | BH52: 0 | BL52: =BH52+BI52-BJ52+BK52 -> 0 | BO52: 0 | BP52: 0 | BS52: 0 | BU52: 0
A53: 24 | C53: Deferred Rate Impact Amounts | D53: 1574 | I53: 0 | N53: 0 | O53: =I53 -> 0 | S53: 0 | T53: 0 | X53: 0 | Y53: 0 | AC53: 0 | AD53: 0 | AH53: 0 | AI53: =AC53 -> 0 | AM53: 0 | AN53: 0 | AR53: =AN53+AO53-AP53+AQ53 -> 0 | AS53: =AM53 -> 0 | AW53: 0 | AX53: 0 | BB53: =AX53+AY53-AZ53+BA53 -> 0 | BC53: =AW53 -> 0 | BG53: 0 | BH53: 0 | BL53: =BH53+BI53-BJ53+BK53 -> 0 | BO53: 0 | BP53: 0 | BS53: 0 | BU53: 0
A54: 25 | C54: RSVA - One-time | D54: 1582 | I54: 0 | N54: 0 | O54: =I54 -> 0 | S54: 0 | T54: 0 | X54: 0 | Y54: 0 | AC54: 0 | AD54: 0 | AH54: 0 | AI54: =AC54 -> 0 | AM54: 0 | AN54: 0 | AR54: =AN54+AO54-AP54+AQ54 -> 0 | AS54: =AM54 -> 0 | AW54: 0 | AX54: 0 | BB54: =AX54+AY54-AZ54+BA54 -> 0 | BC54: =AW54 -> 0 | BG54: 0 | BH54: 0 | BL54: =BH54+BI54-BJ54+BK54 -> 0 | BO54: 0 | BP54: 0 | BS54: 0 | BU54: 0
A55: 26 | C55: Other Deferred Credits | D55: 2425 | I55: 0 | N55: 0 | O55: =I55 -> 0 | S55: 0 | T55: 0 | X55: 0 | Y55: 0 | AC55: 0 | AD55: 0 | AH55: 0 | AI55: =AC55 -> 0 | AM55: 0 | AN55: 0 | AR55: =AN55+AO55-AP55+AQ55 -> 0 | AS55: =AM55 -> 0 | AW55: 0 | AX55: 0 | BB55: =AX55+AY55-AZ55+BA55 -> 0 | BC55: =AW55 -> 0 | BG55: 0 | BH55: 0 | BL55: =BH55+BI55-BJ55+BK55 -> 0 | BO55: 0 | BP55: 0 | BS55: 0 | BU55: 0
C57: Group 2 Sub-Total | E57: =SUM(E44:E55) -> 0 | F57: 191677.64 | G57: 0 | H57: 0 | I57: 191677.64 | J57: -0.8 | K57: 2.94 | L57: 0 | M57: 0 | N57: 2.14 | O57: 191677.64 | P57: 134493.51 | Q57: 0 | R57: 0 | S57: 326171.15 | T57: 2.14 | U57: 1940.45 | V57: 0 | W57: 0 | X57: 1942.59 | Y57: 326171.15 | Z57: 88587.46 | AA57: 1947.64 | AB57: 0 | AC57: 412810.97 | AD57: 1942.59 | AE57: 5439.17 | AF57: 21.89 | AG57: 0 | AH57: 7359.87 | AI57: 412810.97 | AJ57: 29665.31 | AK57: =SUM(AK44:AK55) -> 0 | AL57: 0 | AM57: 442476.28 | AN57: 7359.87 | AO57: 6320.77 | AP57: 0 | AQ57: 0 | AR57: 13680.64 | AS57: 442476.28 | AT57: 0 | AU57: 0 | AV57: 0 | AW57: 442476.28 | AX57: 13680.64 | AY57: 6504.41 | AZ57: 0 | BA57: 0 | BB57: 20185.05 | BC57: 442476.28 | BD57: 0 | BE57: 0 | BF57: 5000 | BG57: 447476.28 | BH57: 20185.05 | BI57: 6504.41 | BJ57: 0 | BK57: 0 | BL57: 26689.46 | BM57: 0 | BN57: 0 | BO57: 447476.28 | BP57: 26689.46 | BQ57: 5336.154639 | BR57: 1640.74636 | BS57: 481142.641 | BT57: =SUM(BT44:BT55) -> 469165.29 | BU57: =BT57-SUM(BG57,BL57) -> -5000.45
A59: 27 | C59: PILs and Tax Variance for 2006 and Subsequent Years (excludes sub-account and contra account below) | D59: 1592 | I59: =E59+F59-G59+H59 -> 0 | N59: =J59+K59-L59+M59 -> 0 | O59: =I59 -> 0 | S59: =O59+P59-Q59+SUM(R59:R59) -> 0 | T59: =N59 -> 0 | X59: =T59+U59-V59+W59 -> 0 | Y59: =S59 -> 0 | AC59: =Y59+Z59-AA59+SUM(AB59:AB59) -> 0 | AD59: =X59 -> 0 | AH59: =AD59+AE59-AF59+AG59 -> 0 | AI59: =AC59 -> 0 | AM59: =AI59+AJ59-AK59+SUM(AL59:AL59) -> 0 | AN59: =AH59 -> 0 | AR59: =AN59+AO59-AP59+AQ59 -> 0 | AS59: =AM59 -> 0 | AW59: =AS59+AT59-AU59+SUM(AV59:AV59) -> 0 | AX59: =AR59 -> 0 | BB59: =AX59+AY59-AZ59+BA59 -> 0 | BC59: =AW59 -> 0 | BG59: =BC59+BD59-BE59+SUM(BF59:BF59) -> 0 | BH59: =BB59 -> 0 | BL59: =BH59+BI59-BJ59+BK59 -> 0 | BO59: =BG59-BM59 -> 0 | BP59: =BL59-BN59 -> 0 | BS59: 0 | BU59: =BT59-SUM(BG59,BL59) -> 0
A60: 28 | C60: PILs and Tax Variance for 2006 and Subsequent Years - Sub-Account HST/OVAT Input Tax Credits (ITCs) | D60: 1592 | I60: =E60+F60-G60+H60 -> 0 | N60: =J60+K60-L60+M60 -> 0 | O60: =I60 -> 0 | S60: =O60+P60-Q60+SUM(R60:R60) -> 0 | T60: =N60 -> 0 | X60: =T60+U60-V60+W60 -> 0 | Y60: =S60 -> 0 | AC60: =Y60+Z60-AA60+SUM(AB60:AB60) -> 0 | AD60: =X60 -> 0 | AH60: =AD60+AE60-AF60+AG60 -> 0 | AI60: =AC60 -> 0 | AM60: =AI60+AJ60-AK60+SUM(AL60:AL60) -> 0 | AN60: =AH60 -> 0 | AR60: =AN60+AO60-AP60+AQ60 -> 0 | AS60: =AM60 -> 0 | AW60: =AS60+AT60-AU60+SUM(AV60:AV60) -> 0 | AX60: =AR60 -> 0 | BB60: =AX60+AY60-AZ60+BA60 -> 0 | BC60: =AW60 -> 0 | BG60: =BC60+BD60-BE60+SUM(BF60:BF60) -> 0 | BH60: =BB60 -> 0 | BL60: =BH60+BI60-BJ60+BK60 -> 0 | BO60: =BG60-BM60 -> 0 | BP60: =BL60-BN60 -> 0 | BS60: 0 | BU60: 0
C62: Total of Group 1 and Group 2 Accounts (including 1562 and 1592) | E62: =SUM(E59:E60,E57, E39) -> 0 | F62: =SUM(F59:F60,F57, F39) -> 191677.64 | G62: =SUM(G59:G60,G57, G39) -> 0 | H62: 0 | I62: 191677.64 | J62: -0.8 | K62: 2.94 | L62: 0 | M62: 0 | N62: 2.14 | O62: 191677.64 | P62: 134493.51 | Q62: 0 | R62: -343455.62 | S62: -17284.47 | T62: 2.14 | U62: 1940.45 | V62: 0 | W62: -240892 | X62: -238949.41 | Y62: -17284.47 | Z62: 700517.26 | AA62: -108981.89 | AB62: 0 | AC62: 792214.68 | AD62: -238949.41 | AE62: 11024.54 | AF62: -34965.39 | AG62: 0 | AH62: -192959.48 | AI62: 792214.68 | AJ62: 1305235.31 | AK62: 0 | AL62: 0 | AM62: 2097449.99 | AN62: -192959.48 | AO62: 39614.77 | AP62: 0 | AQ62: 0 | AR62: -153344.71 | AS62: 2097449.99 | AT62: 263657.63 | AU62: 1951239 | AV62: 0 | AW62: 409868.62 | AX62: -153344.71 | AY62: 27402.4 | AZ62: -138134 | BA62: 0 | BB62: 12191.69 | BC62: 409868.62 | BD62: 2813494.84 | BE62: 0 | BF62: 5000 | BG62: 3228363.46 | BH62: 12191.69 | BI62: -150039.4 | BJ62: 0 | BK62: 0 | BL62: -137847.71 | BM62: 0 | BN62: 0 | BO62: 3228363.46 | BP62: -137847.71 | BQ62: 38498.23426 | BR62: =SUM(BR59:BR60,BR57, BR39) -> 11837.33269 | BS62: =SUM(BS59:BS60,BS57, BS39) -> 3140851.317 | BT62: =SUM(BT59:BT60,BT57, BT39) -> 3085514.73 | BU62: =BT62-SUM(BG62,BL62) -> -5001.02
A65: 29 | C65: LRAM Variance Account | D65: 1568 | S65: =O65+P65-Q65+SUM(R65:R65) -> 0 | X65: =T65+U65-V65+W65 -> 0 | Y65: =S65 -> 0 | AC65: =Y65+Z65-AA65+SUM(AB65:AB65) -> 0 | AD65: =X65 -> 0 | AH65: =AD65+AE65-AF65+AG65 -> 0 | AI65: =AC65 -> 0 | AM65: =AI65+AJ65-AK65+SUM(AL65:AL65) -> 0 | AN65: =AH65 -> 0 | AR65: =AN65+AO65-AP65+AQ65 -> 0 | AS65: =AM65 -> 0 | AW65: =AS65+AT65-AU65+SUM(AV65:AV65) -> 0 | AX65: =AR65 -> 0 | BB65: =AX65+AY65-AZ65+BA65 -> 0 | BC65: =AW65 -> 0 | BD65: =+'[4]Summary 2011-2014 LRAMVA'!$F$88 -> 138127.9907 | BG65: =BC65+BD65-BE65+SUM(BF65:BF65) -> 138127.9907 | BH65: =BB65 -> 0 | BI65: =+'[4]2014 LRAMVA'!$N$30 -> 1986.309143 | BL65: =BH65+BI65-BJ65+BK65 -> 1986.309143 | BO65: =BG65-BM65 -> 138127.9907 | BP65: =BL65-BN65 -> 1986.309143 | BQ65: =(+BO65*0.011)/12*9+(BO65*0.0147)/12*3 -> 1647.176289 | BR65: =+BO65*(0.011/12*4) -> 506.4692993 | BS65: =SUM(BO65:BR65) -> 142267.9455 | BT65: -6620 | BU65: =BT65-SUM(BG65,BL65) -> -146734.2999
C68: Total including Account 1568 | E68: =E62+E65 -> 0 | F68: 191677.64 | G68: 0 | H68: 0 | I68: 191677.64 | J68: -0.8 | K68: 2.94 | L68: 0 | M68: 0 | N68: 2.14 | O68: 191677.64 | P68: 134493.51 | Q68: 0 | R68: -343455.62 | S68: -17284.47 | T68: 2.14 | U68: 1940.45 | V68: 0 | W68: -240892 | X68: -238949.41 | Y68: -17284.47 | Z68: 700517.26 | AA68: -108981.89 | AB68: 0 | AC68: =AC62+AC65 -> 792214.68 | AD68: -238949.41 | AE68: 11024.54 | AF68: -34965.39 | AG68: 0 | AH68: -192959.48 | AI68: 792214.68 | AJ68: 1305235.31 | AK68: 0 | AL68: 0 | AM68: 2097449.99 | AN68: -192959.48 | AO68: 39614.77 | AP68: 0 | AQ68: 0 | AR68: -153344.71 | AS68: =AS62+AS65 -> 2097449.99 | AT68: 263657.63 | AU68: 1951239 | AV68: 0 | AW68: 409868.62 | AX68: -153344.71 | AY68: 27402.4 | AZ68: -138134 | BA68: 0 | BB68: 12191.69 | BC68: =BC62+BC65 -> 409868.62 | BD68: 2951622.831 | BE68: 0 | BF68: 5000 | BG68: 3366491.451 | BH68: 12191.69 | BI68: -148053.0909 | BJ68: 0 | BK68: 0 | BL68: -135861.4009 | BM68: 0 | BN68: 0 | BO68: 3366491.451 | BP68: -135861.4009 | BQ68: 40145.41055 | BR68: 12343.80199 | BS68: 3283119.262 | BT68: 3078894.73 | BU68: =BT68-SUM(BG68,BL68) -> -151735.3199
A70: 30 | C70: Renewable Generation Connection Capital Deferral Account | D70: 1531 | I70: =E70+F70-G70+H70 -> 0 | N70: =J70+K70-L70+M70 -> 0 | O70: =I70 -> 0 | S70: =O70+P70-Q70+SUM(R70:R70) -> 0 | T70: =N70 -> 0 | X70: =T70+U70-V70+W70 -> 0 | Y70: =S70 -> 0 | AC70: =Y70+Z70-AA70+SUM(AB70:AB70) -> 0 | AD70: =X70 -> 0 | AH70: =AD70+AE70-AF70+AG70 -> 0 | AI70: =AC70 -> 0 | AM70: =AI70+AJ70-AK70+SUM(AL70:AL70) -> 0 | AN70: =AH70 -> 0 | AR70: =AN70+AO70-AP70+AQ70 -> 0 | AS70: =AM70 -> 0 | AW70: =AS70+AT70-AU70+SUM(AV70:AV70) -> 0 | AX70: =AR70 -> 0 | BB70: =AX70+AY70-AZ70+BA70 -> 0 | BC70: =AW70 -> 0 | BG70: =BC70+BD70-BE70+SUM(BF70:BF70) -> 0 | BH70: =BB70 -> 0 | BL70: =BH70+BI70-BJ70+BK70 -> 0 | BO70: =BG70-BM70 -> 0 | BP70: =BL70-BN70 -> 0 | BS70: =SUM(BO70:BR70) -> 0 | BU70: =BT70-SUM(BG70,BL70) -> 0
A71: 31 | C71: Renewable Generation Connection OM&A Deferral Account | D71: 1532 | I71: 0 | N71: 0 | O71: 0 | S71: 0 | T71: 0 | X71: 0 | Y71: 0 | AC71: 0 | AD71: 0 | AH71: 0 | AI71: 0 | AM71: 0 | AN71: 0 | AR71: 0 | AS71: 0 | AW71: 0 | AX71: 0 | BB71: 0 | BC71: 0 | BG71: 0 | BH71: 0 | BL71: 0 | BO71: 0 | BP71: 0 | BS71: 0 | BU71: 0
A72: 32 | C72: Renewable Generation Connection Funding Adder Deferral Account | D72: 1533 | I72: 0 | N72: 0 | O72: 0 | S72: 0 | T72: 0 | X72: 0 | Y72: 0 | AC72: 0 | AD72: 0 | AH72: 0 | AI72: 0 | AM72: 0 | AN72: 0 | AR72: 0 | AS72: 0 | AW72: 0 | AX72: 0 | BB72: 0 | BC72: 0 | BG72: 0 | BH72: 0 | BL72: 0 | BO72: 0 | BP72: 0 | BS72: 0 | BU72: 0
A73: 33 | C73: Smart Grid Capital Deferral Account | D73: 1534 | I73: 0 | N73: 0 | O73: 0 | S73: 0 | T73: 0 | X73: 0 | Y73: 0 | AC73: 0 | AD73: 0 | AH73: 0 | AI73: 0 | AM73: 0 | AN73: 0 | AR73: 0 | AS73: 0 | AW73: 0 | AX73: 0 | BB73: 0 | BC73: 0 | BG73: 0 | BH73: 0 | BL73: 0 | BO73: 0 | BP73: 0 | BS73: 0 | BU73: 0
A74: 34 | C74: Smart Grid OM&A Deferral Account | D74: 1535 | I74: 0 | N74: 0 | O74: 0 | S74: 0 | T74: 0 | X74: 0 | Y74: 0 | AC74: 0 | AD74: 0 | AH74: 0 | AI74: 0 | AM74: 0 | AN74: 0 | AR74: 0 | AS74: 0 | AW74: 0 | AX74: 0 | BB74: 0 | BC74: 0 | BG74: 0 | BH74: 0 | BL74: 0 | BO74: 0 | BP74: 0 | BS74: 0 | BU74: 0
A75: 35 | C75: Smart Grid Funding Adder Deferral Account | D75: 1536 | I75: 0 | N75: 0 | O75: 0 | S75: 0 | T75: 0 | X75: 0 | Y75: 0 | AC75: 0 | AD75: 0 | AH75: 0 | AI75: 0 | AM75: 0 | AN75: 0 | AR75: 0 | AS75: 0 | AW75: 0 | AX75: 0 | BB75: 0 | BC75: 0 | BG75: 0 | BH75: 0 | BL75: 0 | BO75: 0 | BP75: 0 | BS75: 0 | BU75: 0
A76: 36 | C76: Retail Cost Variance Account - STR | D76: 1548 | I76: 0 | N76: 0 | O76: 0 | S76: 0 | T76: 0 | X76: 0 | Y76: 0 | AC76: 0 | AD76: 0 | AH76: 0 | AI76: 0 | AM76: 0 | AN76: 0 | AR76: 0 | AS76: 0 | AW76: 0 | AX76: 0 | BB76: 0 | BC76: 0 | BG76: 0 | BH76: 0 | BL76: 0 | BO76: 0 | BP76: 0 | BS76: 0 | BU76: 0
A77: 37 | C77: Smart Meter Capital and Recovery Offset Variance - Sub-Account - Capital5 | D77: 1555 | I77: 0 | N77: 0 | O77: 0 | S77: 0 | T77: 0 | X77: 0 | Y77: 0 | AC77: 0 | AD77: 0 | AH77: 0 | AI77: 0 | AM77: 0 | AN77: 0 | AR77: 0 | AS77: 0 | AW77: 0 | AX77: 0 | BB77: 0 | BC77: 0 | BG77: 0 | BH77: 0 | BL77: 0 | BO77: 0 | BP77: 0 | BS77: 0 | BU77: 0
A78: 38 | C78: Smart Meter Capital and Recovery Offset Variance - Sub-Account - Recoveries5 | D78: 1555 | I78: 0 | N78: 0 | O78: 0 | S78: 0 | T78: 0 | X78: 0 | Y78: 0 | AC78: 0 | AD78: 0 | AH78: 0 | AI78: 0 | AM78: 0 | AN78: 0 | AR78: 0 | AS78: 0 | AW78: 0 | AX78: 0 | BB78: 0 | BC78: 0 | BG78: 0 | BH78: 0 | BL78: 0 | BO78: 0 | BP78: 0 | BS78: 0 | BU78: 0
A79: 39 | C79: Smart Meter Capital and Recovery Offset Variance - Sub-Account - Stranded Meter Costs5 | D79: 1555 | I79: 0 | N79: 0 | O79: 0 | S79: 0 | T79: 0 | X79: 0 | Y79: 0 | AC79: 0 | AD79: 0 | AH79: 0 | AI79: 0 | AM79: 0 | AN79: 0 | AR79: 0 | AS79: 0 | AW79: 0 | AX79: 0 | BB79: 0 | BC79: 0 | BG79: 0 | BH79: 0 | BL79: 0 | BO79: 0 | BP79: 0 | BS79: 0 | BU79: 0
A80: 40 | C80: Smart Meter OM&A Variance5 | D80: 1556 | I80: 0 | N80: 0 | O80: 0 | S80: 0 | T80: 0 | X80: 0 | Y80: 0 | AC80: 0 | AD80: 0 | AH80: 0 | AI80: 0 | AM80: 0 | AN80: 0 | AR80: 0 | AS80: 0 | AW80: 0 | AX80: 0 | BB80: 0 | BC80: 0 | BG80: 0 | BH80: 0 | BL80: 0 | BO80: 0 | BP80: 0 | BS80: 0 | BU80: 0
A82: 41 | C82: IFRS-CGAAP Transition PP&E Amounts Balance + Return Component6 | D82: 1575 | AM82: =AI82+AJ82-AK82+SUM(AL82:AL82) -> 0 | AS82: =AM82 -> 0 | AW82: =AS82+AT82-AU82+SUM(AV82:AV82) -> 0 | BC82: =AW82 -> 0 | BG82: =BC82+BD82-BE82+SUM(BF82:BF82) -> 0 | BO82: =BG82-BM82 -> 0 | BS82: =BO82 -> 0 | BU82: =BT82-SUM(BG82,BL82) -> 0
A83: 42 | C83: Accounting Changes Under CGAAP Balance + Return Component6 | D83: 1576 | AM83: =AI83+AJ83-AK83+SUM(AL83:AL83) -> 0 | AS83: =AM83 -> 0 | AT83: -433776 | AW83: =AS83+AT83-AU83+SUM(AV83:AV83) -> -433776 | BC83: =AW83 -> -433776 | BD83: -536730 | BF83: =-585330-93086 -> -678416 | BG83: =BC83+BD83-BE83+SUM(BF83:BF83) -> -1648922 | BO83: -1648922 | BS83: =BO83 -> -1648922 | BT83: -970506 | BU83: 678416
C87: For all Board-Approved dispositions, please ensure that the disposition amount has the same sign (e.g: debit balances are to have a positive figure and credit balance are to have a negative figure) as per the related Board decision.
B88: 1 | C88: Do not include interest, adjustments, or OEB approved dispositions in this column
B89: 2 | C89: Please provide explanations for the nature of the adjustments. If the adjustment relates to previously OEB Approved disposed balances, please provide amounts for adjustments and include supporting documentations.
B90: 3 | C90: As per the January 6, 2011 Letter from the Board, regarding the implementation of the Ontario Clean Energy Benefit:
C91: "By way of exception... The Board does acticipate that licensed distributors that cannot adapt their invoices as of January 1, 2011 will require a variance account for OCEB purposes... The Board expects that any principal
C92: balances in "Sub account Financial Assistance Payment and Recovery Variance - Ontario Clean Energy Benefit Act" will be addressed through the monthly settlement process with the IESO or the host distributor, as applicable.
B93: 4 | C93: Please describe "other" components of 1508 and add more component lines if necessary.
B94: 5 | C94: Deferral accounts related to Smart Meter deployment are not to be recovered/refunded through the Deferral and Variance Account rate rider. For details on how to dispose of balances in Smart Meter accounts see the Board's
C95: Guideline: Smart Meter Disposition and Cost Recovery (G-2011-0001)
B96: 6 | C96: The Board requires that disposition of Account 1575 and Account 1576 shall require the use of separate rate riders. In the "Adjustments during 2015" column of the continuity schedule, please enter the amounts to be included in the Account 1575 and 1576 rate rider calculation from the applicable Chapter 2 appendices. For Account 1575, please provide the value in cell F39 from the relevant Chapter 2 Appendix (i.e. 2-EA, 2-EB or 2-EC). For Account 1576, please provide the value in cell F39 from the relevant Chapter 2 Appendix (i.e. 2-ED or 2-EE).

Sheet 3. Appendix A
B16: Accounts that produced a variance on the 2014 continuity schedule are listed below. Please provide a detailed explanation for each variance below.
C20: Account Descriptions | D20: Account Number | E20: Variance RRR vs. 2014 Balance (Principal + Interest) | F20: Explanation
C23: Group 1 Accounts
A24: 1 | C24: =VLOOKUP(A24, '2. 2015 Continuity Schedule'!$A$24:$BU$84,3,FALSE) -> LV Variance Account | D24: =VLOOKUP(A24, '2. 2015 Continuity Schedule'!$A$24:$BU$84,4,FALSE) -> 1550 | E24: =IF(ISERROR(VLOOKUP($A24, '2. 2015 Continuity Schedule'!$A$20:$BU$86, MATCH('3. Appendix A'!$E$20, '2. 2015 Continuity Schedule'!$A$20:$BU$20,0),FALSE)), 0, VLOOKUP($A24, '2. 2015 Continuity Schedule'!$A$20:$BU$86, MATCH('3. Appendix A'!$E$20, '2. 2015 Continuity Schedule'!$A$20:$BU$20,0),FALSE)) -> 0.5800000001
A25: 2 | C25: =VLOOKUP(A25, '2. 2015 Continuity Schedule'!$A$24:$BU$84,3,FALSE) -> Smart Metering Entity Charge Variance Account | D25: =VLOOKUP(A25, '2. 2015 Continuity Schedule'!$A$24:$BU$84,4,FALSE) -> 1551 | E25: =IF(ISERROR(VLOOKUP($A25, '2. 2015 Continuity Schedule'!$A$20:$BU$86, MATCH('3. Appendix A'!$E$20, '2. 2015 Continuity Schedule'!$A$20:$BU$20,0),FALSE)), 0, VLOOKUP($A25, '2. 2015 Continuity Schedule'!$A$20:$BU$86, MATCH('3. Appendix A'!$E$20, '2. 2015 Continuity Schedule'!$A$20:$BU$20,0),FALSE)) -> 0
A26: 3 | C26: =VLOOKUP(A26, '2. 2015 Continuity Schedule'!$A$24:$BU$84,3,FALSE) -> RSVA - Wholesale Market Service Charge | D26: =VLOOKUP(A26, '2. 2015 Continuity Schedule'!$A$24:$BU$84,4,FALSE) -> 1580 | E26: =IF(ISERROR(VLOOKUP($A26, '2. 2015 Continuity Schedule'!$A$20:$BU$86, MATCH('3. Appendix A'!$E$20, '2. 2015 Continuity Schedule'!$A$20:$BU$20,0),FALSE)), 0, VLOOKUP($A26, '2. 2015 Continuity Schedule'!$A$20:$BU$86, MATCH('3. Appendix A'!$E$20, '2. 2015 Continuity Schedule'!$A$20:$BU$20,0),FALSE)) -> 0.1199999999
A27: 4 | C27: =VLOOKUP(A27, '2. 2015 Continuity Schedule'!$A$24:$BU$84,3,FALSE) -> RSVA - Retail Transmission Network Charge | D27: =VLOOKUP(A27, '2. 2015 Continuity Schedule'!$A$24:$BU$84,4,FALSE) -> 1584 | E27: =IF(ISERROR(VLOOKUP($A27, '2. 2015 Continuity Schedule'!$A$20:$BU$86, MATCH('3. Appendix A'!$E$20, '2. 2015 Continuity Schedule'!$A$20:$BU$20,0),FALSE)), 0, VLOOKUP($A27, '2. 2015 Continuity Schedule'!$A$20:$BU$86, MATCH('3. Appendix A'!$E$20, '2. 2015 Continuity Schedule'!$A$20:$BU$20,0),FALSE)) -> 0.3600000003
A28: 5 | C28: =VLOOKUP(A28, '2. 2015 Continuity Schedule'!$A$24:$BU$84,3,FALSE) -> RSVA - Retail Transmission Connection Charge | D28: =VLOOKUP(A28, '2. 2015 Continuity Schedule'!$A$24:$BU$84,4,FALSE) -> 1586 | E28: =IF(ISERROR(VLOOKUP($A28, '2. 2015 Continuity Schedule'!$A$20:$BU$86, MATCH('3. Appendix A'!$E$20, '2. 2015 Continuity Schedule'!$A$20:$BU$20,0),FALSE)), 0, VLOOKUP($A28, '2. 2015 Continuity Schedule'!$A$20:$BU$86, MATCH('3. Appendix A'!$E$20, '2. 2015 Continuity Schedule'!$A$20:$BU$20,0),FALSE)) -> -0.1900000001
A29: 6 | C29: =VLOOKUP(A29, '2. 2015 Continuity Schedule'!$A$24:$BU$84,3,FALSE) -> RSVA - Power (excluding Global Adjustment) | D29: =VLOOKUP(A29, '2. 2015 Continuity Schedule'!$A$24:$BU$84,4,FALSE) -> 1588 | E29: =IF(ISERROR(VLOOKUP($A29, '2. 2015 Continuity Schedule'!$A$20:$BU$86, MATCH('3. Appendix A'!$E$20, '2. 2015 Continuity Schedule'!$A$20:$BU$20,0),FALSE)), 0, VLOOKUP($A29, '2. 2015 Continuity Schedule'!$A$20:$BU$86, MATCH('3. Appendix A'!$E$20, '2. 2015 Continuity Schedule'!$A$20:$BU$20,0),FALSE)) -> 0.1800000002
A30: 7 | C30: =VLOOKUP(A30, '2. 2015 Continuity Schedule'!$A$24:$BU$84,3,FALSE) -> RSVA - Global Adjustment | D30: =VLOOKUP(A30, '2. 2015 Continuity Schedule'!$A$24:$BU$84,4,FALSE) -> 1589 | E30: =IF(ISERROR(VLOOKUP($A30, '2. 2015 Continuity Schedule'!$A$20:$BU$86, MATCH('3. Appendix A'!$E$20, '2. 2015 Continuity Schedule'!$A$20:$BU$20,0),FALSE)), 0, VLOOKUP($A30, '2. 2015 Continuity Schedule'!$A$20:$BU$86, MATCH('3. Appendix A'!$E$20, '2. 2015 Continuity Schedule'!$A$20:$BU$20,0),FALSE)) -> -0.4199999999
A31: 8 | C31: =VLOOKUP(A31, '2. 2015 Continuity Schedule'!$A$24:$BU$84,3,FALSE) -> Disposition and Recovery/Refund of Regulatory Balances (2008) | D31: =VLOOKUP(A31, '2. 2015 Continuity Schedule'!$A$24:$BU$84,4,FALSE) -> 1595 | E31: =IF(ISERROR(VLOOKUP($A31, '2. 2015 Continuity Schedule'!$A$20:$BU$86, MATCH('3. Appendix A'!$E$20, '2. 2015 Continuity Schedule'!$A$20:$BU$20,0),FALSE)), 0, VLOOKUP($A31, '2. 2015 Continuity Schedule'!$A$20:$BU$86, MATCH('3. Appendix A'!$E$20, '2. 2015 Continuity Schedule'!$A$20:$BU$20,0),FALSE)) -> -0.4599999999
A32: 9 | C32: =VLOOKUP(A32, '2. 2015 Continuity Schedule'!$A$24:$BU$84,3,FALSE) -> Disposition and Recovery/Refund of Regulatory Balances (2009) | D32: =VLOOKUP(A32, '2. 2015 Continuity Schedule'!$A$24:$BU$84,4,FALSE) -> 1595 | E32: =IF(ISERROR(VLOOKUP($A32, '2. 2015 Continuity Schedule'!$A$20:$BU$86, MATCH('3. Appendix A'!$E$20, '2. 2015 Continuity Schedule'!$A$20:$BU$20,0),FALSE)), 0, VLOOKUP($A32, '2. 2015 Continuity Schedule'!$A$20:$BU$86, MATCH('3. Appendix A'!$E$20, '2. 2015 Continuity Schedule'!$A$20:$BU$20,0),FALSE)) -> 0.1
A33: 10 | C33: =VLOOKUP(A33, '2. 2015 Continuity Schedule'!$A$24:$BU$84,3,FALSE) -> Disposition and Recovery/Refund of Regulatory Balances (2010) | D33: =VLOOKUP(A33, '2. 2015 Continuity Schedule'!$A$24:$BU$84,4,FALSE) -> 1595 | E33: =IF(ISERROR(VLOOKUP($A33, '2. 2015 Continuity Schedule'!$A$20:$BU$86, MATCH('3. Appendix A'!$E$20, '2. 2015 Continuity Schedule'!$A$20:$BU$20,0),FALSE)), 0, VLOOKUP($A33, '2. 2015 Continuity Schedule'!$A$20:$BU$86, MATCH('3. Appendix A'!$E$20, '2. 2015 Continuity Schedule'!$A$20:$BU$20,0),FALSE)) -> -0.37
A34: 11 | C34: =VLOOKUP(A34, '2. 2015 Continuity Schedule'!$A$24:$BU$84,3,FALSE) -> Disposition and Recovery/Refund of Regulatory Balances (2011) | D34: =VLOOKUP(A34, '2. 2015 Continuity Schedule'!$A$24:$BU$84,4,FALSE) -> 1595 | E34: =IF(ISERROR(VLOOKUP($A34, '2. 2015 Continuity Schedule'!$A$20:$BU$86, MATCH('3. Appendix A'!$E$20, '2. 2015 Continuity Schedule'!$A$20:$BU$20,0),FALSE)), 0, VLOOKUP($A34, '2. 2015 Continuity Schedule'!$A$20:$BU$86, MATCH('3. Appendix A'!$E$20, '2. 2015 Continuity Schedule'!$A$20:$BU$20,0),FALSE)) -> -0.47
A35: 12 | C35: =VLOOKUP(A35, '2. 2015 Continuity Schedule'!$A$24:$BU$84,3,FALSE) -> Disposition and Recovery/Refund of Regulatory Balances (2012) | D35: =VLOOKUP(A35, '2. 2015 Continuity Schedule'!$A$24:$BU$84,4,FALSE) -> 1595 | E35: =IF(ISERROR(VLOOKUP($A35, '2. 2015 Continuity Schedule'!$A$20:$BU$86, MATCH('3. Appendix A'!$E$20, '2. 2015 Continuity Schedule'!$A$20:$BU$20,0),FALSE)), 0, VLOOKUP($A35, '2. 2015 Continuity Schedule'!$A$20:$BU$86, MATCH('3. Appendix A'!$E$20, '2. 2015 Continuity Schedule'!$A$20:$BU$20,0),FALSE)) -> 0
A36: 13 | C36: =VLOOKUP(A36, '2. 2015 Continuity Schedule'!$A$24:$BU$84,3,FALSE) -> Disposition and Recovery/Refund of Regulatory Balances (2013) | D36: =VLOOKUP(A36, '2. 2015 Continuity Schedule'!$A$24:$BU$84,4,FALSE) -> 1595 | E36: =IF(ISERROR(VLOOKUP($A36, '2. 2015 Continuity Schedule'!$A$20:$BU$86, MATCH('3. Appendix A'!$E$20, '2. 2015 Continuity Schedule'!$A$20:$BU$20,0),FALSE)), 0, VLOOKUP($A36, '2. 2015 Continuity Schedule'!$A$20:$BU$86, MATCH('3. Appendix A'!$E$20, '2. 2015 Continuity Schedule'!$A$20:$BU$20,0),FALSE)) -> 0
A37: 14 | C37: =VLOOKUP(A37, '2. 2015 Continuity Schedule'!$A$24:$BU$84,3,FALSE) -> Disposition and Recovery/Refund of Regulatory Balances (2014) | D37: =VLOOKUP(A37, '2. 2015 Continuity Schedule'!$A$24:$BU$84,4,FALSE) -> 1595 | E37: =IF(ISERROR(VLOOKUP($A37, '2. 2015 Continuity Schedule'!$A$20:$BU$86, MATCH('3. Appendix A'!$E$20, '2. 2015 Continuity Schedule'!$A$20:$BU$20,0),FALSE)), 0, VLOOKUP($A37, '2. 2015 Continuity Schedule'!$A$20:$BU$86, MATCH('3. Appendix A'!$E$20, '2. 2015 Continuity Schedule'!$A$20:$BU$20,0),FALSE)) -> 0
C39: Group 2 Accounts
A40: 15 | C40: =VLOOKUP(A40, '2. 2015 Continuity Schedule'!$A$24:$BU$84,3,FALSE) -> Other Regulatory Assets - Sub-Account - Deferred IFRS Transition Costs | D40: =VLOOKUP(A40, '2. 2015 Continuity Schedule'!$A$24:$BU$84,4,FALSE) -> 1508 | E40: =IF(ISERROR(VLOOKUP($A40, '2. 2015 Continuity Schedule'!$A$20:$BU$86, MATCH('3. Appendix A'!$E$20, '2. 2015 Continuity Schedule'!$A$20:$BU$20,0),FALSE)), 0, VLOOKUP($A40, '2. 2015 Continuity Schedule'!$A$20:$BU$86, MATCH('3. Appendix A'!$E$20, '2. 2015 Continuity Schedule'!$A$20:$BU$20,0),FALSE)) -> -5000.45 | F40: Added $5,000 for anticipated costs related to 2015 Bridge year in cell BF44 tab 2. 2015 Continuity Schedule
A41: 16 | C41: =VLOOKUP(A41, '2. 2015 Continuity Schedule'!$A$24:$BU$84,3,FALSE) -> Other Regulatory Assets - Sub-Account - Incremental Capital Charges | D41: =VLOOKUP(A41, '2. 2015 Continuity Schedule'!$A$24:$BU$84,4,FALSE) -> 1508 | E41: =IF(ISERROR(VLOOKUP($A41, '2. 2015 Continuity Schedule'!$A$20:$BU$86, MATCH('3. Appendix A'!$E$20, '2. 2015 Continuity Schedule'!$A$20:$BU$20,0),FALSE)), 0, VLOOKUP($A41, '2. 2015 Continuity Schedule'!$A$20:$BU$86, MATCH('3. Appendix A'!$E$20, '2. 2015 Continuity Schedule'!$A$20:$BU$20,0),FALSE)) -> 0
A42: 17 | C42: =VLOOKUP(A42, '2. 2015 Continuity Schedule'!$A$24:$BU$84,3,FALSE) -> Other Regulatory Assets - Sub-Account - Financial Assistance Payment and Recovery Variance - Ontario Clean Energy Benefit Act8 | D42: =VLOOKUP(A42, '2. 2015 Continuity Schedule'!$A$24:$BU$84,4,FALSE) -> 1508 | E42: =IF(ISERROR(VLOOKUP($A42, '2. 2015 Continuity Schedule'!$A$20:$BU$86, MATCH('3. Appendix A'!$E$20, '2. 2015 Continuity Schedule'!$A$20:$BU$20,0),FALSE)), 0, VLOOKUP($A42, '2. 2015 Continuity Schedule'!$A$20:$BU$86, MATCH('3. Appendix A'!$E$20, '2. 2015 Continuity Schedule'!$A$20:$BU$20,0),FALSE)) -> 0
A43: 18 | C43: =VLOOKUP(A43, '2. 2015 Continuity Schedule'!$A$24:$BU$84,3,FALSE) -> Other Regulatory Assets - Sub-Account - Financial Assistance Payment and Recovery Carrying Charges | D43: =VLOOKUP(A43, '2. 2015 Continuity Schedule'!$A$24:$BU$84,4,FALSE) -> 1508 | E43: =IF(ISERROR(VLOOKUP($A43, '2. 2015 Continuity Schedule'!$A$20:$BU$86, MATCH('3. Appendix A'!$E$20, '2. 2015 Continuity Schedule'!$A$20:$BU$20,0),FALSE)), 0, VLOOKUP($A43, '2. 2015 Continuity Schedule'!$A$20:$BU$86, MATCH('3. Appendix A'!$E$20, '2. 2015 Continuity Schedule'!$A$20:$BU$20,0),FALSE)) -> 0
A44: 19 | C44: =VLOOKUP(A44, '2. 2015 Continuity Schedule'!$A$24:$BU$84,3,FALSE) -> Other Regulatory Assets - Sub-Account - Other 4 | D44: =VLOOKUP(A44, '2. 2015 Continuity Schedule'!$A$24:$BU$84,4,FALSE) -> 1508 | E44: =IF(ISERROR(VLOOKUP($A44, '2. 2015 Continuity Schedule'!$A$20:$BU$86, MATCH('3. Appendix A'!$E$20, '2. 2015 Continuity Schedule'!$A$20:$BU$20,0),FALSE)), 0, VLOOKUP($A44, '2. 2015 Continuity Schedule'!$A$20:$BU$86, MATCH('3. Appendix A'!$E$20, '2. 2015 Continuity Schedule'!$A$20:$BU$20,0),FALSE)) -> 0
A45: 20 | C45: =VLOOKUP(A45, '2. 2015 Continuity Schedule'!$A$24:$BU$84,3,FALSE) -> Retail Cost Variance Account - Retail | D45: =VLOOKUP(A45, '2. 2015 Continuity Schedule'!$A$24:$BU$84,4,FALSE) -> 1518 | E45: =IF(ISERROR(VLOOKUP($A45, '2. 2015 Continuity Schedule'!$A$20:$BU$86, MATCH('3. Appendix A'!$E$20, '2. 2015 Continuity Schedule'!$A$20:$BU$20,0),FALSE)), 0, VLOOKUP($A45, '2. 2015 Continuity Schedule'!$A$20:$BU$86, MATCH('3. Appendix A'!$E$20, '2. 2015 Continuity Schedule'!$A$20:$BU$20,0),FALSE)) -> 0
A46: 21 | C46: =VLOOKUP(A46, '2. 2015 Continuity Schedule'!$A$24:$BU$84,3,FALSE) -> Misc. Deferred Debits | D46: =VLOOKUP(A46, '2. 2015 Continuity Schedule'!$A$24:$BU$84,4,FALSE) -> 1525 | E46: =IF(ISERROR(VLOOKUP($A46, '2. 2015 Continuity Schedule'!$A$20:$BU$86, MATCH('3. Appendix A'!$E$20, '2. 2015 Continuity Schedule'!$A$20:$BU$20,0),FALSE)), 0, VLOOKUP($A46, '2. 2015 Continuity Schedule'!$A$20:$BU$86, MATCH('3. Appendix A'!$E$20, '2. 2015 Continuity Schedule'!$A$20:$BU$20,0),FALSE)) -> 0
A47: 22 | C47: =VLOOKUP(A47, '2. 2015 Continuity Schedule'!$A$24:$BU$84,3,FALSE) -> Board-Approved CDM Variance Account | D47: =VLOOKUP(A47, '2. 2015 Continuity Schedule'!$A$24:$BU$84,4,FALSE) -> 1567 | E47: =IF(ISERROR(VLOOKUP($A47, '2. 2015 Continuity Schedule'!$A$20:$BU$86, MATCH('3. Appendix A'!$E$20, '2. 2015 Continuity Schedule'!$A$20:$BU$20,0),FALSE)), 0, VLOOKUP($A47, '2. 2015 Continuity Schedule'!$A$20:$BU$86, MATCH('3. Appendix A'!$E$20, '2. 2015 Continuity Schedule'!$A$20:$BU$20,0),FALSE)) -> 0
A48: 23 | C48: =VLOOKUP(A48, '2. 2015 Continuity Schedule'!$A$24:$BU$84,3,FALSE) -> Extra-Ordinary Event Costs | D48: =VLOOKUP(A48, '2. 2015 Continuity Schedule'!$A$24:$BU$84,4,FALSE) -> 1572 | E48: =IF(ISERROR(VLOOKUP($A48, '2. 2015 Continuity Schedule'!$A$20:$BU$86, MATCH('3. Appendix A'!$E$20, '2. 2015 Continuity Schedule'!$A$20:$BU$20,0),FALSE)), 0, VLOOKUP($A48, '2. 2015 Continuity Schedule'!$A$20:$BU$86, MATCH('3. Appendix A'!$E$20, '2. 2015 Continuity Schedule'!$A$20:$BU$20,0),FALSE)) -> 0
A49: 24 | C49: =VLOOKUP(A49, '2. 2015 Continuity Schedule'!$A$24:$BU$84,3,FALSE) -> Deferred Rate Impact Amounts | D49: =VLOOKUP(A49, '2. 2015 Continuity Schedule'!$A$24:$BU$84,4,FALSE) -> 1574 | E49: =IF(ISERROR(VLOOKUP($A49, '2. 2015 Continuity Schedule'!$A$20:$BU$86, MATCH('3. Appendix A'!$E$20, '2. 2015 Continuity Schedule'!$A$20:$BU$20,0),FALSE)), 0, VLOOKUP($A49, '2. 2015 Continuity Schedule'!$A$20:$BU$86, MATCH('3. Appendix A'!$E$20, '2. 2015 Continuity Schedule'!$A$20:$BU$20,0),FALSE)) -> 0
A50: 25 | C50: =VLOOKUP(A50, '2. 2015 Continuity Schedule'!$A$24:$BU$84,3,FALSE) -> RSVA - One-time | D50: =VLOOKUP(A50, '2. 2015 Continuity Schedule'!$A$24:$BU$84,4,FALSE) -> 1582 | E50: =IF(ISERROR(VLOOKUP($A50, '2. 2015 Continuity Schedule'!$A$20:$BU$86, MATCH('3. Appendix A'!$E$20, '2. 2015 Continuity Schedule'!$A$20:$BU$20,0),FALSE)), 0, VLOOKUP($A50, '2. 2015 Continuity Schedule'!$A$20:$BU$86, MATCH('3. Appendix A'!$E$20, '2. 2015 Continuity Schedule'!$A$20:$BU$20,0),FALSE)) -> 0
A51: 26 | C51: =VLOOKUP(A51, '2. 2015 Continuity Schedule'!$A$24:$BU$84,3,FALSE) -> Other Deferred Credits | D51: =VLOOKUP(A51, '2. 2015 Continuity Schedule'!$A$24:$BU$84,4,FALSE) -> 2425 | E51: =IF(ISERROR(VLOOKUP($A51, '2. 2015 Continuity Schedule'!$A$20:$BU$86, MATCH('3. Appendix A'!$E$20, '2. 2015 Continuity Schedule'!$A$20:$BU$20,0),FALSE)), 0, VLOOKUP($A51, '2. 2015 Continuity Schedule'!$A$20:$BU$86, MATCH('3. Appendix A'!$E$20, '2. 2015 Continuity Schedule'!$A$20:$BU$20,0),FALSE)) -> 0
A52: 27 | C52: =VLOOKUP(A52, '2. 2015 Continuity Schedule'!$A$24:$BU$84,3,FALSE) -> PILs and Tax Variance for 2006 and Subsequent Years (excludes sub-account and contra account below) | D52: =VLOOKUP(A52, '2. 2015 Continuity Schedule'!$A$24:$BU$84,4,FALSE) -> 1592 | E52: =IF(ISERROR(VLOOKUP($A52, '2. 2015 Continuity Schedule'!$A$20:$BU$86, MATCH('3. Appendix A'!$E$20, '2. 2015 Continuity Schedule'!$A$20:$BU$20,0),FALSE)), 0, VLOOKUP($A52, '2. 2015 Continuity Schedule'!$A$20:$BU$86, MATCH('3. Appendix A'!$E$20, '2. 2015 Continuity Schedule'!$A$20:$BU$20,0),FALSE)) -> 0
A53: 28 | C53: =VLOOKUP(A53, '2. 2015 Continuity Schedule'!$A$24:$BU$84,3,FALSE) -> PILs and Tax Variance for 2006 and Subsequent Years - Sub-Account HST/OVAT Input Tax Credits (ITCs) | D53: =VLOOKUP(A53, '2. 2015 Continuity Schedule'!$A$24:$BU$84,4,FALSE) -> 1592 | E53: =IF(ISERROR(VLOOKUP($A53, '2. 2015 Continuity Schedule'!$A$20:$BU$86, MATCH('3. Appendix A'!$E$20, '2. 2015 Continuity Schedule'!$A$20:$BU$20,0),FALSE)), 0, VLOOKUP($A53, '2. 2015 Continuity Schedule'!$A$20:$BU$86, MATCH('3. Appendix A'!$E$20, '2. 2015 Continuity Schedule'!$A$20:$BU$20,0),FALSE)) -> 0
A54: 29 | C54: =VLOOKUP(A54, '2. 2015 Continuity Schedule'!$A$24:$BU$84,3,FALSE) -> LRAM Variance Account | D54: =VLOOKUP(A54, '2. 2015 Continuity Schedule'!$A$24:$BU$84,4,FALSE) -> 1568 | E54: =IF(ISERROR(VLOOKUP($A54, '2. 2015 Continuity Schedule'!$A$20:$BU$86, MATCH('3. Appendix A'!$E$20, '2. 2015 Continuity Schedule'!$A$20:$BU$20,0),FALSE)), 0, VLOOKUP($A54, '2. 2015 Continuity Schedule'!$A$20:$BU$86, MATCH('3. Appendix A'!$E$20, '2. 2015 Continuity Schedule'!$A$20:$BU$20,0),FALSE)) -> -146734.2999 | F54: LRAM to the end of 2014 was calculated using estimated values. kW Demand was not recorded for the years 2011-2014 (estimated). Milton Hydro has updated as the Final IESO(OPA) report has been received.
A55: 30 | C55: =VLOOKUP(A55, '2. 2015 Continuity Schedule'!$A$24:$BU$84,3,FALSE) -> Renewable Generation Connection Capital Deferral Account | D55: =VLOOKUP(A55, '2. 2015 Continuity Schedule'!$A$24:$BU$84,4,FALSE) -> 1531 | E55: =IF(ISERROR(VLOOKUP($A55, '2. 2015 Continuity Schedule'!$A$20:$BU$86, MATCH('3. Appendix A'!$E$20, '2. 2015 Continuity Schedule'!$A$20:$BU$20,0),FALSE)), 0, VLOOKUP($A55, '2. 2015 Continuity Schedule'!$A$20:$BU$86, MATCH('3. Appendix A'!$E$20, '2. 2015 Continuity Schedule'!$A$20:$BU$20,0),FALSE)) -> 0
A56: 31 | C56: =VLOOKUP(A56, '2. 2015 Continuity Schedule'!$A$24:$BU$84,3,FALSE) -> Renewable Generation Connection OM&A Deferral Account | D56: =VLOOKUP(A56, '2. 2015 Continuity Schedule'!$A$24:$BU$84,4,FALSE) -> 1532 | E56: =IF(ISERROR(VLOOKUP($A56, '2. 2015 Continuity Schedule'!$A$20:$BU$86, MATCH('3. Appendix A'!$E$20, '2. 2015 Continuity Schedule'!$A$20:$BU$20,0),FALSE)), 0, VLOOKUP($A56, '2. 2015 Continuity Schedule'!$A$20:$BU$86, MATCH('3. Appendix A'!$E$20, '2. 2015 Continuity Schedule'!$A$20:$BU$20,0),FALSE)) -> 0
A57: 32 | C57: =VLOOKUP(A57, '2. 2015 Continuity Schedule'!$A$24:$BU$84,3,FALSE) -> Renewable Generation Connection Funding Adder Deferral Account | D57: =VLOOKUP(A57, '2. 2015 Continuity Schedule'!$A$24:$BU$84,4,FALSE) -> 1533 | E57: =IF(ISERROR(VLOOKUP($A57, '2. 2015 Continuity Schedule'!$A$20:$BU$86, MATCH('3. Appendix A'!$E$20, '2. 2015 Continuity Schedule'!$A$20:$BU$20,0),FALSE)), 0, VLOOKUP($A57, '2. 2015 Continuity Schedule'!$A$20:$BU$86, MATCH('3. Appendix A'!$E$20, '2. 2015 Continuity Schedule'!$A$20:$BU$20,0),FALSE)) -> 0
A58: 33 | C58: =VLOOKUP(A58, '2. 2015 Continuity Schedule'!$A$24:$BU$84,3,FALSE) -> Smart Grid Capital Deferral Account | D58: =VLOOKUP(A58, '2. 2015 Continuity Schedule'!$A$24:$BU$84,4,FALSE) -> 1534 | E58: =IF(ISERROR(VLOOKUP($A58, '2. 2015 Continuity Schedule'!$A$20:$BU$86, MATCH('3. Appendix A'!$E$20, '2. 2015 Continuity Schedule'!$A$20:$BU$20,0),FALSE)), 0, VLOOKUP($A58, '2. 2015 Continuity Schedule'!$A$20:$BU$86, MATCH('3. Appendix A'!$E$20, '2. 2015 Continuity Schedule'!$A$20:$BU$20,0),FALSE)) -> 0
A59: 34 | C59: =VLOOKUP(A59, '2. 2015 Continuity Schedule'!$A$24:$BU$84,3,FALSE) -> Smart Grid OM&A Deferral Account | D59: =VLOOKUP(A59, '2. 2015 Continuity Schedule'!$A$24:$BU$84,4,FALSE) -> 1535 | E59: =IF(ISERROR(VLOOKUP($A59, '2. 2015 Continuity Schedule'!$A$20:$BU$86, MATCH('3. Appendix A'!$E$20, '2. 2015 Continuity Schedule'!$A$20:$BU$20,0),FALSE)), 0, VLOOKUP($A59, '2. 2015 Continuity Schedule'!$A$20:$BU$86, MATCH('3. Appendix A'!$E$20, '2. 2015 Continuity Schedule'!$A$20:$BU$20,0),FALSE)) -> 0
A60: 35 | C60: =VLOOKUP(A60, '2. 2015 Continuity Schedule'!$A$24:$BU$84,3,FALSE) -> Smart Grid Funding Adder Deferral Account | D60: =VLOOKUP(A60, '2. 2015 Continuity Schedule'!$A$24:$BU$84,4,FALSE) -> 1536 | E60: =IF(ISERROR(VLOOKUP($A60, '2. 2015 Continuity Schedule'!$A$20:$BU$86, MATCH('3. Appendix A'!$E$20, '2. 2015 Continuity Schedule'!$A$20:$BU$20,0),FALSE)), 0, VLOOKUP($A60, '2. 2015 Continuity Schedule'!$A$20:$BU$86, MATCH('3. Appendix A'!$E$20, '2. 2015 Continuity Schedule'!$A$20:$BU$20,0),FALSE)) -> 0
A61: 36 | C61: =VLOOKUP(A61, '2. 2015 Continuity Schedule'!$A$24:$BU$84,3,FALSE) -> Retail Cost Variance Account - STR | D61: =VLOOKUP(A61, '2. 2015 Continuity Schedule'!$A$24:$BU$84,4,FALSE) -> 1548 | E61: =IF(ISERROR(VLOOKUP($A61, '2. 2015 Continuity Schedule'!$A$20:$BU$86, MATCH('3. Appendix A'!$E$20, '2. 2015 Continuity Schedule'!$A$20:$BU$20,0),FALSE)), 0, VLOOKUP($A61, '2. 2015 Continuity Schedule'!$A$20:$BU$86, MATCH('3. Appendix A'!$E$20, '2. 2015 Continuity Schedule'!$A$20:$BU$20,0),FALSE)) -> 0
A62: 37 | C62: =VLOOKUP(A62, '2. 2015 Continuity Schedule'!$A$24:$BU$84,3,FALSE) -> Smart Meter Capital and Recovery Offset Variance - Sub-Account - Capital5 | D62: =VLOOKUP(A62, '2. 2015 Continuity Schedule'!$A$24:$BU$84,4,FALSE) -> 1555 | E62: =IF(ISERROR(VLOOKUP($A62, '2. 2015 Continuity Schedule'!$A$20:$BU$86, MATCH('3. Appendix A'!$E$20, '2. 2015 Continuity Schedule'!$A$20:$BU$20,0),FALSE)), 0, VLOOKUP($A62, '2. 2015 Continuity Schedule'!$A$20:$BU$86, MATCH('3. Appendix A'!$E$20, '2. 2015 Continuity Schedule'!$A$20:$BU$20,0),FALSE)) -> 0
A63: 38 | C63: =VLOOKUP(A63, '2. 2015 Continuity Schedule'!$A$24:$BU$84,3,FALSE) -> Smart Meter Capital and Recovery Offset Variance - Sub-Account - Recoveries5 | D63: =VLOOKUP(A63, '2. 2015 Continuity Schedule'!$A$24:$BU$84,4,FALSE) -> 1555 | E63: =IF(ISERROR(VLOOKUP($A63, '2. 2015 Continuity Schedule'!$A$20:$BU$86, MATCH('3. Appendix A'!$E$20, '2. 2015 Continuity Schedule'!$A$20:$BU$20,0),FALSE)), 0, VLOOKUP($A63, '2. 2015 Continuity Schedule'!$A$20:$BU$86, MATCH('3. Appendix A'!$E$20, '2. 2015 Continuity Schedule'!$A$20:$BU$20,0),FALSE)) -> 0
A64: 39 | C64: =VLOOKUP(A64, '2. 2015 Continuity Schedule'!$A$24:$BU$84,3,FALSE) -> Smart Meter Capital and Recovery Offset Variance - Sub-Account - Stranded Meter Costs5 | D64: =VLOOKUP(A64, '2. 2015 Continuity Schedule'!$A$24:$BU$84,4,FALSE) -> 1555 | E64: =IF(ISERROR(VLOOKUP($A64, '2. 2015 Continuity Schedule'!$A$20:$BU$86, MATCH('3. Appendix A'!$E$20, '2. 2015 Continuity Schedule'!$A$20:$BU$20,0),FALSE)), 0, VLOOKUP($A64, '2. 2015 Continuity Schedule'!$A$20:$BU$86, MATCH('3. Appendix A'!$E$20, '2. 2015 Continuity Schedule'!$A$20:$BU$20,0),FALSE)) -> 0
A65: 40 | C65: =VLOOKUP(A65, '2. 2015 Continuity Schedule'!$A$24:$BU$84,3,FALSE) -> Smart Meter OM&A Variance5 | D65: =VLOOKUP(A65, '2. 2015 Continuity Schedule'!$A$24:$BU$84,4,FALSE) -> 1556 | E65: =IF(ISERROR(VLOOKUP($A65, '2. 2015 Continuity Schedule'!$A$20:$BU$86, MATCH('3. Appendix A'!$E$20, '2. 2015 Continuity Schedule'!$A$20:$BU$20,0),FALSE)), 0, VLOOKUP($A65, '2. 2015 Continuity Schedule'!$A$20:$BU$86, MATCH('3. Appendix A'!$E$20, '2. 2015 Continuity Schedule'!$A$20:$BU$20,0),FALSE)) -> 0
A66: 41 | C66: =VLOOKUP(A66, '2. 2015 Continuity Schedule'!$A$24:$BU$84,3,FALSE) -> IFRS-CGAAP Transition PP&E Amounts Balance + Return Component6 | D66: =VLOOKUP(A66, '2. 2015 Continuity Schedule'!$A$24:$BU$84,4,FALSE) -> 1575 | E66: =IF(ISERROR(VLOOKUP($A66, '2. 2015 Continuity Schedule'!$A$20:$BU$86, MATCH('3. Appendix A'!$E$20, '2. 2015 Continuity Schedule'!$A$20:$BU$20,0),FALSE)), 0, VLOOKUP($A66, '2. 2015 Continuity Schedule'!$A$20:$BU$86, MATCH('3. Appendix A'!$E$20, '2. 2015 Continuity Schedule'!$A$20:$BU$20,0),FALSE)) -> 0

Sheet 4. Billing Determinants
B16: In the green shaded cells, enter the data related to the proposed load forecast. Do not enter data for the MicroFit class.
B19: Rate Class (Enter Rate Classes in cells below as they appear on your current tariff of rates and charges) | C19: Units | D19: # of Customers | E19: Total Metered kWh | F19: Total Metered kW | G19: Billed kWh for Non-RPP Customers | H19: Billed kW for Non-RPP Customers | I19: Distribution Revenue 1 | J19: Billed kWh for Wholesale Market Participants (WMP) | K19: Billed kW for Wholesale Market Participants (WMP) | L19: Total Metered kWh less WMP consumption (if applicable) | M19: Total Metered kW less WMP Demand (if applicable) | N19: GA Allocator for Class A, Non-WMP Customers (if applicable)3 | O19: Billed kWh for Class A, Non-WMPs Customers (if applicable) | P19: Billed kW for Class A Non-WMP Customers (if applicable) | Q19: Billed kWh for Non-RPP Customers LESS Class A Consumption | R19: Billed kW for Non-RPP Customers LESS Class A Demand | S19: 1595 Recovery Share Proportion (2008) 2 | T19: 1595 Recovery Share Proportion (2009) 2 | U19: 1595 Recovery Share Proportion (2010) 2 | V19: 1595 Recovery Share Proportion (2011) 2 | W19: 1595 Recovery Share Proportion (2012) 2 | X19: 1595 Recovery Share Proportion (2013) 2 | Y19: 1595 Recovery Share Proportion (2014) 2 | Z19: 1568 LRAM Variance Account Class Allocation ($ amounts)
B21: RESIDENTIAL | C21: kWh | D21: =+[5]Summary!$T$11 -> 34501 | E21: =+[5]Summary!$T$12 -> 311504507.1 | G21: =+'[6]wap '!$I$34 -> 15562305.66 | H21: =IF(ISERROR(F21/E21*G21), 0, F21/E21*G21) -> 0 | I21: =+'[7]Cost Allocation Study'!$K$7 -> 11341620.22 | L21: =E21-J21 -> 311504507.1 | M21: =F21-K21 -> 0 | Q21: =IF(OR(G21=0, ISBLANK(G21)), 0, G21-J21-O21) -> 15562305.66 | R21: =IF(OR(H21=0, ISBLANK(H21)), 0, H21-K21-P21) -> 0 | U21: 0.3417 | V21: 0.35626716 | Z21: =+'[8]Summary 2011-2014 LRAMVA'!$H$83 -> 9556.448955
B22: GENERAL SERVICE LESS THAN 50 KW | C22: kWh | D22: =+[5]Summary!$T$15 -> 2642.050533 | E22: =+[5]Summary!$T$16 -> 91412831.73 | G22: =+'[6]wap '!$I$35 -> 12578993.65 | H22: =IF(ISERROR(F22/E22*G22), 0, F22/E22*G22) -> 0 | I22: =+'[7]Cost Allocation Study'!$K$8 -> 2188342.883 | L22: =E22-J22 -> 91412831.73 | M22: =F22-K22 -> 0 | Q22: =IF(OR(G22=0, ISBLANK(G22)), 0, G22-J22-O22) -> 12578993.65 | R22: =IF(OR(H22=0, ISBLANK(H22)), 0, H22-K22-P22) -> 0 | U22: 0.11 | V22: 0.103434264 | Z22: =+'[8]Summary 2011-2014 LRAMVA'!$H$84 -> 32899.31548
B23: GENERAL SERVICE 50 TO 999 KW | C23: kW | D23: =+[5]Summary!$T$19 -> 301.9327839 | E23: =+[5]Summary!$T$20 -> 206918158.5 | F23: =+[5]Summary!$T$21 -> 555651.2835 | G23: =+'[6]wap '!$I$36 -> 190136152.4 | H23: 510585.4308 | I23: =+'[7]Cost Allocation Study'!$K$9 -> 1959679.725 | J23: 4839866.82 | K23: 8955.22 | L23: 202078291.7 | M23: 546696.0635 | Q23: 185296285.5 | R23: 501630.2108 | U23: 0.275 | V23: 0.2581484057 | Z23: =+'[8]Summary 2011-2014 LRAMVA'!$H$85 -> 81170.90044
B24: GENERAL SERVICE 1,000 TO 4,999 KW | C24: kW | D24: =+[5]Summary!$T$24 -> 13 | E24: =+[5]Summary!$T$25 -> 116570267.3 | F24: =+[5]Summary!$T$26 -> 245808.1048 | G24: =+'[6]wap '!$I$37 -> 99356499.26 | H24: 209509.9664 | I24: =+'[7]Cost Allocation Study'!$K$10 -> 506082.3976 | L24: 116570267.3 | M24: 245808.1048 | Q24: 99356499.26 | R24: 209509.9664 | U24: 0.17 | V24: 0.1539444464 | Z24: =+'[8]Summary 2011-2014 LRAMVA'!$H$86 -> 20923.74155
B25: LARGE USE | C25: kW | D25: =+[5]Summary!$T$29 -> 3 | E25: =+[5]Summary!$T$30 -> 135893889.4 | F25: =+[5]Summary!$T$31 -> 260162.1641 | G25: =+'[6]wap '!$I$38 -> 135893889.4 | H25: 260162.1641 | I25: =+'[7]Cost Allocation Study'!$K$11 -> 502478.1871 | L25: 135893889.4 | M25: 260162.1641 | O25: =+E25 -> 135893889.4 | P25: =+F25 -> 260162.1641 | Q25: 0 | R25: 0 | U25: 0.09 | V25: 0.1172501776 | Z25: =+'[8]Summary 2011-2014 LRAMVA'!$H$87 -> -2282.460963
B26: UNMETERED AND SCATTERED | C26: kWh | D26: =+[5]Summary!$T$44 -> 178 | E26: =+[5]Summary!$T$45 -> 1096422.73 | H26: 0 | I26: =+'[7]Cost Allocation Study'!$K$14 -> 36365.18563 | L26: 1096422.73 | M26: 0 | Q26: 0 | R26: 0 | U26: 0 | V26: 0.002079275747
B27: SENTINEL | C27: kW | D27: =+[5]Summary!$T$39 -> 242.2034761 | E27: =+[5]Summary!$T$40 -> 145710.6437 | F27: =+[5]Summary!$T$41 -> 403.8648887 | H27: 0 | I27: =+'[7]Cost Allocation Study'!$K$12 -> 40990.76033 | L27: 145710.6437 | M27: 403.8648887 | Q27: 0 | R27: 0 | U27: 0 | V27: 0.0002287317559
B28: STREETLIGHTING | C28: kW | D28: =+[5]Summary!$T$34 -> 3233.704246 | E28: =+[5]Summary!$T$35 -> 8298678.768 | F28: =+[5]Summary!$T$36 -> 23290.88954 | G28: =+'[6]wap '!$I$40 -> 8298678.768 | H28: 23290.88954 | I28: =+'[7]Cost Allocation Study'!$K$13 -> 346210.2649 | L28: 8298678.768 | M28: 23290.88954 | Q28: 8298678.768 | R28: 23290.88954 | U28: 0.01 | V28: 0.008647538753
H29: 0 | L29: 0 | M29: 0 | Q29: 0 | R29: 0
H30: 0 | L30: 0 | M30: 0 | Q30: 0 | R30: 0
H31: 0 | L31: 0 | M31: 0 | Q31: 0 | R31: 0
H32: 0 | L32: 0 | M32: 0 | Q32: 0 | R32: 0
H33: 0 | L33: 0 | M33: 0 | Q33: 0 | R33: 0
H34: 0 | L34: 0 | M34: 0 | Q34: 0 | R34: 0
H35: 0 | L35: 0 | M35: 0 | Q35: 0 | R35: =IF(OR(H35=0, ISBLANK(H35)), 0, H35-K35-P35) -> 0
H36: 0 | L36: 0 | M36: 0 | Q36: 0 | R36: 0
H37: 0 | L37: 0 | M37: 0 | Q37: 0 | R37: 0
H38: 0 | L38: 0 | M38: 0 | Q38: 0 | R38: 0
H39: 0 | L39: 0 | M39: 0 | Q39: 0 | R39: 0
H40: 0 | L40: 0 | M40: 0 | Q40: 0 | R40: 0
B41: Total | D41: =SUM(D21:D40) -> 41114.89104 | E41: 871840466.2 | F41: 1085316.307 | G41: 461826519.1 | H41: 1003548.451 | I41: 16921769.63 | J41: 4839866.82 | K41: =SUM(K21:K40) -> 8955.22 | L41: 867000599.4 | M41: 1076361.087 | N41: 0 | O41: 135893889.4 | P41: 260162.1641 | Q41: 321092762.9 | R41: 734431.0668 | S41: =SUM(S21:S40) -> 0 | T41: =SUM(T21:T40) -> 0 | U41: =SUM(U21:U40) -> 0.9967 | V41: =SUM(V21:V40) -> 1 | W41: =SUM(W21:W40) -> 0 | Y41: =SUM(Y21:Y40) -> 0 | Z41: =SUM(Z21:Z40) -> 142267.9455
Y42: Balance as per Sheet 2 | Z42: ='2. 2015 Continuity Schedule'!BS65 -> 142267.9455
Y43: Variance | Z43: =Z41-Z42 -> 0
A45: 1 For Account 1562, the allocation to customer classes should be performed on the basis of the test year distribution revenue allocation to customer classes found in the Applicant’s Cost of Service application that was most recently approved at the time of disposition of the 1562 account balances
A47: 2 Residual Account balance to be allocated to rate classes in proportion to the recovery share as established when rate riders were implemented.
A48: 3 Enter the percentage of the balance in account 1589 allocated to Class A customers. Distributors typically settle GA costs with Class A customers on the basis of actual (i.e. non-estimated) costs. If this is the case, no amount of the balance in 1589 should be allocated to a distributor’s Class A customers.

Sheet 5. Allocation of Balances
AA1: 21
AA2: 22
D4: Amounts from Sheet 2 | E4: Allocator | F4: =IF(LEN(TRIM('4. Billing Determinants'!$B21))=0, "", UPPER('4. Billing Determinants'!$B21)) -> RESIDENTIAL | G4: =IF(LEN(TRIM('4. Billing Determinants'!$B22))=0, "", '4. Billing Determinants'!$B22) -> GENERAL SERVICE LESS THAN 50 KW | H4: =IF(LEN(TRIM('4. Billing Determinants'!$B23))=0, "", '4. Billing Determinants'!$B23) -> GENERAL SERVICE 50 TO 999 KW | I4: =IF(LEN(TRIM('4. Billing Determinants'!$B24))=0, "", '4. Billing Determinants'!$B24) -> GENERAL SERVICE 1,000 TO 4,999 KW | J4: =IF(LEN(TRIM('4. Billing Determinants'!$B25))=0, "", '4. Billing Determinants'!$B25) -> LARGE USE | K4: =IF(LEN(TRIM('4. Billing Determinants'!$B26))=0, "", '4. Billing Determinants'!$B26) -> UNMETERED AND SCATTERED | L4: =IF(LEN(TRIM('4. Billing Determinants'!$B27))=0, "", '4. Billing Determinants'!$B27) -> SENTINEL | M4: =IF(LEN(TRIM('4. Billing Determinants'!$B28))=0, "", '4. Billing Determinants'!$B28) -> STREETLIGHTING | N4: =IF(LEN(TRIM('4. Billing Determinants'!$B29))=0, "", '4. Billing Determinants'!$B29) ->  | O4: =IF(LEN(TRIM('4. Billing Determinants'!$B30))=0, "", '4. Billing Determinants'!$B30) ->  | P4: =IF(LEN(TRIM('4. Billing Determinants'!$B31))=0, "", '4. Billing Determinants'!$B31) ->  | Q4: =IF(LEN(TRIM('4. Billing Determinants'!$B32))=0, "", '4. Billing Determinants'!$B32) ->  | R4: =IF(LEN(TRIM('4. Billing Determinants'!$B33))=0, "", '4. Billing Determinants'!$B33) ->  | S4: =IF(LEN(TRIM('4. Billing Determinants'!$B34))=0, "", '4. Billing Determinants'!$B34) ->  | T4: =IF(LEN(TRIM('4. Billing Determinants'!$B35))=0, "", '4. Billing Determinants'!$B35) ->  | U4: =IF(LEN(TRIM('4. Billing Determinants'!$B36))=0, "", '4. Billing Determinants'!$B36) ->  | V4: =IF(LEN(TRIM('4. Billing Determinants'!$B37))=0, "", '4. Billing Determinants'!$B37) ->  | W4: =IF(LEN(TRIM('4. Billing Determinants'!$B38))=0, "", '4. Billing Determinants'!$B38) ->  | X4: =IF(LEN(TRIM('4. Billing Determinants'!$B39))=0, "", '4. Billing Determinants'!$B39) ->  | Y4: =IF(LEN(TRIM('4. Billing Determinants'!$B40))=0, "", '4. Billing Determinants'!$B40) -> 
B5: LV Variance Account | C5: 1550 | D5: ='2. 2015 Continuity Schedule'!BS24 -> 644334.4874 | E5: kWh | F5: =IFERROR(IF(F$4="",0,IF($E5="kWh",VLOOKUP(F$4,'4. Billing Determinants'!$B$19:$Z$41,4,0)/'4. Billing Determinants'!$E$41*$D5,IF($E5="kW",VLOOKUP(F$4,'4. Billing Determinants'!$B$19:$Z$41,5,0)/'4. Billing Determinants'!$F$41*$D5,IF($E5="Non-RPP kWh",VLOOKUP(F$4,'4. Billing Determinants'!$B$19:$Z$41,6,0)/'4. Billing Determinants'!$G$41*$D5,IF($E5="Distribution Rev.",VLOOKUP(F$4,'4. Billing Determinants'!$B$19:$Z$41,8,0)/'4. Billing Determinants'!$I$41*$D5, VLOOKUP(F$4,'4. Billing Determinants'!$B$19:$Z$41,3,0)/'4. Billing Determinants'!$D$41*$D5))))),0) -> 230217.6886 | G5: =IFERROR(IF(G$4="",0,IF($E5="kWh",VLOOKUP(G$4,'4. Billing Determinants'!$B$19:$Z$41,4,0)/'4. Billing Determinants'!$E$41*$D5,IF($E5="kW",VLOOKUP(G$4,'4. Billing Determinants'!$B$19:$Z$41,5,0)/'4. Billing Determinants'!$F$41*$D5,IF($E5="Non-RPP kWh",VLOOKUP(G$4,'4. Billing Determinants'!$B$19:$Z$41,6,0)/'4. Billing Determinants'!$G$41*$D5,IF($E5="Distribution Rev.",VLOOKUP(G$4,'4. Billing Determinants'!$B$19:$Z$41,8,0)/'4. Billing Determinants'!$I$41*$D5, VLOOKUP(G$4,'4. Billing Determinants'!$B$19:$Z$41,3,0)/'4. Billing Determinants'!$D$41*$D5))))),0) -> 67558.73622 | H5: =IFERROR(IF(H$4="",0,IF($E5="kWh",VLOOKUP(H$4,'4. Billing Determinants'!$B$19:$Z$41,4,0)/'4. Billing Determinants'!$E$41*$D5,IF($E5="kW",VLOOKUP(H$4,'4. Billing Determinants'!$B$19:$Z$41,5,0)/'4. Billing Determinants'!$F$41*$D5,IF($E5="Non-RPP kWh",VLOOKUP(H$4,'4. Billing Determinants'!$B$19:$Z$41,6,0)/'4. Billing Determinants'!$G$41*$D5,IF($E5="Distribution Rev.",VLOOKUP(H$4,'4. Billing Determinants'!$B$19:$Z$41,8,0)/'4. Billing Determinants'!$I$41*$D5, VLOOKUP(H$4,'4. Billing Determinants'!$B$19:$Z$41,3,0)/'4. Billing Determinants'!$D$41*$D5))))),0) -> 152923.0527 | I5: =IFERROR(IF(I$4="",0,IF($E5="kWh",VLOOKUP(I$4,'4. Billing Determinants'!$B$19:$Z$41,4,0)/'4. Billing Determinants'!$E$41*$D5,IF($E5="kW",VLOOKUP(I$4,'4. Billing Determinants'!$B$19:$Z$41,5,0)/'4. Billing Determinants'!$F$41*$D5,IF($E5="Non-RPP kWh",VLOOKUP(I$4,'4. Billing Determinants'!$B$19:$Z$41,6,0)/'4. Billing Determinants'!$G$41*$D5,IF($E5="Distribution Rev.",VLOOKUP(I$4,'4. Billing Determinants'!$B$19:$Z$41,8,0)/'4. Billing Determinants'!$I$41*$D5, VLOOKUP(I$4,'4. Billing Determinants'!$B$19:$Z$41,3,0)/'4. Billing Determinants'!$D$41*$D5))))),0) -> 86151.3618 | J5: =IFERROR(IF(J$4="",0,IF($E5="kWh",VLOOKUP(J$4,'4. Billing Determinants'!$B$19:$Z$41,4,0)/'4. Billing Determinants'!$E$41*$D5,IF($E5="kW",VLOOKUP(J$4,'4. Billing Determinants'!$B$19:$Z$41,5,0)/'4. Billing Determinants'!$F$41*$D5,IF($E5="Non-RPP kWh",VLOOKUP(J$4,'4. Billing Determinants'!$B$19:$Z$41,6,0)/'4. Billing Determinants'!$G$41*$D5,IF($E5="Distribution Rev.",VLOOKUP(J$4,'4. Billing Determinants'!$B$19:$Z$41,8,0)/'4. Billing Determinants'!$I$41*$D5, VLOOKUP(J$4,'4. Billing Determinants'!$B$19:$Z$41,3,0)/'4. Billing Determinants'!$D$41*$D5))))),0) -> 100432.5023 | K5: =IFERROR(IF(K$4="",0,IF($E5="kWh",VLOOKUP(K$4,'4. Billing Determinants'!$B$19:$Z$41,4,0)/'4. Billing Determinants'!$E$41*$D5,IF($E5="kW",VLOOKUP(K$4,'4. Billing Determinants'!$B$19:$Z$41,5,0)/'4. Billing Determinants'!$F$41*$D5,IF($E5="Non-RPP kWh",VLOOKUP(K$4,'4. Billing Determinants'!$B$19:$Z$41,6,0)/'4. Billing Determinants'!$G$41*$D5,IF($E5="Distribution Rev.",VLOOKUP(K$4,'4. Billing Determinants'!$B$19:$Z$41,8,0)/'4. Billing Determinants'!$I$41*$D5, VLOOKUP(K$4,'4. Billing Determinants'!$B$19:$Z$41,3,0)/'4. Billing Determinants'!$D$41*$D5))))),0) -> 810.3122133 | L5: =IFERROR(IF(L$4="",0,IF($E5="kWh",VLOOKUP(L$4,'4. Billing Determinants'!$B$19:$Z$41,4,0)/'4. Billing Determinants'!$E$41*$D5,IF($E5="kW",VLOOKUP(L$4,'4. Billing Determinants'!$B$19:$Z$41,5,0)/'4. Billing Determinants'!$F$41*$D5,IF($E5="Non-RPP kWh",VLOOKUP(L$4,'4. Billing Determinants'!$B$19:$Z$41,6,0)/'4. Billing Determinants'!$G$41*$D5,IF($E5="Distribution Rev.",VLOOKUP(L$4,'4. Billing Determinants'!$B$19:$Z$41,8,0)/'4. Billing Determinants'!$I$41*$D5, VLOOKUP(L$4,'4. Billing Determinants'!$B$19:$Z$41,3,0)/'4. Billing Determinants'!$D$41*$D5))))),0) -> 107.6875834 | M5: =IFERROR(IF(M$4="",0,IF($E5="kWh",VLOOKUP(M$4,'4. Billing Determinants'!$B$19:$Z$41,4,0)/'4. Billing Determinants'!$E$41*$D5,IF($E5="kW",VLOOKUP(M$4,'4. Billing Determinants'!$B$19:$Z$41,5,0)/'4. Billing Determinants'!$F$41*$D5,IF($E5="Non-RPP kWh",VLOOKUP(M$4,'4. Billing Determinants'!$B$19:$Z$41,6,0)/'4. Billing Determinants'!$G$41*$D5,IF($E5="Distribution Rev.",VLOOKUP(M$4,'4. Billing Determinants'!$B$19:$Z$41,8,0)/'4. Billing Determinants'!$I$41*$D5, VLOOKUP(M$4,'4. Billing Determinants'!$B$19:$Z$41,3,0)/'4. Billing Determinants'!$D$41*$D5))))),0) -> 6133.146072 | N5: =IFERROR(IF(N$4="",0,IF($E5="kWh",VLOOKUP(N$4,'4. Billing Determinants'!$B$19:$Z$41,4,0)/'4. Billing Determinants'!$E$41*$D5,IF($E5="kW",VLOOKUP(N$4,'4. Billing Determinants'!$B$19:$Z$41,5,0)/'4. Billing Determinants'!$F$41*$D5,IF($E5="Non-RPP kWh",VLOOKUP(N$4,'4. Billing Determinants'!$B$19:$Z$41,6,0)/'4. Billing Determinants'!$G$41*$D5,IF($E5="Distribution Rev.",VLOOKUP(N$4,'4. Billing Determinants'!$B$19:$Z$41,8,0)/'4. Billing Determinants'!$I$41*$D5, VLOOKUP(N$4,'4. Billing Determinants'!$B$19:$Z$41,3,0)/'4. Billing Determinants'!$D$41*$D5))))),0) -> 0 | O5: =IFERROR(IF(O$4="",0,IF($E5="kWh",VLOOKUP(O$4,'4. Billing Determinants'!$B$19:$Z$41,4,0)/'4. Billing Determinants'!$E$41*$D5,IF($E5="kW",VLOOKUP(O$4,'4. Billing Determinants'!$B$19:$Z$41,5,0)/'4. Billing Determinants'!$F$41*$D5,IF($E5="Non-RPP kWh",VLOOKUP(O$4,'4. Billing Determinants'!$B$19:$Z$41,6,0)/'4. Billing Determinants'!$G$41*$D5,IF($E5="Distribution Rev.",VLOOKUP(O$4,'4. Billing Determinants'!$B$19:$Z$41,8,0)/'4. Billing Determinants'!$I$41*$D5, VLOOKUP(O$4,'4. Billing Determinants'!$B$19:$Z$41,3,0)/'4. Billing Determinants'!$D$41*$D5))))),0) -> 0 | P5: =IFERROR(IF(P$4="",0,IF($E5="kWh",VLOOKUP(P$4,'4. Billing Determinants'!$B$19:$Z$41,4,0)/'4. Billing Determinants'!$E$41*$D5,IF($E5="kW",VLOOKUP(P$4,'4. Billing Determinants'!$B$19:$Z$41,5,0)/'4. Billing Determinants'!$F$41*$D5,IF($E5="Non-RPP kWh",VLOOKUP(P$4,'4. Billing Determinants'!$B$19:$Z$41,6,0)/'4. Billing Determinants'!$G$41*$D5,IF($E5="Distribution Rev.",VLOOKUP(P$4,'4. Billing Determinants'!$B$19:$Z$41,8,0)/'4. Billing Determinants'!$I$41*$D5, VLOOKUP(P$4,'4. Billing Determinants'!$B$19:$Z$41,3,0)/'4. Billing Determinants'!$D$41*$D5))))),0) -> 0 | Q5: =IFERROR(IF(Q$4="",0,IF($E5="kWh",VLOOKUP(Q$4,'4. Billing Determinants'!$B$19:$Z$41,4,0)/'4. Billing Determinants'!$E$41*$D5,IF($E5="kW",VLOOKUP(Q$4,'4. Billing Determinants'!$B$19:$Z$41,5,0)/'4. Billing Determinants'!$F$41*$D5,IF($E5="Non-RPP kWh",VLOOKUP(Q$4,'4. Billing Determinants'!$B$19:$Z$41,6,0)/'4. Billing Determinants'!$G$41*$D5,IF($E5="Distribution Rev.",VLOOKUP(Q$4,'4. Billing Determinants'!$B$19:$Z$41,8,0)/'4. Billing Determinants'!$I$41*$D5, VLOOKUP(Q$4,'4. Billing Determinants'!$B$19:$Z$41,3,0)/'4. Billing Determinants'!$D$41*$D5))))),0) -> 0 | R5: =IFERROR(IF(R$4="",0,IF($E5="kWh",VLOOKUP(R$4,'4. Billing Determinants'!$B$19:$Z$41,4,0)/'4. Billing Determinants'!$E$41*$D5,IF($E5="kW",VLOOKUP(R$4,'4. Billing Determinants'!$B$19:$Z$41,5,0)/'4. Billing Determinants'!$F$41*$D5,IF($E5="Non-RPP kWh",VLOOKUP(R$4,'4. Billing Determinants'!$B$19:$Z$41,6,0)/'4. Billing Determinants'!$G$41*$D5,IF($E5="Distribution Rev.",VLOOKUP(R$4,'4. Billing Determinants'!$B$19:$Z$41,8,0)/'4. Billing Determinants'!$I$41*$D5, VLOOKUP(R$4,'4. Billing Determinants'!$B$19:$Z$41,3,0)/'4. Billing Determinants'!$D$41*$D5))))),0) -> 0 | S5: =IFERROR(IF(S$4="",0,IF($E5="kWh",VLOOKUP(S$4,'4. Billing Determinants'!$B$19:$Z$41,4,0)/'4. Billing Determinants'!$E$41*$D5,IF($E5="kW",VLOOKUP(S$4,'4. Billing Determinants'!$B$19:$Z$41,5,0)/'4. Billing Determinants'!$F$41*$D5,IF($E5="Non-RPP kWh",VLOOKUP(S$4,'4. Billing Determinants'!$B$19:$Z$41,6,0)/'4. Billing Determinants'!$G$41*$D5,IF($E5="Distribution Rev.",VLOOKUP(S$4,'4. Billing Determinants'!$B$19:$Z$41,8,0)/'4. Billing Determinants'!$I$41*$D5, VLOOKUP(S$4,'4. Billing Determinants'!$B$19:$Z$41,3,0)/'4. Billing Determinants'!$D$41*$D5))))),0) -> 0 | T5: =IFERROR(IF(T$4="",0,IF($E5="kWh",VLOOKUP(T$4,'4. Billing Determinants'!$B$19:$Z$41,4,0)/'4. Billing Determinants'!$E$41*$D5,IF($E5="kW",VLOOKUP(T$4,'4. Billing Determinants'!$B$19:$Z$41,5,0)/'4. Billing Determinants'!$F$41*$D5,IF($E5="Non-RPP kWh",VLOOKUP(T$4,'4. Billing Determinants'!$B$19:$Z$41,6,0)/'4. Billing Determinants'!$G$41*$D5,IF($E5="Distribution Rev.",VLOOKUP(T$4,'4. Billing Determinants'!$B$19:$Z$41,8,0)/'4. Billing Determinants'!$I$41*$D5, VLOOKUP(T$4,'4. Billing Determinants'!$B$19:$Z$41,3,0)/'4. Billing Determinants'!$D$41*$D5))))),0) -> 0 | U5: =IFERROR(IF(U$4="",0,IF($E5="kWh",VLOOKUP(U$4,'4. Billing Determinants'!$B$19:$Z$41,4,0)/'4. Billing Determinants'!$E$41*$D5,IF($E5="kW",VLOOKUP(U$4,'4. Billing Determinants'!$B$19:$Z$41,5,0)/'4. Billing Determinants'!$F$41*$D5,IF($E5="Non-RPP kWh",VLOOKUP(U$4,'4. Billing Determinants'!$B$19:$Z$41,6,0)/'4. Billing Determinants'!$G$41*$D5,IF($E5="Distribution Rev.",VLOOKUP(U$4,'4. Billing Determinants'!$B$19:$Z$41,8,0)/'4. Billing Determinants'!$I$41*$D5, VLOOKUP(U$4,'4. Billing Determinants'!$B$19:$Z$41,3,0)/'4. Billing Determinants'!$D$41*$D5))))),0) -> 0 | V5: =IFERROR(IF(V$4="",0,IF($E5="kWh",VLOOKUP(V$4,'4. Billing Determinants'!$B$19:$Z$41,4,0)/'4. Billing Determinants'!$E$41*$D5,IF($E5="kW",VLOOKUP(V$4,'4. Billing Determinants'!$B$19:$Z$41,5,0)/'4. Billing Determinants'!$F$41*$D5,IF($E5="Non-RPP kWh",VLOOKUP(V$4,'4. Billing Determinants'!$B$19:$Z$41,6,0)/'4. Billing Determinants'!$G$41*$D5,IF($E5="Distribution Rev.",VLOOKUP(V$4,'4. Billing Determinants'!$B$19:$Z$41,8,0)/'4. Billing Determinants'!$I$41*$D5, VLOOKUP(V$4,'4. Billing Determinants'!$B$19:$Z$41,3,0)/'4. Billing Determinants'!$D$41*$D5))))),0) -> 0 | W5: =IFERROR(IF(W$4="",0,IF($E5="kWh",VLOOKUP(W$4,'4. Billing Determinants'!$B$19:$Z$41,4,0)/'4. Billing Determinants'!$E$41*$D5,IF($E5="kW",VLOOKUP(W$4,'4. Billing Determinants'!$B$19:$Z$41,5,0)/'4. Billing Determinants'!$F$41*$D5,IF($E5="Non-RPP kWh",VLOOKUP(W$4,'4. Billing Determinants'!$B$19:$Z$41,6,0)/'4. Billing Determinants'!$G$41*$D5,IF($E5="Distribution Rev.",VLOOKUP(W$4,'4. Billing Determinants'!$B$19:$Z$41,8,0)/'4. Billing Determinants'!$I$41*$D5, VLOOKUP(W$4,'4. Billing Determinants'!$B$19:$Z$41,3,0)/'4. Billing Determinants'!$D$41*$D5))))),0) -> 0 | X5: =IFERROR(IF(X$4="",0,IF($E5="kWh",VLOOKUP(X$4,'4. Billing Determinants'!$B$19:$Z$41,4,0)/'4. Billing Determinants'!$E$41*$D5,IF($E5="kW",VLOOKUP(X$4,'4. Billing Determinants'!$B$19:$Z$41,5,0)/'4. Billing Determinants'!$F$41*$D5,IF($E5="Non-RPP kWh",VLOOKUP(X$4,'4. Billing Determinants'!$B$19:$Z$41,6,0)/'4. Billing Determinants'!$G$41*$D5,IF($E5="Distribution Rev.",VLOOKUP(X$4,'4. Billing Determinants'!$B$19:$Z$41,8,0)/'4. Billing Determinants'!$I$41*$D5, VLOOKUP(X$4,'4. Billing Determinants'!$B$19:$Z$41,3,0)/'4. Billing Determinants'!$D$41*$D5))))),0) -> 0 | Y5: =IFERROR(IF(Y$4="",0,IF($E5="kWh",VLOOKUP(Y$4,'4. Billing Determinants'!$B$19:$Z$41,4,0)/'4. Billing Determinants'!$E$41*$D5,IF($E5="kW",VLOOKUP(Y$4,'4. Billing Determinants'!$B$19:$Z$41,5,0)/'4. Billing Determinants'!$F$41*$D5,IF($E5="Non-RPP kWh",VLOOKUP(Y$4,'4. Billing Determinants'!$B$19:$Z$41,6,0)/'4. Billing Determinants'!$G$41*$D5,IF($E5="Distribution Rev.",VLOOKUP(Y$4,'4. Billing Determinants'!$B$19:$Z$41,8,0)/'4. Billing Determinants'!$I$41*$D5, VLOOKUP(Y$4,'4. Billing Determinants'!$B$19:$Z$41,3,0)/'4. Billing Determinants'!$D$41*$D5))))),0) -> 0
B6: Smart Metering Entity Charge Variance Account | C6: 1551 | D6: ='2. 2015 Continuity Schedule'!BS25 -> -17236.95642 | E6: # of Customers | F6: =(34501/(34501+2642.05053327038))*D6 -> -16010.86138 | G6: =(2642.05053327038/(34501+2642.05053327038))*D6 -> -1226.095036 | H6: 0 | I6: 0 | J6: 0 | K6: 0 | L6: 0 | M6: 0 | N6: 0 | O6: 0 | P6: 0 | Q6: 0 | R6: 0 | S6: 0 | T6: 0 | U6: 0 | V6: 0 | W6: 0 | X6: 0 | Y6: 0
B7: RSVA - Wholesale Market Service Charge | C7: 1580 | D7: ='2. 2015 Continuity Schedule'!BS26 -> -1403933.338 | E7: kWh | F7: =IFERROR(IF(F$4="",0,IF($E7="kWh",VLOOKUP(F$4,'4. Billing Determinants'!$B$19:$Z$41,11,0)/'4. Billing Determinants'!$L$41*$D7,IF($E7="kW",VLOOKUP(F$4,'4. Billing Determinants'!$B$19:$Z$41,12,0)/'4. Billing Determinants'!$M$41*$D7,))),0) -> -504418.9851 | G7: =IFERROR(IF(G$4="",0,IF($E7="kWh",VLOOKUP(G$4,'4. Billing Determinants'!$B$19:$Z$41,11,0)/'4. Billing Determinants'!$L$41*$D7,IF($E7="kW",VLOOKUP(G$4,'4. Billing Determinants'!$B$19:$Z$41,12,0)/'4. Billing Determinants'!$M$41*$D7,))),0) -> -148024.7212 | H7: =IFERROR(IF(H$4="",0,IF($E7="kWh",VLOOKUP(H$4,'4. Billing Determinants'!$B$19:$Z$41,11,0)/'4. Billing Determinants'!$L$41*$D7,IF($E7="kW",VLOOKUP(H$4,'4. Billing Determinants'!$B$19:$Z$41,12,0)/'4. Billing Determinants'!$M$41*$D7,))),0) -> -327225.2069 | I7: =IFERROR(IF(I$4="",0,IF($E7="kWh",VLOOKUP(I$4,'4. Billing Determinants'!$B$19:$Z$41,11,0)/'4. Billing Determinants'!$L$41*$D7,IF($E7="kW",VLOOKUP(I$4,'4. Billing Determinants'!$B$19:$Z$41,12,0)/'4. Billing Determinants'!$M$41*$D7,))),0) -> -188762.1353 | J7: =IFERROR(IF(J$4="",0,IF($E7="kWh",VLOOKUP(J$4,'4. Billing Determinants'!$B$19:$Z$41,11,0)/'4. Billing Determinants'!$L$41*$D7,IF($E7="kW",VLOOKUP(J$4,'4. Billing Determinants'!$B$19:$Z$41,12,0)/'4. Billing Determinants'!$M$41*$D7,))),0) -> -220052.8603 | K7: =IFERROR(IF(K$4="",0,IF($E7="kWh",VLOOKUP(K$4,'4. Billing Determinants'!$B$19:$Z$41,11,0)/'4. Billing Determinants'!$L$41*$D7,IF($E7="kW",VLOOKUP(K$4,'4. Billing Determinants'!$B$19:$Z$41,12,0)/'4. Billing Determinants'!$M$41*$D7,))),0) -> -1775.4364 | L7: =IFERROR(IF(L$4="",0,IF($E7="kWh",VLOOKUP(L$4,'4. Billing Determinants'!$B$19:$Z$41,11,0)/'4. Billing Determinants'!$L$41*$D7,IF($E7="kW",VLOOKUP(L$4,'4. Billing Determinants'!$B$19:$Z$41,12,0)/'4. Billing Determinants'!$M$41*$D7,))),0) -> -235.9491222 | M7: =IFERROR(IF(M$4="",0,IF($E7="kWh",VLOOKUP(M$4,'4. Billing Determinants'!$B$19:$Z$41,11,0)/'4. Billing Determinants'!$L$41*$D7,IF($E7="kW",VLOOKUP(M$4,'4. Billing Determinants'!$B$19:$Z$41,12,0)/'4. Billing Determinants'!$M$41*$D7,))),0) -> -13438.04352 | N7: =IFERROR(IF(N$4="",0,IF($E7="kWh",VLOOKUP(N$4,'4. Billing Determinants'!$B$19:$Z$41,11,0)/'4. Billing Determinants'!$L$41*$D7,IF($E7="kW",VLOOKUP(N$4,'4. Billing Determinants'!$B$19:$Z$41,12,0)/'4. Billing Determinants'!$M$41*$D7,))),0) -> 0 | O7: =IFERROR(IF(O$4="",0,IF($E7="kWh",VLOOKUP(O$4,'4. Billing Determinants'!$B$19:$Z$41,11,0)/'4. Billing Determinants'!$L$41*$D7,IF($E7="kW",VLOOKUP(O$4,'4. Billing Determinants'!$B$19:$Z$41,12,0)/'4. Billing Determinants'!$M$41*$D7,))),0) -> 0 | P7: =IFERROR(IF(P$4="",0,IF($E7="kWh",VLOOKUP(P$4,'4. Billing Determinants'!$B$19:$Z$41,11,0)/'4. Billing Determinants'!$L$41*$D7,IF($E7="kW",VLOOKUP(P$4,'4. Billing Determinants'!$B$19:$Z$41,12,0)/'4. Billing Determinants'!$M$41*$D7,))),0) -> 0 | Q7: =IFERROR(IF(Q$4="",0,IF($E7="kWh",VLOOKUP(Q$4,'4. Billing Determinants'!$B$19:$Z$41,11,0)/'4. Billing Determinants'!$L$41*$D7,IF($E7="kW",VLOOKUP(Q$4,'4. Billing Determinants'!$B$19:$Z$41,12,0)/'4. Billing Determinants'!$M$41*$D7,))),0) -> 0 | R7: =IFERROR(IF(R$4="",0,IF($E7="kWh",VLOOKUP(R$4,'4. Billing Determinants'!$B$19:$Z$41,11,0)/'4. Billing Determinants'!$L$41*$D7,IF($E7="kW",VLOOKUP(R$4,'4. Billing Determinants'!$B$19:$Z$41,12,0)/'4. Billing Determinants'!$M$41*$D7,))),0) -> 0 | S7: =IFERROR(IF(S$4="",0,IF($E7="kWh",VLOOKUP(S$4,'4. Billing Determinants'!$B$19:$Z$41,11,0)/'4. Billing Determinants'!$L$41*$D7,IF($E7="kW",VLOOKUP(S$4,'4. Billing Determinants'!$B$19:$Z$41,12,0)/'4. Billing Determinants'!$M$41*$D7,))),0) -> 0 | T7: =IFERROR(IF(T$4="",0,IF($E7="kWh",VLOOKUP(T$4,'4. Billing Determinants'!$B$19:$Z$41,11,0)/'4. Billing Determinants'!$L$41*$D7,IF($E7="kW",VLOOKUP(T$4,'4. Billing Determinants'!$B$19:$Z$41,12,0)/'4. Billing Determinants'!$M$41*$D7,))),0) -> 0 | U7: =IFERROR(IF(U$4="",0,IF($E7="kWh",VLOOKUP(U$4,'4. Billing Determinants'!$B$19:$Z$41,11,0)/'4. Billing Determinants'!$L$41*$D7,IF($E7="kW",VLOOKUP(U$4,'4. Billing Determinants'!$B$19:$Z$41,12,0)/'4. Billing Determinants'!$M$41*$D7,))),0) -> 0 | V7: =IFERROR(IF(V$4="",0,IF($E7="kWh",VLOOKUP(V$4,'4. Billing Determinants'!$B$19:$Z$41,11,0)/'4. Billing Determinants'!$L$41*$D7,IF($E7="kW",VLOOKUP(V$4,'4. Billing Determinants'!$B$19:$Z$41,12,0)/'4. Billing Determinants'!$M$41*$D7,))),0) -> 0 | W7: =IFERROR(IF(W$4="",0,IF($E7="kWh",VLOOKUP(W$4,'4. Billing Determinants'!$B$19:$Z$41,11,0)/'4. Billing Determinants'!$L$41*$D7,IF($E7="kW",VLOOKUP(W$4,'4. Billing Determinants'!$B$19:$Z$41,12,0)/'4. Billing Determinants'!$M$41*$D7,))),0) -> 0 | X7: =IFERROR(IF(X$4="",0,IF($E7="kWh",VLOOKUP(X$4,'4. Billing Determinants'!$B$19:$Z$41,11,0)/'4. Billing Determinants'!$L$41*$D7,IF($E7="kW",VLOOKUP(X$4,'4. Billing Determinants'!$B$19:$Z$41,12,0)/'4. Billing Determinants'!$M$41*$D7,))),0) -> 0 | Y7: =IFERROR(IF(Y$4="",0,IF($E7="kWh",VLOOKUP(Y$4,'4. Billing Determinants'!$B$19:$Z$41,11,0)/'4. Billing Determinants'!$L$41*$D7,IF($E7="kW",VLOOKUP(Y$4,'4. Billing Determinants'!$B$19:$Z$41,12,0)/'4. Billing Determinants'!$M$41*$D7,))),0) -> 0
B8: RSVA - Retail Transmission Network Charge | C8: 1584 | D8: ='2. 2015 Continuity Schedule'!BS27 -> 1694807.187 | E8: kWh | F8: =IFERROR(IF(F$4="",0,IF($E8="kWh",VLOOKUP(F$4,'4. Billing Determinants'!$B$19:$Z$41,4,0)/'4. Billing Determinants'!$E$41*$D8,IF($E8="kW",VLOOKUP(F$4,'4. Billing Determinants'!$B$19:$Z$41,5,0)/'4. Billing Determinants'!$F$41*$D8,IF($E8="Non-RPP kWh",VLOOKUP(F$4,'4. Billing Determinants'!$B$19:$Z$41,6,0)/'4. Billing Determinants'!$G$41*$D8,IF($E8="Distribution Rev.",VLOOKUP(F$4,'4. Billing Determinants'!$B$19:$Z$41,8,0)/'4. Billing Determinants'!$I$41*$D8, VLOOKUP(F$4,'4. Billing Determinants'!$B$19:$Z$41,3,0)/'4. Billing Determinants'!$D$41*$D8))))),0) -> 605546.6545 | G8: =IFERROR(IF(G$4="",0,IF($E8="kWh",VLOOKUP(G$4,'4. Billing Determinants'!$B$19:$Z$41,4,0)/'4. Billing Determinants'!$E$41*$D8,IF($E8="kW",VLOOKUP(G$4,'4. Billing Determinants'!$B$19:$Z$41,5,0)/'4. Billing Determinants'!$F$41*$D8,IF($E8="Non-RPP kWh",VLOOKUP(G$4,'4. Billing Determinants'!$B$19:$Z$41,6,0)/'4. Billing Determinants'!$G$41*$D8,IF($E8="Distribution Rev.",VLOOKUP(G$4,'4. Billing Determinants'!$B$19:$Z$41,8,0)/'4. Billing Determinants'!$I$41*$D8, VLOOKUP(G$4,'4. Billing Determinants'!$B$19:$Z$41,3,0)/'4. Billing Determinants'!$D$41*$D8))))),0) -> 177701.2312 | H8: =IFERROR(IF(H$4="",0,IF($E8="kWh",VLOOKUP(H$4,'4. Billing Determinants'!$B$19:$Z$41,4,0)/'4. Billing Determinants'!$E$41*$D8,IF($E8="kW",VLOOKUP(H$4,'4. Billing Determinants'!$B$19:$Z$41,5,0)/'4. Billing Determinants'!$F$41*$D8,IF($E8="Non-RPP kWh",VLOOKUP(H$4,'4. Billing Determinants'!$B$19:$Z$41,6,0)/'4. Billing Determinants'!$G$41*$D8,IF($E8="Distribution Rev.",VLOOKUP(H$4,'4. Billing Determinants'!$B$19:$Z$41,8,0)/'4. Billing Determinants'!$I$41*$D8, VLOOKUP(H$4,'4. Billing Determinants'!$B$19:$Z$41,3,0)/'4. Billing Determinants'!$D$41*$D8))))),0) -> 402236.8722 | I8: =IFERROR(IF(I$4="",0,IF($E8="kWh",VLOOKUP(I$4,'4. Billing Determinants'!$B$19:$Z$41,4,0)/'4. Billing Determinants'!$E$41*$D8,IF($E8="kW",VLOOKUP(I$4,'4. Billing Determinants'!$B$19:$Z$41,5,0)/'4. Billing Determinants'!$F$41*$D8,IF($E8="Non-RPP kWh",VLOOKUP(I$4,'4. Billing Determinants'!$B$19:$Z$41,6,0)/'4. Billing Determinants'!$G$41*$D8,IF($E8="Distribution Rev.",VLOOKUP(I$4,'4. Billing Determinants'!$B$19:$Z$41,8,0)/'4. Billing Determinants'!$I$41*$D8, VLOOKUP(I$4,'4. Billing Determinants'!$B$19:$Z$41,3,0)/'4. Billing Determinants'!$D$41*$D8))))),0) -> 226605.8236 | J8: =IFERROR(IF(J$4="",0,IF($E8="kWh",VLOOKUP(J$4,'4. Billing Determinants'!$B$19:$Z$41,4,0)/'4. Billing Determinants'!$E$41*$D8,IF($E8="kW",VLOOKUP(J$4,'4. Billing Determinants'!$B$19:$Z$41,5,0)/'4. Billing Determinants'!$F$41*$D8,IF($E8="Non-RPP kWh",VLOOKUP(J$4,'4. Billing Determinants'!$B$19:$Z$41,6,0)/'4. Billing Determinants'!$G$41*$D8,IF($E8="Distribution Rev.",VLOOKUP(J$4,'4. Billing Determinants'!$B$19:$Z$41,8,0)/'4. Billing Determinants'!$I$41*$D8, VLOOKUP(J$4,'4. Billing Determinants'!$B$19:$Z$41,3,0)/'4. Billing Determinants'!$D$41*$D8))))),0) -> 264169.8217 | K8: =IFERROR(IF(K$4="",0,IF($E8="kWh",VLOOKUP(K$4,'4. Billing Determinants'!$B$19:$Z$41,4,0)/'4. Billing Determinants'!$E$41*$D8,IF($E8="kW",VLOOKUP(K$4,'4. Billing Determinants'!$B$19:$Z$41,5,0)/'4. Billing Determinants'!$F$41*$D8,IF($E8="Non-RPP kWh",VLOOKUP(K$4,'4. Billing Determinants'!$B$19:$Z$41,6,0)/'4. Billing Determinants'!$G$41*$D8,IF($E8="Distribution Rev.",VLOOKUP(K$4,'4. Billing Determinants'!$B$19:$Z$41,8,0)/'4. Billing Determinants'!$I$41*$D8, VLOOKUP(K$4,'4. Billing Determinants'!$B$19:$Z$41,3,0)/'4. Billing Determinants'!$D$41*$D8))))),0) -> 2131.382054 | L8: =IFERROR(IF(L$4="",0,IF($E8="kWh",VLOOKUP(L$4,'4. Billing Determinants'!$B$19:$Z$41,4,0)/'4. Billing Determinants'!$E$41*$D8,IF($E8="kW",VLOOKUP(L$4,'4. Billing Determinants'!$B$19:$Z$41,5,0)/'4. Billing Determinants'!$F$41*$D8,IF($E8="Non-RPP kWh",VLOOKUP(L$4,'4. Billing Determinants'!$B$19:$Z$41,6,0)/'4. Billing Determinants'!$G$41*$D8,IF($E8="Distribution Rev.",VLOOKUP(L$4,'4. Billing Determinants'!$B$19:$Z$41,8,0)/'4. Billing Determinants'!$I$41*$D8, VLOOKUP(L$4,'4. Billing Determinants'!$B$19:$Z$41,3,0)/'4. Billing Determinants'!$D$41*$D8))))),0) -> 283.2530214 | M8: =IFERROR(IF(M$4="",0,IF($E8="kWh",VLOOKUP(M$4,'4. Billing Determinants'!$B$19:$Z$41,4,0)/'4. Billing Determinants'!$E$41*$D8,IF($E8="kW",VLOOKUP(M$4,'4. Billing Determinants'!$B$19:$Z$41,5,0)/'4. Billing Determinants'!$F$41*$D8,IF($E8="Non-RPP kWh",VLOOKUP(M$4,'4. Billing Determinants'!$B$19:$Z$41,6,0)/'4. Billing Determinants'!$G$41*$D8,IF($E8="Distribution Rev.",VLOOKUP(M$4,'4. Billing Determinants'!$B$19:$Z$41,8,0)/'4. Billing Determinants'!$I$41*$D8, VLOOKUP(M$4,'4. Billing Determinants'!$B$19:$Z$41,3,0)/'4. Billing Determinants'!$D$41*$D8))))),0) -> 16132.14913 | N8: =IFERROR(IF(N$4="",0,IF($E8="kWh",VLOOKUP(N$4,'4. Billing Determinants'!$B$19:$Z$41,4,0)/'4. Billing Determinants'!$E$41*$D8,IF($E8="kW",VLOOKUP(N$4,'4. Billing Determinants'!$B$19:$Z$41,5,0)/'4. Billing Determinants'!$F$41*$D8,IF($E8="Non-RPP kWh",VLOOKUP(N$4,'4. Billing Determinants'!$B$19:$Z$41,6,0)/'4. Billing Determinants'!$G$41*$D8,IF($E8="Distribution Rev.",VLOOKUP(N$4,'4. Billing Determinants'!$B$19:$Z$41,8,0)/'4. Billing Determinants'!$I$41*$D8, VLOOKUP(N$4,'4. Billing Determinants'!$B$19:$Z$41,3,0)/'4. Billing Determinants'!$D$41*$D8))))),0) -> 0 | O8: =IFERROR(IF(O$4="",0,IF($E8="kWh",VLOOKUP(O$4,'4. Billing Determinants'!$B$19:$Z$41,4,0)/'4. Billing Determinants'!$E$41*$D8,IF($E8="kW",VLOOKUP(O$4,'4. Billing Determinants'!$B$19:$Z$41,5,0)/'4. Billing Determinants'!$F$41*$D8,IF($E8="Non-RPP kWh",VLOOKUP(O$4,'4. Billing Determinants'!$B$19:$Z$41,6,0)/'4. Billing Determinants'!$G$41*$D8,IF($E8="Distribution Rev.",VLOOKUP(O$4,'4. Billing Determinants'!$B$19:$Z$41,8,0)/'4. Billing Determinants'!$I$41*$D8, VLOOKUP(O$4,'4. Billing Determinants'!$B$19:$Z$41,3,0)/'4. Billing Determinants'!$D$41*$D8))))),0) -> 0 | P8: =IFERROR(IF(P$4="",0,IF($E8="kWh",VLOOKUP(P$4,'4. Billing Determinants'!$B$19:$Z$41,4,0)/'4. Billing Determinants'!$E$41*$D8,IF($E8="kW",VLOOKUP(P$4,'4. Billing Determinants'!$B$19:$Z$41,5,0)/'4. Billing Determinants'!$F$41*$D8,IF($E8="Non-RPP kWh",VLOOKUP(P$4,'4. Billing Determinants'!$B$19:$Z$41,6,0)/'4. Billing Determinants'!$G$41*$D8,IF($E8="Distribution Rev.",VLOOKUP(P$4,'4. Billing Determinants'!$B$19:$Z$41,8,0)/'4. Billing Determinants'!$I$41*$D8, VLOOKUP(P$4,'4. Billing Determinants'!$B$19:$Z$41,3,0)/'4. Billing Determinants'!$D$41*$D8))))),0) -> 0 | Q8: =IFERROR(IF(Q$4="",0,IF($E8="kWh",VLOOKUP(Q$4,'4. Billing Determinants'!$B$19:$Z$41,4,0)/'4. Billing Determinants'!$E$41*$D8,IF($E8="kW",VLOOKUP(Q$4,'4. Billing Determinants'!$B$19:$Z$41,5,0)/'4. Billing Determinants'!$F$41*$D8,IF($E8="Non-RPP kWh",VLOOKUP(Q$4,'4. Billing Determinants'!$B$19:$Z$41,6,0)/'4. Billing Determinants'!$G$41*$D8,IF($E8="Distribution Rev.",VLOOKUP(Q$4,'4. Billing Determinants'!$B$19:$Z$41,8,0)/'4. Billing Determinants'!$I$41*$D8, VLOOKUP(Q$4,'4. Billing Determinants'!$B$19:$Z$41,3,0)/'4. Billing Determinants'!$D$41*$D8))))),0) -> 0 | R8: =IFERROR(IF(R$4="",0,IF($E8="kWh",VLOOKUP(R$4,'4. Billing Determinants'!$B$19:$Z$41,4,0)/'4. Billing Determinants'!$E$41*$D8,IF($E8="kW",VLOOKUP(R$4,'4. Billing Determinants'!$B$19:$Z$41,5,0)/'4. Billing Determinants'!$F$41*$D8,IF($E8="Non-RPP kWh",VLOOKUP(R$4,'4. Billing Determinants'!$B$19:$Z$41,6,0)/'4. Billing Determinants'!$G$41*$D8,IF($E8="Distribution Rev.",VLOOKUP(R$4,'4. Billing Determinants'!$B$19:$Z$41,8,0)/'4. Billing Determinants'!$I$41*$D8, VLOOKUP(R$4,'4. Billing Determinants'!$B$19:$Z$41,3,0)/'4. Billing Determinants'!$D$41*$D8))))),0) -> 0 | S8: =IFERROR(IF(S$4="",0,IF($E8="kWh",VLOOKUP(S$4,'4. Billing Determinants'!$B$19:$Z$41,4,0)/'4. Billing Determinants'!$E$41*$D8,IF($E8="kW",VLOOKUP(S$4,'4. Billing Determinants'!$B$19:$Z$41,5,0)/'4. Billing Determinants'!$F$41*$D8,IF($E8="Non-RPP kWh",VLOOKUP(S$4,'4. Billing Determinants'!$B$19:$Z$41,6,0)/'4. Billing Determinants'!$G$41*$D8,IF($E8="Distribution Rev.",VLOOKUP(S$4,'4. Billing Determinants'!$B$19:$Z$41,8,0)/'4. Billing Determinants'!$I$41*$D8, VLOOKUP(S$4,'4. Billing Determinants'!$B$19:$Z$41,3,0)/'4. Billing Determinants'!$D$41*$D8))))),0) -> 0 | T8: =IFERROR(IF(T$4="",0,IF($E8="kWh",VLOOKUP(T$4,'4. Billing Determinants'!$B$19:$Z$41,4,0)/'4. Billing Determinants'!$E$41*$D8,IF($E8="kW",VLOOKUP(T$4,'4. Billing Determinants'!$B$19:$Z$41,5,0)/'4. Billing Determinants'!$F$41*$D8,IF($E8="Non-RPP kWh",VLOOKUP(T$4,'4. Billing Determinants'!$B$19:$Z$41,6,0)/'4. Billing Determinants'!$G$41*$D8,IF($E8="Distribution Rev.",VLOOKUP(T$4,'4. Billing Determinants'!$B$19:$Z$41,8,0)/'4. Billing Determinants'!$I$41*$D8, VLOOKUP(T$4,'4. Billing Determinants'!$B$19:$Z$41,3,0)/'4. Billing Determinants'!$D$41*$D8))))),0) -> 0 | U8: =IFERROR(IF(U$4="",0,IF($E8="kWh",VLOOKUP(U$4,'4. Billing Determinants'!$B$19:$Z$41,4,0)/'4. Billing Determinants'!$E$41*$D8,IF($E8="kW",VLOOKUP(U$4,'4. Billing Determinants'!$B$19:$Z$41,5,0)/'4. Billing Determinants'!$F$41*$D8,IF($E8="Non-RPP kWh",VLOOKUP(U$4,'4. Billing Determinants'!$B$19:$Z$41,6,0)/'4. Billing Determinants'!$G$41*$D8,IF($E8="Distribution Rev.",VLOOKUP(U$4,'4. Billing Determinants'!$B$19:$Z$41,8,0)/'4. Billing Determinants'!$I$41*$D8, VLOOKUP(U$4,'4. Billing Determinants'!$B$19:$Z$41,3,0)/'4. Billing Determinants'!$D$41*$D8))))),0) -> 0 | V8: =IFERROR(IF(V$4="",0,IF($E8="kWh",VLOOKUP(V$4,'4. Billing Determinants'!$B$19:$Z$41,4,0)/'4. Billing Determinants'!$E$41*$D8,IF($E8="kW",VLOOKUP(V$4,'4. Billing Determinants'!$B$19:$Z$41,5,0)/'4. Billing Determinants'!$F$41*$D8,IF($E8="Non-RPP kWh",VLOOKUP(V$4,'4. Billing Determinants'!$B$19:$Z$41,6,0)/'4. Billing Determinants'!$G$41*$D8,IF($E8="Distribution Rev.",VLOOKUP(V$4,'4. Billing Determinants'!$B$19:$Z$41,8,0)/'4. Billing Determinants'!$I$41*$D8, VLOOKUP(V$4,'4. Billing Determinants'!$B$19:$Z$41,3,0)/'4. Billing Determinants'!$D$41*$D8))))),0) -> 0 | W8: =IFERROR(IF(W$4="",0,IF($E8="kWh",VLOOKUP(W$4,'4. Billing Determinants'!$B$19:$Z$41,4,0)/'4. Billing Determinants'!$E$41*$D8,IF($E8="kW",VLOOKUP(W$4,'4. Billing Determinants'!$B$19:$Z$41,5,0)/'4. Billing Determinants'!$F$41*$D8,IF($E8="Non-RPP kWh",VLOOKUP(W$4,'4. Billing Determinants'!$B$19:$Z$41,6,0)/'4. Billing Determinants'!$G$41*$D8,IF($E8="Distribution Rev.",VLOOKUP(W$4,'4. Billing Determinants'!$B$19:$Z$41,8,0)/'4. Billing Determinants'!$I$41*$D8, VLOOKUP(W$4,'4. Billing Determinants'!$B$19:$Z$41,3,0)/'4. Billing Determinants'!$D$41*$D8))))),0) -> 0 | X8: =IFERROR(IF(X$4="",0,IF($E8="kWh",VLOOKUP(X$4,'4. Billing Determinants'!$B$19:$Z$41,4,0)/'4. Billing Determinants'!$E$41*$D8,IF($E8="kW",VLOOKUP(X$4,'4. Billing Determinants'!$B$19:$Z$41,5,0)/'4. Billing Determinants'!$F$41*$D8,IF($E8="Non-RPP kWh",VLOOKUP(X$4,'4. Billing Determinants'!$B$19:$Z$41,6,0)/'4. Billing Determinants'!$G$41*$D8,IF($E8="Distribution Rev.",VLOOKUP(X$4,'4. Billing Determinants'!$B$19:$Z$41,8,0)/'4. Billing Determinants'!$I$41*$D8, VLOOKUP(X$4,'4. Billing Determinants'!$B$19:$Z$41,3,0)/'4. Billing Determinants'!$D$41*$D8))))),0) -> 0 | Y8: =IFERROR(IF(Y$4="",0,IF($E8="kWh",VLOOKUP(Y$4,'4. Billing Determinants'!$B$19:$Z$41,4,0)/'4. Billing Determinants'!$E$41*$D8,IF($E8="kW",VLOOKUP(Y$4,'4. Billing Determinants'!$B$19:$Z$41,5,0)/'4. Billing Determinants'!$F$41*$D8,IF($E8="Non-RPP kWh",VLOOKUP(Y$4,'4. Billing Determinants'!$B$19:$Z$41,6,0)/'4. Billing Determinants'!$G$41*$D8,IF($E8="Distribution Rev.",VLOOKUP(Y$4,'4. Billing Determinants'!$B$19:$Z$41,8,0)/'4. Billing Determinants'!$I$41*$D8, VLOOKUP(Y$4,'4. Billing Determinants'!$B$19:$Z$41,3,0)/'4. Billing Determinants'!$D$41*$D8))))),0) -> 0
B9: RSVA - Retail Transmission Connection Charge | C9: 1586 | D9: ='2. 2015 Continuity Schedule'!BS28 -> 906099.6454 | E9: kWh | F9: =IFERROR(IF(F$4="",0,IF($E9="kWh",VLOOKUP(F$4,'4. Billing Determinants'!$B$19:$Z$41,4,0)/'4. Billing Determinants'!$E$41*$D9,IF($E9="kW",VLOOKUP(F$4,'4. Billing Determinants'!$B$19:$Z$41,5,0)/'4. Billing Determinants'!$F$41*$D9,IF($E9="Non-RPP kWh",VLOOKUP(F$4,'4. Billing Determinants'!$B$19:$Z$41,6,0)/'4. Billing Determinants'!$G$41*$D9,IF($E9="Distribution Rev.",VLOOKUP(F$4,'4. Billing Determinants'!$B$19:$Z$41,8,0)/'4. Billing Determinants'!$I$41*$D9, VLOOKUP(F$4,'4. Billing Determinants'!$B$19:$Z$41,3,0)/'4. Billing Determinants'!$D$41*$D9))))),0) -> 323745.1511 | G9: =IFERROR(IF(G$4="",0,IF($E9="kWh",VLOOKUP(G$4,'4. Billing Determinants'!$B$19:$Z$41,4,0)/'4. Billing Determinants'!$E$41*$D9,IF($E9="kW",VLOOKUP(G$4,'4. Billing Determinants'!$B$19:$Z$41,5,0)/'4. Billing Determinants'!$F$41*$D9,IF($E9="Non-RPP kWh",VLOOKUP(G$4,'4. Billing Determinants'!$B$19:$Z$41,6,0)/'4. Billing Determinants'!$G$41*$D9,IF($E9="Distribution Rev.",VLOOKUP(G$4,'4. Billing Determinants'!$B$19:$Z$41,8,0)/'4. Billing Determinants'!$I$41*$D9, VLOOKUP(G$4,'4. Billing Determinants'!$B$19:$Z$41,3,0)/'4. Billing Determinants'!$D$41*$D9))))),0) -> 95004.92077 | H9: =IFERROR(IF(H$4="",0,IF($E9="kWh",VLOOKUP(H$4,'4. Billing Determinants'!$B$19:$Z$41,4,0)/'4. Billing Determinants'!$E$41*$D9,IF($E9="kW",VLOOKUP(H$4,'4. Billing Determinants'!$B$19:$Z$41,5,0)/'4. Billing Determinants'!$F$41*$D9,IF($E9="Non-RPP kWh",VLOOKUP(H$4,'4. Billing Determinants'!$B$19:$Z$41,6,0)/'4. Billing Determinants'!$G$41*$D9,IF($E9="Distribution Rev.",VLOOKUP(H$4,'4. Billing Determinants'!$B$19:$Z$41,8,0)/'4. Billing Determinants'!$I$41*$D9, VLOOKUP(H$4,'4. Billing Determinants'!$B$19:$Z$41,3,0)/'4. Billing Determinants'!$D$41*$D9))))),0) -> 215049.0569 | I9: =IFERROR(IF(I$4="",0,IF($E9="kWh",VLOOKUP(I$4,'4. Billing Determinants'!$B$19:$Z$41,4,0)/'4. Billing Determinants'!$E$41*$D9,IF($E9="kW",VLOOKUP(I$4,'4. Billing Determinants'!$B$19:$Z$41,5,0)/'4. Billing Determinants'!$F$41*$D9,IF($E9="Non-RPP kWh",VLOOKUP(I$4,'4. Billing Determinants'!$B$19:$Z$41,6,0)/'4. Billing Determinants'!$G$41*$D9,IF($E9="Distribution Rev.",VLOOKUP(I$4,'4. Billing Determinants'!$B$19:$Z$41,8,0)/'4. Billing Determinants'!$I$41*$D9, VLOOKUP(I$4,'4. Billing Determinants'!$B$19:$Z$41,3,0)/'4. Billing Determinants'!$D$41*$D9))))),0) -> 121150.9238 | J9: =IFERROR(IF(J$4="",0,IF($E9="kWh",VLOOKUP(J$4,'4. Billing Determinants'!$B$19:$Z$41,4,0)/'4. Billing Determinants'!$E$41*$D9,IF($E9="kW",VLOOKUP(J$4,'4. Billing Determinants'!$B$19:$Z$41,5,0)/'4. Billing Determinants'!$F$41*$D9,IF($E9="Non-RPP kWh",VLOOKUP(J$4,'4. Billing Determinants'!$B$19:$Z$41,6,0)/'4. Billing Determinants'!$G$41*$D9,IF($E9="Distribution Rev.",VLOOKUP(J$4,'4. Billing Determinants'!$B$19:$Z$41,8,0)/'4. Billing Determinants'!$I$41*$D9, VLOOKUP(J$4,'4. Billing Determinants'!$B$19:$Z$41,3,0)/'4. Billing Determinants'!$D$41*$D9))))),0) -> 141233.8722 | K9: =IFERROR(IF(K$4="",0,IF($E9="kWh",VLOOKUP(K$4,'4. Billing Determinants'!$B$19:$Z$41,4,0)/'4. Billing Determinants'!$E$41*$D9,IF($E9="kW",VLOOKUP(K$4,'4. Billing Determinants'!$B$19:$Z$41,5,0)/'4. Billing Determinants'!$F$41*$D9,IF($E9="Non-RPP kWh",VLOOKUP(K$4,'4. Billing Determinants'!$B$19:$Z$41,6,0)/'4. Billing Determinants'!$G$41*$D9,IF($E9="Distribution Rev.",VLOOKUP(K$4,'4. Billing Determinants'!$B$19:$Z$41,8,0)/'4. Billing Determinants'!$I$41*$D9, VLOOKUP(K$4,'4. Billing Determinants'!$B$19:$Z$41,3,0)/'4. Billing Determinants'!$D$41*$D9))))),0) -> 1139.506923 | L9: =IFERROR(IF(L$4="",0,IF($E9="kWh",VLOOKUP(L$4,'4. Billing Determinants'!$B$19:$Z$41,4,0)/'4. Billing Determinants'!$E$41*$D9,IF($E9="kW",VLOOKUP(L$4,'4. Billing Determinants'!$B$19:$Z$41,5,0)/'4. Billing Determinants'!$F$41*$D9,IF($E9="Non-RPP kWh",VLOOKUP(L$4,'4. Billing Determinants'!$B$19:$Z$41,6,0)/'4. Billing Determinants'!$G$41*$D9,IF($E9="Distribution Rev.",VLOOKUP(L$4,'4. Billing Determinants'!$B$19:$Z$41,8,0)/'4. Billing Determinants'!$I$41*$D9, VLOOKUP(L$4,'4. Billing Determinants'!$B$19:$Z$41,3,0)/'4. Billing Determinants'!$D$41*$D9))))),0) -> 151.4363783 | M9: =IFERROR(IF(M$4="",0,IF($E9="kWh",VLOOKUP(M$4,'4. Billing Determinants'!$B$19:$Z$41,4,0)/'4. Billing Determinants'!$E$41*$D9,IF($E9="kW",VLOOKUP(M$4,'4. Billing Determinants'!$B$19:$Z$41,5,0)/'4. Billing Determinants'!$F$41*$D9,IF($E9="Non-RPP kWh",VLOOKUP(M$4,'4. Billing Determinants'!$B$19:$Z$41,6,0)/'4. Billing Determinants'!$G$41*$D9,IF($E9="Distribution Rev.",VLOOKUP(M$4,'4. Billing Determinants'!$B$19:$Z$41,8,0)/'4. Billing Determinants'!$I$41*$D9, VLOOKUP(M$4,'4. Billing Determinants'!$B$19:$Z$41,3,0)/'4. Billing Determinants'!$D$41*$D9))))),0) -> 8624.777331 | N9: =IFERROR(IF(N$4="",0,IF($E9="kWh",VLOOKUP(N$4,'4. Billing Determinants'!$B$19:$Z$41,4,0)/'4. Billing Determinants'!$E$41*$D9,IF($E9="kW",VLOOKUP(N$4,'4. Billing Determinants'!$B$19:$Z$41,5,0)/'4. Billing Determinants'!$F$41*$D9,IF($E9="Non-RPP kWh",VLOOKUP(N$4,'4. Billing Determinants'!$B$19:$Z$41,6,0)/'4. Billing Determinants'!$G$41*$D9,IF($E9="Distribution Rev.",VLOOKUP(N$4,'4. Billing Determinants'!$B$19:$Z$41,8,0)/'4. Billing Determinants'!$I$41*$D9, VLOOKUP(N$4,'4. Billing Determinants'!$B$19:$Z$41,3,0)/'4. Billing Determinants'!$D$41*$D9))))),0) -> 0 | O9: =IFERROR(IF(O$4="",0,IF($E9="kWh",VLOOKUP(O$4,'4. Billing Determinants'!$B$19:$Z$41,4,0)/'4. Billing Determinants'!$E$41*$D9,IF($E9="kW",VLOOKUP(O$4,'4. Billing Determinants'!$B$19:$Z$41,5,0)/'4. Billing Determinants'!$F$41*$D9,IF($E9="Non-RPP kWh",VLOOKUP(O$4,'4. Billing Determinants'!$B$19:$Z$41,6,0)/'4. Billing Determinants'!$G$41*$D9,IF($E9="Distribution Rev.",VLOOKUP(O$4,'4. Billing Determinants'!$B$19:$Z$41,8,0)/'4. Billing Determinants'!$I$41*$D9, VLOOKUP(O$4,'4. Billing Determinants'!$B$19:$Z$41,3,0)/'4. Billing Determinants'!$D$41*$D9))))),0) -> 0 | P9: =IFERROR(IF(P$4="",0,IF($E9="kWh",VLOOKUP(P$4,'4. Billing Determinants'!$B$19:$Z$41,4,0)/'4. Billing Determinants'!$E$41*$D9,IF($E9="kW",VLOOKUP(P$4,'4. Billing Determinants'!$B$19:$Z$41,5,0)/'4. Billing Determinants'!$F$41*$D9,IF($E9="Non-RPP kWh",VLOOKUP(P$4,'4. Billing Determinants'!$B$19:$Z$41,6,0)/'4. Billing Determinants'!$G$41*$D9,IF($E9="Distribution Rev.",VLOOKUP(P$4,'4. Billing Determinants'!$B$19:$Z$41,8,0)/'4. Billing Determinants'!$I$41*$D9, VLOOKUP(P$4,'4. Billing Determinants'!$B$19:$Z$41,3,0)/'4. Billing Determinants'!$D$41*$D9))))),0) -> 0 | Q9: =IFERROR(IF(Q$4="",0,IF($E9="kWh",VLOOKUP(Q$4,'4. Billing Determinants'!$B$19:$Z$41,4,0)/'4. Billing Determinants'!$E$41*$D9,IF($E9="kW",VLOOKUP(Q$4,'4. Billing Determinants'!$B$19:$Z$41,5,0)/'4. Billing Determinants'!$F$41*$D9,IF($E9="Non-RPP kWh",VLOOKUP(Q$4,'4. Billing Determinants'!$B$19:$Z$41,6,0)/'4. Billing Determinants'!$G$41*$D9,IF($E9="Distribution Rev.",VLOOKUP(Q$4,'4. Billing Determinants'!$B$19:$Z$41,8,0)/'4. Billing Determinants'!$I$41*$D9, VLOOKUP(Q$4,'4. Billing Determinants'!$B$19:$Z$41,3,0)/'4. Billing Determinants'!$D$41*$D9))))),0) -> 0 | R9: =IFERROR(IF(R$4="",0,IF($E9="kWh",VLOOKUP(R$4,'4. Billing Determinants'!$B$19:$Z$41,4,0)/'4. Billing Determinants'!$E$41*$D9,IF($E9="kW",VLOOKUP(R$4,'4. Billing Determinants'!$B$19:$Z$41,5,0)/'4. Billing Determinants'!$F$41*$D9,IF($E9="Non-RPP kWh",VLOOKUP(R$4,'4. Billing Determinants'!$B$19:$Z$41,6,0)/'4. Billing Determinants'!$G$41*$D9,IF($E9="Distribution Rev.",VLOOKUP(R$4,'4. Billing Determinants'!$B$19:$Z$41,8,0)/'4. Billing Determinants'!$I$41*$D9, VLOOKUP(R$4,'4. Billing Determinants'!$B$19:$Z$41,3,0)/'4. Billing Determinants'!$D$41*$D9))))),0) -> 0 | S9: =IFERROR(IF(S$4="",0,IF($E9="kWh",VLOOKUP(S$4,'4. Billing Determinants'!$B$19:$Z$41,4,0)/'4. Billing Determinants'!$E$41*$D9,IF($E9="kW",VLOOKUP(S$4,'4. Billing Determinants'!$B$19:$Z$41,5,0)/'4. Billing Determinants'!$F$41*$D9,IF($E9="Non-RPP kWh",VLOOKUP(S$4,'4. Billing Determinants'!$B$19:$Z$41,6,0)/'4. Billing Determinants'!$G$41*$D9,IF($E9="Distribution Rev.",VLOOKUP(S$4,'4. Billing Determinants'!$B$19:$Z$41,8,0)/'4. Billing Determinants'!$I$41*$D9, VLOOKUP(S$4,'4. Billing Determinants'!$B$19:$Z$41,3,0)/'4. Billing Determinants'!$D$41*$D9))))),0) -> 0 | T9: =IFERROR(IF(T$4="",0,IF($E9="kWh",VLOOKUP(T$4,'4. Billing Determinants'!$B$19:$Z$41,4,0)/'4. Billing Determinants'!$E$41*$D9,IF($E9="kW",VLOOKUP(T$4,'4. Billing Determinants'!$B$19:$Z$41,5,0)/'4. Billing Determinants'!$F$41*$D9,IF($E9="Non-RPP kWh",VLOOKUP(T$4,'4. Billing Determinants'!$B$19:$Z$41,6,0)/'4. Billing Determinants'!$G$41*$D9,IF($E9="Distribution Rev.",VLOOKUP(T$4,'4. Billing Determinants'!$B$19:$Z$41,8,0)/'4. Billing Determinants'!$I$41*$D9, VLOOKUP(T$4,'4. Billing Determinants'!$B$19:$Z$41,3,0)/'4. Billing Determinants'!$D$41*$D9))))),0) -> 0 | U9: =IFERROR(IF(U$4="",0,IF($E9="kWh",VLOOKUP(U$4,'4. Billing Determinants'!$B$19:$Z$41,4,0)/'4. Billing Determinants'!$E$41*$D9,IF($E9="kW",VLOOKUP(U$4,'4. Billing Determinants'!$B$19:$Z$41,5,0)/'4. Billing Determinants'!$F$41*$D9,IF($E9="Non-RPP kWh",VLOOKUP(U$4,'4. Billing Determinants'!$B$19:$Z$41,6,0)/'4. Billing Determinants'!$G$41*$D9,IF($E9="Distribution Rev.",VLOOKUP(U$4,'4. Billing Determinants'!$B$19:$Z$41,8,0)/'4. Billing Determinants'!$I$41*$D9, VLOOKUP(U$4,'4. Billing Determinants'!$B$19:$Z$41,3,0)/'4. Billing Determinants'!$D$41*$D9))))),0) -> 0 | V9: =IFERROR(IF(V$4="",0,IF($E9="kWh",VLOOKUP(V$4,'4. Billing Determinants'!$B$19:$Z$41,4,0)/'4. Billing Determinants'!$E$41*$D9,IF($E9="kW",VLOOKUP(V$4,'4. Billing Determinants'!$B$19:$Z$41,5,0)/'4. Billing Determinants'!$F$41*$D9,IF($E9="Non-RPP kWh",VLOOKUP(V$4,'4. Billing Determinants'!$B$19:$Z$41,6,0)/'4. Billing Determinants'!$G$41*$D9,IF($E9="Distribution Rev.",VLOOKUP(V$4,'4. Billing Determinants'!$B$19:$Z$41,8,0)/'4. Billing Determinants'!$I$41*$D9, VLOOKUP(V$4,'4. Billing Determinants'!$B$19:$Z$41,3,0)/'4. Billing Determinants'!$D$41*$D9))))),0) -> 0 | W9: =IFERROR(IF(W$4="",0,IF($E9="kWh",VLOOKUP(W$4,'4. Billing Determinants'!$B$19:$Z$41,4,0)/'4. Billing Determinants'!$E$41*$D9,IF($E9="kW",VLOOKUP(W$4,'4. Billing Determinants'!$B$19:$Z$41,5,0)/'4. Billing Determinants'!$F$41*$D9,IF($E9="Non-RPP kWh",VLOOKUP(W$4,'4. Billing Determinants'!$B$19:$Z$41,6,0)/'4. Billing Determinants'!$G$41*$D9,IF($E9="Distribution Rev.",VLOOKUP(W$4,'4. Billing Determinants'!$B$19:$Z$41,8,0)/'4. Billing Determinants'!$I$41*$D9, VLOOKUP(W$4,'4. Billing Determinants'!$B$19:$Z$41,3,0)/'4. Billing Determinants'!$D$41*$D9))))),0) -> 0 | X9: =IFERROR(IF(X$4="",0,IF($E9="kWh",VLOOKUP(X$4,'4. Billing Determinants'!$B$19:$Z$41,4,0)/'4. Billing Determinants'!$E$41*$D9,IF($E9="kW",VLOOKUP(X$4,'4. Billing Determinants'!$B$19:$Z$41,5,0)/'4. Billing Determinants'!$F$41*$D9,IF($E9="Non-RPP kWh",VLOOKUP(X$4,'4. Billing Determinants'!$B$19:$Z$41,6,0)/'4. Billing Determinants'!$G$41*$D9,IF($E9="Distribution Rev.",VLOOKUP(X$4,'4. Billing Determinants'!$B$19:$Z$41,8,0)/'4. Billing Determinants'!$I$41*$D9, VLOOKUP(X$4,'4. Billing Determinants'!$B$19:$Z$41,3,0)/'4. Billing Determinants'!$D$41*$D9))))),0) -> 0 | Y9: =IFERROR(IF(Y$4="",0,IF($E9="kWh",VLOOKUP(Y$4,'4. Billing Determinants'!$B$19:$Z$41,4,0)/'4. Billing Determinants'!$E$41*$D9,IF($E9="kW",VLOOKUP(Y$4,'4. Billing Determinants'!$B$19:$Z$41,5,0)/'4. Billing Determinants'!$F$41*$D9,IF($E9="Non-RPP kWh",VLOOKUP(Y$4,'4. Billing Determinants'!$B$19:$Z$41,6,0)/'4. Billing Determinants'!$G$41*$D9,IF($E9="Distribution Rev.",VLOOKUP(Y$4,'4. Billing Determinants'!$B$19:$Z$41,8,0)/'4. Billing Determinants'!$I$41*$D9, VLOOKUP(Y$4,'4. Billing Determinants'!$B$19:$Z$41,3,0)/'4. Billing Determinants'!$D$41*$D9))))),0) -> 0
B10: RSVA - Power (excluding Global Adjustment) | C10: 1588 | D10: ='2. 2015 Continuity Schedule'!BS29 -> -1327926.82 | E10: kWh | F10: =IFERROR(IF(F$4="",0,IF($E10="kWh",VLOOKUP(F$4,'4. Billing Determinants'!$B$19:$Z$41,11,0)/'4. Billing Determinants'!$L$41*$D10,IF($E10="kW",VLOOKUP(F$4,'4. Billing Determinants'!$B$19:$Z$41,12,0)/'4. Billing Determinants'!$M$41*$D10,))),0) -> -477110.6154 | G10: =IFERROR(IF(G$4="",0,IF($E10="kWh",VLOOKUP(G$4,'4. Billing Determinants'!$B$19:$Z$41,11,0)/'4. Billing Determinants'!$L$41*$D10,IF($E10="kW",VLOOKUP(G$4,'4. Billing Determinants'!$B$19:$Z$41,12,0)/'4. Billing Determinants'!$M$41*$D10,))),0) -> -140010.9193 | H10: =IFERROR(IF(H$4="",0,IF($E10="kWh",VLOOKUP(H$4,'4. Billing Determinants'!$B$19:$Z$41,11,0)/'4. Billing Determinants'!$L$41*$D10,IF($E10="kW",VLOOKUP(H$4,'4. Billing Determinants'!$B$19:$Z$41,12,0)/'4. Billing Determinants'!$M$41*$D10,))),0) -> -309509.8013 | I10: =IFERROR(IF(I$4="",0,IF($E10="kWh",VLOOKUP(I$4,'4. Billing Determinants'!$B$19:$Z$41,11,0)/'4. Billing Determinants'!$L$41*$D10,IF($E10="kW",VLOOKUP(I$4,'4. Billing Determinants'!$B$19:$Z$41,12,0)/'4. Billing Determinants'!$M$41*$D10,))),0) -> -178542.8804 | J10: =IFERROR(IF(J$4="",0,IF($E10="kWh",VLOOKUP(J$4,'4. Billing Determinants'!$B$19:$Z$41,11,0)/'4. Billing Determinants'!$L$41*$D10,IF($E10="kW",VLOOKUP(J$4,'4. Billing Determinants'!$B$19:$Z$41,12,0)/'4. Billing Determinants'!$M$41*$D10,))),0) -> -208139.5798 | K10: =IFERROR(IF(K$4="",0,IF($E10="kWh",VLOOKUP(K$4,'4. Billing Determinants'!$B$19:$Z$41,11,0)/'4. Billing Determinants'!$L$41*$D10,IF($E10="kW",VLOOKUP(K$4,'4. Billing Determinants'!$B$19:$Z$41,12,0)/'4. Billing Determinants'!$M$41*$D10,))),0) -> -1679.31735 | L10: =IFERROR(IF(L$4="",0,IF($E10="kWh",VLOOKUP(L$4,'4. Billing Determinants'!$B$19:$Z$41,11,0)/'4. Billing Determinants'!$L$41*$D10,IF($E10="kW",VLOOKUP(L$4,'4. Billing Determinants'!$B$19:$Z$41,12,0)/'4. Billing Determinants'!$M$41*$D10,))),0) -> -223.1752457 | M10: =IFERROR(IF(M$4="",0,IF($E10="kWh",VLOOKUP(M$4,'4. Billing Determinants'!$B$19:$Z$41,11,0)/'4. Billing Determinants'!$L$41*$D10,IF($E10="kW",VLOOKUP(M$4,'4. Billing Determinants'!$B$19:$Z$41,12,0)/'4. Billing Determinants'!$M$41*$D10,))),0) -> -12710.53113 | N10: =IFERROR(IF(N$4="",0,IF($E10="kWh",VLOOKUP(N$4,'4. Billing Determinants'!$B$19:$Z$41,11,0)/'4. Billing Determinants'!$L$41*$D10,IF($E10="kW",VLOOKUP(N$4,'4. Billing Determinants'!$B$19:$Z$41,12,0)/'4. Billing Determinants'!$M$41*$D10,))),0) -> 0 | O10: =IFERROR(IF(O$4="",0,IF($E10="kWh",VLOOKUP(O$4,'4. Billing Determinants'!$B$19:$Z$41,11,0)/'4. Billing Determinants'!$L$41*$D10,IF($E10="kW",VLOOKUP(O$4,'4. Billing Determinants'!$B$19:$Z$41,12,0)/'4. Billing Determinants'!$M$41*$D10,))),0) -> 0 | P10: =IFERROR(IF(P$4="",0,IF($E10="kWh",VLOOKUP(P$4,'4. Billing Determinants'!$B$19:$Z$41,11,0)/'4. Billing Determinants'!$L$41*$D10,IF($E10="kW",VLOOKUP(P$4,'4. Billing Determinants'!$B$19:$Z$41,12,0)/'4. Billing Determinants'!$M$41*$D10,))),0) -> 0 | Q10: =IFERROR(IF(Q$4="",0,IF($E10="kWh",VLOOKUP(Q$4,'4. Billing Determinants'!$B$19:$Z$41,11,0)/'4. Billing Determinants'!$L$41*$D10,IF($E10="kW",VLOOKUP(Q$4,'4. Billing Determinants'!$B$19:$Z$41,12,0)/'4. Billing Determinants'!$M$41*$D10,))),0) -> 0 | R10: =IFERROR(IF(R$4="",0,IF($E10="kWh",VLOOKUP(R$4,'4. Billing Determinants'!$B$19:$Z$41,11,0)/'4. Billing Determinants'!$L$41*$D10,IF($E10="kW",VLOOKUP(R$4,'4. Billing Determinants'!$B$19:$Z$41,12,0)/'4. Billing Determinants'!$M$41*$D10,))),0) -> 0 | S10: =IFERROR(IF(S$4="",0,IF($E10="kWh",VLOOKUP(S$4,'4. Billing Determinants'!$B$19:$Z$41,11,0)/'4. Billing Determinants'!$L$41*$D10,IF($E10="kW",VLOOKUP(S$4,'4. Billing Determinants'!$B$19:$Z$41,12,0)/'4. Billing Determinants'!$M$41*$D10,))),0) -> 0 | T10: =IFERROR(IF(T$4="",0,IF($E10="kWh",VLOOKUP(T$4,'4. Billing Determinants'!$B$19:$Z$41,11,0)/'4. Billing Determinants'!$L$41*$D10,IF($E10="kW",VLOOKUP(T$4,'4. Billing Determinants'!$B$19:$Z$41,12,0)/'4. Billing Determinants'!$M$41*$D10,))),0) -> 0 | U10: =IFERROR(IF(U$4="",0,IF($E10="kWh",VLOOKUP(U$4,'4. Billing Determinants'!$B$19:$Z$41,11,0)/'4. Billing Determinants'!$L$41*$D10,IF($E10="kW",VLOOKUP(U$4,'4. Billing Determinants'!$B$19:$Z$41,12,0)/'4. Billing Determinants'!$M$41*$D10,))),0) -> 0 | V10: =IFERROR(IF(V$4="",0,IF($E10="kWh",VLOOKUP(V$4,'4. Billing Determinants'!$B$19:$Z$41,11,0)/'4. Billing Determinants'!$L$41*$D10,IF($E10="kW",VLOOKUP(V$4,'4. Billing Determinants'!$B$19:$Z$41,12,0)/'4. Billing Determinants'!$M$41*$D10,))),0) -> 0 | W10: =IFERROR(IF(W$4="",0,IF($E10="kWh",VLOOKUP(W$4,'4. Billing Determinants'!$B$19:$Z$41,11,0)/'4. Billing Determinants'!$L$41*$D10,IF($E10="kW",VLOOKUP(W$4,'4. Billing Determinants'!$B$19:$Z$41,12,0)/'4. Billing Determinants'!$M$41*$D10,))),0) -> 0 | X10: =IFERROR(IF(X$4="",0,IF($E10="kWh",VLOOKUP(X$4,'4. Billing Determinants'!$B$19:$Z$41,11,0)/'4. Billing Determinants'!$L$41*$D10,IF($E10="kW",VLOOKUP(X$4,'4. Billing Determinants'!$B$19:$Z$41,12,0)/'4. Billing Determinants'!$M$41*$D10,))),0) -> 0 | Y10: =IFERROR(IF(Y$4="",0,IF($E10="kWh",VLOOKUP(Y$4,'4. Billing Determinants'!$B$19:$Z$41,11,0)/'4. Billing Determinants'!$L$41*$D10,IF($E10="kW",VLOOKUP(Y$4,'4. Billing Determinants'!$B$19:$Z$41,12,0)/'4. Billing Determinants'!$M$41*$D10,))),0) -> 0
B11: RSVA - Global Adjustment | C11: 1589 | D11: =IF('4. Billing Determinants'!N41>0, '2. 2015 Continuity Schedule'!BS30-('2. 2015 Continuity Schedule'!BS30*'4. Billing Determinants'!N41), '2. 2015 Continuity Schedule'!BS30) -> 2240760.283 | E11: Non-RPP kWh | F11: =IFERROR(IF(F$4="",0,IF($E11="kWh",VLOOKUP(F$4,'4. Billing Determinants'!$B$19:$Z$41,4,0)/'4. Billing Determinants'!$E$41*$D11,IF($E11="kW",VLOOKUP(F$4,'4. Billing Determinants'!$B$19:$Z$41,5,0)/'4. Billing Determinants'!$F$41*$D11,IF($E11="Non-RPP kWh",VLOOKUP(F$4,'4. Billing Determinants'!$B$19:$Z$41,16,0)/'4. Billing Determinants'!$Q$41*$D11,IF($E11="Distribution Rev.",VLOOKUP(F$4,'4. Billing Determinants'!$B$19:$Z$41,8,0)/'4. Billing Determinants'!$I$41*$D11, VLOOKUP(F$4,'4. Billing Determinants'!$B$19:$Z$41,3,0)/'4. Billing Determinants'!$D$41*$D11))))),0) -> 108602.2498 | G11: =IFERROR(IF(G$4="",0,IF($E11="kWh",VLOOKUP(G$4,'4. Billing Determinants'!$B$19:$Z$41,4,0)/'4. Billing Determinants'!$E$41*$D11,IF($E11="kW",VLOOKUP(G$4,'4. Billing Determinants'!$B$19:$Z$41,5,0)/'4. Billing Determinants'!$F$41*$D11,IF($E11="Non-RPP kWh",VLOOKUP(G$4,'4. Billing Determinants'!$B$19:$Z$41,16,0)/'4. Billing Determinants'!$Q$41*$D11,IF($E11="Distribution Rev.",VLOOKUP(G$4,'4. Billing Determinants'!$B$19:$Z$41,8,0)/'4. Billing Determinants'!$I$41*$D11, VLOOKUP(G$4,'4. Billing Determinants'!$B$19:$Z$41,3,0)/'4. Billing Determinants'!$D$41*$D11))))),0) -> 87783.07275 | H11: =IFERROR(IF(H$4="",0,IF($E11="kWh",VLOOKUP(H$4,'4. Billing Determinants'!$B$19:$Z$41,4,0)/'4. Billing Determinants'!$E$41*$D11,IF($E11="kW",VLOOKUP(H$4,'4. Billing Determinants'!$B$19:$Z$41,5,0)/'4. Billing Determinants'!$F$41*$D11,IF($E11="Non-RPP kWh",VLOOKUP(H$4,'4. Billing Determinants'!$B$19:$Z$41,16,0)/'4. Billing Determinants'!$Q$41*$D11,IF($E11="Distribution Rev.",VLOOKUP(H$4,'4. Billing Determinants'!$B$19:$Z$41,8,0)/'4. Billing Determinants'!$I$41*$D11, VLOOKUP(H$4,'4. Billing Determinants'!$B$19:$Z$41,3,0)/'4. Billing Determinants'!$D$41*$D11))))),0) -> 1293098.46 | I11: =IFERROR(IF(I$4="",0,IF($E11="kWh",VLOOKUP(I$4,'4. Billing Determinants'!$B$19:$Z$41,4,0)/'4. Billing Determinants'!$E$41*$D11,IF($E11="kW",VLOOKUP(I$4,'4. Billing Determinants'!$B$19:$Z$41,5,0)/'4. Billing Determinants'!$F$41*$D11,IF($E11="Non-RPP kWh",VLOOKUP(I$4,'4. Billing Determinants'!$B$19:$Z$41,16,0)/'4. Billing Determinants'!$Q$41*$D11,IF($E11="Distribution Rev.",VLOOKUP(I$4,'4. Billing Determinants'!$B$19:$Z$41,8,0)/'4. Billing Determinants'!$I$41*$D11, VLOOKUP(I$4,'4. Billing Determinants'!$B$19:$Z$41,3,0)/'4. Billing Determinants'!$D$41*$D11))))),0) -> 693363.7974 | J11: =IFERROR(IF(J$4="",0,IF($E11="kWh",VLOOKUP(J$4,'4. Billing Determinants'!$B$19:$Z$41,4,0)/'4. Billing Determinants'!$E$41*$D11,IF($E11="kW",VLOOKUP(J$4,'4. Billing Determinants'!$B$19:$Z$41,5,0)/'4. Billing Determinants'!$F$41*$D11,IF($E11="Non-RPP kWh",VLOOKUP(J$4,'4. Billing Determinants'!$B$19:$Z$41,16,0)/'4. Billing Determinants'!$Q$41*$D11,IF($E11="Distribution Rev.",VLOOKUP(J$4,'4. Billing Determinants'!$B$19:$Z$41,8,0)/'4. Billing Determinants'!$I$41*$D11, VLOOKUP(J$4,'4. Billing Determinants'!$B$19:$Z$41,3,0)/'4. Billing Determinants'!$D$41*$D11))))),0) -> 0 | K11: =IFERROR(IF(K$4="",0,IF($E11="kWh",VLOOKUP(K$4,'4. Billing Determinants'!$B$19:$Z$41,4,0)/'4. Billing Determinants'!$E$41*$D11,IF($E11="kW",VLOOKUP(K$4,'4. Billing Determinants'!$B$19:$Z$41,5,0)/'4. Billing Determinants'!$F$41*$D11,IF($E11="Non-RPP kWh",VLOOKUP(K$4,'4. Billing Determinants'!$B$19:$Z$41,16,0)/'4. Billing Determinants'!$Q$41*$D11,IF($E11="Distribution Rev.",VLOOKUP(K$4,'4. Billing Determinants'!$B$19:$Z$41,8,0)/'4. Billing Determinants'!$I$41*$D11, VLOOKUP(K$4,'4. Billing Determinants'!$B$19:$Z$41,3,0)/'4. Billing Determinants'!$D$41*$D11))))),0) -> 0 | L11: =IFERROR(IF(L$4="",0,IF($E11="kWh",VLOOKUP(L$4,'4. Billing Determinants'!$B$19:$Z$41,4,0)/'4. Billing Determinants'!$E$41*$D11,IF($E11="kW",VLOOKUP(L$4,'4. Billing Determinants'!$B$19:$Z$41,5,0)/'4. Billing Determinants'!$F$41*$D11,IF($E11="Non-RPP kWh",VLOOKUP(L$4,'4. Billing Determinants'!$B$19:$Z$41,16,0)/'4. Billing Determinants'!$Q$41*$D11,IF($E11="Distribution Rev.",VLOOKUP(L$4,'4. Billing Determinants'!$B$19:$Z$41,8,0)/'4. Billing Determinants'!$I$41*$D11, VLOOKUP(L$4,'4. Billing Determinants'!$B$19:$Z$41,3,0)/'4. Billing Determinants'!$D$41*$D11))))),0) -> 0 | M11: =IFERROR(IF(M$4="",0,IF($E11="kWh",VLOOKUP(M$4,'4. Billing Determinants'!$B$19:$Z$41,4,0)/'4. Billing Determinants'!$E$41*$D11,IF($E11="kW",VLOOKUP(M$4,'4. Billing Determinants'!$B$19:$Z$41,5,0)/'4. Billing Determinants'!$F$41*$D11,IF($E11="Non-RPP kWh",VLOOKUP(M$4,'4. Billing Determinants'!$B$19:$Z$41,16,0)/'4. Billing Determinants'!$Q$41*$D11,IF($E11="Distribution Rev.",VLOOKUP(M$4,'4. Billing Determinants'!$B$19:$Z$41,8,0)/'4. Billing Determinants'!$I$41*$D11, VLOOKUP(M$4,'4. Billing Determinants'!$B$19:$Z$41,3,0)/'4. Billing Determinants'!$D$41*$D11))))),0) -> 57912.70291 | N11: =IFERROR(IF(N$4="",0,IF($E11="kWh",VLOOKUP(N$4,'4. Billing Determinants'!$B$19:$Z$41,4,0)/'4. Billing Determinants'!$E$41*$D11,IF($E11="kW",VLOOKUP(N$4,'4. Billing Determinants'!$B$19:$Z$41,5,0)/'4. Billing Determinants'!$F$41*$D11,IF($E11="Non-RPP kWh",VLOOKUP(N$4,'4. Billing Determinants'!$B$19:$Z$41,16,0)/'4. Billing Determinants'!$Q$41*$D11,IF($E11="Distribution Rev.",VLOOKUP(N$4,'4. Billing Determinants'!$B$19:$Z$41,8,0)/'4. Billing Determinants'!$I$41*$D11, VLOOKUP(N$4,'4. Billing Determinants'!$B$19:$Z$41,3,0)/'4. Billing Determinants'!$D$41*$D11))))),0) -> 0 | O11: =IFERROR(IF(O$4="",0,IF($E11="kWh",VLOOKUP(O$4,'4. Billing Determinants'!$B$19:$Z$41,4,0)/'4. Billing Determinants'!$E$41*$D11,IF($E11="kW",VLOOKUP(O$4,'4. Billing Determinants'!$B$19:$Z$41,5,0)/'4. Billing Determinants'!$F$41*$D11,IF($E11="Non-RPP kWh",VLOOKUP(O$4,'4. Billing Determinants'!$B$19:$Z$41,16,0)/'4. Billing Determinants'!$G$41*$D11,IF($E11="Distribution Rev.",VLOOKUP(O$4,'4. Billing Determinants'!$B$19:$Z$41,8,0)/'4. Billing Determinants'!$I$41*$D11, VLOOKUP(O$4,'4. Billing Determinants'!$B$19:$Z$41,3,0)/'4. Billing Determinants'!$D$41*$D11))))),0) -> 0 | P11: =IFERROR(IF(P$4="",0,IF($E11="kWh",VLOOKUP(P$4,'4. Billing Determinants'!$B$19:$Z$41,4,0)/'4. Billing Determinants'!$E$41*$D11,IF($E11="kW",VLOOKUP(P$4,'4. Billing Determinants'!$B$19:$Z$41,5,0)/'4. Billing Determinants'!$F$41*$D11,IF($E11="Non-RPP kWh",VLOOKUP(P$4,'4. Billing Determinants'!$B$19:$Z$41,16,0)/'4. Billing Determinants'!$G$41*$D11,IF($E11="Distribution Rev.",VLOOKUP(P$4,'4. Billing Determinants'!$B$19:$Z$41,8,0)/'4. Billing Determinants'!$I$41*$D11, VLOOKUP(P$4,'4. Billing Determinants'!$B$19:$Z$41,3,0)/'4. Billing Determinants'!$D$41*$D11))))),0) -> 0 | Q11: =IFERROR(IF(Q$4="",0,IF($E11="kWh",VLOOKUP(Q$4,'4. Billing Determinants'!$B$19:$Z$41,4,0)/'4. Billing Determinants'!$E$41*$D11,IF($E11="kW",VLOOKUP(Q$4,'4. Billing Determinants'!$B$19:$Z$41,5,0)/'4. Billing Determinants'!$F$41*$D11,IF($E11="Non-RPP kWh",VLOOKUP(Q$4,'4. Billing Determinants'!$B$19:$Z$41,16,0)/'4. Billing Determinants'!$G$41*$D11,IF($E11="Distribution Rev.",VLOOKUP(Q$4,'4. Billing Determinants'!$B$19:$Z$41,8,0)/'4. Billing Determinants'!$I$41*$D11, VLOOKUP(Q$4,'4. Billing Determinants'!$B$19:$Z$41,3,0)/'4. Billing Determinants'!$D$41*$D11))))),0) -> 0 | R11: =IFERROR(IF(R$4="",0,IF($E11="kWh",VLOOKUP(R$4,'4. Billing Determinants'!$B$19:$Z$41,4,0)/'4. Billing Determinants'!$E$41*$D11,IF($E11="kW",VLOOKUP(R$4,'4. Billing Determinants'!$B$19:$Z$41,5,0)/'4. Billing Determinants'!$F$41*$D11,IF($E11="Non-RPP kWh",VLOOKUP(R$4,'4. Billing Determinants'!$B$19:$Z$41,16,0)/'4. Billing Determinants'!$G$41*$D11,IF($E11="Distribution Rev.",VLOOKUP(R$4,'4. Billing Determinants'!$B$19:$Z$41,8,0)/'4. Billing Determinants'!$I$41*$D11, VLOOKUP(R$4,'4. Billing Determinants'!$B$19:$Z$41,3,0)/'4. Billing Determinants'!$D$41*$D11))))),0) -> 0 | S11: =IFERROR(IF(S$4="",0,IF($E11="kWh",VLOOKUP(S$4,'4. Billing Determinants'!$B$19:$Z$41,4,0)/'4. Billing Determinants'!$E$41*$D11,IF($E11="kW",VLOOKUP(S$4,'4. Billing Determinants'!$B$19:$Z$41,5,0)/'4. Billing Determinants'!$F$41*$D11,IF($E11="Non-RPP kWh",VLOOKUP(S$4,'4. Billing Determinants'!$B$19:$Z$41,16,0)/'4. Billing Determinants'!$G$41*$D11,IF($E11="Distribution Rev.",VLOOKUP(S$4,'4. Billing Determinants'!$B$19:$Z$41,8,0)/'4. Billing Determinants'!$I$41*$D11, VLOOKUP(S$4,'4. Billing Determinants'!$B$19:$Z$41,3,0)/'4. Billing Determinants'!$D$41*$D11))))),0) -> 0 | T11: =IFERROR(IF(T$4="",0,IF($E11="kWh",VLOOKUP(T$4,'4. Billing Determinants'!$B$19:$Z$41,4,0)/'4. Billing Determinants'!$E$41*$D11,IF($E11="kW",VLOOKUP(T$4,'4. Billing Determinants'!$B$19:$Z$41,5,0)/'4. Billing Determinants'!$F$41*$D11,IF($E11="Non-RPP kWh",VLOOKUP(T$4,'4. Billing Determinants'!$B$19:$Z$41,16,0)/'4. Billing Determinants'!$G$41*$D11,IF($E11="Distribution Rev.",VLOOKUP(T$4,'4. Billing Determinants'!$B$19:$Z$41,8,0)/'4. Billing Determinants'!$I$41*$D11, VLOOKUP(T$4,'4. Billing Determinants'!$B$19:$Z$41,3,0)/'4. Billing Determinants'!$D$41*$D11))))),0) -> 0 | U11: =IFERROR(IF(U$4="",0,IF($E11="kWh",VLOOKUP(U$4,'4. Billing Determinants'!$B$19:$Z$41,4,0)/'4. Billing Determinants'!$E$41*$D11,IF($E11="kW",VLOOKUP(U$4,'4. Billing Determinants'!$B$19:$Z$41,5,0)/'4. Billing Determinants'!$F$41*$D11,IF($E11="Non-RPP kWh",VLOOKUP(U$4,'4. Billing Determinants'!$B$19:$Z$41,16,0)/'4. Billing Determinants'!$G$41*$D11,IF($E11="Distribution Rev.",VLOOKUP(U$4,'4. Billing Determinants'!$B$19:$Z$41,8,0)/'4. Billing Determinants'!$I$41*$D11, VLOOKUP(U$4,'4. Billing Determinants'!$B$19:$Z$41,3,0)/'4. Billing Determinants'!$D$41*$D11))))),0) -> 0 | V11: =IFERROR(IF(V$4="",0,IF($E11="kWh",VLOOKUP(V$4,'4. Billing Determinants'!$B$19:$Z$41,4,0)/'4. Billing Determinants'!$E$41*$D11,IF($E11="kW",VLOOKUP(V$4,'4. Billing Determinants'!$B$19:$Z$41,5,0)/'4. Billing Determinants'!$F$41*$D11,IF($E11="Non-RPP kWh",VLOOKUP(V$4,'4. Billing Determinants'!$B$19:$Z$41,16,0)/'4. Billing Determinants'!$G$41*$D11,IF($E11="Distribution Rev.",VLOOKUP(V$4,'4. Billing Determinants'!$B$19:$Z$41,8,0)/'4. Billing Determinants'!$I$41*$D11, VLOOKUP(V$4,'4. Billing Determinants'!$B$19:$Z$41,3,0)/'4. Billing Determinants'!$D$41*$D11))))),0) -> 0 | W11: =IFERROR(IF(W$4="",0,IF($E11="kWh",VLOOKUP(W$4,'4. Billing Determinants'!$B$19:$Z$41,4,0)/'4. Billing Determinants'!$E$41*$D11,IF($E11="kW",VLOOKUP(W$4,'4. Billing Determinants'!$B$19:$Z$41,5,0)/'4. Billing Determinants'!$F$41*$D11,IF($E11="Non-RPP kWh",VLOOKUP(W$4,'4. Billing Determinants'!$B$19:$Z$41,16,0)/'4. Billing Determinants'!$G$41*$D11,IF($E11="Distribution Rev.",VLOOKUP(W$4,'4. Billing Determinants'!$B$19:$Z$41,8,0)/'4. Billing Determinants'!$I$41*$D11, VLOOKUP(W$4,'4. Billing Determinants'!$B$19:$Z$41,3,0)/'4. Billing Determinants'!$D$41*$D11))))),0) -> 0 | X11: =IFERROR(IF(X$4="",0,IF($E11="kWh",VLOOKUP(X$4,'4. Billing Determinants'!$B$19:$Z$41,4,0)/'4. Billing Determinants'!$E$41*$D11,IF($E11="kW",VLOOKUP(X$4,'4. Billing Determinants'!$B$19:$Z$41,5,0)/'4. Billing Determinants'!$F$41*$D11,IF($E11="Non-RPP kWh",VLOOKUP(X$4,'4. Billing Determinants'!$B$19:$Z$41,16,0)/'4. Billing Determinants'!$G$41*$D11,IF($E11="Distribution Rev.",VLOOKUP(X$4,'4. Billing Determinants'!$B$19:$Z$41,8,0)/'4. Billing Determinants'!$I$41*$D11, VLOOKUP(X$4,'4. Billing Determinants'!$B$19:$Z$41,3,0)/'4. Billing Determinants'!$D$41*$D11))))),0) -> 0 | Y11: =IFERROR(IF(Y$4="",0,IF($E11="kWh",VLOOKUP(Y$4,'4. Billing Determinants'!$B$19:$Z$41,4,0)/'4. Billing Determinants'!$E$41*$D11,IF($E11="kW",VLOOKUP(Y$4,'4. Billing Determinants'!$B$19:$Z$41,5,0)/'4. Billing Determinants'!$F$41*$D11,IF($E11="Non-RPP kWh",VLOOKUP(Y$4,'4. Billing Determinants'!$B$19:$Z$41,16,0)/'4. Billing Determinants'!$G$41*$D11,IF($E11="Distribution Rev.",VLOOKUP(Y$4,'4. Billing Determinants'!$B$19:$Z$41,8,0)/'4. Billing Determinants'!$I$41*$D11, VLOOKUP(Y$4,'4. Billing Determinants'!$B$19:$Z$41,3,0)/'4. Billing Determinants'!$D$41*$D11))))),0) -> 0
B12: Disposition and Recovery/Refund of Regulatory Balances (2008) | C12: 1595 | D12: ='2. 2015 Continuity Schedule'!BS31 -> 0.4674839999 | E12: % | F12: =IFERROR(IF(F$4="",0,IF($E12="kWh",VLOOKUP(F$4,'4. Billing Determinants'!$B$19:$Z$41,4,0)/'4. Billing Determinants'!$E$41*$D12,IF($E12="kW",VLOOKUP(F$4,'4. Billing Determinants'!$B$19:$Z$41,5,0)/'4. Billing Determinants'!$F$41*$D12,IF($E12="Non-RPP kWh",VLOOKUP(F$4,'4. Billing Determinants'!$B$19:$Z$41,6,0)/'4. Billing Determinants'!$G$41*$D12, VLOOKUP(F$4,'4. Billing Determinants'!$B$19:$Z$41,18,0)*$D12)))),0) -> 0 | G12: =IFERROR(IF(G$4="",0,IF($E12="kWh",VLOOKUP(G$4,'4. Billing Determinants'!$B$19:$Z$41,4,0)/'4. Billing Determinants'!$E$41*$D12,IF($E12="kW",VLOOKUP(G$4,'4. Billing Determinants'!$B$19:$Z$41,5,0)/'4. Billing Determinants'!$F$41*$D12,IF($E12="Non-RPP kWh",VLOOKUP(G$4,'4. Billing Determinants'!$B$19:$Z$41,6,0)/'4. Billing Determinants'!$G$41*$D12, VLOOKUP(G$4,'4. Billing Determinants'!$B$19:$Z$41,18,0)*$D12)))),0) -> 0 | H12: =IFERROR(IF(H$4="",0,IF($E12="kWh",VLOOKUP(H$4,'4. Billing Determinants'!$B$19:$Z$41,4,0)/'4. Billing Determinants'!$E$41*$D12,IF($E12="kW",VLOOKUP(H$4,'4. Billing Determinants'!$B$19:$Z$41,5,0)/'4. Billing Determinants'!$F$41*$D12,IF($E12="Non-RPP kWh",VLOOKUP(H$4,'4. Billing Determinants'!$B$19:$Z$41,6,0)/'4. Billing Determinants'!$G$41*$D12, VLOOKUP(H$4,'4. Billing Determinants'!$B$19:$Z$41,18,0)*$D12)))),0) -> 0 | I12: =IFERROR(IF(I$4="",0,IF($E12="kWh",VLOOKUP(I$4,'4. Billing Determinants'!$B$19:$Z$41,4,0)/'4. Billing Determinants'!$E$41*$D12,IF($E12="kW",VLOOKUP(I$4,'4. Billing Determinants'!$B$19:$Z$41,5,0)/'4. Billing Determinants'!$F$41*$D12,IF($E12="Non-RPP kWh",VLOOKUP(I$4,'4. Billing Determinants'!$B$19:$Z$41,6,0)/'4. Billing Determinants'!$G$41*$D12, VLOOKUP(I$4,'4. Billing Determinants'!$B$19:$Z$41,18,0)*$D12)))),0) -> 0 | J12: =IFERROR(IF(J$4="",0,IF($E12="kWh",VLOOKUP(J$4,'4. Billing Determinants'!$B$19:$Z$41,4,0)/'4. Billing Determinants'!$E$41*$D12,IF($E12="kW",VLOOKUP(J$4,'4. Billing Determinants'!$B$19:$Z$41,5,0)/'4. Billing Determinants'!$F$41*$D12,IF($E12="Non-RPP kWh",VLOOKUP(J$4,'4. Billing Determinants'!$B$19:$Z$41,6,0)/'4. Billing Determinants'!$G$41*$D12, VLOOKUP(J$4,'4. Billing Determinants'!$B$19:$Z$41,18,0)*$D12)))),0) -> 0 | K12: =IFERROR(IF(K$4="",0,IF($E12="kWh",VLOOKUP(K$4,'4. Billing Determinants'!$B$19:$Z$41,4,0)/'4. Billing Determinants'!$E$41*$D12,IF($E12="kW",VLOOKUP(K$4,'4. Billing Determinants'!$B$19:$Z$41,5,0)/'4. Billing Determinants'!$F$41*$D12,IF($E12="Non-RPP kWh",VLOOKUP(K$4,'4. Billing Determinants'!$B$19:$Z$41,6,0)/'4. Billing Determinants'!$G$41*$D12, VLOOKUP(K$4,'4. Billing Determinants'!$B$19:$Z$41,18,0)*$D12)))),0) -> 0 | L12: =IFERROR(IF(L$4="",0,IF($E12="kWh",VLOOKUP(L$4,'4. Billing Determinants'!$B$19:$Z$41,4,0)/'4. Billing Determinants'!$E$41*$D12,IF($E12="kW",VLOOKUP(L$4,'4. Billing Determinants'!$B$19:$Z$41,5,0)/'4. Billing Determinants'!$F$41*$D12,IF($E12="Non-RPP kWh",VLOOKUP(L$4,'4. Billing Determinants'!$B$19:$Z$41,6,0)/'4. Billing Determinants'!$G$41*$D12, VLOOKUP(L$4,'4. Billing Determinants'!$B$19:$Z$41,18,0)*$D12)))),0) -> 0 | M12: =IFERROR(IF(M$4="",0,IF($E12="kWh",VLOOKUP(M$4,'4. Billing Determinants'!$B$19:$Z$41,4,0)/'4. Billing Determinants'!$E$41*$D12,IF($E12="kW",VLOOKUP(M$4,'4. Billing Determinants'!$B$19:$Z$41,5,0)/'4. Billing Determinants'!$F$41*$D12,IF($E12="Non-RPP kWh",VLOOKUP(M$4,'4. Billing Determinants'!$B$19:$Z$41,6,0)/'4. Billing Determinants'!$G$41*$D12, VLOOKUP(M$4,'4. Billing Determinants'!$B$19:$Z$41,18,0)*$D12)))),0) -> 0 | N12: =IFERROR(IF(N$4="",0,IF($E12="kWh",VLOOKUP(N$4,'4. Billing Determinants'!$B$19:$Z$41,4,0)/'4. Billing Determinants'!$E$41*$D12,IF($E12="kW",VLOOKUP(N$4,'4. Billing Determinants'!$B$19:$Z$41,5,0)/'4. Billing Determinants'!$F$41*$D12,IF($E12="Non-RPP kWh",VLOOKUP(N$4,'4. Billing Determinants'!$B$19:$Z$41,6,0)/'4. Billing Determinants'!$G$41*$D12, VLOOKUP(N$4,'4. Billing Determinants'!$B$19:$Z$41,18,0)*$D12)))),0) -> 0 | O12: =IFERROR(IF(O$4="",0,IF($E12="kWh",VLOOKUP(O$4,'4. Billing Determinants'!$B$19:$Z$41,4,0)/'4. Billing Determinants'!$E$41*$D12,IF($E12="kW",VLOOKUP(O$4,'4. Billing Determinants'!$B$19:$Z$41,5,0)/'4. Billing Determinants'!$F$41*$D12,IF($E12="Non-RPP kWh",VLOOKUP(O$4,'4. Billing Determinants'!$B$19:$Z$41,6,0)/'4. Billing Determinants'!$G$41*$D12, VLOOKUP(O$4,'4. Billing Determinants'!$B$19:$Z$41,18,0)*$D12)))),0) -> 0 | P12: =IFERROR(IF(P$4="",0,IF($E12="kWh",VLOOKUP(P$4,'4. Billing Determinants'!$B$19:$Z$41,4,0)/'4. Billing Determinants'!$E$41*$D12,IF($E12="kW",VLOOKUP(P$4,'4. Billing Determinants'!$B$19:$Z$41,5,0)/'4. Billing Determinants'!$F$41*$D12,IF($E12="Non-RPP kWh",VLOOKUP(P$4,'4. Billing Determinants'!$B$19:$Z$41,6,0)/'4. Billing Determinants'!$G$41*$D12, VLOOKUP(P$4,'4. Billing Determinants'!$B$19:$Z$41,18,0)*$D12)))),0) -> 0 | Q12: =IFERROR(IF(Q$4="",0,IF($E12="kWh",VLOOKUP(Q$4,'4. Billing Determinants'!$B$19:$Z$41,4,0)/'4. Billing Determinants'!$E$41*$D12,IF($E12="kW",VLOOKUP(Q$4,'4. Billing Determinants'!$B$19:$Z$41,5,0)/'4. Billing Determinants'!$F$41*$D12,IF($E12="Non-RPP kWh",VLOOKUP(Q$4,'4. Billing Determinants'!$B$19:$Z$41,6,0)/'4. Billing Determinants'!$G$41*$D12, VLOOKUP(Q$4,'4. Billing Determinants'!$B$19:$Z$41,18,0)*$D12)))),0) -> 0 | R12: =IFERROR(IF(R$4="",0,IF($E12="kWh",VLOOKUP(R$4,'4. Billing Determinants'!$B$19:$Z$41,4,0)/'4. Billing Determinants'!$E$41*$D12,IF($E12="kW",VLOOKUP(R$4,'4. Billing Determinants'!$B$19:$Z$41,5,0)/'4. Billing Determinants'!$F$41*$D12,IF($E12="Non-RPP kWh",VLOOKUP(R$4,'4. Billing Determinants'!$B$19:$Z$41,6,0)/'4. Billing Determinants'!$G$41*$D12, VLOOKUP(R$4,'4. Billing Determinants'!$B$19:$Z$41,18,0)*$D12)))),0) -> 0 | S12: =IFERROR(IF(S$4="",0,IF($E12="kWh",VLOOKUP(S$4,'4. Billing Determinants'!$B$19:$Z$41,4,0)/'4. Billing Determinants'!$E$41*$D12,IF($E12="kW",VLOOKUP(S$4,'4. Billing Determinants'!$B$19:$Z$41,5,0)/'4. Billing Determinants'!$F$41*$D12,IF($E12="Non-RPP kWh",VLOOKUP(S$4,'4. Billing Determinants'!$B$19:$Z$41,6,0)/'4. Billing Determinants'!$G$41*$D12, VLOOKUP(S$4,'4. Billing Determinants'!$B$19:$Z$41,18,0)*$D12)))),0) -> 0 | T12: =IFERROR(IF(T$4="",0,IF($E12="kWh",VLOOKUP(T$4,'4. Billing Determinants'!$B$19:$Z$41,4,0)/'4. Billing Determinants'!$E$41*$D12,IF($E12="kW",VLOOKUP(T$4,'4. Billing Determinants'!$B$19:$Z$41,5,0)/'4. Billing Determinants'!$F$41*$D12,IF($E12="Non-RPP kWh",VLOOKUP(T$4,'4. Billing Determinants'!$B$19:$Z$41,6,0)/'4. Billing Determinants'!$G$41*$D12, VLOOKUP(T$4,'4. Billing Determinants'!$B$19:$Z$41,18,0)*$D12)))),0) -> 0 | U12: =IFERROR(IF(U$4="",0,IF($E12="kWh",VLOOKUP(U$4,'4. Billing Determinants'!$B$19:$Z$41,4,0)/'4. Billing Determinants'!$E$41*$D12,IF($E12="kW",VLOOKUP(U$4,'4. Billing Determinants'!$B$19:$Z$41,5,0)/'4. Billing Determinants'!$F$41*$D12,IF($E12="Non-RPP kWh",VLOOKUP(U$4,'4. Billing Determinants'!$B$19:$Z$41,6,0)/'4. Billing Determinants'!$G$41*$D12, VLOOKUP(U$4,'4. Billing Determinants'!$B$19:$Z$41,18,0)*$D12)))),0) -> 0 | V12: =IFERROR(IF(V$4="",0,IF($E12="kWh",VLOOKUP(V$4,'4. Billing Determinants'!$B$19:$Z$41,4,0)/'4. Billing Determinants'!$E$41*$D12,IF($E12="kW",VLOOKUP(V$4,'4. Billing Determinants'!$B$19:$Z$41,5,0)/'4. Billing Determinants'!$F$41*$D12,IF($E12="Non-RPP kWh",VLOOKUP(V$4,'4. Billing Determinants'!$B$19:$Z$41,6,0)/'4. Billing Determinants'!$G$41*$D12, VLOOKUP(V$4,'4. Billing Determinants'!$B$19:$Z$41,18,0)*$D12)))),0) -> 0 | W12: =IFERROR(IF(W$4="",0,IF($E12="kWh",VLOOKUP(W$4,'4. Billing Determinants'!$B$19:$Z$41,4,0)/'4. Billing Determinants'!$E$41*$D12,IF($E12="kW",VLOOKUP(W$4,'4. Billing Determinants'!$B$19:$Z$41,5,0)/'4. Billing Determinants'!$F$41*$D12,IF($E12="Non-RPP kWh",VLOOKUP(W$4,'4. Billing Determinants'!$B$19:$Z$41,6,0)/'4. Billing Determinants'!$G$41*$D12, VLOOKUP(W$4,'4. Billing Determinants'!$B$19:$Z$41,18,0)*$D12)))),0) -> 0 | X12: =IFERROR(IF(X$4="",0,IF($E12="kWh",VLOOKUP(X$4,'4. Billing Determinants'!$B$19:$Z$41,4,0)/'4. Billing Determinants'!$E$41*$D12,IF($E12="kW",VLOOKUP(X$4,'4. Billing Determinants'!$B$19:$Z$41,5,0)/'4. Billing Determinants'!$F$41*$D12,IF($E12="Non-RPP kWh",VLOOKUP(X$4,'4. Billing Determinants'!$B$19:$Z$41,6,0)/'4. Billing Determinants'!$G$41*$D12, VLOOKUP(X$4,'4. Billing Determinants'!$B$19:$Z$41,18,0)*$D12)))),0) -> 0 | Y12: =IFERROR(IF(Y$4="",0,IF($E12="kWh",VLOOKUP(Y$4,'4. Billing Determinants'!$B$19:$Z$41,4,0)/'4. Billing Determinants'!$E$41*$D12,IF($E12="kW",VLOOKUP(Y$4,'4. Billing Determinants'!$B$19:$Z$41,5,0)/'4. Billing Determinants'!$F$41*$D12,IF($E12="Non-RPP kWh",VLOOKUP(Y$4,'4. Billing Determinants'!$B$19:$Z$41,6,0)/'4. Billing Determinants'!$G$41*$D12, VLOOKUP(Y$4,'4. Billing Determinants'!$B$19:$Z$41,18,0)*$D12)))),0) -> 0
B13: Disposition and Recovery/Refund of Regulatory Balances (2009) | C13: 1595 | D13: ='2. 2015 Continuity Schedule'!BS32 -> -0.09641391669 | E13: % | F13: =IFERROR(IF(F$4="",0,IF($E13="kWh",VLOOKUP(F$4,'4. Billing Determinants'!$B$19:$Z$41,4,0)/'4. Billing Determinants'!$E$41*$D13,IF($E13="kW",VLOOKUP(F$4,'4. Billing Determinants'!$B$19:$Z$41,5,0)/'4. Billing Determinants'!$F$41*$D13,IF($E13="Non-RPP kWh",VLOOKUP(F$4,'4. Billing Determinants'!$B$19:$Z$41,6,0)/'4. Billing Determinants'!$G$41*$D13, VLOOKUP(F$4,'4. Billing Determinants'!$B$19:$Z$41,19,0)*$D13)))),0) -> 0 | G13: =IFERROR(IF(G$4="",0,IF($E13="kWh",VLOOKUP(G$4,'4. Billing Determinants'!$B$19:$Z$41,4,0)/'4. Billing Determinants'!$E$41*$D13,IF($E13="kW",VLOOKUP(G$4,'4. Billing Determinants'!$B$19:$Z$41,5,0)/'4. Billing Determinants'!$F$41*$D13,IF($E13="Non-RPP kWh",VLOOKUP(G$4,'4. Billing Determinants'!$B$19:$Z$41,6,0)/'4. Billing Determinants'!$G$41*$D13, VLOOKUP(G$4,'4. Billing Determinants'!$B$19:$Z$41,19,0)*$D13)))),0) -> 0 | H13: =IFERROR(IF(H$4="",0,IF($E13="kWh",VLOOKUP(H$4,'4. Billing Determinants'!$B$19:$Z$41,4,0)/'4. Billing Determinants'!$E$41*$D13,IF($E13="kW",VLOOKUP(H$4,'4. Billing Determinants'!$B$19:$Z$41,5,0)/'4. Billing Determinants'!$F$41*$D13,IF($E13="Non-RPP kWh",VLOOKUP(H$4,'4. Billing Determinants'!$B$19:$Z$41,6,0)/'4. Billing Determinants'!$G$41*$D13, VLOOKUP(H$4,'4. Billing Determinants'!$B$19:$Z$41,19,0)*$D13)))),0) -> 0 | I13: =IFERROR(IF(I$4="",0,IF($E13="kWh",VLOOKUP(I$4,'4. Billing Determinants'!$B$19:$Z$41,4,0)/'4. Billing Determinants'!$E$41*$D13,IF($E13="kW",VLOOKUP(I$4,'4. Billing Determinants'!$B$19:$Z$41,5,0)/'4. Billing Determinants'!$F$41*$D13,IF($E13="Non-RPP kWh",VLOOKUP(I$4,'4. Billing Determinants'!$B$19:$Z$41,6,0)/'4. Billing Determinants'!$G$41*$D13, VLOOKUP(I$4,'4. Billing Determinants'!$B$19:$Z$41,19,0)*$D13)))),0) -> 0 | J13: =IFERROR(IF(J$4="",0,IF($E13="kWh",VLOOKUP(J$4,'4. Billing Determinants'!$B$19:$Z$41,4,0)/'4. Billing Determinants'!$E$41*$D13,IF($E13="kW",VLOOKUP(J$4,'4. Billing Determinants'!$B$19:$Z$41,5,0)/'4. Billing Determinants'!$F$41*$D13,IF($E13="Non-RPP kWh",VLOOKUP(J$4,'4. Billing Determinants'!$B$19:$Z$41,6,0)/'4. Billing Determinants'!$G$41*$D13, VLOOKUP(J$4,'4. Billing Determinants'!$B$19:$Z$41,19,0)*$D13)))),0) -> 0 | K13: =IFERROR(IF(K$4="",0,IF($E13="kWh",VLOOKUP(K$4,'4. Billing Determinants'!$B$19:$Z$41,4,0)/'4. Billing Determinants'!$E$41*$D13,IF($E13="kW",VLOOKUP(K$4,'4. Billing Determinants'!$B$19:$Z$41,5,0)/'4. Billing Determinants'!$F$41*$D13,IF($E13="Non-RPP kWh",VLOOKUP(K$4,'4. Billing Determinants'!$B$19:$Z$41,6,0)/'4. Billing Determinants'!$G$41*$D13, VLOOKUP(K$4,'4. Billing Determinants'!$B$19:$Z$41,19,0)*$D13)))),0) -> 0 | L13: =IFERROR(IF(L$4="",0,IF($E13="kWh",VLOOKUP(L$4,'4. Billing Determinants'!$B$19:$Z$41,4,0)/'4. Billing Determinants'!$E$41*$D13,IF($E13="kW",VLOOKUP(L$4,'4. Billing Determinants'!$B$19:$Z$41,5,0)/'4. Billing Determinants'!$F$41*$D13,IF($E13="Non-RPP kWh",VLOOKUP(L$4,'4. Billing Determinants'!$B$19:$Z$41,6,0)/'4. Billing Determinants'!$G$41*$D13, VLOOKUP(L$4,'4. Billing Determinants'!$B$19:$Z$41,19,0)*$D13)))),0) -> 0 | M13: =IFERROR(IF(M$4="",0,IF($E13="kWh",VLOOKUP(M$4,'4. Billing Determinants'!$B$19:$Z$41,4,0)/'4. Billing Determinants'!$E$41*$D13,IF($E13="kW",VLOOKUP(M$4,'4. Billing Determinants'!$B$19:$Z$41,5,0)/'4. Billing Determinants'!$F$41*$D13,IF($E13="Non-RPP kWh",VLOOKUP(M$4,'4. Billing Determinants'!$B$19:$Z$41,6,0)/'4. Billing Determinants'!$G$41*$D13, VLOOKUP(M$4,'4. Billing Determinants'!$B$19:$Z$41,19,0)*$D13)))),0) -> 0 | N13: =IFERROR(IF(N$4="",0,IF($E13="kWh",VLOOKUP(N$4,'4. Billing Determinants'!$B$19:$Z$41,4,0)/'4. Billing Determinants'!$E$41*$D13,IF($E13="kW",VLOOKUP(N$4,'4. Billing Determinants'!$B$19:$Z$41,5,0)/'4. Billing Determinants'!$F$41*$D13,IF($E13="Non-RPP kWh",VLOOKUP(N$4,'4. Billing Determinants'!$B$19:$Z$41,6,0)/'4. Billing Determinants'!$G$41*$D13, VLOOKUP(N$4,'4. Billing Determinants'!$B$19:$Z$41,19,0)*$D13)))),0) -> 0 | O13: =IFERROR(IF(O$4="",0,IF($E13="kWh",VLOOKUP(O$4,'4. Billing Determinants'!$B$19:$Z$41,4,0)/'4. Billing Determinants'!$E$41*$D13,IF($E13="kW",VLOOKUP(O$4,'4. Billing Determinants'!$B$19:$Z$41,5,0)/'4. Billing Determinants'!$F$41*$D13,IF($E13="Non-RPP kWh",VLOOKUP(O$4,'4. Billing Determinants'!$B$19:$Z$41,6,0)/'4. Billing Determinants'!$G$41*$D13, VLOOKUP(O$4,'4. Billing Determinants'!$B$19:$Z$41,19,0)*$D13)))),0) -> 0 | P13: =IFERROR(IF(P$4="",0,IF($E13="kWh",VLOOKUP(P$4,'4. Billing Determinants'!$B$19:$Z$41,4,0)/'4. Billing Determinants'!$E$41*$D13,IF($E13="kW",VLOOKUP(P$4,'4. Billing Determinants'!$B$19:$Z$41,5,0)/'4. Billing Determinants'!$F$41*$D13,IF($E13="Non-RPP kWh",VLOOKUP(P$4,'4. Billing Determinants'!$B$19:$Z$41,6,0)/'4. Billing Determinants'!$G$41*$D13, VLOOKUP(P$4,'4. Billing Determinants'!$B$19:$Z$41,19,0)*$D13)))),0) -> 0 | Q13: =IFERROR(IF(Q$4="",0,IF($E13="kWh",VLOOKUP(Q$4,'4. Billing Determinants'!$B$19:$Z$41,4,0)/'4. Billing Determinants'!$E$41*$D13,IF($E13="kW",VLOOKUP(Q$4,'4. Billing Determinants'!$B$19:$Z$41,5,0)/'4. Billing Determinants'!$F$41*$D13,IF($E13="Non-RPP kWh",VLOOKUP(Q$4,'4. Billing Determinants'!$B$19:$Z$41,6,0)/'4. Billing Determinants'!$G$41*$D13, VLOOKUP(Q$4,'4. Billing Determinants'!$B$19:$Z$41,19,0)*$D13)))),0) -> 0 | R13: =IFERROR(IF(R$4="",0,IF($E13="kWh",VLOOKUP(R$4,'4. Billing Determinants'!$B$19:$Z$41,4,0)/'4. Billing Determinants'!$E$41*$D13,IF($E13="kW",VLOOKUP(R$4,'4. Billing Determinants'!$B$19:$Z$41,5,0)/'4. Billing Determinants'!$F$41*$D13,IF($E13="Non-RPP kWh",VLOOKUP(R$4,'4. Billing Determinants'!$B$19:$Z$41,6,0)/'4. Billing Determinants'!$G$41*$D13, VLOOKUP(R$4,'4. Billing Determinants'!$B$19:$Z$41,19,0)*$D13)))),0) -> 0 | S13: =IFERROR(IF(S$4="",0,IF($E13="kWh",VLOOKUP(S$4,'4. Billing Determinants'!$B$19:$Z$41,4,0)/'4. Billing Determinants'!$E$41*$D13,IF($E13="kW",VLOOKUP(S$4,'4. Billing Determinants'!$B$19:$Z$41,5,0)/'4. Billing Determinants'!$F$41*$D13,IF($E13="Non-RPP kWh",VLOOKUP(S$4,'4. Billing Determinants'!$B$19:$Z$41,6,0)/'4. Billing Determinants'!$G$41*$D13, VLOOKUP(S$4,'4. Billing Determinants'!$B$19:$Z$41,19,0)*$D13)))),0) -> 0 | T13: =IFERROR(IF(T$4="",0,IF($E13="kWh",VLOOKUP(T$4,'4. Billing Determinants'!$B$19:$Z$41,4,0)/'4. Billing Determinants'!$E$41*$D13,IF($E13="kW",VLOOKUP(T$4,'4. Billing Determinants'!$B$19:$Z$41,5,0)/'4. Billing Determinants'!$F$41*$D13,IF($E13="Non-RPP kWh",VLOOKUP(T$4,'4. Billing Determinants'!$B$19:$Z$41,6,0)/'4. Billing Determinants'!$G$41*$D13, VLOOKUP(T$4,'4. Billing Determinants'!$B$19:$Z$41,19,0)*$D13)))),0) -> 0 | U13: =IFERROR(IF(U$4="",0,IF($E13="kWh",VLOOKUP(U$4,'4. Billing Determinants'!$B$19:$Z$41,4,0)/'4. Billing Determinants'!$E$41*$D13,IF($E13="kW",VLOOKUP(U$4,'4. Billing Determinants'!$B$19:$Z$41,5,0)/'4. Billing Determinants'!$F$41*$D13,IF($E13="Non-RPP kWh",VLOOKUP(U$4,'4. Billing Determinants'!$B$19:$Z$41,6,0)/'4. Billing Determinants'!$G$41*$D13, VLOOKUP(U$4,'4. Billing Determinants'!$B$19:$Z$41,19,0)*$D13)))),0) -> 0 | V13: =IFERROR(IF(V$4="",0,IF($E13="kWh",VLOOKUP(V$4,'4. Billing Determinants'!$B$19:$Z$41,4,0)/'4. Billing Determinants'!$E$41*$D13,IF($E13="kW",VLOOKUP(V$4,'4. Billing Determinants'!$B$19:$Z$41,5,0)/'4. Billing Determinants'!$F$41*$D13,IF($E13="Non-RPP kWh",VLOOKUP(V$4,'4. Billing Determinants'!$B$19:$Z$41,6,0)/'4. Billing Determinants'!$G$41*$D13, VLOOKUP(V$4,'4. Billing Determinants'!$B$19:$Z$41,19,0)*$D13)))),0) -> 0 | W13: =IFERROR(IF(W$4="",0,IF($E13="kWh",VLOOKUP(W$4,'4. Billing Determinants'!$B$19:$Z$41,4,0)/'4. Billing Determinants'!$E$41*$D13,IF($E13="kW",VLOOKUP(W$4,'4. Billing Determinants'!$B$19:$Z$41,5,0)/'4. Billing Determinants'!$F$41*$D13,IF($E13="Non-RPP kWh",VLOOKUP(W$4,'4. Billing Determinants'!$B$19:$Z$41,6,0)/'4. Billing Determinants'!$G$41*$D13, VLOOKUP(W$4,'4. Billing Determinants'!$B$19:$Z$41,19,0)*$D13)))),0) -> 0 | X13: =IFERROR(IF(X$4="",0,IF($E13="kWh",VLOOKUP(X$4,'4. Billing Determinants'!$B$19:$Z$41,4,0)/'4. Billing Determinants'!$E$41*$D13,IF($E13="kW",VLOOKUP(X$4,'4. Billing Determinants'!$B$19:$Z$41,5,0)/'4. Billing Determinants'!$F$41*$D13,IF($E13="Non-RPP kWh",VLOOKUP(X$4,'4. Billing Determinants'!$B$19:$Z$41,6,0)/'4. Billing Determinants'!$G$41*$D13, VLOOKUP(X$4,'4. Billing Determinants'!$B$19:$Z$41,19,0)*$D13)))),0) -> 0 | Y13: =IFERROR(IF(Y$4="",0,IF($E13="kWh",VLOOKUP(Y$4,'4. Billing Determinants'!$B$19:$Z$41,4,0)/'4. Billing Determinants'!$E$41*$D13,IF($E13="kW",VLOOKUP(Y$4,'4. Billing Determinants'!$B$19:$Z$41,5,0)/'4. Billing Determinants'!$F$41*$D13,IF($E13="Non-RPP kWh",VLOOKUP(Y$4,'4. Billing Determinants'!$B$19:$Z$41,6,0)/'4. Billing Determinants'!$G$41*$D13, VLOOKUP(Y$4,'4. Billing Determinants'!$B$19:$Z$41,19,0)*$D13)))),0) -> 0
B14: Disposition and Recovery/Refund of Regulatory Balances (2010) | C14: 1595 | D14: ='2. 2015 Continuity Schedule'!BS33 -> 143541.2783 | E14: % | F14: =IFERROR(IF(F$4="",0,IF($E14="kWh",VLOOKUP(F$4,'4. Billing Determinants'!$B$19:$Z$41,4,0)/'4. Billing Determinants'!$E$41*$D14,IF($E14="kW",VLOOKUP(F$4,'4. Billing Determinants'!$B$19:$Z$41,5,0)/'4. Billing Determinants'!$F$41*$D14,IF($E14="Non-RPP kWh",VLOOKUP(F$4,'4. Billing Determinants'!$B$19:$Z$41,6,0)/'4. Billing Determinants'!$G$41*$D14, VLOOKUP(F$4,'4. Billing Determinants'!$B$19:$Z$41,20,0)*$D14)))),0) -> 49048.0548 | G14: =IFERROR(IF(G$4="",0,IF($E14="kWh",VLOOKUP(G$4,'4. Billing Determinants'!$B$19:$Z$41,4,0)/'4. Billing Determinants'!$E$41*$D14,IF($E14="kW",VLOOKUP(G$4,'4. Billing Determinants'!$B$19:$Z$41,5,0)/'4. Billing Determinants'!$F$41*$D14,IF($E14="Non-RPP kWh",VLOOKUP(G$4,'4. Billing Determinants'!$B$19:$Z$41,6,0)/'4. Billing Determinants'!$G$41*$D14, VLOOKUP(G$4,'4. Billing Determinants'!$B$19:$Z$41,20,0)*$D14)))),0) -> 15789.54062 | H14: =IFERROR(IF(H$4="",0,IF($E14="kWh",VLOOKUP(H$4,'4. Billing Determinants'!$B$19:$Z$41,4,0)/'4. Billing Determinants'!$E$41*$D14,IF($E14="kW",VLOOKUP(H$4,'4. Billing Determinants'!$B$19:$Z$41,5,0)/'4. Billing Determinants'!$F$41*$D14,IF($E14="Non-RPP kWh",VLOOKUP(H$4,'4. Billing Determinants'!$B$19:$Z$41,6,0)/'4. Billing Determinants'!$G$41*$D14, VLOOKUP(H$4,'4. Billing Determinants'!$B$19:$Z$41,20,0)*$D14)))),0) -> 39473.85154 | I14: =IFERROR(IF(I$4="",0,IF($E14="kWh",VLOOKUP(I$4,'4. Billing Determinants'!$B$19:$Z$41,4,0)/'4. Billing Determinants'!$E$41*$D14,IF($E14="kW",VLOOKUP(I$4,'4. Billing Determinants'!$B$19:$Z$41,5,0)/'4. Billing Determinants'!$F$41*$D14,IF($E14="Non-RPP kWh",VLOOKUP(I$4,'4. Billing Determinants'!$B$19:$Z$41,6,0)/'4. Billing Determinants'!$G$41*$D14, VLOOKUP(I$4,'4. Billing Determinants'!$B$19:$Z$41,20,0)*$D14)))),0) -> 24402.01731 | J14: =IFERROR(IF(J$4="",0,IF($E14="kWh",VLOOKUP(J$4,'4. Billing Determinants'!$B$19:$Z$41,4,0)/'4. Billing Determinants'!$E$41*$D14,IF($E14="kW",VLOOKUP(J$4,'4. Billing Determinants'!$B$19:$Z$41,5,0)/'4. Billing Determinants'!$F$41*$D14,IF($E14="Non-RPP kWh",VLOOKUP(J$4,'4. Billing Determinants'!$B$19:$Z$41,6,0)/'4. Billing Determinants'!$G$41*$D14, VLOOKUP(J$4,'4. Billing Determinants'!$B$19:$Z$41,20,0)*$D14)))),0) -> 12918.71505 | K14: =IFERROR(IF(K$4="",0,IF($E14="kWh",VLOOKUP(K$4,'4. Billing Determinants'!$B$19:$Z$41,4,0)/'4. Billing Determinants'!$E$41*$D14,IF($E14="kW",VLOOKUP(K$4,'4. Billing Determinants'!$B$19:$Z$41,5,0)/'4. Billing Determinants'!$F$41*$D14,IF($E14="Non-RPP kWh",VLOOKUP(K$4,'4. Billing Determinants'!$B$19:$Z$41,6,0)/'4. Billing Determinants'!$G$41*$D14, VLOOKUP(K$4,'4. Billing Determinants'!$B$19:$Z$41,20,0)*$D14)))),0) -> 0 | L14: =IFERROR(IF(L$4="",0,IF($E14="kWh",VLOOKUP(L$4,'4. Billing Determinants'!$B$19:$Z$41,4,0)/'4. Billing Determinants'!$E$41*$D14,IF($E14="kW",VLOOKUP(L$4,'4. Billing Determinants'!$B$19:$Z$41,5,0)/'4. Billing Determinants'!$F$41*$D14,IF($E14="Non-RPP kWh",VLOOKUP(L$4,'4. Billing Determinants'!$B$19:$Z$41,6,0)/'4. Billing Determinants'!$G$41*$D14, VLOOKUP(L$4,'4. Billing Determinants'!$B$19:$Z$41,20,0)*$D14)))),0) -> 0 | M14: =IFERROR(IF(M$4="",0,IF($E14="kWh",VLOOKUP(M$4,'4. Billing Determinants'!$B$19:$Z$41,4,0)/'4. Billing Determinants'!$E$41*$D14,IF($E14="kW",VLOOKUP(M$4,'4. Billing Determinants'!$B$19:$Z$41,5,0)/'4. Billing Determinants'!$F$41*$D14,IF($E14="Non-RPP kWh",VLOOKUP(M$4,'4. Billing Determinants'!$B$19:$Z$41,6,0)/'4. Billing Determinants'!$G$41*$D14, VLOOKUP(M$4,'4. Billing Determinants'!$B$19:$Z$41,20,0)*$D14)))),0) -> 1435.412783 | N14: =IFERROR(IF(N$4="",0,IF($E14="kWh",VLOOKUP(N$4,'4. Billing Determinants'!$B$19:$Z$41,4,0)/'4. Billing Determinants'!$E$41*$D14,IF($E14="kW",VLOOKUP(N$4,'4. Billing Determinants'!$B$19:$Z$41,5,0)/'4. Billing Determinants'!$F$41*$D14,IF($E14="Non-RPP kWh",VLOOKUP(N$4,'4. Billing Determinants'!$B$19:$Z$41,6,0)/'4. Billing Determinants'!$G$41*$D14, VLOOKUP(N$4,'4. Billing Determinants'!$B$19:$Z$41,20,0)*$D14)))),0) -> 0 | O14: =IFERROR(IF(O$4="",0,IF($E14="kWh",VLOOKUP(O$4,'4. Billing Determinants'!$B$19:$Z$41,4,0)/'4. Billing Determinants'!$E$41*$D14,IF($E14="kW",VLOOKUP(O$4,'4. Billing Determinants'!$B$19:$Z$41,5,0)/'4. Billing Determinants'!$F$41*$D14,IF($E14="Non-RPP kWh",VLOOKUP(O$4,'4. Billing Determinants'!$B$19:$Z$41,6,0)/'4. Billing Determinants'!$G$41*$D14, VLOOKUP(O$4,'4. Billing Determinants'!$B$19:$Z$41,20,0)*$D14)))),0) -> 0 | P14: =IFERROR(IF(P$4="",0,IF($E14="kWh",VLOOKUP(P$4,'4. Billing Determinants'!$B$19:$Z$41,4,0)/'4. Billing Determinants'!$E$41*$D14,IF($E14="kW",VLOOKUP(P$4,'4. Billing Determinants'!$B$19:$Z$41,5,0)/'4. Billing Determinants'!$F$41*$D14,IF($E14="Non-RPP kWh",VLOOKUP(P$4,'4. Billing Determinants'!$B$19:$Z$41,6,0)/'4. Billing Determinants'!$G$41*$D14, VLOOKUP(P$4,'4. Billing Determinants'!$B$19:$Z$41,20,0)*$D14)))),0) -> 0 | Q14: =IFERROR(IF(Q$4="",0,IF($E14="kWh",VLOOKUP(Q$4,'4. Billing Determinants'!$B$19:$Z$41,4,0)/'4. Billing Determinants'!$E$41*$D14,IF($E14="kW",VLOOKUP(Q$4,'4. Billing Determinants'!$B$19:$Z$41,5,0)/'4. Billing Determinants'!$F$41*$D14,IF($E14="Non-RPP kWh",VLOOKUP(Q$4,'4. Billing Determinants'!$B$19:$Z$41,6,0)/'4. Billing Determinants'!$G$41*$D14, VLOOKUP(Q$4,'4. Billing Determinants'!$B$19:$Z$41,20,0)*$D14)))),0) -> 0 | R14: =IFERROR(IF(R$4="",0,IF($E14="kWh",VLOOKUP(R$4,'4. Billing Determinants'!$B$19:$Z$41,4,0)/'4. Billing Determinants'!$E$41*$D14,IF($E14="kW",VLOOKUP(R$4,'4. Billing Determinants'!$B$19:$Z$41,5,0)/'4. Billing Determinants'!$F$41*$D14,IF($E14="Non-RPP kWh",VLOOKUP(R$4,'4. Billing Determinants'!$B$19:$Z$41,6,0)/'4. Billing Determinants'!$G$41*$D14, VLOOKUP(R$4,'4. Billing Determinants'!$B$19:$Z$41,20,0)*$D14)))),0) -> 0 | S14: =IFERROR(IF(S$4="",0,IF($E14="kWh",VLOOKUP(S$4,'4. Billing Determinants'!$B$19:$Z$41,4,0)/'4. Billing Determinants'!$E$41*$D14,IF($E14="kW",VLOOKUP(S$4,'4. Billing Determinants'!$B$19:$Z$41,5,0)/'4. Billing Determinants'!$F$41*$D14,IF($E14="Non-RPP kWh",VLOOKUP(S$4,'4. Billing Determinants'!$B$19:$Z$41,6,0)/'4. Billing Determinants'!$G$41*$D14, VLOOKUP(S$4,'4. Billing Determinants'!$B$19:$Z$41,20,0)*$D14)))),0) -> 0 | T14: =IFERROR(IF(T$4="",0,IF($E14="kWh",VLOOKUP(T$4,'4. Billing Determinants'!$B$19:$Z$41,4,0)/'4. Billing Determinants'!$E$41*$D14,IF($E14="kW",VLOOKUP(T$4,'4. Billing Determinants'!$B$19:$Z$41,5,0)/'4. Billing Determinants'!$F$41*$D14,IF($E14="Non-RPP kWh",VLOOKUP(T$4,'4. Billing Determinants'!$B$19:$Z$41,6,0)/'4. Billing Determinants'!$G$41*$D14, VLOOKUP(T$4,'4. Billing Determinants'!$B$19:$Z$41,20,0)*$D14)))),0) -> 0 | U14: =IFERROR(IF(U$4="",0,IF($E14="kWh",VLOOKUP(U$4,'4. Billing Determinants'!$B$19:$Z$41,4,0)/'4. Billing Determinants'!$E$41*$D14,IF($E14="kW",VLOOKUP(U$4,'4. Billing Determinants'!$B$19:$Z$41,5,0)/'4. Billing Determinants'!$F$41*$D14,IF($E14="Non-RPP kWh",VLOOKUP(U$4,'4. Billing Determinants'!$B$19:$Z$41,6,0)/'4. Billing Determinants'!$G$41*$D14, VLOOKUP(U$4,'4. Billing Determinants'!$B$19:$Z$41,20,0)*$D14)))),0) -> 0 | V14: =IFERROR(IF(V$4="",0,IF($E14="kWh",VLOOKUP(V$4,'4. Billing Determinants'!$B$19:$Z$41,4,0)/'4. Billing Determinants'!$E$41*$D14,IF($E14="kW",VLOOKUP(V$4,'4. Billing Determinants'!$B$19:$Z$41,5,0)/'4. Billing Determinants'!$F$41*$D14,IF($E14="Non-RPP kWh",VLOOKUP(V$4,'4. Billing Determinants'!$B$19:$Z$41,6,0)/'4. Billing Determinants'!$G$41*$D14, VLOOKUP(V$4,'4. Billing Determinants'!$B$19:$Z$41,20,0)*$D14)))),0) -> 0 | W14: =IFERROR(IF(W$4="",0,IF($E14="kWh",VLOOKUP(W$4,'4. Billing Determinants'!$B$19:$Z$41,4,0)/'4. Billing Determinants'!$E$41*$D14,IF($E14="kW",VLOOKUP(W$4,'4. Billing Determinants'!$B$19:$Z$41,5,0)/'4. Billing Determinants'!$F$41*$D14,IF($E14="Non-RPP kWh",VLOOKUP(W$4,'4. Billing Determinants'!$B$19:$Z$41,6,0)/'4. Billing Determinants'!$G$41*$D14, VLOOKUP(W$4,'4. Billing Determinants'!$B$19:$Z$41,20,0)*$D14)))),0) -> 0 | X14: =IFERROR(IF(X$4="",0,IF($E14="kWh",VLOOKUP(X$4,'4. Billing Determinants'!$B$19:$Z$41,4,0)/'4. Billing Determinants'!$E$41*$D14,IF($E14="kW",VLOOKUP(X$4,'4. Billing Determinants'!$B$19:$Z$41,5,0)/'4. Billing Determinants'!$F$41*$D14,IF($E14="Non-RPP kWh",VLOOKUP(X$4,'4. Billing Determinants'!$B$19:$Z$41,6,0)/'4. Billing Determinants'!$G$41*$D14, VLOOKUP(X$4,'4. Billing Determinants'!$B$19:$Z$41,20,0)*$D14)))),0) -> 0 | Y14: =IFERROR(IF(Y$4="",0,IF($E14="kWh",VLOOKUP(Y$4,'4. Billing Determinants'!$B$19:$Z$41,4,0)/'4. Billing Determinants'!$E$41*$D14,IF($E14="kW",VLOOKUP(Y$4,'4. Billing Determinants'!$B$19:$Z$41,5,0)/'4. Billing Determinants'!$F$41*$D14,IF($E14="Non-RPP kWh",VLOOKUP(Y$4,'4. Billing Determinants'!$B$19:$Z$41,6,0)/'4. Billing Determinants'!$G$41*$D14, VLOOKUP(Y$4,'4. Billing Determinants'!$B$19:$Z$41,20,0)*$D14)))),0) -> 0
B15: Disposition and Recovery/Refund of Regulatory Balances (2011) | C15: 1595 | D15: ='2. 2015 Continuity Schedule'!BS34 -> -220737.4623 | E15: % | F15: =IFERROR(IF(F$4="",0,IF($E15="kWh",VLOOKUP(F$4,'4. Billing Determinants'!$B$19:$Z$41,4,0)/'4. Billing Determinants'!$E$41*$D15,IF($E15="kW",VLOOKUP(F$4,'4. Billing Determinants'!$B$19:$Z$41,5,0)/'4. Billing Determinants'!$F$41*$D15,IF($E15="Non-RPP kWh",VLOOKUP(F$4,'4. Billing Determinants'!$B$19:$Z$41,6,0)/'4. Billing Determinants'!$G$41*$D15, VLOOKUP(F$4,'4. Billing Determinants'!$B$19:$Z$41,21,0)*$D15)))),0) -> -78641.5088 | G15: =IFERROR(IF(G$4="",0,IF($E15="kWh",VLOOKUP(G$4,'4. Billing Determinants'!$B$19:$Z$41,4,0)/'4. Billing Determinants'!$E$41*$D15,IF($E15="kW",VLOOKUP(G$4,'4. Billing Determinants'!$B$19:$Z$41,5,0)/'4. Billing Determinants'!$F$41*$D15,IF($E15="Non-RPP kWh",VLOOKUP(G$4,'4. Billing Determinants'!$B$19:$Z$41,6,0)/'4. Billing Determinants'!$G$41*$D15, VLOOKUP(G$4,'4. Billing Determinants'!$B$19:$Z$41,21,0)*$D15)))),0) -> -22831.81696 | H15: =IFERROR(IF(H$4="",0,IF($E15="kWh",VLOOKUP(H$4,'4. Billing Determinants'!$B$19:$Z$41,4,0)/'4. Billing Determinants'!$E$41*$D15,IF($E15="kW",VLOOKUP(H$4,'4. Billing Determinants'!$B$19:$Z$41,5,0)/'4. Billing Determinants'!$F$41*$D15,IF($E15="Non-RPP kWh",VLOOKUP(H$4,'4. Billing Determinants'!$B$19:$Z$41,6,0)/'4. Billing Determinants'!$G$41*$D15, VLOOKUP(H$4,'4. Billing Determinants'!$B$19:$Z$41,21,0)*$D15)))),0) -> -56983.02396 | I15: =IFERROR(IF(I$4="",0,IF($E15="kWh",VLOOKUP(I$4,'4. Billing Determinants'!$B$19:$Z$41,4,0)/'4. Billing Determinants'!$E$41*$D15,IF($E15="kW",VLOOKUP(I$4,'4. Billing Determinants'!$B$19:$Z$41,5,0)/'4. Billing Determinants'!$F$41*$D15,IF($E15="Non-RPP kWh",VLOOKUP(I$4,'4. Billing Determinants'!$B$19:$Z$41,6,0)/'4. Billing Determinants'!$G$41*$D15, VLOOKUP(I$4,'4. Billing Determinants'!$B$19:$Z$41,21,0)*$D15)))),0) -> -33981.30643 | J15: =IFERROR(IF(J$4="",0,IF($E15="kWh",VLOOKUP(J$4,'4. Billing Determinants'!$B$19:$Z$41,4,0)/'4. Billing Determinants'!$E$41*$D15,IF($E15="kW",VLOOKUP(J$4,'4. Billing Determinants'!$B$19:$Z$41,5,0)/'4. Billing Determinants'!$F$41*$D15,IF($E15="Non-RPP kWh",VLOOKUP(J$4,'4. Billing Determinants'!$B$19:$Z$41,6,0)/'4. Billing Determinants'!$G$41*$D15, VLOOKUP(J$4,'4. Billing Determinants'!$B$19:$Z$41,21,0)*$D15)))),0) -> -25881.50666 | K15: =IFERROR(IF(K$4="",0,IF($E15="kWh",VLOOKUP(K$4,'4. Billing Determinants'!$B$19:$Z$41,4,0)/'4. Billing Determinants'!$E$41*$D15,IF($E15="kW",VLOOKUP(K$4,'4. Billing Determinants'!$B$19:$Z$41,5,0)/'4. Billing Determinants'!$F$41*$D15,IF($E15="Non-RPP kWh",VLOOKUP(K$4,'4. Billing Determinants'!$B$19:$Z$41,6,0)/'4. Billing Determinants'!$G$41*$D15, VLOOKUP(K$4,'4. Billing Determinants'!$B$19:$Z$41,21,0)*$D15)))),0) -> -458.9740517 | L15: =IFERROR(IF(L$4="",0,IF($E15="kWh",VLOOKUP(L$4,'4. Billing Determinants'!$B$19:$Z$41,4,0)/'4. Billing Determinants'!$E$41*$D15,IF($E15="kW",VLOOKUP(L$4,'4. Billing Determinants'!$B$19:$Z$41,5,0)/'4. Billing Determinants'!$F$41*$D15,IF($E15="Non-RPP kWh",VLOOKUP(L$4,'4. Billing Determinants'!$B$19:$Z$41,6,0)/'4. Billing Determinants'!$G$41*$D15, VLOOKUP(L$4,'4. Billing Determinants'!$B$19:$Z$41,21,0)*$D15)))),0) -> -50.48966733 | M15: =IFERROR(IF(M$4="",0,IF($E15="kWh",VLOOKUP(M$4,'4. Billing Determinants'!$B$19:$Z$41,4,0)/'4. Billing Determinants'!$E$41*$D15,IF($E15="kW",VLOOKUP(M$4,'4. Billing Determinants'!$B$19:$Z$41,5,0)/'4. Billing Determinants'!$F$41*$D15,IF($E15="Non-RPP kWh",VLOOKUP(M$4,'4. Billing Determinants'!$B$19:$Z$41,6,0)/'4. Billing Determinants'!$G$41*$D15, VLOOKUP(M$4,'4. Billing Determinants'!$B$19:$Z$41,21,0)*$D15)))),0) -> -1908.835759 | N15: =IFERROR(IF(N$4="",0,IF($E15="kWh",VLOOKUP(N$4,'4. Billing Determinants'!$B$19:$Z$41,4,0)/'4. Billing Determinants'!$E$41*$D15,IF($E15="kW",VLOOKUP(N$4,'4. Billing Determinants'!$B$19:$Z$41,5,0)/'4. Billing Determinants'!$F$41*$D15,IF($E15="Non-RPP kWh",VLOOKUP(N$4,'4. Billing Determinants'!$B$19:$Z$41,6,0)/'4. Billing Determinants'!$G$41*$D15, VLOOKUP(N$4,'4. Billing Determinants'!$B$19:$Z$41,21,0)*$D15)))),0) -> 0 | O15: =IFERROR(IF(O$4="",0,IF($E15="kWh",VLOOKUP(O$4,'4. Billing Determinants'!$B$19:$Z$41,4,0)/'4. Billing Determinants'!$E$41*$D15,IF($E15="kW",VLOOKUP(O$4,'4. Billing Determinants'!$B$19:$Z$41,5,0)/'4. Billing Determinants'!$F$41*$D15,IF($E15="Non-RPP kWh",VLOOKUP(O$4,'4. Billing Determinants'!$B$19:$Z$41,6,0)/'4. Billing Determinants'!$G$41*$D15, VLOOKUP(O$4,'4. Billing Determinants'!$B$19:$Z$41,21,0)*$D15)))),0) -> 0 | P15: =IFERROR(IF(P$4="",0,IF($E15="kWh",VLOOKUP(P$4,'4. Billing Determinants'!$B$19:$Z$41,4,0)/'4. Billing Determinants'!$E$41*$D15,IF($E15="kW",VLOOKUP(P$4,'4. Billing Determinants'!$B$19:$Z$41,5,0)/'4. Billing Determinants'!$F$41*$D15,IF($E15="Non-RPP kWh",VLOOKUP(P$4,'4. Billing Determinants'!$B$19:$Z$41,6,0)/'4. Billing Determinants'!$G$41*$D15, VLOOKUP(P$4,'4. Billing Determinants'!$B$19:$Z$41,21,0)*$D15)))),0) -> 0 | Q15: =IFERROR(IF(Q$4="",0,IF($E15="kWh",VLOOKUP(Q$4,'4. Billing Determinants'!$B$19:$Z$41,4,0)/'4. Billing Determinants'!$E$41*$D15,IF($E15="kW",VLOOKUP(Q$4,'4. Billing Determinants'!$B$19:$Z$41,5,0)/'4. Billing Determinants'!$F$41*$D15,IF($E15="Non-RPP kWh",VLOOKUP(Q$4,'4. Billing Determinants'!$B$19:$Z$41,6,0)/'4. Billing Determinants'!$G$41*$D15, VLOOKUP(Q$4,'4. Billing Determinants'!$B$19:$Z$41,21,0)*$D15)))),0) -> 0 | R15: =IFERROR(IF(R$4="",0,IF($E15="kWh",VLOOKUP(R$4,'4. Billing Determinants'!$B$19:$Z$41,4,0)/'4. Billing Determinants'!$E$41*$D15,IF($E15="kW",VLOOKUP(R$4,'4. Billing Determinants'!$B$19:$Z$41,5,0)/'4. Billing Determinants'!$F$41*$D15,IF($E15="Non-RPP kWh",VLOOKUP(R$4,'4. Billing Determinants'!$B$19:$Z$41,6,0)/'4. Billing Determinants'!$G$41*$D15, VLOOKUP(R$4,'4. Billing Determinants'!$B$19:$Z$41,21,0)*$D15)))),0) -> 0 | S15: =IFERROR(IF(S$4="",0,IF($E15="kWh",VLOOKUP(S$4,'4. Billing Determinants'!$B$19:$Z$41,4,0)/'4. Billing Determinants'!$E$41*$D15,IF($E15="kW",VLOOKUP(S$4,'4. Billing Determinants'!$B$19:$Z$41,5,0)/'4. Billing Determinants'!$F$41*$D15,IF($E15="Non-RPP kWh",VLOOKUP(S$4,'4. Billing Determinants'!$B$19:$Z$41,6,0)/'4. Billing Determinants'!$G$41*$D15, VLOOKUP(S$4,'4. Billing Determinants'!$B$19:$Z$41,21,0)*$D15)))),0) -> 0 | T15: =IFERROR(IF(T$4="",0,IF($E15="kWh",VLOOKUP(T$4,'4. Billing Determinants'!$B$19:$Z$41,4,0)/'4. Billing Determinants'!$E$41*$D15,IF($E15="kW",VLOOKUP(T$4,'4. Billing Determinants'!$B$19:$Z$41,5,0)/'4. Billing Determinants'!$F$41*$D15,IF($E15="Non-RPP kWh",VLOOKUP(T$4,'4. Billing Determinants'!$B$19:$Z$41,6,0)/'4. Billing Determinants'!$G$41*$D15, VLOOKUP(T$4,'4. Billing Determinants'!$B$19:$Z$41,21,0)*$D15)))),0) -> 0 | U15: =IFERROR(IF(U$4="",0,IF($E15="kWh",VLOOKUP(U$4,'4. Billing Determinants'!$B$19:$Z$41,4,0)/'4. Billing Determinants'!$E$41*$D15,IF($E15="kW",VLOOKUP(U$4,'4. Billing Determinants'!$B$19:$Z$41,5,0)/'4. Billing Determinants'!$F$41*$D15,IF($E15="Non-RPP kWh",VLOOKUP(U$4,'4. Billing Determinants'!$B$19:$Z$41,6,0)/'4. Billing Determinants'!$G$41*$D15, VLOOKUP(U$4,'4. Billing Determinants'!$B$19:$Z$41,21,0)*$D15)))),0) -> 0 | V15: =IFERROR(IF(V$4="",0,IF($E15="kWh",VLOOKUP(V$4,'4. Billing Determinants'!$B$19:$Z$41,4,0)/'4. Billing Determinants'!$E$41*$D15,IF($E15="kW",VLOOKUP(V$4,'4. Billing Determinants'!$B$19:$Z$41,5,0)/'4. Billing Determinants'!$F$41*$D15,IF($E15="Non-RPP kWh",VLOOKUP(V$4,'4. Billing Determinants'!$B$19:$Z$41,6,0)/'4. Billing Determinants'!$G$41*$D15, VLOOKUP(V$4,'4. Billing Determinants'!$B$19:$Z$41,21,0)*$D15)))),0) -> 0 | W15: =IFERROR(IF(W$4="",0,IF($E15="kWh",VLOOKUP(W$4,'4. Billing Determinants'!$B$19:$Z$41,4,0)/'4. Billing Determinants'!$E$41*$D15,IF($E15="kW",VLOOKUP(W$4,'4. Billing Determinants'!$B$19:$Z$41,5,0)/'4. Billing Determinants'!$F$41*$D15,IF($E15="Non-RPP kWh",VLOOKUP(W$4,'4. Billing Determinants'!$B$19:$Z$41,6,0)/'4. Billing Determinants'!$G$41*$D15, VLOOKUP(W$4,'4. Billing Determinants'!$B$19:$Z$41,21,0)*$D15)))),0) -> 0 | X15: =IFERROR(IF(X$4="",0,IF($E15="kWh",VLOOKUP(X$4,'4. Billing Determinants'!$B$19:$Z$41,4,0)/'4. Billing Determinants'!$E$41*$D15,IF($E15="kW",VLOOKUP(X$4,'4. Billing Determinants'!$B$19:$Z$41,5,0)/'4. Billing Determinants'!$F$41*$D15,IF($E15="Non-RPP kWh",VLOOKUP(X$4,'4. Billing Determinants'!$B$19:$Z$41,6,0)/'4. Billing Determinants'!$G$41*$D15, VLOOKUP(X$4,'4. Billing Determinants'!$B$19:$Z$41,21,0)*$D15)))),0) -> 0 | Y15: =IFERROR(IF(Y$4="",0,IF($E15="kWh",VLOOKUP(Y$4,'4. Billing Determinants'!$B$19:$Z$41,4,0)/'4. Billing Determinants'!$E$41*$D15,IF($E15="kW",VLOOKUP(Y$4,'4. Billing Determinants'!$B$19:$Z$41,5,0)/'4. Billing Determinants'!$F$41*$D15,IF($E15="Non-RPP kWh",VLOOKUP(Y$4,'4. Billing Determinants'!$B$19:$Z$41,6,0)/'4. Billing Determinants'!$G$41*$D15, VLOOKUP(Y$4,'4. Billing Determinants'!$B$19:$Z$41,21,0)*$D15)))),0) -> 0
B16: Disposition and Recovery/Refund of Regulatory Balances (2012) | C16: 1595 | D16: ='2. 2015 Continuity Schedule'!BS35 -> 0 | E16: % | F16: =IFERROR(IF(F$4="",0,IF($E16="kWh",VLOOKUP(F$4,'4. Billing Determinants'!$B$19:$Z$41,4,0)/'4. Billing Determinants'!$E$41*$D16,IF($E16="kW",VLOOKUP(F$4,'4. Billing Determinants'!$B$19:$Z$41,5,0)/'4. Billing Determinants'!$F$41*$D16,IF($E16="Non-RPP kWh",VLOOKUP(F$4,'4. Billing Determinants'!$B$19:$Z$41,6,0)/'4. Billing Determinants'!$G$41*$D16, VLOOKUP(F$4,'4. Billing Determinants'!$B$19:$Z$41,22,0)*$D16)))),0) -> 0 | G16: =IFERROR(IF(G$4="",0,IF($E16="kWh",VLOOKUP(G$4,'4. Billing Determinants'!$B$19:$Z$41,4,0)/'4. Billing Determinants'!$E$41*$D16,IF($E16="kW",VLOOKUP(G$4,'4. Billing Determinants'!$B$19:$Z$41,5,0)/'4. Billing Determinants'!$F$41*$D16,IF($E16="Non-RPP kWh",VLOOKUP(G$4,'4. Billing Determinants'!$B$19:$Z$41,6,0)/'4. Billing Determinants'!$G$41*$D16, VLOOKUP(G$4,'4. Billing Determinants'!$B$19:$Z$41,22,0)*$D16)))),0) -> 0 | H16: =IFERROR(IF(H$4="",0,IF($E16="kWh",VLOOKUP(H$4,'4. Billing Determinants'!$B$19:$Z$41,4,0)/'4. Billing Determinants'!$E$41*$D16,IF($E16="kW",VLOOKUP(H$4,'4. Billing Determinants'!$B$19:$Z$41,5,0)/'4. Billing Determinants'!$F$41*$D16,IF($E16="Non-RPP kWh",VLOOKUP(H$4,'4. Billing Determinants'!$B$19:$Z$41,6,0)/'4. Billing Determinants'!$G$41*$D16, VLOOKUP(H$4,'4. Billing Determinants'!$B$19:$Z$41,22,0)*$D16)))),0) -> 0 | I16: =IFERROR(IF(I$4="",0,IF($E16="kWh",VLOOKUP(I$4,'4. Billing Determinants'!$B$19:$Z$41,4,0)/'4. Billing Determinants'!$E$41*$D16,IF($E16="kW",VLOOKUP(I$4,'4. Billing Determinants'!$B$19:$Z$41,5,0)/'4. Billing Determinants'!$F$41*$D16,IF($E16="Non-RPP kWh",VLOOKUP(I$4,'4. Billing Determinants'!$B$19:$Z$41,6,0)/'4. Billing Determinants'!$G$41*$D16, VLOOKUP(I$4,'4. Billing Determinants'!$B$19:$Z$41,22,0)*$D16)))),0) -> 0 | J16: =IFERROR(IF(J$4="",0,IF($E16="kWh",VLOOKUP(J$4,'4. Billing Determinants'!$B$19:$Z$41,4,0)/'4. Billing Determinants'!$E$41*$D16,IF($E16="kW",VLOOKUP(J$4,'4. Billing Determinants'!$B$19:$Z$41,5,0)/'4. Billing Determinants'!$F$41*$D16,IF($E16="Non-RPP kWh",VLOOKUP(J$4,'4. Billing Determinants'!$B$19:$Z$41,6,0)/'4. Billing Determinants'!$G$41*$D16, VLOOKUP(J$4,'4. Billing Determinants'!$B$19:$Z$41,22,0)*$D16)))),0) -> 0 | K16: =IFERROR(IF(K$4="",0,IF($E16="kWh",VLOOKUP(K$4,'4. Billing Determinants'!$B$19:$Z$41,4,0)/'4. Billing Determinants'!$E$41*$D16,IF($E16="kW",VLOOKUP(K$4,'4. Billing Determinants'!$B$19:$Z$41,5,0)/'4. Billing Determinants'!$F$41*$D16,IF($E16="Non-RPP kWh",VLOOKUP(K$4,'4. Billing Determinants'!$B$19:$Z$41,6,0)/'4. Billing Determinants'!$G$41*$D16, VLOOKUP(K$4,'4. Billing Determinants'!$B$19:$Z$41,22,0)*$D16)))),0) -> 0 | L16: =IFERROR(IF(L$4="",0,IF($E16="kWh",VLOOKUP(L$4,'4. Billing Determinants'!$B$19:$Z$41,4,0)/'4. Billing Determinants'!$E$41*$D16,IF($E16="kW",VLOOKUP(L$4,'4. Billing Determinants'!$B$19:$Z$41,5,0)/'4. Billing Determinants'!$F$41*$D16,IF($E16="Non-RPP kWh",VLOOKUP(L$4,'4. Billing Determinants'!$B$19:$Z$41,6,0)/'4. Billing Determinants'!$G$41*$D16, VLOOKUP(L$4,'4. Billing Determinants'!$B$19:$Z$41,22,0)*$D16)))),0) -> 0 | M16: =IFERROR(IF(M$4="",0,IF($E16="kWh",VLOOKUP(M$4,'4. Billing Determinants'!$B$19:$Z$41,4,0)/'4. Billing Determinants'!$E$41*$D16,IF($E16="kW",VLOOKUP(M$4,'4. Billing Determinants'!$B$19:$Z$41,5,0)/'4. Billing Determinants'!$F$41*$D16,IF($E16="Non-RPP kWh",VLOOKUP(M$4,'4. Billing Determinants'!$B$19:$Z$41,6,0)/'4. Billing Determinants'!$G$41*$D16, VLOOKUP(M$4,'4. Billing Determinants'!$B$19:$Z$41,22,0)*$D16)))),0) -> 0 | N16: =IFERROR(IF(N$4="",0,IF($E16="kWh",VLOOKUP(N$4,'4. Billing Determinants'!$B$19:$Z$41,4,0)/'4. Billing Determinants'!$E$41*$D16,IF($E16="kW",VLOOKUP(N$4,'4. Billing Determinants'!$B$19:$Z$41,5,0)/'4. Billing Determinants'!$F$41*$D16,IF($E16="Non-RPP kWh",VLOOKUP(N$4,'4. Billing Determinants'!$B$19:$Z$41,6,0)/'4. Billing Determinants'!$G$41*$D16, VLOOKUP(N$4,'4. Billing Determinants'!$B$19:$Z$41,22,0)*$D16)))),0) -> 0 | O16: =IFERROR(IF(O$4="",0,IF($E16="kWh",VLOOKUP(O$4,'4. Billing Determinants'!$B$19:$Z$41,4,0)/'4. Billing Determinants'!$E$41*$D16,IF($E16="kW",VLOOKUP(O$4,'4. Billing Determinants'!$B$19:$Z$41,5,0)/'4. Billing Determinants'!$F$41*$D16,IF($E16="Non-RPP kWh",VLOOKUP(O$4,'4. Billing Determinants'!$B$19:$Z$41,6,0)/'4. Billing Determinants'!$G$41*$D16, VLOOKUP(O$4,'4. Billing Determinants'!$B$19:$Z$41,22,0)*$D16)))),0) -> 0 | P16: =IFERROR(IF(P$4="",0,IF($E16="kWh",VLOOKUP(P$4,'4. Billing Determinants'!$B$19:$Z$41,4,0)/'4. Billing Determinants'!$E$41*$D16,IF($E16="kW",VLOOKUP(P$4,'4. Billing Determinants'!$B$19:$Z$41,5,0)/'4. Billing Determinants'!$F$41*$D16,IF($E16="Non-RPP kWh",VLOOKUP(P$4,'4. Billing Determinants'!$B$19:$Z$41,6,0)/'4. Billing Determinants'!$G$41*$D16, VLOOKUP(P$4,'4. Billing Determinants'!$B$19:$Z$41,22,0)*$D16)))),0) -> 0 | Q16: =IFERROR(IF(Q$4="",0,IF($E16="kWh",VLOOKUP(Q$4,'4. Billing Determinants'!$B$19:$Z$41,4,0)/'4. Billing Determinants'!$E$41*$D16,IF($E16="kW",VLOOKUP(Q$4,'4. Billing Determinants'!$B$19:$Z$41,5,0)/'4. Billing Determinants'!$F$41*$D16,IF($E16="Non-RPP kWh",VLOOKUP(Q$4,'4. Billing Determinants'!$B$19:$Z$41,6,0)/'4. Billing Determinants'!$G$41*$D16, VLOOKUP(Q$4,'4. Billing Determinants'!$B$19:$Z$41,22,0)*$D16)))),0) -> 0 | R16: =IFERROR(IF(R$4="",0,IF($E16="kWh",VLOOKUP(R$4,'4. Billing Determinants'!$B$19:$Z$41,4,0)/'4. Billing Determinants'!$E$41*$D16,IF($E16="kW",VLOOKUP(R$4,'4. Billing Determinants'!$B$19:$Z$41,5,0)/'4. Billing Determinants'!$F$41*$D16,IF($E16="Non-RPP kWh",VLOOKUP(R$4,'4. Billing Determinants'!$B$19:$Z$41,6,0)/'4. Billing Determinants'!$G$41*$D16, VLOOKUP(R$4,'4. Billing Determinants'!$B$19:$Z$41,22,0)*$D16)))),0) -> 0 | S16: =IFERROR(IF(S$4="",0,IF($E16="kWh",VLOOKUP(S$4,'4. Billing Determinants'!$B$19:$Z$41,4,0)/'4. Billing Determinants'!$E$41*$D16,IF($E16="kW",VLOOKUP(S$4,'4. Billing Determinants'!$B$19:$Z$41,5,0)/'4. Billing Determinants'!$F$41*$D16,IF($E16="Non-RPP kWh",VLOOKUP(S$4,'4. Billing Determinants'!$B$19:$Z$41,6,0)/'4. Billing Determinants'!$G$41*$D16, VLOOKUP(S$4,'4. Billing Determinants'!$B$19:$Z$41,22,0)*$D16)))),0) -> 0 | T16: =IFERROR(IF(T$4="",0,IF($E16="kWh",VLOOKUP(T$4,'4. Billing Determinants'!$B$19:$Z$41,4,0)/'4. Billing Determinants'!$E$41*$D16,IF($E16="kW",VLOOKUP(T$4,'4. Billing Determinants'!$B$19:$Z$41,5,0)/'4. Billing Determinants'!$F$41*$D16,IF($E16="Non-RPP kWh",VLOOKUP(T$4,'4. Billing Determinants'!$B$19:$Z$41,6,0)/'4. Billing Determinants'!$G$41*$D16, VLOOKUP(T$4,'4. Billing Determinants'!$B$19:$Z$41,22,0)*$D16)))),0) -> 0 | U16: =IFERROR(IF(U$4="",0,IF($E16="kWh",VLOOKUP(U$4,'4. Billing Determinants'!$B$19:$Z$41,4,0)/'4. Billing Determinants'!$E$41*$D16,IF($E16="kW",VLOOKUP(U$4,'4. Billing Determinants'!$B$19:$Z$41,5,0)/'4. Billing Determinants'!$F$41*$D16,IF($E16="Non-RPP kWh",VLOOKUP(U$4,'4. Billing Determinants'!$B$19:$Z$41,6,0)/'4. Billing Determinants'!$G$41*$D16, VLOOKUP(U$4,'4. Billing Determinants'!$B$19:$Z$41,22,0)*$D16)))),0) -> 0 | V16: =IFERROR(IF(V$4="",0,IF($E16="kWh",VLOOKUP(V$4,'4. Billing Determinants'!$B$19:$Z$41,4,0)/'4. Billing Determinants'!$E$41*$D16,IF($E16="kW",VLOOKUP(V$4,'4. Billing Determinants'!$B$19:$Z$41,5,0)/'4. Billing Determinants'!$F$41*$D16,IF($E16="Non-RPP kWh",VLOOKUP(V$4,'4. Billing Determinants'!$B$19:$Z$41,6,0)/'4. Billing Determinants'!$G$41*$D16, VLOOKUP(V$4,'4. Billing Determinants'!$B$19:$Z$41,22,0)*$D16)))),0) -> 0 | W16: =IFERROR(IF(W$4="",0,IF($E16="kWh",VLOOKUP(W$4,'4. Billing Determinants'!$B$19:$Z$41,4,0)/'4. Billing Determinants'!$E$41*$D16,IF($E16="kW",VLOOKUP(W$4,'4. Billing Determinants'!$B$19:$Z$41,5,0)/'4. Billing Determinants'!$F$41*$D16,IF($E16="Non-RPP kWh",VLOOKUP(W$4,'4. Billing Determinants'!$B$19:$Z$41,6,0)/'4. Billing Determinants'!$G$41*$D16, VLOOKUP(W$4,'4. Billing Determinants'!$B$19:$Z$41,22,0)*$D16)))),0) -> 0 | X16: =IFERROR(IF(X$4="",0,IF($E16="kWh",VLOOKUP(X$4,'4. Billing Determinants'!$B$19:$Z$41,4,0)/'4. Billing Determinants'!$E$41*$D16,IF($E16="kW",VLOOKUP(X$4,'4. Billing Determinants'!$B$19:$Z$41,5,0)/'4. Billing Determinants'!$F$41*$D16,IF($E16="Non-RPP kWh",VLOOKUP(X$4,'4. Billing Determinants'!$B$19:$Z$41,6,0)/'4. Billing Determinants'!$G$41*$D16, VLOOKUP(X$4,'4. Billing Determinants'!$B$19:$Z$41,22,0)*$D16)))),0) -> 0 | Y16: =IFERROR(IF(Y$4="",0,IF($E16="kWh",VLOOKUP(Y$4,'4. Billing Determinants'!$B$19:$Z$41,4,0)/'4. Billing Determinants'!$E$41*$D16,IF($E16="kW",VLOOKUP(Y$4,'4. Billing Determinants'!$B$19:$Z$41,5,0)/'4. Billing Determinants'!$F$41*$D16,IF($E16="Non-RPP kWh",VLOOKUP(Y$4,'4. Billing Determinants'!$B$19:$Z$41,6,0)/'4. Billing Determinants'!$G$41*$D16, VLOOKUP(Y$4,'4. Billing Determinants'!$B$19:$Z$41,22,0)*$D16)))),0) -> 0
B17: Disposition and Recovery/Refund of Regulatory Balances (2013) | C17: 1595 | D17: ='2. 2015 Continuity Schedule'!BS36 -> 0 | E17: % | F17: =IFERROR(IF(F$4="",0,IF($E17="kWh",VLOOKUP(F$4,'4. Billing Determinants'!$B$19:$Z$41,4,0)/'4. Billing Determinants'!$E$41*$D17,IF($E17="kW",VLOOKUP(F$4,'4. Billing Determinants'!$B$19:$Z$41,5,0)/'4. Billing Determinants'!$F$41*$D17,IF($E17="Non-RPP kWh",VLOOKUP(F$4,'4. Billing Determinants'!$B$19:$Z$41,6,0)/'4. Billing Determinants'!$G$41*$D17, VLOOKUP(F$4,'4. Billing Determinants'!$B$19:$Z$41,23,0)*$D17)))),0) -> 0 | G17: =IFERROR(IF(G$4="",0,IF($E17="kWh",VLOOKUP(G$4,'4. Billing Determinants'!$B$19:$Z$41,4,0)/'4. Billing Determinants'!$E$41*$D17,IF($E17="kW",VLOOKUP(G$4,'4. Billing Determinants'!$B$19:$Z$41,5,0)/'4. Billing Determinants'!$F$41*$D17,IF($E17="Non-RPP kWh",VLOOKUP(G$4,'4. Billing Determinants'!$B$19:$Z$41,6,0)/'4. Billing Determinants'!$G$41*$D17, VLOOKUP(G$4,'4. Billing Determinants'!$B$19:$Z$41,23,0)*$D17)))),0) -> 0 | H17: =IFERROR(IF(H$4="",0,IF($E17="kWh",VLOOKUP(H$4,'4. Billing Determinants'!$B$19:$Z$41,4,0)/'4. Billing Determinants'!$E$41*$D17,IF($E17="kW",VLOOKUP(H$4,'4. Billing Determinants'!$B$19:$Z$41,5,0)/'4. Billing Determinants'!$F$41*$D17,IF($E17="Non-RPP kWh",VLOOKUP(H$4,'4. Billing Determinants'!$B$19:$Z$41,6,0)/'4. Billing Determinants'!$G$41*$D17, VLOOKUP(H$4,'4. Billing Determinants'!$B$19:$Z$41,23,0)*$D17)))),0) -> 0 | I17: =IFERROR(IF(I$4="",0,IF($E17="kWh",VLOOKUP(I$4,'4. Billing Determinants'!$B$19:$Z$41,4,0)/'4. Billing Determinants'!$E$41*$D17,IF($E17="kW",VLOOKUP(I$4,'4. Billing Determinants'!$B$19:$Z$41,5,0)/'4. Billing Determinants'!$F$41*$D17,IF($E17="Non-RPP kWh",VLOOKUP(I$4,'4. Billing Determinants'!$B$19:$Z$41,6,0)/'4. Billing Determinants'!$G$41*$D17, VLOOKUP(I$4,'4. Billing Determinants'!$B$19:$Z$41,23,0)*$D17)))),0) -> 0 | J17: =IFERROR(IF(J$4="",0,IF($E17="kWh",VLOOKUP(J$4,'4. Billing Determinants'!$B$19:$Z$41,4,0)/'4. Billing Determinants'!$E$41*$D17,IF($E17="kW",VLOOKUP(J$4,'4. Billing Determinants'!$B$19:$Z$41,5,0)/'4. Billing Determinants'!$F$41*$D17,IF($E17="Non-RPP kWh",VLOOKUP(J$4,'4. Billing Determinants'!$B$19:$Z$41,6,0)/'4. Billing Determinants'!$G$41*$D17, VLOOKUP(J$4,'4. Billing Determinants'!$B$19:$Z$41,23,0)*$D17)))),0) -> 0 | K17: =IFERROR(IF(K$4="",0,IF($E17="kWh",VLOOKUP(K$4,'4. Billing Determinants'!$B$19:$Z$41,4,0)/'4. Billing Determinants'!$E$41*$D17,IF($E17="kW",VLOOKUP(K$4,'4. Billing Determinants'!$B$19:$Z$41,5,0)/'4. Billing Determinants'!$F$41*$D17,IF($E17="Non-RPP kWh",VLOOKUP(K$4,'4. Billing Determinants'!$B$19:$Z$41,6,0)/'4. Billing Determinants'!$G$41*$D17, VLOOKUP(K$4,'4. Billing Determinants'!$B$19:$Z$41,23,0)*$D17)))),0) -> 0 | L17: =IFERROR(IF(L$4="",0,IF($E17="kWh",VLOOKUP(L$4,'4. Billing Determinants'!$B$19:$Z$41,4,0)/'4. Billing Determinants'!$E$41*$D17,IF($E17="kW",VLOOKUP(L$4,'4. Billing Determinants'!$B$19:$Z$41,5,0)/'4. Billing Determinants'!$F$41*$D17,IF($E17="Non-RPP kWh",VLOOKUP(L$4,'4. Billing Determinants'!$B$19:$Z$41,6,0)/'4. Billing Determinants'!$G$41*$D17, VLOOKUP(L$4,'4. Billing Determinants'!$B$19:$Z$41,23,0)*$D17)))),0) -> 0 | M17: =IFERROR(IF(M$4="",0,IF($E17="kWh",VLOOKUP(M$4,'4. Billing Determinants'!$B$19:$Z$41,4,0)/'4. Billing Determinants'!$E$41*$D17,IF($E17="kW",VLOOKUP(M$4,'4. Billing Determinants'!$B$19:$Z$41,5,0)/'4. Billing Determinants'!$F$41*$D17,IF($E17="Non-RPP kWh",VLOOKUP(M$4,'4. Billing Determinants'!$B$19:$Z$41,6,0)/'4. Billing Determinants'!$G$41*$D17, VLOOKUP(M$4,'4. Billing Determinants'!$B$19:$Z$41,23,0)*$D17)))),0) -> 0 | N17: =IFERROR(IF(N$4="",0,IF($E17="kWh",VLOOKUP(N$4,'4. Billing Determinants'!$B$19:$Z$41,4,0)/'4. Billing Determinants'!$E$41*$D17,IF($E17="kW",VLOOKUP(N$4,'4. Billing Determinants'!$B$19:$Z$41,5,0)/'4. Billing Determinants'!$F$41*$D17,IF($E17="Non-RPP kWh",VLOOKUP(N$4,'4. Billing Determinants'!$B$19:$Z$41,6,0)/'4. Billing Determinants'!$G$41*$D17, VLOOKUP(N$4,'4. Billing Determinants'!$B$19:$Z$41,23,0)*$D17)))),0) -> 0 | O17: =IFERROR(IF(O$4="",0,IF($E17="kWh",VLOOKUP(O$4,'4. Billing Determinants'!$B$19:$Z$41,4,0)/'4. Billing Determinants'!$E$41*$D17,IF($E17="kW",VLOOKUP(O$4,'4. Billing Determinants'!$B$19:$Z$41,5,0)/'4. Billing Determinants'!$F$41*$D17,IF($E17="Non-RPP kWh",VLOOKUP(O$4,'4. Billing Determinants'!$B$19:$Z$41,6,0)/'4. Billing Determinants'!$G$41*$D17, VLOOKUP(O$4,'4. Billing Determinants'!$B$19:$Z$41,23,0)*$D17)))),0) -> 0 | P17: =IFERROR(IF(P$4="",0,IF($E17="kWh",VLOOKUP(P$4,'4. Billing Determinants'!$B$19:$Z$41,4,0)/'4. Billing Determinants'!$E$41*$D17,IF($E17="kW",VLOOKUP(P$4,'4. Billing Determinants'!$B$19:$Z$41,5,0)/'4. Billing Determinants'!$F$41*$D17,IF($E17="Non-RPP kWh",VLOOKUP(P$4,'4. Billing Determinants'!$B$19:$Z$41,6,0)/'4. Billing Determinants'!$G$41*$D17, VLOOKUP(P$4,'4. Billing Determinants'!$B$19:$Z$41,23,0)*$D17)))),0) -> 0 | Q17: =IFERROR(IF(Q$4="",0,IF($E17="kWh",VLOOKUP(Q$4,'4. Billing Determinants'!$B$19:$Z$41,4,0)/'4. Billing Determinants'!$E$41*$D17,IF($E17="kW",VLOOKUP(Q$4,'4. Billing Determinants'!$B$19:$Z$41,5,0)/'4. Billing Determinants'!$F$41*$D17,IF($E17="Non-RPP kWh",VLOOKUP(Q$4,'4. Billing Determinants'!$B$19:$Z$41,6,0)/'4. Billing Determinants'!$G$41*$D17, VLOOKUP(Q$4,'4. Billing Determinants'!$B$19:$Z$41,23,0)*$D17)))),0) -> 0 | R17: =IFERROR(IF(R$4="",0,IF($E17="kWh",VLOOKUP(R$4,'4. Billing Determinants'!$B$19:$Z$41,4,0)/'4. Billing Determinants'!$E$41*$D17,IF($E17="kW",VLOOKUP(R$4,'4. Billing Determinants'!$B$19:$Z$41,5,0)/'4. Billing Determinants'!$F$41*$D17,IF($E17="Non-RPP kWh",VLOOKUP(R$4,'4. Billing Determinants'!$B$19:$Z$41,6,0)/'4. Billing Determinants'!$G$41*$D17, VLOOKUP(R$4,'4. Billing Determinants'!$B$19:$Z$41,23,0)*$D17)))),0) -> 0 | S17: =IFERROR(IF(S$4="",0,IF($E17="kWh",VLOOKUP(S$4,'4. Billing Determinants'!$B$19:$Z$41,4,0)/'4. Billing Determinants'!$E$41*$D17,IF($E17="kW",VLOOKUP(S$4,'4. Billing Determinants'!$B$19:$Z$41,5,0)/'4. Billing Determinants'!$F$41*$D17,IF($E17="Non-RPP kWh",VLOOKUP(S$4,'4. Billing Determinants'!$B$19:$Z$41,6,0)/'4. Billing Determinants'!$G$41*$D17, VLOOKUP(S$4,'4. Billing Determinants'!$B$19:$Z$41,23,0)*$D17)))),0) -> 0 | T17: =IFERROR(IF(T$4="",0,IF($E17="kWh",VLOOKUP(T$4,'4. Billing Determinants'!$B$19:$Z$41,4,0)/'4. Billing Determinants'!$E$41*$D17,IF($E17="kW",VLOOKUP(T$4,'4. Billing Determinants'!$B$19:$Z$41,5,0)/'4. Billing Determinants'!$F$41*$D17,IF($E17="Non-RPP kWh",VLOOKUP(T$4,'4. Billing Determinants'!$B$19:$Z$41,6,0)/'4. Billing Determinants'!$G$41*$D17, VLOOKUP(T$4,'4. Billing Determinants'!$B$19:$Z$41,23,0)*$D17)))),0) -> 0 | U17: =IFERROR(IF(U$4="",0,IF($E17="kWh",VLOOKUP(U$4,'4. Billing Determinants'!$B$19:$Z$41,4,0)/'4. Billing Determinants'!$E$41*$D17,IF($E17="kW",VLOOKUP(U$4,'4. Billing Determinants'!$B$19:$Z$41,5,0)/'4. Billing Determinants'!$F$41*$D17,IF($E17="Non-RPP kWh",VLOOKUP(U$4,'4. Billing Determinants'!$B$19:$Z$41,6,0)/'4. Billing Determinants'!$G$41*$D17, VLOOKUP(U$4,'4. Billing Determinants'!$B$19:$Z$41,23,0)*$D17)))),0) -> 0 | V17: =IFERROR(IF(V$4="",0,IF($E17="kWh",VLOOKUP(V$4,'4. Billing Determinants'!$B$19:$Z$41,4,0)/'4. Billing Determinants'!$E$41*$D17,IF($E17="kW",VLOOKUP(V$4,'4. Billing Determinants'!$B$19:$Z$41,5,0)/'4. Billing Determinants'!$F$41*$D17,IF($E17="Non-RPP kWh",VLOOKUP(V$4,'4. Billing Determinants'!$B$19:$Z$41,6,0)/'4. Billing Determinants'!$G$41*$D17, VLOOKUP(V$4,'4. Billing Determinants'!$B$19:$Z$41,23,0)*$D17)))),0) -> 0 | W17: =IFERROR(IF(W$4="",0,IF($E17="kWh",VLOOKUP(W$4,'4. Billing Determinants'!$B$19:$Z$41,4,0)/'4. Billing Determinants'!$E$41*$D17,IF($E17="kW",VLOOKUP(W$4,'4. Billing Determinants'!$B$19:$Z$41,5,0)/'4. Billing Determinants'!$F$41*$D17,IF($E17="Non-RPP kWh",VLOOKUP(W$4,'4. Billing Determinants'!$B$19:$Z$41,6,0)/'4. Billing Determinants'!$G$41*$D17, VLOOKUP(W$4,'4. Billing Determinants'!$B$19:$Z$41,23,0)*$D17)))),0) -> 0 | X17: =IFERROR(IF(X$4="",0,IF($E17="kWh",VLOOKUP(X$4,'4. Billing Determinants'!$B$19:$Z$41,4,0)/'4. Billing Determinants'!$E$41*$D17,IF($E17="kW",VLOOKUP(X$4,'4. Billing Determinants'!$B$19:$Z$41,5,0)/'4. Billing Determinants'!$F$41*$D17,IF($E17="Non-RPP kWh",VLOOKUP(X$4,'4. Billing Determinants'!$B$19:$Z$41,6,0)/'4. Billing Determinants'!$G$41*$D17, VLOOKUP(X$4,'4. Billing Determinants'!$B$19:$Z$41,23,0)*$D17)))),0) -> 0 | Y17: =IFERROR(IF(Y$4="",0,IF($E17="kWh",VLOOKUP(Y$4,'4. Billing Determinants'!$B$19:$Z$41,4,0)/'4. Billing Determinants'!$E$41*$D17,IF($E17="kW",VLOOKUP(Y$4,'4. Billing Determinants'!$B$19:$Z$41,5,0)/'4. Billing Determinants'!$F$41*$D17,IF($E17="Non-RPP kWh",VLOOKUP(Y$4,'4. Billing Determinants'!$B$19:$Z$41,6,0)/'4. Billing Determinants'!$G$41*$D17, VLOOKUP(Y$4,'4. Billing Determinants'!$B$19:$Z$41,23,0)*$D17)))),0) -> 0
B18: Disposition and Recovery/Refund of Regulatory Balances (2014) | C18: 1595 | D18: ='2. 2015 Continuity Schedule'!BS37 -> 0 | E18: % | F18: =IFERROR(IF(F$4="",0,IF($E18="kWh",VLOOKUP(F$4,'4. Billing Determinants'!$B$19:$Z$41,4,0)/'4. Billing Determinants'!$E$41*$D18,IF($E18="kW",VLOOKUP(F$4,'4. Billing Determinants'!$B$19:$Z$41,5,0)/'4. Billing Determinants'!$F$41*$D18,IF($E18="Non-RPP kWh",VLOOKUP(F$4,'4. Billing Determinants'!$B$19:$Z$41,6,0)/'4. Billing Determinants'!$G$41*$D18, VLOOKUP(F$4,'4. Billing Determinants'!$B$19:$Z$41,24,0)*$D18)))),0) -> 0 | G18: =IFERROR(IF(G$4="",0,IF($E18="kWh",VLOOKUP(G$4,'4. Billing Determinants'!$B$19:$Z$41,4,0)/'4. Billing Determinants'!$E$41*$D18,IF($E18="kW",VLOOKUP(G$4,'4. Billing Determinants'!$B$19:$Z$41,5,0)/'4. Billing Determinants'!$F$41*$D18,IF($E18="Non-RPP kWh",VLOOKUP(G$4,'4. Billing Determinants'!$B$19:$Z$41,6,0)/'4. Billing Determinants'!$G$41*$D18, VLOOKUP(G$4,'4. Billing Determinants'!$B$19:$Z$41,24,0)*$D18)))),0) -> 0 | H18: =IFERROR(IF(H$4="",0,IF($E18="kWh",VLOOKUP(H$4,'4. Billing Determinants'!$B$19:$Z$41,4,0)/'4. Billing Determinants'!$E$41*$D18,IF($E18="kW",VLOOKUP(H$4,'4. Billing Determinants'!$B$19:$Z$41,5,0)/'4. Billing Determinants'!$F$41*$D18,IF($E18="Non-RPP kWh",VLOOKUP(H$4,'4. Billing Determinants'!$B$19:$Z$41,6,0)/'4. Billing Determinants'!$G$41*$D18, VLOOKUP(H$4,'4. Billing Determinants'!$B$19:$Z$41,24,0)*$D18)))),0) -> 0 | I18: =IFERROR(IF(I$4="",0,IF($E18="kWh",VLOOKUP(I$4,'4. Billing Determinants'!$B$19:$Z$41,4,0)/'4. Billing Determinants'!$E$41*$D18,IF($E18="kW",VLOOKUP(I$4,'4. Billing Determinants'!$B$19:$Z$41,5,0)/'4. Billing Determinants'!$F$41*$D18,IF($E18="Non-RPP kWh",VLOOKUP(I$4,'4. Billing Determinants'!$B$19:$Z$41,6,0)/'4. Billing Determinants'!$G$41*$D18, VLOOKUP(I$4,'4. Billing Determinants'!$B$19:$Z$41,24,0)*$D18)))),0) -> 0 | J18: =IFERROR(IF(J$4="",0,IF($E18="kWh",VLOOKUP(J$4,'4. Billing Determinants'!$B$19:$Z$41,4,0)/'4. Billing Determinants'!$E$41*$D18,IF($E18="kW",VLOOKUP(J$4,'4. Billing Determinants'!$B$19:$Z$41,5,0)/'4. Billing Determinants'!$F$41*$D18,IF($E18="Non-RPP kWh",VLOOKUP(J$4,'4. Billing Determinants'!$B$19:$Z$41,6,0)/'4. Billing Determinants'!$G$41*$D18, VLOOKUP(J$4,'4. Billing Determinants'!$B$19:$Z$41,24,0)*$D18)))),0) -> 0 | K18: =IFERROR(IF(K$4="",0,IF($E18="kWh",VLOOKUP(K$4,'4. Billing Determinants'!$B$19:$Z$41,4,0)/'4. Billing Determinants'!$E$41*$D18,IF($E18="kW",VLOOKUP(K$4,'4. Billing Determinants'!$B$19:$Z$41,5,0)/'4. Billing Determinants'!$F$41*$D18,IF($E18="Non-RPP kWh",VLOOKUP(K$4,'4. Billing Determinants'!$B$19:$Z$41,6,0)/'4. Billing Determinants'!$G$41*$D18, VLOOKUP(K$4,'4. Billing Determinants'!$B$19:$Z$41,24,0)*$D18)))),0) -> 0 | L18: =IFERROR(IF(L$4="",0,IF($E18="kWh",VLOOKUP(L$4,'4. Billing Determinants'!$B$19:$Z$41,4,0)/'4. Billing Determinants'!$E$41*$D18,IF($E18="kW",VLOOKUP(L$4,'4. Billing Determinants'!$B$19:$Z$41,5,0)/'4. Billing Determinants'!$F$41*$D18,IF($E18="Non-RPP kWh",VLOOKUP(L$4,'4. Billing Determinants'!$B$19:$Z$41,6,0)/'4. Billing Determinants'!$G$41*$D18, VLOOKUP(L$4,'4. Billing Determinants'!$B$19:$Z$41,24,0)*$D18)))),0) -> 0 | M18: =IFERROR(IF(M$4="",0,IF($E18="kWh",VLOOKUP(M$4,'4. Billing Determinants'!$B$19:$Z$41,4,0)/'4. Billing Determinants'!$E$41*$D18,IF($E18="kW",VLOOKUP(M$4,'4. Billing Determinants'!$B$19:$Z$41,5,0)/'4. Billing Determinants'!$F$41*$D18,IF($E18="Non-RPP kWh",VLOOKUP(M$4,'4. Billing Determinants'!$B$19:$Z$41,6,0)/'4. Billing Determinants'!$G$41*$D18, VLOOKUP(M$4,'4. Billing Determinants'!$B$19:$Z$41,24,0)*$D18)))),0) -> 0 | N18: =IFERROR(IF(N$4="",0,IF($E18="kWh",VLOOKUP(N$4,'4. Billing Determinants'!$B$19:$Z$41,4,0)/'4. Billing Determinants'!$E$41*$D18,IF($E18="kW",VLOOKUP(N$4,'4. Billing Determinants'!$B$19:$Z$41,5,0)/'4. Billing Determinants'!$F$41*$D18,IF($E18="Non-RPP kWh",VLOOKUP(N$4,'4. Billing Determinants'!$B$19:$Z$41,6,0)/'4. Billing Determinants'!$G$41*$D18, VLOOKUP(N$4,'4. Billing Determinants'!$B$19:$Z$41,24,0)*$D18)))),0) -> 0 | O18: =IFERROR(IF(O$4="",0,IF($E18="kWh",VLOOKUP(O$4,'4. Billing Determinants'!$B$19:$Z$41,4,0)/'4. Billing Determinants'!$E$41*$D18,IF($E18="kW",VLOOKUP(O$4,'4. Billing Determinants'!$B$19:$Z$41,5,0)/'4. Billing Determinants'!$F$41*$D18,IF($E18="Non-RPP kWh",VLOOKUP(O$4,'4. Billing Determinants'!$B$19:$Z$41,6,0)/'4. Billing Determinants'!$G$41*$D18, VLOOKUP(O$4,'4. Billing Determinants'!$B$19:$Z$41,24,0)*$D18)))),0) -> 0 | P18: =IFERROR(IF(P$4="",0,IF($E18="kWh",VLOOKUP(P$4,'4. Billing Determinants'!$B$19:$Z$41,4,0)/'4. Billing Determinants'!$E$41*$D18,IF($E18="kW",VLOOKUP(P$4,'4. Billing Determinants'!$B$19:$Z$41,5,0)/'4. Billing Determinants'!$F$41*$D18,IF($E18="Non-RPP kWh",VLOOKUP(P$4,'4. Billing Determinants'!$B$19:$Z$41,6,0)/'4. Billing Determinants'!$G$41*$D18, VLOOKUP(P$4,'4. Billing Determinants'!$B$19:$Z$41,24,0)*$D18)))),0) -> 0 | Q18: =IFERROR(IF(Q$4="",0,IF($E18="kWh",VLOOKUP(Q$4,'4. Billing Determinants'!$B$19:$Z$41,4,0)/'4. Billing Determinants'!$E$41*$D18,IF($E18="kW",VLOOKUP(Q$4,'4. Billing Determinants'!$B$19:$Z$41,5,0)/'4. Billing Determinants'!$F$41*$D18,IF($E18="Non-RPP kWh",VLOOKUP(Q$4,'4. Billing Determinants'!$B$19:$Z$41,6,0)/'4. Billing Determinants'!$G$41*$D18, VLOOKUP(Q$4,'4. Billing Determinants'!$B$19:$Z$41,24,0)*$D18)))),0) -> 0 | R18: =IFERROR(IF(R$4="",0,IF($E18="kWh",VLOOKUP(R$4,'4. Billing Determinants'!$B$19:$Z$41,4,0)/'4. Billing Determinants'!$E$41*$D18,IF($E18="kW",VLOOKUP(R$4,'4. Billing Determinants'!$B$19:$Z$41,5,0)/'4. Billing Determinants'!$F$41*$D18,IF($E18="Non-RPP kWh",VLOOKUP(R$4,'4. Billing Determinants'!$B$19:$Z$41,6,0)/'4. Billing Determinants'!$G$41*$D18, VLOOKUP(R$4,'4. Billing Determinants'!$B$19:$Z$41,24,0)*$D18)))),0) -> 0 | S18: =IFERROR(IF(S$4="",0,IF($E18="kWh",VLOOKUP(S$4,'4. Billing Determinants'!$B$19:$Z$41,4,0)/'4. Billing Determinants'!$E$41*$D18,IF($E18="kW",VLOOKUP(S$4,'4. Billing Determinants'!$B$19:$Z$41,5,0)/'4. Billing Determinants'!$F$41*$D18,IF($E18="Non-RPP kWh",VLOOKUP(S$4,'4. Billing Determinants'!$B$19:$Z$41,6,0)/'4. Billing Determinants'!$G$41*$D18, VLOOKUP(S$4,'4. Billing Determinants'!$B$19:$Z$41,24,0)*$D18)))),0) -> 0 | T18: =IFERROR(IF(T$4="",0,IF($E18="kWh",VLOOKUP(T$4,'4. Billing Determinants'!$B$19:$Z$41,4,0)/'4. Billing Determinants'!$E$41*$D18,IF($E18="kW",VLOOKUP(T$4,'4. Billing Determinants'!$B$19:$Z$41,5,0)/'4. Billing Determinants'!$F$41*$D18,IF($E18="Non-RPP kWh",VLOOKUP(T$4,'4. Billing Determinants'!$B$19:$Z$41,6,0)/'4. Billing Determinants'!$G$41*$D18, VLOOKUP(T$4,'4. Billing Determinants'!$B$19:$Z$41,24,0)*$D18)))),0) -> 0 | U18: =IFERROR(IF(U$4="",0,IF($E18="kWh",VLOOKUP(U$4,'4. Billing Determinants'!$B$19:$Z$41,4,0)/'4. Billing Determinants'!$E$41*$D18,IF($E18="kW",VLOOKUP(U$4,'4. Billing Determinants'!$B$19:$Z$41,5,0)/'4. Billing Determinants'!$F$41*$D18,IF($E18="Non-RPP kWh",VLOOKUP(U$4,'4. Billing Determinants'!$B$19:$Z$41,6,0)/'4. Billing Determinants'!$G$41*$D18, VLOOKUP(U$4,'4. Billing Determinants'!$B$19:$Z$41,24,0)*$D18)))),0) -> 0 | V18: =IFERROR(IF(V$4="",0,IF($E18="kWh",VLOOKUP(V$4,'4. Billing Determinants'!$B$19:$Z$41,4,0)/'4. Billing Determinants'!$E$41*$D18,IF($E18="kW",VLOOKUP(V$4,'4. Billing Determinants'!$B$19:$Z$41,5,0)/'4. Billing Determinants'!$F$41*$D18,IF($E18="Non-RPP kWh",VLOOKUP(V$4,'4. Billing Determinants'!$B$19:$Z$41,6,0)/'4. Billing Determinants'!$G$41*$D18, VLOOKUP(V$4,'4. Billing Determinants'!$B$19:$Z$41,24,0)*$D18)))),0) -> 0 | W18: =IFERROR(IF(W$4="",0,IF($E18="kWh",VLOOKUP(W$4,'4. Billing Determinants'!$B$19:$Z$41,4,0)/'4. Billing Determinants'!$E$41*$D18,IF($E18="kW",VLOOKUP(W$4,'4. Billing Determinants'!$B$19:$Z$41,5,0)/'4. Billing Determinants'!$F$41*$D18,IF($E18="Non-RPP kWh",VLOOKUP(W$4,'4. Billing Determinants'!$B$19:$Z$41,6,0)/'4. Billing Determinants'!$G$41*$D18, VLOOKUP(W$4,'4. Billing Determinants'!$B$19:$Z$41,24,0)*$D18)))),0) -> 0 | X18: =IFERROR(IF(X$4="",0,IF($E18="kWh",VLOOKUP(X$4,'4. Billing Determinants'!$B$19:$Z$41,4,0)/'4. Billing Determinants'!$E$41*$D18,IF($E18="kW",VLOOKUP(X$4,'4. Billing Determinants'!$B$19:$Z$41,5,0)/'4. Billing Determinants'!$F$41*$D18,IF($E18="Non-RPP kWh",VLOOKUP(X$4,'4. Billing Determinants'!$B$19:$Z$41,6,0)/'4. Billing Determinants'!$G$41*$D18, VLOOKUP(X$4,'4. Billing Determinants'!$B$19:$Z$41,24,0)*$D18)))),0) -> 0 | Y18: =IFERROR(IF(Y$4="",0,IF($E18="kWh",VLOOKUP(Y$4,'4. Billing Determinants'!$B$19:$Z$41,4,0)/'4. Billing Determinants'!$E$41*$D18,IF($E18="kW",VLOOKUP(Y$4,'4. Billing Determinants'!$B$19:$Z$41,5,0)/'4. Billing Determinants'!$F$41*$D18,IF($E18="Non-RPP kWh",VLOOKUP(Y$4,'4. Billing Determinants'!$B$19:$Z$41,6,0)/'4. Billing Determinants'!$G$41*$D18, VLOOKUP(Y$4,'4. Billing Determinants'!$B$19:$Z$41,24,0)*$D18)))),0) -> 0
B19: Total of Group 1 Accounts (excluding 1589) | D19: =SUM(D5:D18)-D11 -> 418948.3932 | F19: =SUM(F5:F18)-F11 -> 132375.5783 | G19: 43960.87634 | H19: 115964.8013 | I19: 57023.80426 | J19: 64680.96452 | K19: 167.4733878 | L19: 32.76294789 | M19: 4268.074918 | N19: 0 | O19: 0 | P19: 0 | Q19: 0 | R19: 0 | S19: 0 | T19: 0 | U19: 0 | V19: 0 | W19: 0 | X19: 0 | Y19: 0
B21: Other Regulatory Assets - Sub-Account - Deferred IFRS Transition Costs | C21: 1508 | D21: ='2. 2015 Continuity Schedule'!BS44 -> 479873.0672 | E21: # of Customers | F21: =IFERROR(IF(F$4="",0,IF($E21="kWh",VLOOKUP(F$4,'4. Billing Determinants'!$B$19:$Z$41,4,0)/'4. Billing Determinants'!$E$41*$D21,IF($E21="kW",VLOOKUP(F$4,'4. Billing Determinants'!$B$19:$Z$41,5,0)/'4. Billing Determinants'!$F$41*$D21,IF($E21="Non-RPP kWh",VLOOKUP(F$4,'4. Billing Determinants'!$B$19:$Z$41,6,0)/'4. Billing Determinants'!$G$41*$D21,IF($E21="Distribution Rev.",VLOOKUP(F$4,'4. Billing Determinants'!$B$19:$Z$41,8,0)/'4. Billing Determinants'!$I$41*$D21, VLOOKUP(F$4,'4. Billing Determinants'!$B$19:$Z$41,3,0)/'4. Billing Determinants'!$D$41*$D21))))),0) -> 402678.9388 | G21: =IFERROR(IF(G$4="",0,IF($E21="kWh",VLOOKUP(G$4,'4. Billing Determinants'!$B$19:$Z$41,4,0)/'4. Billing Determinants'!$E$41*$D21,IF($E21="kW",VLOOKUP(G$4,'4. Billing Determinants'!$B$19:$Z$41,5,0)/'4. Billing Determinants'!$F$41*$D21,IF($E21="Non-RPP kWh",VLOOKUP(G$4,'4. Billing Determinants'!$B$19:$Z$41,6,0)/'4. Billing Determinants'!$G$41*$D21,IF($E21="Distribution Rev.",VLOOKUP(G$4,'4. Billing Determinants'!$B$19:$Z$41,8,0)/'4. Billing Determinants'!$I$41*$D21, VLOOKUP(G$4,'4. Billing Determinants'!$B$19:$Z$41,3,0)/'4. Billing Determinants'!$D$41*$D21))))),0) -> 30836.73241 | H21: =IFERROR(IF(H$4="",0,IF($E21="kWh",VLOOKUP(H$4,'4. Billing Determinants'!$B$19:$Z$41,4,0)/'4. Billing Determinants'!$E$41*$D21,IF($E21="kW",VLOOKUP(H$4,'4. Billing Determinants'!$B$19:$Z$41,5,0)/'4. Billing Determinants'!$F$41*$D21,IF($E21="Non-RPP kWh",VLOOKUP(H$4,'4. Billing Determinants'!$B$19:$Z$41,6,0)/'4. Billing Determinants'!$G$41*$D21,IF($E21="Distribution Rev.",VLOOKUP(H$4,'4. Billing Determinants'!$B$19:$Z$41,8,0)/'4. Billing Determinants'!$I$41*$D21, VLOOKUP(H$4,'4. Billing Determinants'!$B$19:$Z$41,3,0)/'4. Billing Determinants'!$D$41*$D21))))),0) -> 3524.013014 | I21: =IFERROR(IF(I$4="",0,IF($E21="kWh",VLOOKUP(I$4,'4. Billing Determinants'!$B$19:$Z$41,4,0)/'4. Billing Determinants'!$E$41*$D21,IF($E21="kW",VLOOKUP(I$4,'4. Billing Determinants'!$B$19:$Z$41,5,0)/'4. Billing Determinants'!$F$41*$D21,IF($E21="Non-RPP kWh",VLOOKUP(I$4,'4. Billing Determinants'!$B$19:$Z$41,6,0)/'4. Billing Determinants'!$G$41*$D21,IF($E21="Distribution Rev.",VLOOKUP(I$4,'4. Billing Determinants'!$B$19:$Z$41,8,0)/'4. Billing Determinants'!$I$41*$D21, VLOOKUP(I$4,'4. Billing Determinants'!$B$19:$Z$41,3,0)/'4. Billing Determinants'!$D$41*$D21))))),0) -> 151.7296949 | J21: =IFERROR(IF(J$4="",0,IF($E21="kWh",VLOOKUP(J$4,'4. Billing Determinants'!$B$19:$Z$41,4,0)/'4. Billing Determinants'!$E$41*$D21,IF($E21="kW",VLOOKUP(J$4,'4. Billing Determinants'!$B$19:$Z$41,5,0)/'4. Billing Determinants'!$F$41*$D21,IF($E21="Non-RPP kWh",VLOOKUP(J$4,'4. Billing Determinants'!$B$19:$Z$41,6,0)/'4. Billing Determinants'!$G$41*$D21,IF($E21="Distribution Rev.",VLOOKUP(J$4,'4. Billing Determinants'!$B$19:$Z$41,8,0)/'4. Billing Determinants'!$I$41*$D21, VLOOKUP(J$4,'4. Billing Determinants'!$B$19:$Z$41,3,0)/'4. Billing Determinants'!$D$41*$D21))))),0) -> 35.01454498 | K21: =IFERROR(IF(K$4="",0,IF($E21="kWh",VLOOKUP(K$4,'4. Billing Determinants'!$B$19:$Z$41,4,0)/'4. Billing Determinants'!$E$41*$D21,IF($E21="kW",VLOOKUP(K$4,'4. Billing Determinants'!$B$19:$Z$41,5,0)/'4. Billing Determinants'!$F$41*$D21,IF($E21="Non-RPP kWh",VLOOKUP(K$4,'4. Billing Determinants'!$B$19:$Z$41,6,0)/'4. Billing Determinants'!$G$41*$D21,IF($E21="Distribution Rev.",VLOOKUP(K$4,'4. Billing Determinants'!$B$19:$Z$41,8,0)/'4. Billing Determinants'!$I$41*$D21, VLOOKUP(K$4,'4. Billing Determinants'!$B$19:$Z$41,3,0)/'4. Billing Determinants'!$D$41*$D21))))),0) -> 2077.529669 | L21: =IFERROR(IF(L$4="",0,IF($E21="kWh",VLOOKUP(L$4,'4. Billing Determinants'!$B$19:$Z$41,4,0)/'4. Billing Determinants'!$E$41*$D21,IF($E21="kW",VLOOKUP(L$4,'4. Billing Determinants'!$B$19:$Z$41,5,0)/'4. Billing Determinants'!$F$41*$D21,IF($E21="Non-RPP kWh",VLOOKUP(L$4,'4. Billing Determinants'!$B$19:$Z$41,6,0)/'4. Billing Determinants'!$G$41*$D21,IF($E21="Distribution Rev.",VLOOKUP(L$4,'4. Billing Determinants'!$B$19:$Z$41,8,0)/'4. Billing Determinants'!$I$41*$D21, VLOOKUP(L$4,'4. Billing Determinants'!$B$19:$Z$41,3,0)/'4. Billing Determinants'!$D$41*$D21))))),0) -> 2826.881503 | M21: =IFERROR(IF(M$4="",0,IF($E21="kWh",VLOOKUP(M$4,'4. Billing Determinants'!$B$19:$Z$41,4,0)/'4. Billing Determinants'!$E$41*$D21,IF($E21="kW",VLOOKUP(M$4,'4. Billing Determinants'!$B$19:$Z$41,5,0)/'4. Billing Determinants'!$F$41*$D21,IF($E21="Non-RPP kWh",VLOOKUP(M$4,'4. Billing Determinants'!$B$19:$Z$41,6,0)/'4. Billing Determinants'!$G$41*$D21,IF($E21="Distribution Rev.",VLOOKUP(M$4,'4. Billing Determinants'!$B$19:$Z$41,8,0)/'4. Billing Determinants'!$I$41*$D21, VLOOKUP(M$4,'4. Billing Determinants'!$B$19:$Z$41,3,0)/'4. Billing Determinants'!$D$41*$D21))))),0) -> 37742.2276 | N21: =IFERROR(IF(N$4="",0,IF($E21="kWh",VLOOKUP(N$4,'4. Billing Determinants'!$B$19:$Z$41,4,0)/'4. Billing Determinants'!$E$41*$D21,IF($E21="kW",VLOOKUP(N$4,'4. Billing Determinants'!$B$19:$Z$41,5,0)/'4. Billing Determinants'!$F$41*$D21,IF($E21="Non-RPP kWh",VLOOKUP(N$4,'4. Billing Determinants'!$B$19:$Z$41,6,0)/'4. Billing Determinants'!$G$41*$D21,IF($E21="Distribution Rev.",VLOOKUP(N$4,'4. Billing Determinants'!$B$19:$Z$41,8,0)/'4. Billing Determinants'!$I$41*$D21, VLOOKUP(N$4,'4. Billing Determinants'!$B$19:$Z$41,3,0)/'4. Billing Determinants'!$D$41*$D21))))),0) -> 0 | O21: =IFERROR(IF(O$4="",0,IF($E21="kWh",VLOOKUP(O$4,'4. Billing Determinants'!$B$19:$Z$41,4,0)/'4. Billing Determinants'!$E$41*$D21,IF($E21="kW",VLOOKUP(O$4,'4. Billing Determinants'!$B$19:$Z$41,5,0)/'4. Billing Determinants'!$F$41*$D21,IF($E21="Non-RPP kWh",VLOOKUP(O$4,'4. Billing Determinants'!$B$19:$Z$41,6,0)/'4. Billing Determinants'!$G$41*$D21,IF($E21="Distribution Rev.",VLOOKUP(O$4,'4. Billing Determinants'!$B$19:$Z$41,8,0)/'4. Billing Determinants'!$I$41*$D21, VLOOKUP(O$4,'4. Billing Determinants'!$B$19:$Z$41,3,0)/'4. Billing Determinants'!$D$41*$D21))))),0) -> 0 | P21: =IFERROR(IF(P$4="",0,IF($E21="kWh",VLOOKUP(P$4,'4. Billing Determinants'!$B$19:$Z$41,4,0)/'4. Billing Determinants'!$E$41*$D21,IF($E21="kW",VLOOKUP(P$4,'4. Billing Determinants'!$B$19:$Z$41,5,0)/'4. Billing Determinants'!$F$41*$D21,IF($E21="Non-RPP kWh",VLOOKUP(P$4,'4. Billing Determinants'!$B$19:$Z$41,6,0)/'4. Billing Determinants'!$G$41*$D21,IF($E21="Distribution Rev.",VLOOKUP(P$4,'4. Billing Determinants'!$B$19:$Z$41,8,0)/'4. Billing Determinants'!$I$41*$D21, VLOOKUP(P$4,'4. Billing Determinants'!$B$19:$Z$41,3,0)/'4. Billing Determinants'!$D$41*$D21))))),0) -> 0 | Q21: =IFERROR(IF(Q$4="",0,IF($E21="kWh",VLOOKUP(Q$4,'4. Billing Determinants'!$B$19:$Z$41,4,0)/'4. Billing Determinants'!$E$41*$D21,IF($E21="kW",VLOOKUP(Q$4,'4. Billing Determinants'!$B$19:$Z$41,5,0)/'4. Billing Determinants'!$F$41*$D21,IF($E21="Non-RPP kWh",VLOOKUP(Q$4,'4. Billing Determinants'!$B$19:$Z$41,6,0)/'4. Billing Determinants'!$G$41*$D21,IF($E21="Distribution Rev.",VLOOKUP(Q$4,'4. Billing Determinants'!$B$19:$Z$41,8,0)/'4. Billing Determinants'!$I$41*$D21, VLOOKUP(Q$4,'4. Billing Determinants'!$B$19:$Z$41,3,0)/'4. Billing Determinants'!$D$41*$D21))))),0) -> 0 | R21: =IFERROR(IF(R$4="",0,IF($E21="kWh",VLOOKUP(R$4,'4. Billing Determinants'!$B$19:$Z$41,4,0)/'4. Billing Determinants'!$E$41*$D21,IF($E21="kW",VLOOKUP(R$4,'4. Billing Determinants'!$B$19:$Z$41,5,0)/'4. Billing Determinants'!$F$41*$D21,IF($E21="Non-RPP kWh",VLOOKUP(R$4,'4. Billing Determinants'!$B$19:$Z$41,6,0)/'4. Billing Determinants'!$G$41*$D21,IF($E21="Distribution Rev.",VLOOKUP(R$4,'4. Billing Determinants'!$B$19:$Z$41,8,0)/'4. Billing Determinants'!$I$41*$D21, VLOOKUP(R$4,'4. Billing Determinants'!$B$19:$Z$41,3,0)/'4. Billing Determinants'!$D$41*$D21))))),0) -> 0 | S21: =IFERROR(IF(S$4="",0,IF($E21="kWh",VLOOKUP(S$4,'4. Billing Determinants'!$B$19:$Z$41,4,0)/'4. Billing Determinants'!$E$41*$D21,IF($E21="kW",VLOOKUP(S$4,'4. Billing Determinants'!$B$19:$Z$41,5,0)/'4. Billing Determinants'!$F$41*$D21,IF($E21="Non-RPP kWh",VLOOKUP(S$4,'4. Billing Determinants'!$B$19:$Z$41,6,0)/'4. Billing Determinants'!$G$41*$D21,IF($E21="Distribution Rev.",VLOOKUP(S$4,'4. Billing Determinants'!$B$19:$Z$41,8,0)/'4. Billing Determinants'!$I$41*$D21, VLOOKUP(S$4,'4. Billing Determinants'!$B$19:$Z$41,3,0)/'4. Billing Determinants'!$D$41*$D21))))),0) -> 0 | T21: =IFERROR(IF(T$4="",0,IF($E21="kWh",VLOOKUP(T$4,'4. Billing Determinants'!$B$19:$Z$41,4,0)/'4. Billing Determinants'!$E$41*$D21,IF($E21="kW",VLOOKUP(T$4,'4. Billing Determinants'!$B$19:$Z$41,5,0)/'4. Billing Determinants'!$F$41*$D21,IF($E21="Non-RPP kWh",VLOOKUP(T$4,'4. Billing Determinants'!$B$19:$Z$41,6,0)/'4. Billing Determinants'!$G$41*$D21,IF($E21="Distribution Rev.",VLOOKUP(T$4,'4. Billing Determinants'!$B$19:$Z$41,8,0)/'4. Billing Determinants'!$I$41*$D21, VLOOKUP(T$4,'4. Billing Determinants'!$B$19:$Z$41,3,0)/'4. Billing Determinants'!$D$41*$D21))))),0) -> 0 | U21: =IFERROR(IF(U$4="",0,IF($E21="kWh",VLOOKUP(U$4,'4. Billing Determinants'!$B$19:$Z$41,4,0)/'4. Billing Determinants'!$E$41*$D21,IF($E21="kW",VLOOKUP(U$4,'4. Billing Determinants'!$B$19:$Z$41,5,0)/'4. Billing Determinants'!$F$41*$D21,IF($E21="Non-RPP kWh",VLOOKUP(U$4,'4. Billing Determinants'!$B$19:$Z$41,6,0)/'4. Billing Determinants'!$G$41*$D21,IF($E21="Distribution Rev.",VLOOKUP(U$4,'4. Billing Determinants'!$B$19:$Z$41,8,0)/'4. Billing Determinants'!$I$41*$D21, VLOOKUP(U$4,'4. Billing Determinants'!$B$19:$Z$41,3,0)/'4. Billing Determinants'!$D$41*$D21))))),0) -> 0 | V21: =IFERROR(IF(V$4="",0,IF($E21="kWh",VLOOKUP(V$4,'4. Billing Determinants'!$B$19:$Z$41,4,0)/'4. Billing Determinants'!$E$41*$D21,IF($E21="kW",VLOOKUP(V$4,'4. Billing Determinants'!$B$19:$Z$41,5,0)/'4. Billing Determinants'!$F$41*$D21,IF($E21="Non-RPP kWh",VLOOKUP(V$4,'4. Billing Determinants'!$B$19:$Z$41,6,0)/'4. Billing Determinants'!$G$41*$D21,IF($E21="Distribution Rev.",VLOOKUP(V$4,'4. Billing Determinants'!$B$19:$Z$41,8,0)/'4. Billing Determinants'!$I$41*$D21, VLOOKUP(V$4,'4. Billing Determinants'!$B$19:$Z$41,3,0)/'4. Billing Determinants'!$D$41*$D21))))),0) -> 0 | W21: =IFERROR(IF(W$4="",0,IF($E21="kWh",VLOOKUP(W$4,'4. Billing Determinants'!$B$19:$Z$41,4,0)/'4. Billing Determinants'!$E$41*$D21,IF($E21="kW",VLOOKUP(W$4,'4. Billing Determinants'!$B$19:$Z$41,5,0)/'4. Billing Determinants'!$F$41*$D21,IF($E21="Non-RPP kWh",VLOOKUP(W$4,'4. Billing Determinants'!$B$19:$Z$41,6,0)/'4. Billing Determinants'!$G$41*$D21,IF($E21="Distribution Rev.",VLOOKUP(W$4,'4. Billing Determinants'!$B$19:$Z$41,8,0)/'4. Billing Determinants'!$I$41*$D21, VLOOKUP(W$4,'4. Billing Determinants'!$B$19:$Z$41,3,0)/'4. Billing Determinants'!$D$41*$D21))))),0) -> 0 | X21: =IFERROR(IF(X$4="",0,IF($E21="kWh",VLOOKUP(X$4,'4. Billing Determinants'!$B$19:$Z$41,4,0)/'4. Billing Determinants'!$E$41*$D21,IF($E21="kW",VLOOKUP(X$4,'4. Billing Determinants'!$B$19:$Z$41,5,0)/'4. Billing Determinants'!$F$41*$D21,IF($E21="Non-RPP kWh",VLOOKUP(X$4,'4. Billing Determinants'!$B$19:$Z$41,6,0)/'4. Billing Determinants'!$G$41*$D21,IF($E21="Distribution Rev.",VLOOKUP(X$4,'4. Billing Determinants'!$B$19:$Z$41,8,0)/'4. Billing Determinants'!$I$41*$D21, VLOOKUP(X$4,'4. Billing Determinants'!$B$19:$Z$41,3,0)/'4. Billing Determinants'!$D$41*$D21))))),0) -> 0 | Y21: =IFERROR(IF(Y$4="",0,IF($E21="kWh",VLOOKUP(Y$4,'4. Billing Determinants'!$B$19:$Z$41,4,0)/'4. Billing Determinants'!$E$41*$D21,IF($E21="kW",VLOOKUP(Y$4,'4. Billing Determinants'!$B$19:$Z$41,5,0)/'4. Billing Determinants'!$F$41*$D21,IF($E21="Non-RPP kWh",VLOOKUP(Y$4,'4. Billing Determinants'!$B$19:$Z$41,6,0)/'4. Billing Determinants'!$G$41*$D21,IF($E21="Distribution Rev.",VLOOKUP(Y$4,'4. Billing Determinants'!$B$19:$Z$41,8,0)/'4. Billing Determinants'!$I$41*$D21, VLOOKUP(Y$4,'4. Billing Determinants'!$B$19:$Z$41,3,0)/'4. Billing Determinants'!$D$41*$D21))))),0) -> 0
B22: Other Regulatory Assets - Sub-Account - Incremental Capital Charges | C22: 1508 | D22: ='2. 2015 Continuity Schedule'!BS45 -> 1575.149115 | E22: # of Customers | F22: =IFERROR(IF(F$4="",0,IF($E22="kWh",VLOOKUP(F$4,'4. Billing Determinants'!$B$19:$Z$41,4,0)/'4. Billing Determinants'!$E$41*$D22,IF($E22="kW",VLOOKUP(F$4,'4. Billing Determinants'!$B$19:$Z$41,5,0)/'4. Billing Determinants'!$F$41*$D22,IF($E22="Non-RPP kWh",VLOOKUP(F$4,'4. Billing Determinants'!$B$19:$Z$41,6,0)/'4. Billing Determinants'!$G$41*$D22,IF($E22="Distribution Rev.",VLOOKUP(F$4,'4. Billing Determinants'!$B$19:$Z$41,8,0)/'4. Billing Determinants'!$I$41*$D22, VLOOKUP(F$4,'4. Billing Determinants'!$B$19:$Z$41,3,0)/'4. Billing Determinants'!$D$41*$D22))))),0) -> 1321.764894 | G22: =IFERROR(IF(G$4="",0,IF($E22="kWh",VLOOKUP(G$4,'4. Billing Determinants'!$B$19:$Z$41,4,0)/'4. Billing Determinants'!$E$41*$D22,IF($E22="kW",VLOOKUP(G$4,'4. Billing Determinants'!$B$19:$Z$41,5,0)/'4. Billing Determinants'!$F$41*$D22,IF($E22="Non-RPP kWh",VLOOKUP(G$4,'4. Billing Determinants'!$B$19:$Z$41,6,0)/'4. Billing Determinants'!$G$41*$D22,IF($E22="Distribution Rev.",VLOOKUP(G$4,'4. Billing Determinants'!$B$19:$Z$41,8,0)/'4. Billing Determinants'!$I$41*$D22, VLOOKUP(G$4,'4. Billing Determinants'!$B$19:$Z$41,3,0)/'4. Billing Determinants'!$D$41*$D22))))),0) -> 101.2193746 | H22: =IFERROR(IF(H$4="",0,IF($E22="kWh",VLOOKUP(H$4,'4. Billing Determinants'!$B$19:$Z$41,4,0)/'4. Billing Determinants'!$E$41*$D22,IF($E22="kW",VLOOKUP(H$4,'4. Billing Determinants'!$B$19:$Z$41,5,0)/'4. Billing Determinants'!$F$41*$D22,IF($E22="Non-RPP kWh",VLOOKUP(H$4,'4. Billing Determinants'!$B$19:$Z$41,6,0)/'4. Billing Determinants'!$G$41*$D22,IF($E22="Distribution Rev.",VLOOKUP(H$4,'4. Billing Determinants'!$B$19:$Z$41,8,0)/'4. Billing Determinants'!$I$41*$D22, VLOOKUP(H$4,'4. Billing Determinants'!$B$19:$Z$41,3,0)/'4. Billing Determinants'!$D$41*$D22))))),0) -> 11.56732136 | I22: =IFERROR(IF(I$4="",0,IF($E22="kWh",VLOOKUP(I$4,'4. Billing Determinants'!$B$19:$Z$41,4,0)/'4. Billing Determinants'!$E$41*$D22,IF($E22="kW",VLOOKUP(I$4,'4. Billing Determinants'!$B$19:$Z$41,5,0)/'4. Billing Determinants'!$F$41*$D22,IF($E22="Non-RPP kWh",VLOOKUP(I$4,'4. Billing Determinants'!$B$19:$Z$41,6,0)/'4. Billing Determinants'!$G$41*$D22,IF($E22="Distribution Rev.",VLOOKUP(I$4,'4. Billing Determinants'!$B$19:$Z$41,8,0)/'4. Billing Determinants'!$I$41*$D22, VLOOKUP(I$4,'4. Billing Determinants'!$B$19:$Z$41,3,0)/'4. Billing Determinants'!$D$41*$D22))))),0) -> 0.498041901 | J22: =IFERROR(IF(J$4="",0,IF($E22="kWh",VLOOKUP(J$4,'4. Billing Determinants'!$B$19:$Z$41,4,0)/'4. Billing Determinants'!$E$41*$D22,IF($E22="kW",VLOOKUP(J$4,'4. Billing Determinants'!$B$19:$Z$41,5,0)/'4. Billing Determinants'!$F$41*$D22,IF($E22="Non-RPP kWh",VLOOKUP(J$4,'4. Billing Determinants'!$B$19:$Z$41,6,0)/'4. Billing Determinants'!$G$41*$D22,IF($E22="Distribution Rev.",VLOOKUP(J$4,'4. Billing Determinants'!$B$19:$Z$41,8,0)/'4. Billing Determinants'!$I$41*$D22, VLOOKUP(J$4,'4. Billing Determinants'!$B$19:$Z$41,3,0)/'4. Billing Determinants'!$D$41*$D22))))),0) -> 0.1149327464 | K22: =IFERROR(IF(K$4="",0,IF($E22="kWh",VLOOKUP(K$4,'4. Billing Determinants'!$B$19:$Z$41,4,0)/'4. Billing Determinants'!$E$41*$D22,IF($E22="kW",VLOOKUP(K$4,'4. Billing Determinants'!$B$19:$Z$41,5,0)/'4. Billing Determinants'!$F$41*$D22,IF($E22="Non-RPP kWh",VLOOKUP(K$4,'4. Billing Determinants'!$B$19:$Z$41,6,0)/'4. Billing Determinants'!$G$41*$D22,IF($E22="Distribution Rev.",VLOOKUP(K$4,'4. Billing Determinants'!$B$19:$Z$41,8,0)/'4. Billing Determinants'!$I$41*$D22, VLOOKUP(K$4,'4. Billing Determinants'!$B$19:$Z$41,3,0)/'4. Billing Determinants'!$D$41*$D22))))),0) -> 6.819342952 | L22: =IFERROR(IF(L$4="",0,IF($E22="kWh",VLOOKUP(L$4,'4. Billing Determinants'!$B$19:$Z$41,4,0)/'4. Billing Determinants'!$E$41*$D22,IF($E22="kW",VLOOKUP(L$4,'4. Billing Determinants'!$B$19:$Z$41,5,0)/'4. Billing Determinants'!$F$41*$D22,IF($E22="Non-RPP kWh",VLOOKUP(L$4,'4. Billing Determinants'!$B$19:$Z$41,6,0)/'4. Billing Determinants'!$G$41*$D22,IF($E22="Distribution Rev.",VLOOKUP(L$4,'4. Billing Determinants'!$B$19:$Z$41,8,0)/'4. Billing Determinants'!$I$41*$D22, VLOOKUP(L$4,'4. Billing Determinants'!$B$19:$Z$41,3,0)/'4. Billing Determinants'!$D$41*$D22))))),0) -> 9.279036897 | M22: =IFERROR(IF(M$4="",0,IF($E22="kWh",VLOOKUP(M$4,'4. Billing Determinants'!$B$19:$Z$41,4,0)/'4. Billing Determinants'!$E$41*$D22,IF($E22="kW",VLOOKUP(M$4,'4. Billing Determinants'!$B$19:$Z$41,5,0)/'4. Billing Determinants'!$F$41*$D22,IF($E22="Non-RPP kWh",VLOOKUP(M$4,'4. Billing Determinants'!$B$19:$Z$41,6,0)/'4. Billing Determinants'!$G$41*$D22,IF($E22="Distribution Rev.",VLOOKUP(M$4,'4. Billing Determinants'!$B$19:$Z$41,8,0)/'4. Billing Determinants'!$I$41*$D22, VLOOKUP(M$4,'4. Billing Determinants'!$B$19:$Z$41,3,0)/'4. Billing Determinants'!$D$41*$D22))))),0) -> 123.88617 | N22: =IFERROR(IF(N$4="",0,IF($E22="kWh",VLOOKUP(N$4,'4. Billing Determinants'!$B$19:$Z$41,4,0)/'4. Billing Determinants'!$E$41*$D22,IF($E22="kW",VLOOKUP(N$4,'4. Billing Determinants'!$B$19:$Z$41,5,0)/'4. Billing Determinants'!$F$41*$D22,IF($E22="Non-RPP kWh",VLOOKUP(N$4,'4. Billing Determinants'!$B$19:$Z$41,6,0)/'4. Billing Determinants'!$G$41*$D22,IF($E22="Distribution Rev.",VLOOKUP(N$4,'4. Billing Determinants'!$B$19:$Z$41,8,0)/'4. Billing Determinants'!$I$41*$D22, VLOOKUP(N$4,'4. Billing Determinants'!$B$19:$Z$41,3,0)/'4. Billing Determinants'!$D$41*$D22))))),0) -> 0 | O22: =IFERROR(IF(O$4="",0,IF($E22="kWh",VLOOKUP(O$4,'4. Billing Determinants'!$B$19:$Z$41,4,0)/'4. Billing Determinants'!$E$41*$D22,IF($E22="kW",VLOOKUP(O$4,'4. Billing Determinants'!$B$19:$Z$41,5,0)/'4. Billing Determinants'!$F$41*$D22,IF($E22="Non-RPP kWh",VLOOKUP(O$4,'4. Billing Determinants'!$B$19:$Z$41,6,0)/'4. Billing Determinants'!$G$41*$D22,IF($E22="Distribution Rev.",VLOOKUP(O$4,'4. Billing Determinants'!$B$19:$Z$41,8,0)/'4. Billing Determinants'!$I$41*$D22, VLOOKUP(O$4,'4. Billing Determinants'!$B$19:$Z$41,3,0)/'4. Billing Determinants'!$D$41*$D22))))),0) -> 0 | P22: =IFERROR(IF(P$4="",0,IF($E22="kWh",VLOOKUP(P$4,'4. Billing Determinants'!$B$19:$Z$41,4,0)/'4. Billing Determinants'!$E$41*$D22,IF($E22="kW",VLOOKUP(P$4,'4. Billing Determinants'!$B$19:$Z$41,5,0)/'4. Billing Determinants'!$F$41*$D22,IF($E22="Non-RPP kWh",VLOOKUP(P$4,'4. Billing Determinants'!$B$19:$Z$41,6,0)/'4. Billing Determinants'!$G$41*$D22,IF($E22="Distribution Rev.",VLOOKUP(P$4,'4. Billing Determinants'!$B$19:$Z$41,8,0)/'4. Billing Determinants'!$I$41*$D22, VLOOKUP(P$4,'4. Billing Determinants'!$B$19:$Z$41,3,0)/'4. Billing Determinants'!$D$41*$D22))))),0) -> 0 | Q22: =IFERROR(IF(Q$4="",0,IF($E22="kWh",VLOOKUP(Q$4,'4. Billing Determinants'!$B$19:$Z$41,4,0)/'4. Billing Determinants'!$E$41*$D22,IF($E22="kW",VLOOKUP(Q$4,'4. Billing Determinants'!$B$19:$Z$41,5,0)/'4. Billing Determinants'!$F$41*$D22,IF($E22="Non-RPP kWh",VLOOKUP(Q$4,'4. Billing Determinants'!$B$19:$Z$41,6,0)/'4. Billing Determinants'!$G$41*$D22,IF($E22="Distribution Rev.",VLOOKUP(Q$4,'4. Billing Determinants'!$B$19:$Z$41,8,0)/'4. Billing Determinants'!$I$41*$D22, VLOOKUP(Q$4,'4. Billing Determinants'!$B$19:$Z$41,3,0)/'4. Billing Determinants'!$D$41*$D22))))),0) -> 0 | R22: =IFERROR(IF(R$4="",0,IF($E22="kWh",VLOOKUP(R$4,'4. Billing Determinants'!$B$19:$Z$41,4,0)/'4. Billing Determinants'!$E$41*$D22,IF($E22="kW",VLOOKUP(R$4,'4. Billing Determinants'!$B$19:$Z$41,5,0)/'4. Billing Determinants'!$F$41*$D22,IF($E22="Non-RPP kWh",VLOOKUP(R$4,'4. Billing Determinants'!$B$19:$Z$41,6,0)/'4. Billing Determinants'!$G$41*$D22,IF($E22="Distribution Rev.",VLOOKUP(R$4,'4. Billing Determinants'!$B$19:$Z$41,8,0)/'4. Billing Determinants'!$I$41*$D22, VLOOKUP(R$4,'4. Billing Determinants'!$B$19:$Z$41,3,0)/'4. Billing Determinants'!$D$41*$D22))))),0) -> 0 | S22: =IFERROR(IF(S$4="",0,IF($E22="kWh",VLOOKUP(S$4,'4. Billing Determinants'!$B$19:$Z$41,4,0)/'4. Billing Determinants'!$E$41*$D22,IF($E22="kW",VLOOKUP(S$4,'4. Billing Determinants'!$B$19:$Z$41,5,0)/'4. Billing Determinants'!$F$41*$D22,IF($E22="Non-RPP kWh",VLOOKUP(S$4,'4. Billing Determinants'!$B$19:$Z$41,6,0)/'4. Billing Determinants'!$G$41*$D22,IF($E22="Distribution Rev.",VLOOKUP(S$4,'4. Billing Determinants'!$B$19:$Z$41,8,0)/'4. Billing Determinants'!$I$41*$D22, VLOOKUP(S$4,'4. Billing Determinants'!$B$19:$Z$41,3,0)/'4. Billing Determinants'!$D$41*$D22))))),0) -> 0 | T22: =IFERROR(IF(T$4="",0,IF($E22="kWh",VLOOKUP(T$4,'4. Billing Determinants'!$B$19:$Z$41,4,0)/'4. Billing Determinants'!$E$41*$D22,IF($E22="kW",VLOOKUP(T$4,'4. Billing Determinants'!$B$19:$Z$41,5,0)/'4. Billing Determinants'!$F$41*$D22,IF($E22="Non-RPP kWh",VLOOKUP(T$4,'4. Billing Determinants'!$B$19:$Z$41,6,0)/'4. Billing Determinants'!$G$41*$D22,IF($E22="Distribution Rev.",VLOOKUP(T$4,'4. Billing Determinants'!$B$19:$Z$41,8,0)/'4. Billing Determinants'!$I$41*$D22, VLOOKUP(T$4,'4. Billing Determinants'!$B$19:$Z$41,3,0)/'4. Billing Determinants'!$D$41*$D22))))),0) -> 0 | U22: =IFERROR(IF(U$4="",0,IF($E22="kWh",VLOOKUP(U$4,'4. Billing Determinants'!$B$19:$Z$41,4,0)/'4. Billing Determinants'!$E$41*$D22,IF($E22="kW",VLOOKUP(U$4,'4. Billing Determinants'!$B$19:$Z$41,5,0)/'4. Billing Determinants'!$F$41*$D22,IF($E22="Non-RPP kWh",VLOOKUP(U$4,'4. Billing Determinants'!$B$19:$Z$41,6,0)/'4. Billing Determinants'!$G$41*$D22,IF($E22="Distribution Rev.",VLOOKUP(U$4,'4. Billing Determinants'!$B$19:$Z$41,8,0)/'4. Billing Determinants'!$I$41*$D22, VLOOKUP(U$4,'4. Billing Determinants'!$B$19:$Z$41,3,0)/'4. Billing Determinants'!$D$41*$D22))))),0) -> 0 | V22: =IFERROR(IF(V$4="",0,IF($E22="kWh",VLOOKUP(V$4,'4. Billing Determinants'!$B$19:$Z$41,4,0)/'4. Billing Determinants'!$E$41*$D22,IF($E22="kW",VLOOKUP(V$4,'4. Billing Determinants'!$B$19:$Z$41,5,0)/'4. Billing Determinants'!$F$41*$D22,IF($E22="Non-RPP kWh",VLOOKUP(V$4,'4. Billing Determinants'!$B$19:$Z$41,6,0)/'4. Billing Determinants'!$G$41*$D22,IF($E22="Distribution Rev.",VLOOKUP(V$4,'4. Billing Determinants'!$B$19:$Z$41,8,0)/'4. Billing Determinants'!$I$41*$D22, VLOOKUP(V$4,'4. Billing Determinants'!$B$19:$Z$41,3,0)/'4. Billing Determinants'!$D$41*$D22))))),0) -> 0 | W22: =IFERROR(IF(W$4="",0,IF($E22="kWh",VLOOKUP(W$4,'4. Billing Determinants'!$B$19:$Z$41,4,0)/'4. Billing Determinants'!$E$41*$D22,IF($E22="kW",VLOOKUP(W$4,'4. Billing Determinants'!$B$19:$Z$41,5,0)/'4. Billing Determinants'!$F$41*$D22,IF($E22="Non-RPP kWh",VLOOKUP(W$4,'4. Billing Determinants'!$B$19:$Z$41,6,0)/'4. Billing Determinants'!$G$41*$D22,IF($E22="Distribution Rev.",VLOOKUP(W$4,'4. Billing Determinants'!$B$19:$Z$41,8,0)/'4. Billing Determinants'!$I$41*$D22, VLOOKUP(W$4,'4. Billing Determinants'!$B$19:$Z$41,3,0)/'4. Billing Determinants'!$D$41*$D22))))),0) -> 0 | X22: =IFERROR(IF(X$4="",0,IF($E22="kWh",VLOOKUP(X$4,'4. Billing Determinants'!$B$19:$Z$41,4,0)/'4. Billing Determinants'!$E$41*$D22,IF($E22="kW",VLOOKUP(X$4,'4. Billing Determinants'!$B$19:$Z$41,5,0)/'4. Billing Determinants'!$F$41*$D22,IF($E22="Non-RPP kWh",VLOOKUP(X$4,'4. Billing Determinants'!$B$19:$Z$41,6,0)/'4. Billing Determinants'!$G$41*$D22,IF($E22="Distribution Rev.",VLOOKUP(X$4,'4. Billing Determinants'!$B$19:$Z$41,8,0)/'4. Billing Determinants'!$I$41*$D22, VLOOKUP(X$4,'4. Billing Determinants'!$B$19:$Z$41,3,0)/'4. Billing Determinants'!$D$41*$D22))))),0) -> 0 | Y22: =IFERROR(IF(Y$4="",0,IF($E22="kWh",VLOOKUP(Y$4,'4. Billing Determinants'!$B$19:$Z$41,4,0)/'4. Billing Determinants'!$E$41*$D22,IF($E22="kW",VLOOKUP(Y$4,'4. Billing Determinants'!$B$19:$Z$41,5,0)/'4. Billing Determinants'!$F$41*$D22,IF($E22="Non-RPP kWh",VLOOKUP(Y$4,'4. Billing Determinants'!$B$19:$Z$41,6,0)/'4. Billing Determinants'!$G$41*$D22,IF($E22="Distribution Rev.",VLOOKUP(Y$4,'4. Billing Determinants'!$B$19:$Z$41,8,0)/'4. Billing Determinants'!$I$41*$D22, VLOOKUP(Y$4,'4. Billing Determinants'!$B$19:$Z$41,3,0)/'4. Billing Determinants'!$D$41*$D22))))),0) -> 0
B23: Other Regulatory Assets - Sub-Account - Financial Assistance Payment and Recovery Variance - Ontario Clean Energy Benefit Act8 | C23: 1508 | D23: ='2. 2015 Continuity Schedule'!BS46 -> 0 | E23: kWh | F23: =IFERROR(IF(F$4="",0,IF($E23="kWh",VLOOKUP(F$4,'4. Billing Determinants'!$B$19:$Z$41,4,0)/'4. Billing Determinants'!$E$41*$D23,IF($E23="kW",VLOOKUP(F$4,'4. Billing Determinants'!$B$19:$Z$41,5,0)/'4. Billing Determinants'!$F$41*$D23,IF($E23="Non-RPP kWh",VLOOKUP(F$4,'4. Billing Determinants'!$B$19:$Z$41,6,0)/'4. Billing Determinants'!$G$41*$D23,IF($E23="Distribution Rev.",VLOOKUP(F$4,'4. Billing Determinants'!$B$19:$Z$41,8,0)/'4. Billing Determinants'!$I$41*$D23, VLOOKUP(F$4,'4. Billing Determinants'!$B$19:$Z$41,3,0)/'4. Billing Determinants'!$D$41*$D23))))),0) -> 0 | G23: =IFERROR(IF(G$4="",0,IF($E23="kWh",VLOOKUP(G$4,'4. Billing Determinants'!$B$19:$Z$41,4,0)/'4. Billing Determinants'!$E$41*$D23,IF($E23="kW",VLOOKUP(G$4,'4. Billing Determinants'!$B$19:$Z$41,5,0)/'4. Billing Determinants'!$F$41*$D23,IF($E23="Non-RPP kWh",VLOOKUP(G$4,'4. Billing Determinants'!$B$19:$Z$41,6,0)/'4. Billing Determinants'!$G$41*$D23,IF($E23="Distribution Rev.",VLOOKUP(G$4,'4. Billing Determinants'!$B$19:$Z$41,8,0)/'4. Billing Determinants'!$I$41*$D23, VLOOKUP(G$4,'4. Billing Determinants'!$B$19:$Z$41,3,0)/'4. Billing Determinants'!$D$41*$D23))))),0) -> 0 | H23: =IFERROR(IF(H$4="",0,IF($E23="kWh",VLOOKUP(H$4,'4. Billing Determinants'!$B$19:$Z$41,4,0)/'4. Billing Determinants'!$E$41*$D23,IF($E23="kW",VLOOKUP(H$4,'4. Billing Determinants'!$B$19:$Z$41,5,0)/'4. Billing Determinants'!$F$41*$D23,IF($E23="Non-RPP kWh",VLOOKUP(H$4,'4. Billing Determinants'!$B$19:$Z$41,6,0)/'4. Billing Determinants'!$G$41*$D23,IF($E23="Distribution Rev.",VLOOKUP(H$4,'4. Billing Determinants'!$B$19:$Z$41,8,0)/'4. Billing Determinants'!$I$41*$D23, VLOOKUP(H$4,'4. Billing Determinants'!$B$19:$Z$41,3,0)/'4. Billing Determinants'!$D$41*$D23))))),0) -> 0 | I23: =IFERROR(IF(I$4="",0,IF($E23="kWh",VLOOKUP(I$4,'4. Billing Determinants'!$B$19:$Z$41,4,0)/'4. Billing Determinants'!$E$41*$D23,IF($E23="kW",VLOOKUP(I$4,'4. Billing Determinants'!$B$19:$Z$41,5,0)/'4. Billing Determinants'!$F$41*$D23,IF($E23="Non-RPP kWh",VLOOKUP(I$4,'4. Billing Determinants'!$B$19:$Z$41,6,0)/'4. Billing Determinants'!$G$41*$D23,IF($E23="Distribution Rev.",VLOOKUP(I$4,'4. Billing Determinants'!$B$19:$Z$41,8,0)/'4. Billing Determinants'!$I$41*$D23, VLOOKUP(I$4,'4. Billing Determinants'!$B$19:$Z$41,3,0)/'4. Billing Determinants'!$D$41*$D23))))),0) -> 0 | J23: =IFERROR(IF(J$4="",0,IF($E23="kWh",VLOOKUP(J$4,'4. Billing Determinants'!$B$19:$Z$41,4,0)/'4. Billing Determinants'!$E$41*$D23,IF($E23="kW",VLOOKUP(J$4,'4. Billing Determinants'!$B$19:$Z$41,5,0)/'4. Billing Determinants'!$F$41*$D23,IF($E23="Non-RPP kWh",VLOOKUP(J$4,'4. Billing Determinants'!$B$19:$Z$41,6,0)/'4. Billing Determinants'!$G$41*$D23,IF($E23="Distribution Rev.",VLOOKUP(J$4,'4. Billing Determinants'!$B$19:$Z$41,8,0)/'4. Billing Determinants'!$I$41*$D23, VLOOKUP(J$4,'4. Billing Determinants'!$B$19:$Z$41,3,0)/'4. Billing Determinants'!$D$41*$D23))))),0) -> 0 | K23: =IFERROR(IF(K$4="",0,IF($E23="kWh",VLOOKUP(K$4,'4. Billing Determinants'!$B$19:$Z$41,4,0)/'4. Billing Determinants'!$E$41*$D23,IF($E23="kW",VLOOKUP(K$4,'4. Billing Determinants'!$B$19:$Z$41,5,0)/'4. Billing Determinants'!$F$41*$D23,IF($E23="Non-RPP kWh",VLOOKUP(K$4,'4. Billing Determinants'!$B$19:$Z$41,6,0)/'4. Billing Determinants'!$G$41*$D23,IF($E23="Distribution Rev.",VLOOKUP(K$4,'4. Billing Determinants'!$B$19:$Z$41,8,0)/'4. Billing Determinants'!$I$41*$D23, VLOOKUP(K$4,'4. Billing Determinants'!$B$19:$Z$41,3,0)/'4. Billing Determinants'!$D$41*$D23))))),0) -> 0 | L23: =IFERROR(IF(L$4="",0,IF($E23="kWh",VLOOKUP(L$4,'4. Billing Determinants'!$B$19:$Z$41,4,0)/'4. Billing Determinants'!$E$41*$D23,IF($E23="kW",VLOOKUP(L$4,'4. Billing Determinants'!$B$19:$Z$41,5,0)/'4. Billing Determinants'!$F$41*$D23,IF($E23="Non-RPP kWh",VLOOKUP(L$4,'4. Billing Determinants'!$B$19:$Z$41,6,0)/'4. Billing Determinants'!$G$41*$D23,IF($E23="Distribution Rev.",VLOOKUP(L$4,'4. Billing Determinants'!$B$19:$Z$41,8,0)/'4. Billing Determinants'!$I$41*$D23, VLOOKUP(L$4,'4. Billing Determinants'!$B$19:$Z$41,3,0)/'4. Billing Determinants'!$D$41*$D23))))),0) -> 0 | M23: =IFERROR(IF(M$4="",0,IF($E23="kWh",VLOOKUP(M$4,'4. Billing Determinants'!$B$19:$Z$41,4,0)/'4. Billing Determinants'!$E$41*$D23,IF($E23="kW",VLOOKUP(M$4,'4. Billing Determinants'!$B$19:$Z$41,5,0)/'4. Billing Determinants'!$F$41*$D23,IF($E23="Non-RPP kWh",VLOOKUP(M$4,'4. Billing Determinants'!$B$19:$Z$41,6,0)/'4. Billing Determinants'!$G$41*$D23,IF($E23="Distribution Rev.",VLOOKUP(M$4,'4. Billing Determinants'!$B$19:$Z$41,8,0)/'4. Billing Determinants'!$I$41*$D23, VLOOKUP(M$4,'4. Billing Determinants'!$B$19:$Z$41,3,0)/'4. Billing Determinants'!$D$41*$D23))))),0) -> 0 | N23: =IFERROR(IF(N$4="",0,IF($E23="kWh",VLOOKUP(N$4,'4. Billing Determinants'!$B$19:$Z$41,4,0)/'4. Billing Determinants'!$E$41*$D23,IF($E23="kW",VLOOKUP(N$4,'4. Billing Determinants'!$B$19:$Z$41,5,0)/'4. Billing Determinants'!$F$41*$D23,IF($E23="Non-RPP kWh",VLOOKUP(N$4,'4. Billing Determinants'!$B$19:$Z$41,6,0)/'4. Billing Determinants'!$G$41*$D23,IF($E23="Distribution Rev.",VLOOKUP(N$4,'4. Billing Determinants'!$B$19:$Z$41,8,0)/'4. Billing Determinants'!$I$41*$D23, VLOOKUP(N$4,'4. Billing Determinants'!$B$19:$Z$41,3,0)/'4. Billing Determinants'!$D$41*$D23))))),0) -> 0 | O23: =IFERROR(IF(O$4="",0,IF($E23="kWh",VLOOKUP(O$4,'4. Billing Determinants'!$B$19:$Z$41,4,0)/'4. Billing Determinants'!$E$41*$D23,IF($E23="kW",VLOOKUP(O$4,'4. Billing Determinants'!$B$19:$Z$41,5,0)/'4. Billing Determinants'!$F$41*$D23,IF($E23="Non-RPP kWh",VLOOKUP(O$4,'4. Billing Determinants'!$B$19:$Z$41,6,0)/'4. Billing Determinants'!$G$41*$D23,IF($E23="Distribution Rev.",VLOOKUP(O$4,'4. Billing Determinants'!$B$19:$Z$41,8,0)/'4. Billing Determinants'!$I$41*$D23, VLOOKUP(O$4,'4. Billing Determinants'!$B$19:$Z$41,3,0)/'4. Billing Determinants'!$D$41*$D23))))),0) -> 0 | P23: =IFERROR(IF(P$4="",0,IF($E23="kWh",VLOOKUP(P$4,'4. Billing Determinants'!$B$19:$Z$41,4,0)/'4. Billing Determinants'!$E$41*$D23,IF($E23="kW",VLOOKUP(P$4,'4. Billing Determinants'!$B$19:$Z$41,5,0)/'4. Billing Determinants'!$F$41*$D23,IF($E23="Non-RPP kWh",VLOOKUP(P$4,'4. Billing Determinants'!$B$19:$Z$41,6,0)/'4. Billing Determinants'!$G$41*$D23,IF($E23="Distribution Rev.",VLOOKUP(P$4,'4. Billing Determinants'!$B$19:$Z$41,8,0)/'4. Billing Determinants'!$I$41*$D23, VLOOKUP(P$4,'4. Billing Determinants'!$B$19:$Z$41,3,0)/'4. Billing Determinants'!$D$41*$D23))))),0) -> 0 | Q23: =IFERROR(IF(Q$4="",0,IF($E23="kWh",VLOOKUP(Q$4,'4. Billing Determinants'!$B$19:$Z$41,4,0)/'4. Billing Determinants'!$E$41*$D23,IF($E23="kW",VLOOKUP(Q$4,'4. Billing Determinants'!$B$19:$Z$41,5,0)/'4. Billing Determinants'!$F$41*$D23,IF($E23="Non-RPP kWh",VLOOKUP(Q$4,'4. Billing Determinants'!$B$19:$Z$41,6,0)/'4. Billing Determinants'!$G$41*$D23,IF($E23="Distribution Rev.",VLOOKUP(Q$4,'4. Billing Determinants'!$B$19:$Z$41,8,0)/'4. Billing Determinants'!$I$41*$D23, VLOOKUP(Q$4,'4. Billing Determinants'!$B$19:$Z$41,3,0)/'4. Billing Determinants'!$D$41*$D23))))),0) -> 0 | R23: =IFERROR(IF(R$4="",0,IF($E23="kWh",VLOOKUP(R$4,'4. Billing Determinants'!$B$19:$Z$41,4,0)/'4. Billing Determinants'!$E$41*$D23,IF($E23="kW",VLOOKUP(R$4,'4. Billing Determinants'!$B$19:$Z$41,5,0)/'4. Billing Determinants'!$F$41*$D23,IF($E23="Non-RPP kWh",VLOOKUP(R$4,'4. Billing Determinants'!$B$19:$Z$41,6,0)/'4. Billing Determinants'!$G$41*$D23,IF($E23="Distribution Rev.",VLOOKUP(R$4,'4. Billing Determinants'!$B$19:$Z$41,8,0)/'4. Billing Determinants'!$I$41*$D23, VLOOKUP(R$4,'4. Billing Determinants'!$B$19:$Z$41,3,0)/'4. Billing Determinants'!$D$41*$D23))))),0) -> 0 | S23: =IFERROR(IF(S$4="",0,IF($E23="kWh",VLOOKUP(S$4,'4. Billing Determinants'!$B$19:$Z$41,4,0)/'4. Billing Determinants'!$E$41*$D23,IF($E23="kW",VLOOKUP(S$4,'4. Billing Determinants'!$B$19:$Z$41,5,0)/'4. Billing Determinants'!$F$41*$D23,IF($E23="Non-RPP kWh",VLOOKUP(S$4,'4. Billing Determinants'!$B$19:$Z$41,6,0)/'4. Billing Determinants'!$G$41*$D23,IF($E23="Distribution Rev.",VLOOKUP(S$4,'4. Billing Determinants'!$B$19:$Z$41,8,0)/'4. Billing Determinants'!$I$41*$D23, VLOOKUP(S$4,'4. Billing Determinants'!$B$19:$Z$41,3,0)/'4. Billing Determinants'!$D$41*$D23))))),0) -> 0 | T23: =IFERROR(IF(T$4="",0,IF($E23="kWh",VLOOKUP(T$4,'4. Billing Determinants'!$B$19:$Z$41,4,0)/'4. Billing Determinants'!$E$41*$D23,IF($E23="kW",VLOOKUP(T$4,'4. Billing Determinants'!$B$19:$Z$41,5,0)/'4. Billing Determinants'!$F$41*$D23,IF($E23="Non-RPP kWh",VLOOKUP(T$4,'4. Billing Determinants'!$B$19:$Z$41,6,0)/'4. Billing Determinants'!$G$41*$D23,IF($E23="Distribution Rev.",VLOOKUP(T$4,'4. Billing Determinants'!$B$19:$Z$41,8,0)/'4. Billing Determinants'!$I$41*$D23, VLOOKUP(T$4,'4. Billing Determinants'!$B$19:$Z$41,3,0)/'4. Billing Determinants'!$D$41*$D23))))),0) -> 0 | U23: =IFERROR(IF(U$4="",0,IF($E23="kWh",VLOOKUP(U$4,'4. Billing Determinants'!$B$19:$Z$41,4,0)/'4. Billing Determinants'!$E$41*$D23,IF($E23="kW",VLOOKUP(U$4,'4. Billing Determinants'!$B$19:$Z$41,5,0)/'4. Billing Determinants'!$F$41*$D23,IF($E23="Non-RPP kWh",VLOOKUP(U$4,'4. Billing Determinants'!$B$19:$Z$41,6,0)/'4. Billing Determinants'!$G$41*$D23,IF($E23="Distribution Rev.",VLOOKUP(U$4,'4. Billing Determinants'!$B$19:$Z$41,8,0)/'4. Billing Determinants'!$I$41*$D23, VLOOKUP(U$4,'4. Billing Determinants'!$B$19:$Z$41,3,0)/'4. Billing Determinants'!$D$41*$D23))))),0) -> 0 | V23: =IFERROR(IF(V$4="",0,IF($E23="kWh",VLOOKUP(V$4,'4. Billing Determinants'!$B$19:$Z$41,4,0)/'4. Billing Determinants'!$E$41*$D23,IF($E23="kW",VLOOKUP(V$4,'4. Billing Determinants'!$B$19:$Z$41,5,0)/'4. Billing Determinants'!$F$41*$D23,IF($E23="Non-RPP kWh",VLOOKUP(V$4,'4. Billing Determinants'!$B$19:$Z$41,6,0)/'4. Billing Determinants'!$G$41*$D23,IF($E23="Distribution Rev.",VLOOKUP(V$4,'4. Billing Determinants'!$B$19:$Z$41,8,0)/'4. Billing Determinants'!$I$41*$D23, VLOOKUP(V$4,'4. Billing Determinants'!$B$19:$Z$41,3,0)/'4. Billing Determinants'!$D$41*$D23))))),0) -> 0 | W23: =IFERROR(IF(W$4="",0,IF($E23="kWh",VLOOKUP(W$4,'4. Billing Determinants'!$B$19:$Z$41,4,0)/'4. Billing Determinants'!$E$41*$D23,IF($E23="kW",VLOOKUP(W$4,'4. Billing Determinants'!$B$19:$Z$41,5,0)/'4. Billing Determinants'!$F$41*$D23,IF($E23="Non-RPP kWh",VLOOKUP(W$4,'4. Billing Determinants'!$B$19:$Z$41,6,0)/'4. Billing Determinants'!$G$41*$D23,IF($E23="Distribution Rev.",VLOOKUP(W$4,'4. Billing Determinants'!$B$19:$Z$41,8,0)/'4. Billing Determinants'!$I$41*$D23, VLOOKUP(W$4,'4. Billing Determinants'!$B$19:$Z$41,3,0)/'4. Billing Determinants'!$D$41*$D23))))),0) -> 0 | X23: =IFERROR(IF(X$4="",0,IF($E23="kWh",VLOOKUP(X$4,'4. Billing Determinants'!$B$19:$Z$41,4,0)/'4. Billing Determinants'!$E$41*$D23,IF($E23="kW",VLOOKUP(X$4,'4. Billing Determinants'!$B$19:$Z$41,5,0)/'4. Billing Determinants'!$F$41*$D23,IF($E23="Non-RPP kWh",VLOOKUP(X$4,'4. Billing Determinants'!$B$19:$Z$41,6,0)/'4. Billing Determinants'!$G$41*$D23,IF($E23="Distribution Rev.",VLOOKUP(X$4,'4. Billing Determinants'!$B$19:$Z$41,8,0)/'4. Billing Determinants'!$I$41*$D23, VLOOKUP(X$4,'4. Billing Determinants'!$B$19:$Z$41,3,0)/'4. Billing Determinants'!$D$41*$D23))))),0) -> 0 | Y23: =IFERROR(IF(Y$4="",0,IF($E23="kWh",VLOOKUP(Y$4,'4. Billing Determinants'!$B$19:$Z$41,4,0)/'4. Billing Determinants'!$E$41*$D23,IF($E23="kW",VLOOKUP(Y$4,'4. Billing Determinants'!$B$19:$Z$41,5,0)/'4. Billing Determinants'!$F$41*$D23,IF($E23="Non-RPP kWh",VLOOKUP(Y$4,'4. Billing Determinants'!$B$19:$Z$41,6,0)/'4. Billing Determinants'!$G$41*$D23,IF($E23="Distribution Rev.",VLOOKUP(Y$4,'4. Billing Determinants'!$B$19:$Z$41,8,0)/'4. Billing Determinants'!$I$41*$D23, VLOOKUP(Y$4,'4. Billing Determinants'!$B$19:$Z$41,3,0)/'4. Billing Determinants'!$D$41*$D23))))),0) -> 0
B24: Other Regulatory Assets - Sub-Account - Financial Assistance Payment and Recovery Carrying Charges | C24: 1508 | D24: ='2. 2015 Continuity Schedule'!BS47 -> 0 | E24: kWh | F24: =IFERROR(IF(F$4="",0,IF($E24="kWh",VLOOKUP(F$4,'4. Billing Determinants'!$B$19:$Z$41,4,0)/'4. Billing Determinants'!$E$41*$D24,IF($E24="kW",VLOOKUP(F$4,'4. Billing Determinants'!$B$19:$Z$41,5,0)/'4. Billing Determinants'!$F$41*$D24,IF($E24="Non-RPP kWh",VLOOKUP(F$4,'4. Billing Determinants'!$B$19:$Z$41,6,0)/'4. Billing Determinants'!$G$41*$D24,IF($E24="Distribution Rev.",VLOOKUP(F$4,'4. Billing Determinants'!$B$19:$Z$41,8,0)/'4. Billing Determinants'!$I$41*$D24, VLOOKUP(F$4,'4. Billing Determinants'!$B$19:$Z$41,3,0)/'4. Billing Determinants'!$D$41*$D24))))),0) -> 0 | G24: =IFERROR(IF(G$4="",0,IF($E24="kWh",VLOOKUP(G$4,'4. Billing Determinants'!$B$19:$Z$41,4,0)/'4. Billing Determinants'!$E$41*$D24,IF($E24="kW",VLOOKUP(G$4,'4. Billing Determinants'!$B$19:$Z$41,5,0)/'4. Billing Determinants'!$F$41*$D24,IF($E24="Non-RPP kWh",VLOOKUP(G$4,'4. Billing Determinants'!$B$19:$Z$41,6,0)/'4. Billing Determinants'!$G$41*$D24,IF($E24="Distribution Rev.",VLOOKUP(G$4,'4. Billing Determinants'!$B$19:$Z$41,8,0)/'4. Billing Determinants'!$I$41*$D24, VLOOKUP(G$4,'4. Billing Determinants'!$B$19:$Z$41,3,0)/'4. Billing Determinants'!$D$41*$D24))))),0) -> 0 | H24: =IFERROR(IF(H$4="",0,IF($E24="kWh",VLOOKUP(H$4,'4. Billing Determinants'!$B$19:$Z$41,4,0)/'4. Billing Determinants'!$E$41*$D24,IF($E24="kW",VLOOKUP(H$4,'4. Billing Determinants'!$B$19:$Z$41,5,0)/'4. Billing Determinants'!$F$41*$D24,IF($E24="Non-RPP kWh",VLOOKUP(H$4,'4. Billing Determinants'!$B$19:$Z$41,6,0)/'4. Billing Determinants'!$G$41*$D24,IF($E24="Distribution Rev.",VLOOKUP(H$4,'4. Billing Determinants'!$B$19:$Z$41,8,0)/'4. Billing Determinants'!$I$41*$D24, VLOOKUP(H$4,'4. Billing Determinants'!$B$19:$Z$41,3,0)/'4. Billing Determinants'!$D$41*$D24))))),0) -> 0 | I24: =IFERROR(IF(I$4="",0,IF($E24="kWh",VLOOKUP(I$4,'4. Billing Determinants'!$B$19:$Z$41,4,0)/'4. Billing Determinants'!$E$41*$D24,IF($E24="kW",VLOOKUP(I$4,'4. Billing Determinants'!$B$19:$Z$41,5,0)/'4. Billing Determinants'!$F$41*$D24,IF($E24="Non-RPP kWh",VLOOKUP(I$4,'4. Billing Determinants'!$B$19:$Z$41,6,0)/'4. Billing Determinants'!$G$41*$D24,IF($E24="Distribution Rev.",VLOOKUP(I$4,'4. Billing Determinants'!$B$19:$Z$41,8,0)/'4. Billing Determinants'!$I$41*$D24, VLOOKUP(I$4,'4. Billing Determinants'!$B$19:$Z$41,3,0)/'4. Billing Determinants'!$D$41*$D24))))),0) -> 0 | J24: =IFERROR(IF(J$4="",0,IF($E24="kWh",VLOOKUP(J$4,'4. Billing Determinants'!$B$19:$Z$41,4,0)/'4. Billing Determinants'!$E$41*$D24,IF($E24="kW",VLOOKUP(J$4,'4. Billing Determinants'!$B$19:$Z$41,5,0)/'4. Billing Determinants'!$F$41*$D24,IF($E24="Non-RPP kWh",VLOOKUP(J$4,'4. Billing Determinants'!$B$19:$Z$41,6,0)/'4. Billing Determinants'!$G$41*$D24,IF($E24="Distribution Rev.",VLOOKUP(J$4,'4. Billing Determinants'!$B$19:$Z$41,8,0)/'4. Billing Determinants'!$I$41*$D24, VLOOKUP(J$4,'4. Billing Determinants'!$B$19:$Z$41,3,0)/'4. Billing Determinants'!$D$41*$D24))))),0) -> 0 | K24: =IFERROR(IF(K$4="",0,IF($E24="kWh",VLOOKUP(K$4,'4. Billing Determinants'!$B$19:$Z$41,4,0)/'4. Billing Determinants'!$E$41*$D24,IF($E24="kW",VLOOKUP(K$4,'4. Billing Determinants'!$B$19:$Z$41,5,0)/'4. Billing Determinants'!$F$41*$D24,IF($E24="Non-RPP kWh",VLOOKUP(K$4,'4. Billing Determinants'!$B$19:$Z$41,6,0)/'4. Billing Determinants'!$G$41*$D24,IF($E24="Distribution Rev.",VLOOKUP(K$4,'4. Billing Determinants'!$B$19:$Z$41,8,0)/'4. Billing Determinants'!$I$41*$D24, VLOOKUP(K$4,'4. Billing Determinants'!$B$19:$Z$41,3,0)/'4. Billing Determinants'!$D$41*$D24))))),0) -> 0 | L24: =IFERROR(IF(L$4="",0,IF($E24="kWh",VLOOKUP(L$4,'4. Billing Determinants'!$B$19:$Z$41,4,0)/'4. Billing Determinants'!$E$41*$D24,IF($E24="kW",VLOOKUP(L$4,'4. Billing Determinants'!$B$19:$Z$41,5,0)/'4. Billing Determinants'!$F$41*$D24,IF($E24="Non-RPP kWh",VLOOKUP(L$4,'4. Billing Determinants'!$B$19:$Z$41,6,0)/'4. Billing Determinants'!$G$41*$D24,IF($E24="Distribution Rev.",VLOOKUP(L$4,'4. Billing Determinants'!$B$19:$Z$41,8,0)/'4. Billing Determinants'!$I$41*$D24, VLOOKUP(L$4,'4. Billing Determinants'!$B$19:$Z$41,3,0)/'4. Billing Determinants'!$D$41*$D24))))),0) -> 0 | M24: =IFERROR(IF(M$4="",0,IF($E24="kWh",VLOOKUP(M$4,'4. Billing Determinants'!$B$19:$Z$41,4,0)/'4. Billing Determinants'!$E$41*$D24,IF($E24="kW",VLOOKUP(M$4,'4. Billing Determinants'!$B$19:$Z$41,5,0)/'4. Billing Determinants'!$F$41*$D24,IF($E24="Non-RPP kWh",VLOOKUP(M$4,'4. Billing Determinants'!$B$19:$Z$41,6,0)/'4. Billing Determinants'!$G$41*$D24,IF($E24="Distribution Rev.",VLOOKUP(M$4,'4. Billing Determinants'!$B$19:$Z$41,8,0)/'4. Billing Determinants'!$I$41*$D24, VLOOKUP(M$4,'4. Billing Determinants'!$B$19:$Z$41,3,0)/'4. Billing Determinants'!$D$41*$D24))))),0) -> 0 | N24: =IFERROR(IF(N$4="",0,IF($E24="kWh",VLOOKUP(N$4,'4. Billing Determinants'!$B$19:$Z$41,4,0)/'4. Billing Determinants'!$E$41*$D24,IF($E24="kW",VLOOKUP(N$4,'4. Billing Determinants'!$B$19:$Z$41,5,0)/'4. Billing Determinants'!$F$41*$D24,IF($E24="Non-RPP kWh",VLOOKUP(N$4,'4. Billing Determinants'!$B$19:$Z$41,6,0)/'4. Billing Determinants'!$G$41*$D24,IF($E24="Distribution Rev.",VLOOKUP(N$4,'4. Billing Determinants'!$B$19:$Z$41,8,0)/'4. Billing Determinants'!$I$41*$D24, VLOOKUP(N$4,'4. Billing Determinants'!$B$19:$Z$41,3,0)/'4. Billing Determinants'!$D$41*$D24))))),0) -> 0 | O24: =IFERROR(IF(O$4="",0,IF($E24="kWh",VLOOKUP(O$4,'4. Billing Determinants'!$B$19:$Z$41,4,0)/'4. Billing Determinants'!$E$41*$D24,IF($E24="kW",VLOOKUP(O$4,'4. Billing Determinants'!$B$19:$Z$41,5,0)/'4. Billing Determinants'!$F$41*$D24,IF($E24="Non-RPP kWh",VLOOKUP(O$4,'4. Billing Determinants'!$B$19:$Z$41,6,0)/'4. Billing Determinants'!$G$41*$D24,IF($E24="Distribution Rev.",VLOOKUP(O$4,'4. Billing Determinants'!$B$19:$Z$41,8,0)/'4. Billing Determinants'!$I$41*$D24, VLOOKUP(O$4,'4. Billing Determinants'!$B$19:$Z$41,3,0)/'4. Billing Determinants'!$D$41*$D24))))),0) -> 0 | P24: =IFERROR(IF(P$4="",0,IF($E24="kWh",VLOOKUP(P$4,'4. Billing Determinants'!$B$19:$Z$41,4,0)/'4. Billing Determinants'!$E$41*$D24,IF($E24="kW",VLOOKUP(P$4,'4. Billing Determinants'!$B$19:$Z$41,5,0)/'4. Billing Determinants'!$F$41*$D24,IF($E24="Non-RPP kWh",VLOOKUP(P$4,'4. Billing Determinants'!$B$19:$Z$41,6,0)/'4. Billing Determinants'!$G$41*$D24,IF($E24="Distribution Rev.",VLOOKUP(P$4,'4. Billing Determinants'!$B$19:$Z$41,8,0)/'4. Billing Determinants'!$I$41*$D24, VLOOKUP(P$4,'4. Billing Determinants'!$B$19:$Z$41,3,0)/'4. Billing Determinants'!$D$41*$D24))))),0) -> 0 | Q24: =IFERROR(IF(Q$4="",0,IF($E24="kWh",VLOOKUP(Q$4,'4. Billing Determinants'!$B$19:$Z$41,4,0)/'4. Billing Determinants'!$E$41*$D24,IF($E24="kW",VLOOKUP(Q$4,'4. Billing Determinants'!$B$19:$Z$41,5,0)/'4. Billing Determinants'!$F$41*$D24,IF($E24="Non-RPP kWh",VLOOKUP(Q$4,'4. Billing Determinants'!$B$19:$Z$41,6,0)/'4. Billing Determinants'!$G$41*$D24,IF($E24="Distribution Rev.",VLOOKUP(Q$4,'4. Billing Determinants'!$B$19:$Z$41,8,0)/'4. Billing Determinants'!$I$41*$D24, VLOOKUP(Q$4,'4. Billing Determinants'!$B$19:$Z$41,3,0)/'4. Billing Determinants'!$D$41*$D24))))),0) -> 0 | R24: =IFERROR(IF(R$4="",0,IF($E24="kWh",VLOOKUP(R$4,'4. Billing Determinants'!$B$19:$Z$41,4,0)/'4. Billing Determinants'!$E$41*$D24,IF($E24="kW",VLOOKUP(R$4,'4. Billing Determinants'!$B$19:$Z$41,5,0)/'4. Billing Determinants'!$F$41*$D24,IF($E24="Non-RPP kWh",VLOOKUP(R$4,'4. Billing Determinants'!$B$19:$Z$41,6,0)/'4. Billing Determinants'!$G$41*$D24,IF($E24="Distribution Rev.",VLOOKUP(R$4,'4. Billing Determinants'!$B$19:$Z$41,8,0)/'4. Billing Determinants'!$I$41*$D24, VLOOKUP(R$4,'4. Billing Determinants'!$B$19:$Z$41,3,0)/'4. Billing Determinants'!$D$41*$D24))))),0) -> 0 | S24: =IFERROR(IF(S$4="",0,IF($E24="kWh",VLOOKUP(S$4,'4. Billing Determinants'!$B$19:$Z$41,4,0)/'4. Billing Determinants'!$E$41*$D24,IF($E24="kW",VLOOKUP(S$4,'4. Billing Determinants'!$B$19:$Z$41,5,0)/'4. Billing Determinants'!$F$41*$D24,IF($E24="Non-RPP kWh",VLOOKUP(S$4,'4. Billing Determinants'!$B$19:$Z$41,6,0)/'4. Billing Determinants'!$G$41*$D24,IF($E24="Distribution Rev.",VLOOKUP(S$4,'4. Billing Determinants'!$B$19:$Z$41,8,0)/'4. Billing Determinants'!$I$41*$D24, VLOOKUP(S$4,'4. Billing Determinants'!$B$19:$Z$41,3,0)/'4. Billing Determinants'!$D$41*$D24))))),0) -> 0 | T24: =IFERROR(IF(T$4="",0,IF($E24="kWh",VLOOKUP(T$4,'4. Billing Determinants'!$B$19:$Z$41,4,0)/'4. Billing Determinants'!$E$41*$D24,IF($E24="kW",VLOOKUP(T$4,'4. Billing Determinants'!$B$19:$Z$41,5,0)/'4. Billing Determinants'!$F$41*$D24,IF($E24="Non-RPP kWh",VLOOKUP(T$4,'4. Billing Determinants'!$B$19:$Z$41,6,0)/'4. Billing Determinants'!$G$41*$D24,IF($E24="Distribution Rev.",VLOOKUP(T$4,'4. Billing Determinants'!$B$19:$Z$41,8,0)/'4. Billing Determinants'!$I$41*$D24, VLOOKUP(T$4,'4. Billing Determinants'!$B$19:$Z$41,3,0)/'4. Billing Determinants'!$D$41*$D24))))),0) -> 0 | U24: =IFERROR(IF(U$4="",0,IF($E24="kWh",VLOOKUP(U$4,'4. Billing Determinants'!$B$19:$Z$41,4,0)/'4. Billing Determinants'!$E$41*$D24,IF($E24="kW",VLOOKUP(U$4,'4. Billing Determinants'!$B$19:$Z$41,5,0)/'4. Billing Determinants'!$F$41*$D24,IF($E24="Non-RPP kWh",VLOOKUP(U$4,'4. Billing Determinants'!$B$19:$Z$41,6,0)/'4. Billing Determinants'!$G$41*$D24,IF($E24="Distribution Rev.",VLOOKUP(U$4,'4. Billing Determinants'!$B$19:$Z$41,8,0)/'4. Billing Determinants'!$I$41*$D24, VLOOKUP(U$4,'4. Billing Determinants'!$B$19:$Z$41,3,0)/'4. Billing Determinants'!$D$41*$D24))))),0) -> 0 | V24: =IFERROR(IF(V$4="",0,IF($E24="kWh",VLOOKUP(V$4,'4. Billing Determinants'!$B$19:$Z$41,4,0)/'4. Billing Determinants'!$E$41*$D24,IF($E24="kW",VLOOKUP(V$4,'4. Billing Determinants'!$B$19:$Z$41,5,0)/'4. Billing Determinants'!$F$41*$D24,IF($E24="Non-RPP kWh",VLOOKUP(V$4,'4. Billing Determinants'!$B$19:$Z$41,6,0)/'4. Billing Determinants'!$G$41*$D24,IF($E24="Distribution Rev.",VLOOKUP(V$4,'4. Billing Determinants'!$B$19:$Z$41,8,0)/'4. Billing Determinants'!$I$41*$D24, VLOOKUP(V$4,'4. Billing Determinants'!$B$19:$Z$41,3,0)/'4. Billing Determinants'!$D$41*$D24))))),0) -> 0 | W24: =IFERROR(IF(W$4="",0,IF($E24="kWh",VLOOKUP(W$4,'4. Billing Determinants'!$B$19:$Z$41,4,0)/'4. Billing Determinants'!$E$41*$D24,IF($E24="kW",VLOOKUP(W$4,'4. Billing Determinants'!$B$19:$Z$41,5,0)/'4. Billing Determinants'!$F$41*$D24,IF($E24="Non-RPP kWh",VLOOKUP(W$4,'4. Billing Determinants'!$B$19:$Z$41,6,0)/'4. Billing Determinants'!$G$41*$D24,IF($E24="Distribution Rev.",VLOOKUP(W$4,'4. Billing Determinants'!$B$19:$Z$41,8,0)/'4. Billing Determinants'!$I$41*$D24, VLOOKUP(W$4,'4. Billing Determinants'!$B$19:$Z$41,3,0)/'4. Billing Determinants'!$D$41*$D24))))),0) -> 0 | X24: =IFERROR(IF(X$4="",0,IF($E24="kWh",VLOOKUP(X$4,'4. Billing Determinants'!$B$19:$Z$41,4,0)/'4. Billing Determinants'!$E$41*$D24,IF($E24="kW",VLOOKUP(X$4,'4. Billing Determinants'!$B$19:$Z$41,5,0)/'4. Billing Determinants'!$F$41*$D24,IF($E24="Non-RPP kWh",VLOOKUP(X$4,'4. Billing Determinants'!$B$19:$Z$41,6,0)/'4. Billing Determinants'!$G$41*$D24,IF($E24="Distribution Rev.",VLOOKUP(X$4,'4. Billing Determinants'!$B$19:$Z$41,8,0)/'4. Billing Determinants'!$I$41*$D24, VLOOKUP(X$4,'4. Billing Determinants'!$B$19:$Z$41,3,0)/'4. Billing Determinants'!$D$41*$D24))))),0) -> 0 | Y24: =IFERROR(IF(Y$4="",0,IF($E24="kWh",VLOOKUP(Y$4,'4. Billing Determinants'!$B$19:$Z$41,4,0)/'4. Billing Determinants'!$E$41*$D24,IF($E24="kW",VLOOKUP(Y$4,'4. Billing Determinants'!$B$19:$Z$41,5,0)/'4. Billing Determinants'!$F$41*$D24,IF($E24="Non-RPP kWh",VLOOKUP(Y$4,'4. Billing Determinants'!$B$19:$Z$41,6,0)/'4. Billing Determinants'!$G$41*$D24,IF($E24="Distribution Rev.",VLOOKUP(Y$4,'4. Billing Determinants'!$B$19:$Z$41,8,0)/'4. Billing Determinants'!$I$41*$D24, VLOOKUP(Y$4,'4. Billing Determinants'!$B$19:$Z$41,3,0)/'4. Billing Determinants'!$D$41*$D24))))),0) -> 0
B25: Other Regulatory Assets - Sub-Account - Other 4 | C25: 1508 | D25: ='2. 2015 Continuity Schedule'!BS48 -> -305.5753122 | E25: # of Customers | F25: =IFERROR(IF(F$4="",0,IF($E25="kWh",VLOOKUP(F$4,'4. Billing Determinants'!$B$19:$Z$41,4,0)/'4. Billing Determinants'!$E$41*$D25,IF($E25="kW",VLOOKUP(F$4,'4. Billing Determinants'!$B$19:$Z$41,5,0)/'4. Billing Determinants'!$F$41*$D25,IF($E25="Non-RPP kWh",VLOOKUP(F$4,'4. Billing Determinants'!$B$19:$Z$41,6,0)/'4. Billing Determinants'!$G$41*$D25,IF($E25="Distribution Rev.",VLOOKUP(F$4,'4. Billing Determinants'!$B$19:$Z$41,8,0)/'4. Billing Determinants'!$I$41*$D25, VLOOKUP(F$4,'4. Billing Determinants'!$B$19:$Z$41,3,0)/'4. Billing Determinants'!$D$41*$D25))))),0) -> -256.4193551 | G25: =IFERROR(IF(G$4="",0,IF($E25="kWh",VLOOKUP(G$4,'4. Billing Determinants'!$B$19:$Z$41,4,0)/'4. Billing Determinants'!$E$41*$D25,IF($E25="kW",VLOOKUP(G$4,'4. Billing Determinants'!$B$19:$Z$41,5,0)/'4. Billing Determinants'!$F$41*$D25,IF($E25="Non-RPP kWh",VLOOKUP(G$4,'4. Billing Determinants'!$B$19:$Z$41,6,0)/'4. Billing Determinants'!$G$41*$D25,IF($E25="Distribution Rev.",VLOOKUP(G$4,'4. Billing Determinants'!$B$19:$Z$41,8,0)/'4. Billing Determinants'!$I$41*$D25, VLOOKUP(G$4,'4. Billing Determinants'!$B$19:$Z$41,3,0)/'4. Billing Determinants'!$D$41*$D25))))),0) -> -19.63632631 | H25: =IFERROR(IF(H$4="",0,IF($E25="kWh",VLOOKUP(H$4,'4. Billing Determinants'!$B$19:$Z$41,4,0)/'4. Billing Determinants'!$E$41*$D25,IF($E25="kW",VLOOKUP(H$4,'4. Billing Determinants'!$B$19:$Z$41,5,0)/'4. Billing Determinants'!$F$41*$D25,IF($E25="Non-RPP kWh",VLOOKUP(H$4,'4. Billing Determinants'!$B$19:$Z$41,6,0)/'4. Billing Determinants'!$G$41*$D25,IF($E25="Distribution Rev.",VLOOKUP(H$4,'4. Billing Determinants'!$B$19:$Z$41,8,0)/'4. Billing Determinants'!$I$41*$D25, VLOOKUP(H$4,'4. Billing Determinants'!$B$19:$Z$41,3,0)/'4. Billing Determinants'!$D$41*$D25))))),0) -> -2.244033788 | I25: =IFERROR(IF(I$4="",0,IF($E25="kWh",VLOOKUP(I$4,'4. Billing Determinants'!$B$19:$Z$41,4,0)/'4. Billing Determinants'!$E$41*$D25,IF($E25="kW",VLOOKUP(I$4,'4. Billing Determinants'!$B$19:$Z$41,5,0)/'4. Billing Determinants'!$F$41*$D25,IF($E25="Non-RPP kWh",VLOOKUP(I$4,'4. Billing Determinants'!$B$19:$Z$41,6,0)/'4. Billing Determinants'!$G$41*$D25,IF($E25="Distribution Rev.",VLOOKUP(I$4,'4. Billing Determinants'!$B$19:$Z$41,8,0)/'4. Billing Determinants'!$I$41*$D25, VLOOKUP(I$4,'4. Billing Determinants'!$B$19:$Z$41,3,0)/'4. Billing Determinants'!$D$41*$D25))))),0) -> -0.09661898543 | J25: =IFERROR(IF(J$4="",0,IF($E25="kWh",VLOOKUP(J$4,'4. Billing Determinants'!$B$19:$Z$41,4,0)/'4. Billing Determinants'!$E$41*$D25,IF($E25="kW",VLOOKUP(J$4,'4. Billing Determinants'!$B$19:$Z$41,5,0)/'4. Billing Determinants'!$F$41*$D25,IF($E25="Non-RPP kWh",VLOOKUP(J$4,'4. Billing Determinants'!$B$19:$Z$41,6,0)/'4. Billing Determinants'!$G$41*$D25,IF($E25="Distribution Rev.",VLOOKUP(J$4,'4. Billing Determinants'!$B$19:$Z$41,8,0)/'4. Billing Determinants'!$I$41*$D25, VLOOKUP(J$4,'4. Billing Determinants'!$B$19:$Z$41,3,0)/'4. Billing Determinants'!$D$41*$D25))))),0) -> -0.02229668894 | K25: =IFERROR(IF(K$4="",0,IF($E25="kWh",VLOOKUP(K$4,'4. Billing Determinants'!$B$19:$Z$41,4,0)/'4. Billing Determinants'!$E$41*$D25,IF($E25="kW",VLOOKUP(K$4,'4. Billing Determinants'!$B$19:$Z$41,5,0)/'4. Billing Determinants'!$F$41*$D25,IF($E25="Non-RPP kWh",VLOOKUP(K$4,'4. Billing Determinants'!$B$19:$Z$41,6,0)/'4. Billing Determinants'!$G$41*$D25,IF($E25="Distribution Rev.",VLOOKUP(K$4,'4. Billing Determinants'!$B$19:$Z$41,8,0)/'4. Billing Determinants'!$I$41*$D25, VLOOKUP(K$4,'4. Billing Determinants'!$B$19:$Z$41,3,0)/'4. Billing Determinants'!$D$41*$D25))))),0) -> -1.322936877 | L25: =IFERROR(IF(L$4="",0,IF($E25="kWh",VLOOKUP(L$4,'4. Billing Determinants'!$B$19:$Z$41,4,0)/'4. Billing Determinants'!$E$41*$D25,IF($E25="kW",VLOOKUP(L$4,'4. Billing Determinants'!$B$19:$Z$41,5,0)/'4. Billing Determinants'!$F$41*$D25,IF($E25="Non-RPP kWh",VLOOKUP(L$4,'4. Billing Determinants'!$B$19:$Z$41,6,0)/'4. Billing Determinants'!$G$41*$D25,IF($E25="Distribution Rev.",VLOOKUP(L$4,'4. Billing Determinants'!$B$19:$Z$41,8,0)/'4. Billing Determinants'!$I$41*$D25, VLOOKUP(L$4,'4. Billing Determinants'!$B$19:$Z$41,3,0)/'4. Billing Determinants'!$D$41*$D25))))),0) -> -1.800111856 | M25: =IFERROR(IF(M$4="",0,IF($E25="kWh",VLOOKUP(M$4,'4. Billing Determinants'!$B$19:$Z$41,4,0)/'4. Billing Determinants'!$E$41*$D25,IF($E25="kW",VLOOKUP(M$4,'4. Billing Determinants'!$B$19:$Z$41,5,0)/'4. Billing Determinants'!$F$41*$D25,IF($E25="Non-RPP kWh",VLOOKUP(M$4,'4. Billing Determinants'!$B$19:$Z$41,6,0)/'4. Billing Determinants'!$G$41*$D25,IF($E25="Distribution Rev.",VLOOKUP(M$4,'4. Billing Determinants'!$B$19:$Z$41,8,0)/'4. Billing Determinants'!$I$41*$D25, VLOOKUP(M$4,'4. Billing Determinants'!$B$19:$Z$41,3,0)/'4. Billing Determinants'!$D$41*$D25))))),0) -> -24.03363257 | N25: =IFERROR(IF(N$4="",0,IF($E25="kWh",VLOOKUP(N$4,'4. Billing Determinants'!$B$19:$Z$41,4,0)/'4. Billing Determinants'!$E$41*$D25,IF($E25="kW",VLOOKUP(N$4,'4. Billing Determinants'!$B$19:$Z$41,5,0)/'4. Billing Determinants'!$F$41*$D25,IF($E25="Non-RPP kWh",VLOOKUP(N$4,'4. Billing Determinants'!$B$19:$Z$41,6,0)/'4. Billing Determinants'!$G$41*$D25,IF($E25="Distribution Rev.",VLOOKUP(N$4,'4. Billing Determinants'!$B$19:$Z$41,8,0)/'4. Billing Determinants'!$I$41*$D25, VLOOKUP(N$4,'4. Billing Determinants'!$B$19:$Z$41,3,0)/'4. Billing Determinants'!$D$41*$D25))))),0) -> 0 | O25: =IFERROR(IF(O$4="",0,IF($E25="kWh",VLOOKUP(O$4,'4. Billing Determinants'!$B$19:$Z$41,4,0)/'4. Billing Determinants'!$E$41*$D25,IF($E25="kW",VLOOKUP(O$4,'4. Billing Determinants'!$B$19:$Z$41,5,0)/'4. Billing Determinants'!$F$41*$D25,IF($E25="Non-RPP kWh",VLOOKUP(O$4,'4. Billing Determinants'!$B$19:$Z$41,6,0)/'4. Billing Determinants'!$G$41*$D25,IF($E25="Distribution Rev.",VLOOKUP(O$4,'4. Billing Determinants'!$B$19:$Z$41,8,0)/'4. Billing Determinants'!$I$41*$D25, VLOOKUP(O$4,'4. Billing Determinants'!$B$19:$Z$41,3,0)/'4. Billing Determinants'!$D$41*$D25))))),0) -> 0 | P25: =IFERROR(IF(P$4="",0,IF($E25="kWh",VLOOKUP(P$4,'4. Billing Determinants'!$B$19:$Z$41,4,0)/'4. Billing Determinants'!$E$41*$D25,IF($E25="kW",VLOOKUP(P$4,'4. Billing Determinants'!$B$19:$Z$41,5,0)/'4. Billing Determinants'!$F$41*$D25,IF($E25="Non-RPP kWh",VLOOKUP(P$4,'4. Billing Determinants'!$B$19:$Z$41,6,0)/'4. Billing Determinants'!$G$41*$D25,IF($E25="Distribution Rev.",VLOOKUP(P$4,'4. Billing Determinants'!$B$19:$Z$41,8,0)/'4. Billing Determinants'!$I$41*$D25, VLOOKUP(P$4,'4. Billing Determinants'!$B$19:$Z$41,3,0)/'4. Billing Determinants'!$D$41*$D25))))),0) -> 0 | Q25: =IFERROR(IF(Q$4="",0,IF($E25="kWh",VLOOKUP(Q$4,'4. Billing Determinants'!$B$19:$Z$41,4,0)/'4. Billing Determinants'!$E$41*$D25,IF($E25="kW",VLOOKUP(Q$4,'4. Billing Determinants'!$B$19:$Z$41,5,0)/'4. Billing Determinants'!$F$41*$D25,IF($E25="Non-RPP kWh",VLOOKUP(Q$4,'4. Billing Determinants'!$B$19:$Z$41,6,0)/'4. Billing Determinants'!$G$41*$D25,IF($E25="Distribution Rev.",VLOOKUP(Q$4,'4. Billing Determinants'!$B$19:$Z$41,8,0)/'4. Billing Determinants'!$I$41*$D25, VLOOKUP(Q$4,'4. Billing Determinants'!$B$19:$Z$41,3,0)/'4. Billing Determinants'!$D$41*$D25))))),0) -> 0 | R25: =IFERROR(IF(R$4="",0,IF($E25="kWh",VLOOKUP(R$4,'4. Billing Determinants'!$B$19:$Z$41,4,0)/'4. Billing Determinants'!$E$41*$D25,IF($E25="kW",VLOOKUP(R$4,'4. Billing Determinants'!$B$19:$Z$41,5,0)/'4. Billing Determinants'!$F$41*$D25,IF($E25="Non-RPP kWh",VLOOKUP(R$4,'4. Billing Determinants'!$B$19:$Z$41,6,0)/'4. Billing Determinants'!$G$41*$D25,IF($E25="Distribution Rev.",VLOOKUP(R$4,'4. Billing Determinants'!$B$19:$Z$41,8,0)/'4. Billing Determinants'!$I$41*$D25, VLOOKUP(R$4,'4. Billing Determinants'!$B$19:$Z$41,3,0)/'4. Billing Determinants'!$D$41*$D25))))),0) -> 0 | S25: =IFERROR(IF(S$4="",0,IF($E25="kWh",VLOOKUP(S$4,'4. Billing Determinants'!$B$19:$Z$41,4,0)/'4. Billing Determinants'!$E$41*$D25,IF($E25="kW",VLOOKUP(S$4,'4. Billing Determinants'!$B$19:$Z$41,5,0)/'4. Billing Determinants'!$F$41*$D25,IF($E25="Non-RPP kWh",VLOOKUP(S$4,'4. Billing Determinants'!$B$19:$Z$41,6,0)/'4. Billing Determinants'!$G$41*$D25,IF($E25="Distribution Rev.",VLOOKUP(S$4,'4. Billing Determinants'!$B$19:$Z$41,8,0)/'4. Billing Determinants'!$I$41*$D25, VLOOKUP(S$4,'4. Billing Determinants'!$B$19:$Z$41,3,0)/'4. Billing Determinants'!$D$41*$D25))))),0) -> 0 | T25: =IFERROR(IF(T$4="",0,IF($E25="kWh",VLOOKUP(T$4,'4. Billing Determinants'!$B$19:$Z$41,4,0)/'4. Billing Determinants'!$E$41*$D25,IF($E25="kW",VLOOKUP(T$4,'4. Billing Determinants'!$B$19:$Z$41,5,0)/'4. Billing Determinants'!$F$41*$D25,IF($E25="Non-RPP kWh",VLOOKUP(T$4,'4. Billing Determinants'!$B$19:$Z$41,6,0)/'4. Billing Determinants'!$G$41*$D25,IF($E25="Distribution Rev.",VLOOKUP(T$4,'4. Billing Determinants'!$B$19:$Z$41,8,0)/'4. Billing Determinants'!$I$41*$D25, VLOOKUP(T$4,'4. Billing Determinants'!$B$19:$Z$41,3,0)/'4. Billing Determinants'!$D$41*$D25))))),0) -> 0 | U25: =IFERROR(IF(U$4="",0,IF($E25="kWh",VLOOKUP(U$4,'4. Billing Determinants'!$B$19:$Z$41,4,0)/'4. Billing Determinants'!$E$41*$D25,IF($E25="kW",VLOOKUP(U$4,'4. Billing Determinants'!$B$19:$Z$41,5,0)/'4. Billing Determinants'!$F$41*$D25,IF($E25="Non-RPP kWh",VLOOKUP(U$4,'4. Billing Determinants'!$B$19:$Z$41,6,0)/'4. Billing Determinants'!$G$41*$D25,IF($E25="Distribution Rev.",VLOOKUP(U$4,'4. Billing Determinants'!$B$19:$Z$41,8,0)/'4. Billing Determinants'!$I$41*$D25, VLOOKUP(U$4,'4. Billing Determinants'!$B$19:$Z$41,3,0)/'4. Billing Determinants'!$D$41*$D25))))),0) -> 0 | V25: =IFERROR(IF(V$4="",0,IF($E25="kWh",VLOOKUP(V$4,'4. Billing Determinants'!$B$19:$Z$41,4,0)/'4. Billing Determinants'!$E$41*$D25,IF($E25="kW",VLOOKUP(V$4,'4. Billing Determinants'!$B$19:$Z$41,5,0)/'4. Billing Determinants'!$F$41*$D25,IF($E25="Non-RPP kWh",VLOOKUP(V$4,'4. Billing Determinants'!$B$19:$Z$41,6,0)/'4. Billing Determinants'!$G$41*$D25,IF($E25="Distribution Rev.",VLOOKUP(V$4,'4. Billing Determinants'!$B$19:$Z$41,8,0)/'4. Billing Determinants'!$I$41*$D25, VLOOKUP(V$4,'4. Billing Determinants'!$B$19:$Z$41,3,0)/'4. Billing Determinants'!$D$41*$D25))))),0) -> 0 | W25: =IFERROR(IF(W$4="",0,IF($E25="kWh",VLOOKUP(W$4,'4. Billing Determinants'!$B$19:$Z$41,4,0)/'4. Billing Determinants'!$E$41*$D25,IF($E25="kW",VLOOKUP(W$4,'4. Billing Determinants'!$B$19:$Z$41,5,0)/'4. Billing Determinants'!$F$41*$D25,IF($E25="Non-RPP kWh",VLOOKUP(W$4,'4. Billing Determinants'!$B$19:$Z$41,6,0)/'4. Billing Determinants'!$G$41*$D25,IF($E25="Distribution Rev.",VLOOKUP(W$4,'4. Billing Determinants'!$B$19:$Z$41,8,0)/'4. Billing Determinants'!$I$41*$D25, VLOOKUP(W$4,'4. Billing Determinants'!$B$19:$Z$41,3,0)/'4. Billing Determinants'!$D$41*$D25))))),0) -> 0 | X25: =IFERROR(IF(X$4="",0,IF($E25="kWh",VLOOKUP(X$4,'4. Billing Determinants'!$B$19:$Z$41,4,0)/'4. Billing Determinants'!$E$41*$D25,IF($E25="kW",VLOOKUP(X$4,'4. Billing Determinants'!$B$19:$Z$41,5,0)/'4. Billing Determinants'!$F$41*$D25,IF($E25="Non-RPP kWh",VLOOKUP(X$4,'4. Billing Determinants'!$B$19:$Z$41,6,0)/'4. Billing Determinants'!$G$41*$D25,IF($E25="Distribution Rev.",VLOOKUP(X$4,'4. Billing Determinants'!$B$19:$Z$41,8,0)/'4. Billing Determinants'!$I$41*$D25, VLOOKUP(X$4,'4. Billing Determinants'!$B$19:$Z$41,3,0)/'4. Billing Determinants'!$D$41*$D25))))),0) -> 0 | Y25: =IFERROR(IF(Y$4="",0,IF($E25="kWh",VLOOKUP(Y$4,'4. Billing Determinants'!$B$19:$Z$41,4,0)/'4. Billing Determinants'!$E$41*$D25,IF($E25="kW",VLOOKUP(Y$4,'4. Billing Determinants'!$B$19:$Z$41,5,0)/'4. Billing Determinants'!$F$41*$D25,IF($E25="Non-RPP kWh",VLOOKUP(Y$4,'4. Billing Determinants'!$B$19:$Z$41,6,0)/'4. Billing Determinants'!$G$41*$D25,IF($E25="Distribution Rev.",VLOOKUP(Y$4,'4. Billing Determinants'!$B$19:$Z$41,8,0)/'4. Billing Determinants'!$I$41*$D25, VLOOKUP(Y$4,'4. Billing Determinants'!$B$19:$Z$41,3,0)/'4. Billing Determinants'!$D$41*$D25))))),0) -> 0
B26: Retail Cost Variance Account - Retail | C26: 1518 | D26: ='2. 2015 Continuity Schedule'!BS49 -> 0 | E26: kWh | F26: =IFERROR(IF(F$4="",0,IF($E26="kWh",VLOOKUP(F$4,'4. Billing Determinants'!$B$19:$Z$41,4,0)/'4. Billing Determinants'!$E$41*$D26,IF($E26="kW",VLOOKUP(F$4,'4. Billing Determinants'!$B$19:$Z$41,5,0)/'4. Billing Determinants'!$F$41*$D26,IF($E26="Non-RPP kWh",VLOOKUP(F$4,'4. Billing Determinants'!$B$19:$Z$41,6,0)/'4. Billing Determinants'!$G$41*$D26,IF($E26="Distribution Rev.",VLOOKUP(F$4,'4. Billing Determinants'!$B$19:$Z$41,8,0)/'4. Billing Determinants'!$I$41*$D26, VLOOKUP(F$4,'4. Billing Determinants'!$B$19:$Z$41,3,0)/'4. Billing Determinants'!$D$41*$D26))))),0) -> 0 | G26: =IFERROR(IF(G$4="",0,IF($E26="kWh",VLOOKUP(G$4,'4. Billing Determinants'!$B$19:$Z$41,4,0)/'4. Billing Determinants'!$E$41*$D26,IF($E26="kW",VLOOKUP(G$4,'4. Billing Determinants'!$B$19:$Z$41,5,0)/'4. Billing Determinants'!$F$41*$D26,IF($E26="Non-RPP kWh",VLOOKUP(G$4,'4. Billing Determinants'!$B$19:$Z$41,6,0)/'4. Billing Determinants'!$G$41*$D26,IF($E26="Distribution Rev.",VLOOKUP(G$4,'4. Billing Determinants'!$B$19:$Z$41,8,0)/'4. Billing Determinants'!$I$41*$D26, VLOOKUP(G$4,'4. Billing Determinants'!$B$19:$Z$41,3,0)/'4. Billing Determinants'!$D$41*$D26))))),0) -> 0 | H26: =IFERROR(IF(H$4="",0,IF($E26="kWh",VLOOKUP(H$4,'4. Billing Determinants'!$B$19:$Z$41,4,0)/'4. Billing Determinants'!$E$41*$D26,IF($E26="kW",VLOOKUP(H$4,'4. Billing Determinants'!$B$19:$Z$41,5,0)/'4. Billing Determinants'!$F$41*$D26,IF($E26="Non-RPP kWh",VLOOKUP(H$4,'4. Billing Determinants'!$B$19:$Z$41,6,0)/'4. Billing Determinants'!$G$41*$D26,IF($E26="Distribution Rev.",VLOOKUP(H$4,'4. Billing Determinants'!$B$19:$Z$41,8,0)/'4. Billing Determinants'!$I$41*$D26, VLOOKUP(H$4,'4. Billing Determinants'!$B$19:$Z$41,3,0)/'4. Billing Determinants'!$D$41*$D26))))),0) -> 0 | I26: =IFERROR(IF(I$4="",0,IF($E26="kWh",VLOOKUP(I$4,'4. Billing Determinants'!$B$19:$Z$41,4,0)/'4. Billing Determinants'!$E$41*$D26,IF($E26="kW",VLOOKUP(I$4,'4. Billing Determinants'!$B$19:$Z$41,5,0)/'4. Billing Determinants'!$F$41*$D26,IF($E26="Non-RPP kWh",VLOOKUP(I$4,'4. Billing Determinants'!$B$19:$Z$41,6,0)/'4. Billing Determinants'!$G$41*$D26,IF($E26="Distribution Rev.",VLOOKUP(I$4,'4. Billing Determinants'!$B$19:$Z$41,8,0)/'4. Billing Determinants'!$I$41*$D26, VLOOKUP(I$4,'4. Billing Determinants'!$B$19:$Z$41,3,0)/'4. Billing Determinants'!$D$41*$D26))))),0) -> 0 | J26: =IFERROR(IF(J$4="",0,IF($E26="kWh",VLOOKUP(J$4,'4. Billing Determinants'!$B$19:$Z$41,4,0)/'4. Billing Determinants'!$E$41*$D26,IF($E26="kW",VLOOKUP(J$4,'4. Billing Determinants'!$B$19:$Z$41,5,0)/'4. Billing Determinants'!$F$41*$D26,IF($E26="Non-RPP kWh",VLOOKUP(J$4,'4. Billing Determinants'!$B$19:$Z$41,6,0)/'4. Billing Determinants'!$G$41*$D26,IF($E26="Distribution Rev.",VLOOKUP(J$4,'4. Billing Determinants'!$B$19:$Z$41,8,0)/'4. Billing Determinants'!$I$41*$D26, VLOOKUP(J$4,'4. Billing Determinants'!$B$19:$Z$41,3,0)/'4. Billing Determinants'!$D$41*$D26))))),0) -> 0 | K26: =IFERROR(IF(K$4="",0,IF($E26="kWh",VLOOKUP(K$4,'4. Billing Determinants'!$B$19:$Z$41,4,0)/'4. Billing Determinants'!$E$41*$D26,IF($E26="kW",VLOOKUP(K$4,'4. Billing Determinants'!$B$19:$Z$41,5,0)/'4. Billing Determinants'!$F$41*$D26,IF($E26="Non-RPP kWh",VLOOKUP(K$4,'4. Billing Determinants'!$B$19:$Z$41,6,0)/'4. Billing Determinants'!$G$41*$D26,IF($E26="Distribution Rev.",VLOOKUP(K$4,'4. Billing Determinants'!$B$19:$Z$41,8,0)/'4. Billing Determinants'!$I$41*$D26, VLOOKUP(K$4,'4. Billing Determinants'!$B$19:$Z$41,3,0)/'4. Billing Determinants'!$D$41*$D26))))),0) -> 0 | L26: =IFERROR(IF(L$4="",0,IF($E26="kWh",VLOOKUP(L$4,'4. Billing Determinants'!$B$19:$Z$41,4,0)/'4. Billing Determinants'!$E$41*$D26,IF($E26="kW",VLOOKUP(L$4,'4. Billing Determinants'!$B$19:$Z$41,5,0)/'4. Billing Determinants'!$F$41*$D26,IF($E26="Non-RPP kWh",VLOOKUP(L$4,'4. Billing Determinants'!$B$19:$Z$41,6,0)/'4. Billing Determinants'!$G$41*$D26,IF($E26="Distribution Rev.",VLOOKUP(L$4,'4. Billing Determinants'!$B$19:$Z$41,8,0)/'4. Billing Determinants'!$I$41*$D26, VLOOKUP(L$4,'4. Billing Determinants'!$B$19:$Z$41,3,0)/'4. Billing Determinants'!$D$41*$D26))))),0) -> 0 | M26: =IFERROR(IF(M$4="",0,IF($E26="kWh",VLOOKUP(M$4,'4. Billing Determinants'!$B$19:$Z$41,4,0)/'4. Billing Determinants'!$E$41*$D26,IF($E26="kW",VLOOKUP(M$4,'4. Billing Determinants'!$B$19:$Z$41,5,0)/'4. Billing Determinants'!$F$41*$D26,IF($E26="Non-RPP kWh",VLOOKUP(M$4,'4. Billing Determinants'!$B$19:$Z$41,6,0)/'4. Billing Determinants'!$G$41*$D26,IF($E26="Distribution Rev.",VLOOKUP(M$4,'4. Billing Determinants'!$B$19:$Z$41,8,0)/'4. Billing Determinants'!$I$41*$D26, VLOOKUP(M$4,'4. Billing Determinants'!$B$19:$Z$41,3,0)/'4. Billing Determinants'!$D$41*$D26))))),0) -> 0 | N26: =IFERROR(IF(N$4="",0,IF($E26="kWh",VLOOKUP(N$4,'4. Billing Determinants'!$B$19:$Z$41,4,0)/'4. Billing Determinants'!$E$41*$D26,IF($E26="kW",VLOOKUP(N$4,'4. Billing Determinants'!$B$19:$Z$41,5,0)/'4. Billing Determinants'!$F$41*$D26,IF($E26="Non-RPP kWh",VLOOKUP(N$4,'4. Billing Determinants'!$B$19:$Z$41,6,0)/'4. Billing Determinants'!$G$41*$D26,IF($E26="Distribution Rev.",VLOOKUP(N$4,'4. Billing Determinants'!$B$19:$Z$41,8,0)/'4. Billing Determinants'!$I$41*$D26, VLOOKUP(N$4,'4. Billing Determinants'!$B$19:$Z$41,3,0)/'4. Billing Determinants'!$D$41*$D26))))),0) -> 0 | O26: =IFERROR(IF(O$4="",0,IF($E26="kWh",VLOOKUP(O$4,'4. Billing Determinants'!$B$19:$Z$41,4,0)/'4. Billing Determinants'!$E$41*$D26,IF($E26="kW",VLOOKUP(O$4,'4. Billing Determinants'!$B$19:$Z$41,5,0)/'4. Billing Determinants'!$F$41*$D26,IF($E26="Non-RPP kWh",VLOOKUP(O$4,'4. Billing Determinants'!$B$19:$Z$41,6,0)/'4. Billing Determinants'!$G$41*$D26,IF($E26="Distribution Rev.",VLOOKUP(O$4,'4. Billing Determinants'!$B$19:$Z$41,8,0)/'4. Billing Determinants'!$I$41*$D26, VLOOKUP(O$4,'4. Billing Determinants'!$B$19:$Z$41,3,0)/'4. Billing Determinants'!$D$41*$D26))))),0) -> 0 | P26: =IFERROR(IF(P$4="",0,IF($E26="kWh",VLOOKUP(P$4,'4. Billing Determinants'!$B$19:$Z$41,4,0)/'4. Billing Determinants'!$E$41*$D26,IF($E26="kW",VLOOKUP(P$4,'4. Billing Determinants'!$B$19:$Z$41,5,0)/'4. Billing Determinants'!$F$41*$D26,IF($E26="Non-RPP kWh",VLOOKUP(P$4,'4. Billing Determinants'!$B$19:$Z$41,6,0)/'4. Billing Determinants'!$G$41*$D26,IF($E26="Distribution Rev.",VLOOKUP(P$4,'4. Billing Determinants'!$B$19:$Z$41,8,0)/'4. Billing Determinants'!$I$41*$D26, VLOOKUP(P$4,'4. Billing Determinants'!$B$19:$Z$41,3,0)/'4. Billing Determinants'!$D$41*$D26))))),0) -> 0 | Q26: =IFERROR(IF(Q$4="",0,IF($E26="kWh",VLOOKUP(Q$4,'4. Billing Determinants'!$B$19:$Z$41,4,0)/'4. Billing Determinants'!$E$41*$D26,IF($E26="kW",VLOOKUP(Q$4,'4. Billing Determinants'!$B$19:$Z$41,5,0)/'4. Billing Determinants'!$F$41*$D26,IF($E26="Non-RPP kWh",VLOOKUP(Q$4,'4. Billing Determinants'!$B$19:$Z$41,6,0)/'4. Billing Determinants'!$G$41*$D26,IF($E26="Distribution Rev.",VLOOKUP(Q$4,'4. Billing Determinants'!$B$19:$Z$41,8,0)/'4. Billing Determinants'!$I$41*$D26, VLOOKUP(Q$4,'4. Billing Determinants'!$B$19:$Z$41,3,0)/'4. Billing Determinants'!$D$41*$D26))))),0) -> 0 | R26: =IFERROR(IF(R$4="",0,IF($E26="kWh",VLOOKUP(R$4,'4. Billing Determinants'!$B$19:$Z$41,4,0)/'4. Billing Determinants'!$E$41*$D26,IF($E26="kW",VLOOKUP(R$4,'4. Billing Determinants'!$B$19:$Z$41,5,0)/'4. Billing Determinants'!$F$41*$D26,IF($E26="Non-RPP kWh",VLOOKUP(R$4,'4. Billing Determinants'!$B$19:$Z$41,6,0)/'4. Billing Determinants'!$G$41*$D26,IF($E26="Distribution Rev.",VLOOKUP(R$4,'4. Billing Determinants'!$B$19:$Z$41,8,0)/'4. Billing Determinants'!$I$41*$D26, VLOOKUP(R$4,'4. Billing Determinants'!$B$19:$Z$41,3,0)/'4. Billing Determinants'!$D$41*$D26))))),0) -> 0 | S26: =IFERROR(IF(S$4="",0,IF($E26="kWh",VLOOKUP(S$4,'4. Billing Determinants'!$B$19:$Z$41,4,0)/'4. Billing Determinants'!$E$41*$D26,IF($E26="kW",VLOOKUP(S$4,'4. Billing Determinants'!$B$19:$Z$41,5,0)/'4. Billing Determinants'!$F$41*$D26,IF($E26="Non-RPP kWh",VLOOKUP(S$4,'4. Billing Determinants'!$B$19:$Z$41,6,0)/'4. Billing Determinants'!$G$41*$D26,IF($E26="Distribution Rev.",VLOOKUP(S$4,'4. Billing Determinants'!$B$19:$Z$41,8,0)/'4. Billing Determinants'!$I$41*$D26, VLOOKUP(S$4,'4. Billing Determinants'!$B$19:$Z$41,3,0)/'4. Billing Determinants'!$D$41*$D26))))),0) -> 0 | T26: =IFERROR(IF(T$4="",0,IF($E26="kWh",VLOOKUP(T$4,'4. Billing Determinants'!$B$19:$Z$41,4,0)/'4. Billing Determinants'!$E$41*$D26,IF($E26="kW",VLOOKUP(T$4,'4. Billing Determinants'!$B$19:$Z$41,5,0)/'4. Billing Determinants'!$F$41*$D26,IF($E26="Non-RPP kWh",VLOOKUP(T$4,'4. Billing Determinants'!$B$19:$Z$41,6,0)/'4. Billing Determinants'!$G$41*$D26,IF($E26="Distribution Rev.",VLOOKUP(T$4,'4. Billing Determinants'!$B$19:$Z$41,8,0)/'4. Billing Determinants'!$I$41*$D26, VLOOKUP(T$4,'4. Billing Determinants'!$B$19:$Z$41,3,0)/'4. Billing Determinants'!$D$41*$D26))))),0) -> 0 | U26: =IFERROR(IF(U$4="",0,IF($E26="kWh",VLOOKUP(U$4,'4. Billing Determinants'!$B$19:$Z$41,4,0)/'4. Billing Determinants'!$E$41*$D26,IF($E26="kW",VLOOKUP(U$4,'4. Billing Determinants'!$B$19:$Z$41,5,0)/'4. Billing Determinants'!$F$41*$D26,IF($E26="Non-RPP kWh",VLOOKUP(U$4,'4. Billing Determinants'!$B$19:$Z$41,6,0)/'4. Billing Determinants'!$G$41*$D26,IF($E26="Distribution Rev.",VLOOKUP(U$4,'4. Billing Determinants'!$B$19:$Z$41,8,0)/'4. Billing Determinants'!$I$41*$D26, VLOOKUP(U$4,'4. Billing Determinants'!$B$19:$Z$41,3,0)/'4. Billing Determinants'!$D$41*$D26))))),0) -> 0 | V26: =IFERROR(IF(V$4="",0,IF($E26="kWh",VLOOKUP(V$4,'4. Billing Determinants'!$B$19:$Z$41,4,0)/'4. Billing Determinants'!$E$41*$D26,IF($E26="kW",VLOOKUP(V$4,'4. Billing Determinants'!$B$19:$Z$41,5,0)/'4. Billing Determinants'!$F$41*$D26,IF($E26="Non-RPP kWh",VLOOKUP(V$4,'4. Billing Determinants'!$B$19:$Z$41,6,0)/'4. Billing Determinants'!$G$41*$D26,IF($E26="Distribution Rev.",VLOOKUP(V$4,'4. Billing Determinants'!$B$19:$Z$41,8,0)/'4. Billing Determinants'!$I$41*$D26, VLOOKUP(V$4,'4. Billing Determinants'!$B$19:$Z$41,3,0)/'4. Billing Determinants'!$D$41*$D26))))),0) -> 0 | W26: =IFERROR(IF(W$4="",0,IF($E26="kWh",VLOOKUP(W$4,'4. Billing Determinants'!$B$19:$Z$41,4,0)/'4. Billing Determinants'!$E$41*$D26,IF($E26="kW",VLOOKUP(W$4,'4. Billing Determinants'!$B$19:$Z$41,5,0)/'4. Billing Determinants'!$F$41*$D26,IF($E26="Non-RPP kWh",VLOOKUP(W$4,'4. Billing Determinants'!$B$19:$Z$41,6,0)/'4. Billing Determinants'!$G$41*$D26,IF($E26="Distribution Rev.",VLOOKUP(W$4,'4. Billing Determinants'!$B$19:$Z$41,8,0)/'4. Billing Determinants'!$I$41*$D26, VLOOKUP(W$4,'4. Billing Determinants'!$B$19:$Z$41,3,0)/'4. Billing Determinants'!$D$41*$D26))))),0) -> 0 | X26: =IFERROR(IF(X$4="",0,IF($E26="kWh",VLOOKUP(X$4,'4. Billing Determinants'!$B$19:$Z$41,4,0)/'4. Billing Determinants'!$E$41*$D26,IF($E26="kW",VLOOKUP(X$4,'4. Billing Determinants'!$B$19:$Z$41,5,0)/'4. Billing Determinants'!$F$41*$D26,IF($E26="Non-RPP kWh",VLOOKUP(X$4,'4. Billing Determinants'!$B$19:$Z$41,6,0)/'4. Billing Determinants'!$G$41*$D26,IF($E26="Distribution Rev.",VLOOKUP(X$4,'4. Billing Determinants'!$B$19:$Z$41,8,0)/'4. Billing Determinants'!$I$41*$D26, VLOOKUP(X$4,'4. Billing Determinants'!$B$19:$Z$41,3,0)/'4. Billing Determinants'!$D$41*$D26))))),0) -> 0 | Y26: =IFERROR(IF(Y$4="",0,IF($E26="kWh",VLOOKUP(Y$4,'4. Billing Determinants'!$B$19:$Z$41,4,0)/'4. Billing Determinants'!$E$41*$D26,IF($E26="kW",VLOOKUP(Y$4,'4. Billing Determinants'!$B$19:$Z$41,5,0)/'4. Billing Determinants'!$F$41*$D26,IF($E26="Non-RPP kWh",VLOOKUP(Y$4,'4. Billing Determinants'!$B$19:$Z$41,6,0)/'4. Billing Determinants'!$G$41*$D26,IF($E26="Distribution Rev.",VLOOKUP(Y$4,'4. Billing Determinants'!$B$19:$Z$41,8,0)/'4. Billing Determinants'!$I$41*$D26, VLOOKUP(Y$4,'4. Billing Determinants'!$B$19:$Z$41,3,0)/'4. Billing Determinants'!$D$41*$D26))))),0) -> 0
B27: Misc. Deferred Debits | C27: 1525 | D27: ='2. 2015 Continuity Schedule'!BS50 -> 0 | E27: kWh | F27: =IFERROR(IF(F$4="",0,IF($E27="kWh",VLOOKUP(F$4,'4. Billing Determinants'!$B$19:$Z$41,4,0)/'4. Billing Determinants'!$E$41*$D27,IF($E27="kW",VLOOKUP(F$4,'4. Billing Determinants'!$B$19:$Z$41,5,0)/'4. Billing Determinants'!$F$41*$D27,IF($E27="Non-RPP kWh",VLOOKUP(F$4,'4. Billing Determinants'!$B$19:$Z$41,6,0)/'4. Billing Determinants'!$G$41*$D27,IF($E27="Distribution Rev.",VLOOKUP(F$4,'4. Billing Determinants'!$B$19:$Z$41,8,0)/'4. Billing Determinants'!$I$41*$D27, VLOOKUP(F$4,'4. Billing Determinants'!$B$19:$Z$41,3,0)/'4. Billing Determinants'!$D$41*$D27))))),0) -> 0 | G27: =IFERROR(IF(G$4="",0,IF($E27="kWh",VLOOKUP(G$4,'4. Billing Determinants'!$B$19:$Z$41,4,0)/'4. Billing Determinants'!$E$41*$D27,IF($E27="kW",VLOOKUP(G$4,'4. Billing Determinants'!$B$19:$Z$41,5,0)/'4. Billing Determinants'!$F$41*$D27,IF($E27="Non-RPP kWh",VLOOKUP(G$4,'4. Billing Determinants'!$B$19:$Z$41,6,0)/'4. Billing Determinants'!$G$41*$D27,IF($E27="Distribution Rev.",VLOOKUP(G$4,'4. Billing Determinants'!$B$19:$Z$41,8,0)/'4. Billing Determinants'!$I$41*$D27, VLOOKUP(G$4,'4. Billing Determinants'!$B$19:$Z$41,3,0)/'4. Billing Determinants'!$D$41*$D27))))),0) -> 0 | H27: =IFERROR(IF(H$4="",0,IF($E27="kWh",VLOOKUP(H$4,'4. Billing Determinants'!$B$19:$Z$41,4,0)/'4. Billing Determinants'!$E$41*$D27,IF($E27="kW",VLOOKUP(H$4,'4. Billing Determinants'!$B$19:$Z$41,5,0)/'4. Billing Determinants'!$F$41*$D27,IF($E27="Non-RPP kWh",VLOOKUP(H$4,'4. Billing Determinants'!$B$19:$Z$41,6,0)/'4. Billing Determinants'!$G$41*$D27,IF($E27="Distribution Rev.",VLOOKUP(H$4,'4. Billing Determinants'!$B$19:$Z$41,8,0)/'4. Billing Determinants'!$I$41*$D27, VLOOKUP(H$4,'4. Billing Determinants'!$B$19:$Z$41,3,0)/'4. Billing Determinants'!$D$41*$D27))))),0) -> 0 | I27: =IFERROR(IF(I$4="",0,IF($E27="kWh",VLOOKUP(I$4,'4. Billing Determinants'!$B$19:$Z$41,4,0)/'4. Billing Determinants'!$E$41*$D27,IF($E27="kW",VLOOKUP(I$4,'4. Billing Determinants'!$B$19:$Z$41,5,0)/'4. Billing Determinants'!$F$41*$D27,IF($E27="Non-RPP kWh",VLOOKUP(I$4,'4. Billing Determinants'!$B$19:$Z$41,6,0)/'4. Billing Determinants'!$G$41*$D27,IF($E27="Distribution Rev.",VLOOKUP(I$4,'4. Billing Determinants'!$B$19:$Z$41,8,0)/'4. Billing Determinants'!$I$41*$D27, VLOOKUP(I$4,'4. Billing Determinants'!$B$19:$Z$41,3,0)/'4. Billing Determinants'!$D$41*$D27))))),0) -> 0 | J27: =IFERROR(IF(J$4="",0,IF($E27="kWh",VLOOKUP(J$4,'4. Billing Determinants'!$B$19:$Z$41,4,0)/'4. Billing Determinants'!$E$41*$D27,IF($E27="kW",VLOOKUP(J$4,'4. Billing Determinants'!$B$19:$Z$41,5,0)/'4. Billing Determinants'!$F$41*$D27,IF($E27="Non-RPP kWh",VLOOKUP(J$4,'4. Billing Determinants'!$B$19:$Z$41,6,0)/'4. Billing Determinants'!$G$41*$D27,IF($E27="Distribution Rev.",VLOOKUP(J$4,'4. Billing Determinants'!$B$19:$Z$41,8,0)/'4. Billing Determinants'!$I$41*$D27, VLOOKUP(J$4,'4. Billing Determinants'!$B$19:$Z$41,3,0)/'4. Billing Determinants'!$D$41*$D27))))),0) -> 0 | K27: =IFERROR(IF(K$4="",0,IF($E27="kWh",VLOOKUP(K$4,'4. Billing Determinants'!$B$19:$Z$41,4,0)/'4. Billing Determinants'!$E$41*$D27,IF($E27="kW",VLOOKUP(K$4,'4. Billing Determinants'!$B$19:$Z$41,5,0)/'4. Billing Determinants'!$F$41*$D27,IF($E27="Non-RPP kWh",VLOOKUP(K$4,'4. Billing Determinants'!$B$19:$Z$41,6,0)/'4. Billing Determinants'!$G$41*$D27,IF($E27="Distribution Rev.",VLOOKUP(K$4,'4. Billing Determinants'!$B$19:$Z$41,8,0)/'4. Billing Determinants'!$I$41*$D27, VLOOKUP(K$4,'4. Billing Determinants'!$B$19:$Z$41,3,0)/'4. Billing Determinants'!$D$41*$D27))))),0) -> 0 | L27: =IFERROR(IF(L$4="",0,IF($E27="kWh",VLOOKUP(L$4,'4. Billing Determinants'!$B$19:$Z$41,4,0)/'4. Billing Determinants'!$E$41*$D27,IF($E27="kW",VLOOKUP(L$4,'4. Billing Determinants'!$B$19:$Z$41,5,0)/'4. Billing Determinants'!$F$41*$D27,IF($E27="Non-RPP kWh",VLOOKUP(L$4,'4. Billing Determinants'!$B$19:$Z$41,6,0)/'4. Billing Determinants'!$G$41*$D27,IF($E27="Distribution Rev.",VLOOKUP(L$4,'4. Billing Determinants'!$B$19:$Z$41,8,0)/'4. Billing Determinants'!$I$41*$D27, VLOOKUP(L$4,'4. Billing Determinants'!$B$19:$Z$41,3,0)/'4. Billing Determinants'!$D$41*$D27))))),0) -> 0 | M27: =IFERROR(IF(M$4="",0,IF($E27="kWh",VLOOKUP(M$4,'4. Billing Determinants'!$B$19:$Z$41,4,0)/'4. Billing Determinants'!$E$41*$D27,IF($E27="kW",VLOOKUP(M$4,'4. Billing Determinants'!$B$19:$Z$41,5,0)/'4. Billing Determinants'!$F$41*$D27,IF($E27="Non-RPP kWh",VLOOKUP(M$4,'4. Billing Determinants'!$B$19:$Z$41,6,0)/'4. Billing Determinants'!$G$41*$D27,IF($E27="Distribution Rev.",VLOOKUP(M$4,'4. Billing Determinants'!$B$19:$Z$41,8,0)/'4. Billing Determinants'!$I$41*$D27, VLOOKUP(M$4,'4. Billing Determinants'!$B$19:$Z$41,3,0)/'4. Billing Determinants'!$D$41*$D27))))),0) -> 0 | N27: =IFERROR(IF(N$4="",0,IF($E27="kWh",VLOOKUP(N$4,'4. Billing Determinants'!$B$19:$Z$41,4,0)/'4. Billing Determinants'!$E$41*$D27,IF($E27="kW",VLOOKUP(N$4,'4. Billing Determinants'!$B$19:$Z$41,5,0)/'4. Billing Determinants'!$F$41*$D27,IF($E27="Non-RPP kWh",VLOOKUP(N$4,'4. Billing Determinants'!$B$19:$Z$41,6,0)/'4. Billing Determinants'!$G$41*$D27,IF($E27="Distribution Rev.",VLOOKUP(N$4,'4. Billing Determinants'!$B$19:$Z$41,8,0)/'4. Billing Determinants'!$I$41*$D27, VLOOKUP(N$4,'4. Billing Determinants'!$B$19:$Z$41,3,0)/'4. Billing Determinants'!$D$41*$D27))))),0) -> 0 | O27: =IFERROR(IF(O$4="",0,IF($E27="kWh",VLOOKUP(O$4,'4. Billing Determinants'!$B$19:$Z$41,4,0)/'4. Billing Determinants'!$E$41*$D27,IF($E27="kW",VLOOKUP(O$4,'4. Billing Determinants'!$B$19:$Z$41,5,0)/'4. Billing Determinants'!$F$41*$D27,IF($E27="Non-RPP kWh",VLOOKUP(O$4,'4. Billing Determinants'!$B$19:$Z$41,6,0)/'4. Billing Determinants'!$G$41*$D27,IF($E27="Distribution Rev.",VLOOKUP(O$4,'4. Billing Determinants'!$B$19:$Z$41,8,0)/'4. Billing Determinants'!$I$41*$D27, VLOOKUP(O$4,'4. Billing Determinants'!$B$19:$Z$41,3,0)/'4. Billing Determinants'!$D$41*$D27))))),0) -> 0 | P27: =IFERROR(IF(P$4="",0,IF($E27="kWh",VLOOKUP(P$4,'4. Billing Determinants'!$B$19:$Z$41,4,0)/'4. Billing Determinants'!$E$41*$D27,IF($E27="kW",VLOOKUP(P$4,'4. Billing Determinants'!$B$19:$Z$41,5,0)/'4. Billing Determinants'!$F$41*$D27,IF($E27="Non-RPP kWh",VLOOKUP(P$4,'4. Billing Determinants'!$B$19:$Z$41,6,0)/'4. Billing Determinants'!$G$41*$D27,IF($E27="Distribution Rev.",VLOOKUP(P$4,'4. Billing Determinants'!$B$19:$Z$41,8,0)/'4. Billing Determinants'!$I$41*$D27, VLOOKUP(P$4,'4. Billing Determinants'!$B$19:$Z$41,3,0)/'4. Billing Determinants'!$D$41*$D27))))),0) -> 0 | Q27: =IFERROR(IF(Q$4="",0,IF($E27="kWh",VLOOKUP(Q$4,'4. Billing Determinants'!$B$19:$Z$41,4,0)/'4. Billing Determinants'!$E$41*$D27,IF($E27="kW",VLOOKUP(Q$4,'4. Billing Determinants'!$B$19:$Z$41,5,0)/'4. Billing Determinants'!$F$41*$D27,IF($E27="Non-RPP kWh",VLOOKUP(Q$4,'4. Billing Determinants'!$B$19:$Z$41,6,0)/'4. Billing Determinants'!$G$41*$D27,IF($E27="Distribution Rev.",VLOOKUP(Q$4,'4. Billing Determinants'!$B$19:$Z$41,8,0)/'4. Billing Determinants'!$I$41*$D27, VLOOKUP(Q$4,'4. Billing Determinants'!$B$19:$Z$41,3,0)/'4. Billing Determinants'!$D$41*$D27))))),0) -> 0 | R27: =IFERROR(IF(R$4="",0,IF($E27="kWh",VLOOKUP(R$4,'4. Billing Determinants'!$B$19:$Z$41,4,0)/'4. Billing Determinants'!$E$41*$D27,IF($E27="kW",VLOOKUP(R$4,'4. Billing Determinants'!$B$19:$Z$41,5,0)/'4. Billing Determinants'!$F$41*$D27,IF($E27="Non-RPP kWh",VLOOKUP(R$4,'4. Billing Determinants'!$B$19:$Z$41,6,0)/'4. Billing Determinants'!$G$41*$D27,IF($E27="Distribution Rev.",VLOOKUP(R$4,'4. Billing Determinants'!$B$19:$Z$41,8,0)/'4. Billing Determinants'!$I$41*$D27, VLOOKUP(R$4,'4. Billing Determinants'!$B$19:$Z$41,3,0)/'4. Billing Determinants'!$D$41*$D27))))),0) -> 0 | S27: =IFERROR(IF(S$4="",0,IF($E27="kWh",VLOOKUP(S$4,'4. Billing Determinants'!$B$19:$Z$41,4,0)/'4. Billing Determinants'!$E$41*$D27,IF($E27="kW",VLOOKUP(S$4,'4. Billing Determinants'!$B$19:$Z$41,5,0)/'4. Billing Determinants'!$F$41*$D27,IF($E27="Non-RPP kWh",VLOOKUP(S$4,'4. Billing Determinants'!$B$19:$Z$41,6,0)/'4. Billing Determinants'!$G$41*$D27,IF($E27="Distribution Rev.",VLOOKUP(S$4,'4. Billing Determinants'!$B$19:$Z$41,8,0)/'4. Billing Determinants'!$I$41*$D27, VLOOKUP(S$4,'4. Billing Determinants'!$B$19:$Z$41,3,0)/'4. Billing Determinants'!$D$41*$D27))))),0) -> 0 | T27: =IFERROR(IF(T$4="",0,IF($E27="kWh",VLOOKUP(T$4,'4. Billing Determinants'!$B$19:$Z$41,4,0)/'4. Billing Determinants'!$E$41*$D27,IF($E27="kW",VLOOKUP(T$4,'4. Billing Determinants'!$B$19:$Z$41,5,0)/'4. Billing Determinants'!$F$41*$D27,IF($E27="Non-RPP kWh",VLOOKUP(T$4,'4. Billing Determinants'!$B$19:$Z$41,6,0)/'4. Billing Determinants'!$G$41*$D27,IF($E27="Distribution Rev.",VLOOKUP(T$4,'4. Billing Determinants'!$B$19:$Z$41,8,0)/'4. Billing Determinants'!$I$41*$D27, VLOOKUP(T$4,'4. Billing Determinants'!$B$19:$Z$41,3,0)/'4. Billing Determinants'!$D$41*$D27))))),0) -> 0 | U27: =IFERROR(IF(U$4="",0,IF($E27="kWh",VLOOKUP(U$4,'4. Billing Determinants'!$B$19:$Z$41,4,0)/'4. Billing Determinants'!$E$41*$D27,IF($E27="kW",VLOOKUP(U$4,'4. Billing Determinants'!$B$19:$Z$41,5,0)/'4. Billing Determinants'!$F$41*$D27,IF($E27="Non-RPP kWh",VLOOKUP(U$4,'4. Billing Determinants'!$B$19:$Z$41,6,0)/'4. Billing Determinants'!$G$41*$D27,IF($E27="Distribution Rev.",VLOOKUP(U$4,'4. Billing Determinants'!$B$19:$Z$41,8,0)/'4. Billing Determinants'!$I$41*$D27, VLOOKUP(U$4,'4. Billing Determinants'!$B$19:$Z$41,3,0)/'4. Billing Determinants'!$D$41*$D27))))),0) -> 0 | V27: =IFERROR(IF(V$4="",0,IF($E27="kWh",VLOOKUP(V$4,'4. Billing Determinants'!$B$19:$Z$41,4,0)/'4. Billing Determinants'!$E$41*$D27,IF($E27="kW",VLOOKUP(V$4,'4. Billing Determinants'!$B$19:$Z$41,5,0)/'4. Billing Determinants'!$F$41*$D27,IF($E27="Non-RPP kWh",VLOOKUP(V$4,'4. Billing Determinants'!$B$19:$Z$41,6,0)/'4. Billing Determinants'!$G$41*$D27,IF($E27="Distribution Rev.",VLOOKUP(V$4,'4. Billing Determinants'!$B$19:$Z$41,8,0)/'4. Billing Determinants'!$I$41*$D27, VLOOKUP(V$4,'4. Billing Determinants'!$B$19:$Z$41,3,0)/'4. Billing Determinants'!$D$41*$D27))))),0) -> 0 | W27: =IFERROR(IF(W$4="",0,IF($E27="kWh",VLOOKUP(W$4,'4. Billing Determinants'!$B$19:$Z$41,4,0)/'4. Billing Determinants'!$E$41*$D27,IF($E27="kW",VLOOKUP(W$4,'4. Billing Determinants'!$B$19:$Z$41,5,0)/'4. Billing Determinants'!$F$41*$D27,IF($E27="Non-RPP kWh",VLOOKUP(W$4,'4. Billing Determinants'!$B$19:$Z$41,6,0)/'4. Billing Determinants'!$G$41*$D27,IF($E27="Distribution Rev.",VLOOKUP(W$4,'4. Billing Determinants'!$B$19:$Z$41,8,0)/'4. Billing Determinants'!$I$41*$D27, VLOOKUP(W$4,'4. Billing Determinants'!$B$19:$Z$41,3,0)/'4. Billing Determinants'!$D$41*$D27))))),0) -> 0 | X27: =IFERROR(IF(X$4="",0,IF($E27="kWh",VLOOKUP(X$4,'4. Billing Determinants'!$B$19:$Z$41,4,0)/'4. Billing Determinants'!$E$41*$D27,IF($E27="kW",VLOOKUP(X$4,'4. Billing Determinants'!$B$19:$Z$41,5,0)/'4. Billing Determinants'!$F$41*$D27,IF($E27="Non-RPP kWh",VLOOKUP(X$4,'4. Billing Determinants'!$B$19:$Z$41,6,0)/'4. Billing Determinants'!$G$41*$D27,IF($E27="Distribution Rev.",VLOOKUP(X$4,'4. Billing Determinants'!$B$19:$Z$41,8,0)/'4. Billing Determinants'!$I$41*$D27, VLOOKUP(X$4,'4. Billing Determinants'!$B$19:$Z$41,3,0)/'4. Billing Determinants'!$D$41*$D27))))),0) -> 0 | Y27: =IFERROR(IF(Y$4="",0,IF($E27="kWh",VLOOKUP(Y$4,'4. Billing Determinants'!$B$19:$Z$41,4,0)/'4. Billing Determinants'!$E$41*$D27,IF($E27="kW",VLOOKUP(Y$4,'4. Billing Determinants'!$B$19:$Z$41,5,0)/'4. Billing Determinants'!$F$41*$D27,IF($E27="Non-RPP kWh",VLOOKUP(Y$4,'4. Billing Determinants'!$B$19:$Z$41,6,0)/'4. Billing Determinants'!$G$41*$D27,IF($E27="Distribution Rev.",VLOOKUP(Y$4,'4. Billing Determinants'!$B$19:$Z$41,8,0)/'4. Billing Determinants'!$I$41*$D27, VLOOKUP(Y$4,'4. Billing Determinants'!$B$19:$Z$41,3,0)/'4. Billing Determinants'!$D$41*$D27))))),0) -> 0
B28: Retail Cost Variance Account - STR | C28: 1548 | D28: ='2. 2015 Continuity Schedule'!BS76 -> 0 | E28: kWh | F28: =IFERROR(IF(F$4="",0,IF($E28="kWh",VLOOKUP(F$4,'4. Billing Determinants'!$B$19:$Z$41,4,0)/'4. Billing Determinants'!$E$41*$D28,IF($E28="kW",VLOOKUP(F$4,'4. Billing Determinants'!$B$19:$Z$41,5,0)/'4. Billing Determinants'!$F$41*$D28,IF($E28="Non-RPP kWh",VLOOKUP(F$4,'4. Billing Determinants'!$B$19:$Z$41,6,0)/'4. Billing Determinants'!$G$41*$D28,IF($E28="Distribution Rev.",VLOOKUP(F$4,'4. Billing Determinants'!$B$19:$Z$41,8,0)/'4. Billing Determinants'!$I$41*$D28, VLOOKUP(F$4,'4. Billing Determinants'!$B$19:$Z$41,3,0)/'4. Billing Determinants'!$D$41*$D28))))),0) -> 0 | G28: =IFERROR(IF(G$4="",0,IF($E28="kWh",VLOOKUP(G$4,'4. Billing Determinants'!$B$19:$Z$41,4,0)/'4. Billing Determinants'!$E$41*$D28,IF($E28="kW",VLOOKUP(G$4,'4. Billing Determinants'!$B$19:$Z$41,5,0)/'4. Billing Determinants'!$F$41*$D28,IF($E28="Non-RPP kWh",VLOOKUP(G$4,'4. Billing Determinants'!$B$19:$Z$41,6,0)/'4. Billing Determinants'!$G$41*$D28,IF($E28="Distribution Rev.",VLOOKUP(G$4,'4. Billing Determinants'!$B$19:$Z$41,8,0)/'4. Billing Determinants'!$I$41*$D28, VLOOKUP(G$4,'4. Billing Determinants'!$B$19:$Z$41,3,0)/'4. Billing Determinants'!$D$41*$D28))))),0) -> 0 | H28: =IFERROR(IF(H$4="",0,IF($E28="kWh",VLOOKUP(H$4,'4. Billing Determinants'!$B$19:$Z$41,4,0)/'4. Billing Determinants'!$E$41*$D28,IF($E28="kW",VLOOKUP(H$4,'4. Billing Determinants'!$B$19:$Z$41,5,0)/'4. Billing Determinants'!$F$41*$D28,IF($E28="Non-RPP kWh",VLOOKUP(H$4,'4. Billing Determinants'!$B$19:$Z$41,6,0)/'4. Billing Determinants'!$G$41*$D28,IF($E28="Distribution Rev.",VLOOKUP(H$4,'4. Billing Determinants'!$B$19:$Z$41,8,0)/'4. Billing Determinants'!$I$41*$D28, VLOOKUP(H$4,'4. Billing Determinants'!$B$19:$Z$41,3,0)/'4. Billing Determinants'!$D$41*$D28))))),0) -> 0 | I28: =IFERROR(IF(I$4="",0,IF($E28="kWh",VLOOKUP(I$4,'4. Billing Determinants'!$B$19:$Z$41,4,0)/'4. Billing Determinants'!$E$41*$D28,IF($E28="kW",VLOOKUP(I$4,'4. Billing Determinants'!$B$19:$Z$41,5,0)/'4. Billing Determinants'!$F$41*$D28,IF($E28="Non-RPP kWh",VLOOKUP(I$4,'4. Billing Determinants'!$B$19:$Z$41,6,0)/'4. Billing Determinants'!$G$41*$D28,IF($E28="Distribution Rev.",VLOOKUP(I$4,'4. Billing Determinants'!$B$19:$Z$41,8,0)/'4. Billing Determinants'!$I$41*$D28, VLOOKUP(I$4,'4. Billing Determinants'!$B$19:$Z$41,3,0)/'4. Billing Determinants'!$D$41*$D28))))),0) -> 0 | J28: =IFERROR(IF(J$4="",0,IF($E28="kWh",VLOOKUP(J$4,'4. Billing Determinants'!$B$19:$Z$41,4,0)/'4. Billing Determinants'!$E$41*$D28,IF($E28="kW",VLOOKUP(J$4,'4. Billing Determinants'!$B$19:$Z$41,5,0)/'4. Billing Determinants'!$F$41*$D28,IF($E28="Non-RPP kWh",VLOOKUP(J$4,'4. Billing Determinants'!$B$19:$Z$41,6,0)/'4. Billing Determinants'!$G$41*$D28,IF($E28="Distribution Rev.",VLOOKUP(J$4,'4. Billing Determinants'!$B$19:$Z$41,8,0)/'4. Billing Determinants'!$I$41*$D28, VLOOKUP(J$4,'4. Billing Determinants'!$B$19:$Z$41,3,0)/'4. Billing Determinants'!$D$41*$D28))))),0) -> 0 | K28: =IFERROR(IF(K$4="",0,IF($E28="kWh",VLOOKUP(K$4,'4. Billing Determinants'!$B$19:$Z$41,4,0)/'4. Billing Determinants'!$E$41*$D28,IF($E28="kW",VLOOKUP(K$4,'4. Billing Determinants'!$B$19:$Z$41,5,0)/'4. Billing Determinants'!$F$41*$D28,IF($E28="Non-RPP kWh",VLOOKUP(K$4,'4. Billing Determinants'!$B$19:$Z$41,6,0)/'4. Billing Determinants'!$G$41*$D28,IF($E28="Distribution Rev.",VLOOKUP(K$4,'4. Billing Determinants'!$B$19:$Z$41,8,0)/'4. Billing Determinants'!$I$41*$D28, VLOOKUP(K$4,'4. Billing Determinants'!$B$19:$Z$41,3,0)/'4. Billing Determinants'!$D$41*$D28))))),0) -> 0 | L28: =IFERROR(IF(L$4="",0,IF($E28="kWh",VLOOKUP(L$4,'4. Billing Determinants'!$B$19:$Z$41,4,0)/'4. Billing Determinants'!$E$41*$D28,IF($E28="kW",VLOOKUP(L$4,'4. Billing Determinants'!$B$19:$Z$41,5,0)/'4. Billing Determinants'!$F$41*$D28,IF($E28="Non-RPP kWh",VLOOKUP(L$4,'4. Billing Determinants'!$B$19:$Z$41,6,0)/'4. Billing Determinants'!$G$41*$D28,IF($E28="Distribution Rev.",VLOOKUP(L$4,'4. Billing Determinants'!$B$19:$Z$41,8,0)/'4. Billing Determinants'!$I$41*$D28, VLOOKUP(L$4,'4. Billing Determinants'!$B$19:$Z$41,3,0)/'4. Billing Determinants'!$D$41*$D28))))),0) -> 0 | M28: =IFERROR(IF(M$4="",0,IF($E28="kWh",VLOOKUP(M$4,'4. Billing Determinants'!$B$19:$Z$41,4,0)/'4. Billing Determinants'!$E$41*$D28,IF($E28="kW",VLOOKUP(M$4,'4. Billing Determinants'!$B$19:$Z$41,5,0)/'4. Billing Determinants'!$F$41*$D28,IF($E28="Non-RPP kWh",VLOOKUP(M$4,'4. Billing Determinants'!$B$19:$Z$41,6,0)/'4. Billing Determinants'!$G$41*$D28,IF($E28="Distribution Rev.",VLOOKUP(M$4,'4. Billing Determinants'!$B$19:$Z$41,8,0)/'4. Billing Determinants'!$I$41*$D28, VLOOKUP(M$4,'4. Billing Determinants'!$B$19:$Z$41,3,0)/'4. Billing Determinants'!$D$41*$D28))))),0) -> 0 | N28: =IFERROR(IF(N$4="",0,IF($E28="kWh",VLOOKUP(N$4,'4. Billing Determinants'!$B$19:$Z$41,4,0)/'4. Billing Determinants'!$E$41*$D28,IF($E28="kW",VLOOKUP(N$4,'4. Billing Determinants'!$B$19:$Z$41,5,0)/'4. Billing Determinants'!$F$41*$D28,IF($E28="Non-RPP kWh",VLOOKUP(N$4,'4. Billing Determinants'!$B$19:$Z$41,6,0)/'4. Billing Determinants'!$G$41*$D28,IF($E28="Distribution Rev.",VLOOKUP(N$4,'4. Billing Determinants'!$B$19:$Z$41,8,0)/'4. Billing Determinants'!$I$41*$D28, VLOOKUP(N$4,'4. Billing Determinants'!$B$19:$Z$41,3,0)/'4. Billing Determinants'!$D$41*$D28))))),0) -> 0 | O28: =IFERROR(IF(O$4="",0,IF($E28="kWh",VLOOKUP(O$4,'4. Billing Determinants'!$B$19:$Z$41,4,0)/'4. Billing Determinants'!$E$41*$D28,IF($E28="kW",VLOOKUP(O$4,'4. Billing Determinants'!$B$19:$Z$41,5,0)/'4. Billing Determinants'!$F$41*$D28,IF($E28="Non-RPP kWh",VLOOKUP(O$4,'4. Billing Determinants'!$B$19:$Z$41,6,0)/'4. Billing Determinants'!$G$41*$D28,IF($E28="Distribution Rev.",VLOOKUP(O$4,'4. Billing Determinants'!$B$19:$Z$41,8,0)/'4. Billing Determinants'!$I$41*$D28, VLOOKUP(O$4,'4. Billing Determinants'!$B$19:$Z$41,3,0)/'4. Billing Determinants'!$D$41*$D28))))),0) -> 0 | P28: =IFERROR(IF(P$4="",0,IF($E28="kWh",VLOOKUP(P$4,'4. Billing Determinants'!$B$19:$Z$41,4,0)/'4. Billing Determinants'!$E$41*$D28,IF($E28="kW",VLOOKUP(P$4,'4. Billing Determinants'!$B$19:$Z$41,5,0)/'4. Billing Determinants'!$F$41*$D28,IF($E28="Non-RPP kWh",VLOOKUP(P$4,'4. Billing Determinants'!$B$19:$Z$41,6,0)/'4. Billing Determinants'!$G$41*$D28,IF($E28="Distribution Rev.",VLOOKUP(P$4,'4. Billing Determinants'!$B$19:$Z$41,8,0)/'4. Billing Determinants'!$I$41*$D28, VLOOKUP(P$4,'4. Billing Determinants'!$B$19:$Z$41,3,0)/'4. Billing Determinants'!$D$41*$D28))))),0) -> 0 | Q28: =IFERROR(IF(Q$4="",0,IF($E28="kWh",VLOOKUP(Q$4,'4. Billing Determinants'!$B$19:$Z$41,4,0)/'4. Billing Determinants'!$E$41*$D28,IF($E28="kW",VLOOKUP(Q$4,'4. Billing Determinants'!$B$19:$Z$41,5,0)/'4. Billing Determinants'!$F$41*$D28,IF($E28="Non-RPP kWh",VLOOKUP(Q$4,'4. Billing Determinants'!$B$19:$Z$41,6,0)/'4. Billing Determinants'!$G$41*$D28,IF($E28="Distribution Rev.",VLOOKUP(Q$4,'4. Billing Determinants'!$B$19:$Z$41,8,0)/'4. Billing Determinants'!$I$41*$D28, VLOOKUP(Q$4,'4. Billing Determinants'!$B$19:$Z$41,3,0)/'4. Billing Determinants'!$D$41*$D28))))),0) -> 0 | R28: =IFERROR(IF(R$4="",0,IF($E28="kWh",VLOOKUP(R$4,'4. Billing Determinants'!$B$19:$Z$41,4,0)/'4. Billing Determinants'!$E$41*$D28,IF($E28="kW",VLOOKUP(R$4,'4. Billing Determinants'!$B$19:$Z$41,5,0)/'4. Billing Determinants'!$F$41*$D28,IF($E28="Non-RPP kWh",VLOOKUP(R$4,'4. Billing Determinants'!$B$19:$Z$41,6,0)/'4. Billing Determinants'!$G$41*$D28,IF($E28="Distribution Rev.",VLOOKUP(R$4,'4. Billing Determinants'!$B$19:$Z$41,8,0)/'4. Billing Determinants'!$I$41*$D28, VLOOKUP(R$4,'4. Billing Determinants'!$B$19:$Z$41,3,0)/'4. Billing Determinants'!$D$41*$D28))))),0) -> 0 | S28: =IFERROR(IF(S$4="",0,IF($E28="kWh",VLOOKUP(S$4,'4. Billing Determinants'!$B$19:$Z$41,4,0)/'4. Billing Determinants'!$E$41*$D28,IF($E28="kW",VLOOKUP(S$4,'4. Billing Determinants'!$B$19:$Z$41,5,0)/'4. Billing Determinants'!$F$41*$D28,IF($E28="Non-RPP kWh",VLOOKUP(S$4,'4. Billing Determinants'!$B$19:$Z$41,6,0)/'4. Billing Determinants'!$G$41*$D28,IF($E28="Distribution Rev.",VLOOKUP(S$4,'4. Billing Determinants'!$B$19:$Z$41,8,0)/'4. Billing Determinants'!$I$41*$D28, VLOOKUP(S$4,'4. Billing Determinants'!$B$19:$Z$41,3,0)/'4. Billing Determinants'!$D$41*$D28))))),0) -> 0 | T28: =IFERROR(IF(T$4="",0,IF($E28="kWh",VLOOKUP(T$4,'4. Billing Determinants'!$B$19:$Z$41,4,0)/'4. Billing Determinants'!$E$41*$D28,IF($E28="kW",VLOOKUP(T$4,'4. Billing Determinants'!$B$19:$Z$41,5,0)/'4. Billing Determinants'!$F$41*$D28,IF($E28="Non-RPP kWh",VLOOKUP(T$4,'4. Billing Determinants'!$B$19:$Z$41,6,0)/'4. Billing Determinants'!$G$41*$D28,IF($E28="Distribution Rev.",VLOOKUP(T$4,'4. Billing Determinants'!$B$19:$Z$41,8,0)/'4. Billing Determinants'!$I$41*$D28, VLOOKUP(T$4,'4. Billing Determinants'!$B$19:$Z$41,3,0)/'4. Billing Determinants'!$D$41*$D28))))),0) -> 0 | U28: =IFERROR(IF(U$4="",0,IF($E28="kWh",VLOOKUP(U$4,'4. Billing Determinants'!$B$19:$Z$41,4,0)/'4. Billing Determinants'!$E$41*$D28,IF($E28="kW",VLOOKUP(U$4,'4. Billing Determinants'!$B$19:$Z$41,5,0)/'4. Billing Determinants'!$F$41*$D28,IF($E28="Non-RPP kWh",VLOOKUP(U$4,'4. Billing Determinants'!$B$19:$Z$41,6,0)/'4. Billing Determinants'!$G$41*$D28,IF($E28="Distribution Rev.",VLOOKUP(U$4,'4. Billing Determinants'!$B$19:$Z$41,8,0)/'4. Billing Determinants'!$I$41*$D28, VLOOKUP(U$4,'4. Billing Determinants'!$B$19:$Z$41,3,0)/'4. Billing Determinants'!$D$41*$D28))))),0) -> 0 | V28: =IFERROR(IF(V$4="",0,IF($E28="kWh",VLOOKUP(V$4,'4. Billing Determinants'!$B$19:$Z$41,4,0)/'4. Billing Determinants'!$E$41*$D28,IF($E28="kW",VLOOKUP(V$4,'4. Billing Determinants'!$B$19:$Z$41,5,0)/'4. Billing Determinants'!$F$41*$D28,IF($E28="Non-RPP kWh",VLOOKUP(V$4,'4. Billing Determinants'!$B$19:$Z$41,6,0)/'4. Billing Determinants'!$G$41*$D28,IF($E28="Distribution Rev.",VLOOKUP(V$4,'4. Billing Determinants'!$B$19:$Z$41,8,0)/'4. Billing Determinants'!$I$41*$D28, VLOOKUP(V$4,'4. Billing Determinants'!$B$19:$Z$41,3,0)/'4. Billing Determinants'!$D$41*$D28))))),0) -> 0 | W28: =IFERROR(IF(W$4="",0,IF($E28="kWh",VLOOKUP(W$4,'4. Billing Determinants'!$B$19:$Z$41,4,0)/'4. Billing Determinants'!$E$41*$D28,IF($E28="kW",VLOOKUP(W$4,'4. Billing Determinants'!$B$19:$Z$41,5,0)/'4. Billing Determinants'!$F$41*$D28,IF($E28="Non-RPP kWh",VLOOKUP(W$4,'4. Billing Determinants'!$B$19:$Z$41,6,0)/'4. Billing Determinants'!$G$41*$D28,IF($E28="Distribution Rev.",VLOOKUP(W$4,'4. Billing Determinants'!$B$19:$Z$41,8,0)/'4. Billing Determinants'!$I$41*$D28, VLOOKUP(W$4,'4. Billing Determinants'!$B$19:$Z$41,3,0)/'4. Billing Determinants'!$D$41*$D28))))),0) -> 0 | X28: =IFERROR(IF(X$4="",0,IF($E28="kWh",VLOOKUP(X$4,'4. Billing Determinants'!$B$19:$Z$41,4,0)/'4. Billing Determinants'!$E$41*$D28,IF($E28="kW",VLOOKUP(X$4,'4. Billing Determinants'!$B$19:$Z$41,5,0)/'4. Billing Determinants'!$F$41*$D28,IF($E28="Non-RPP kWh",VLOOKUP(X$4,'4. Billing Determinants'!$B$19:$Z$41,6,0)/'4. Billing Determinants'!$G$41*$D28,IF($E28="Distribution Rev.",VLOOKUP(X$4,'4. Billing Determinants'!$B$19:$Z$41,8,0)/'4. Billing Determinants'!$I$41*$D28, VLOOKUP(X$4,'4. Billing Determinants'!$B$19:$Z$41,3,0)/'4. Billing Determinants'!$D$41*$D28))))),0) -> 0 | Y28: =IFERROR(IF(Y$4="",0,IF($E28="kWh",VLOOKUP(Y$4,'4. Billing Determinants'!$B$19:$Z$41,4,0)/'4. Billing Determinants'!$E$41*$D28,IF($E28="kW",VLOOKUP(Y$4,'4. Billing Determinants'!$B$19:$Z$41,5,0)/'4. Billing Determinants'!$F$41*$D28,IF($E28="Non-RPP kWh",VLOOKUP(Y$4,'4. Billing Determinants'!$B$19:$Z$41,6,0)/'4. Billing Determinants'!$G$41*$D28,IF($E28="Distribution Rev.",VLOOKUP(Y$4,'4. Billing Determinants'!$B$19:$Z$41,8,0)/'4. Billing Determinants'!$I$41*$D28, VLOOKUP(Y$4,'4. Billing Determinants'!$B$19:$Z$41,3,0)/'4. Billing Determinants'!$D$41*$D28))))),0) -> 0
B29: Board-Approved CDM Variance Account | C29: 1567 | D29: ='2. 2015 Continuity Schedule'!BS70 -> 0 | E29: kWh | F29: =IFERROR(IF(F$4="",0,IF($E29="kWh",VLOOKUP(F$4,'4. Billing Determinants'!$B$19:$Z$41,4,0)/'4. Billing Determinants'!$E$41*$D29,IF($E29="kW",VLOOKUP(F$4,'4. Billing Determinants'!$B$19:$Z$41,5,0)/'4. Billing Determinants'!$F$41*$D29,IF($E29="Non-RPP kWh",VLOOKUP(F$4,'4. Billing Determinants'!$B$19:$Z$41,6,0)/'4. Billing Determinants'!$G$41*$D29,IF($E29="Distribution Rev.",VLOOKUP(F$4,'4. Billing Determinants'!$B$19:$Z$41,8,0)/'4. Billing Determinants'!$I$41*$D29, VLOOKUP(F$4,'4. Billing Determinants'!$B$19:$Z$41,3,0)/'4. Billing Determinants'!$D$41*$D29))))),0) -> 0 | G29: =IFERROR(IF(G$4="",0,IF($E29="kWh",VLOOKUP(G$4,'4. Billing Determinants'!$B$19:$Z$41,4,0)/'4. Billing Determinants'!$E$41*$D29,IF($E29="kW",VLOOKUP(G$4,'4. Billing Determinants'!$B$19:$Z$41,5,0)/'4. Billing Determinants'!$F$41*$D29,IF($E29="Non-RPP kWh",VLOOKUP(G$4,'4. Billing Determinants'!$B$19:$Z$41,6,0)/'4. Billing Determinants'!$G$41*$D29,IF($E29="Distribution Rev.",VLOOKUP(G$4,'4. Billing Determinants'!$B$19:$Z$41,8,0)/'4. Billing Determinants'!$I$41*$D29, VLOOKUP(G$4,'4. Billing Determinants'!$B$19:$Z$41,3,0)/'4. Billing Determinants'!$D$41*$D29))))),0) -> 0 | H29: =IFERROR(IF(H$4="",0,IF($E29="kWh",VLOOKUP(H$4,'4. Billing Determinants'!$B$19:$Z$41,4,0)/'4. Billing Determinants'!$E$41*$D29,IF($E29="kW",VLOOKUP(H$4,'4. Billing Determinants'!$B$19:$Z$41,5,0)/'4. Billing Determinants'!$F$41*$D29,IF($E29="Non-RPP kWh",VLOOKUP(H$4,'4. Billing Determinants'!$B$19:$Z$41,6,0)/'4. Billing Determinants'!$G$41*$D29,IF($E29="Distribution Rev.",VLOOKUP(H$4,'4. Billing Determinants'!$B$19:$Z$41,8,0)/'4. Billing Determinants'!$I$41*$D29, VLOOKUP(H$4,'4. Billing Determinants'!$B$19:$Z$41,3,0)/'4. Billing Determinants'!$D$41*$D29))))),0) -> 0 | I29: =IFERROR(IF(I$4="",0,IF($E29="kWh",VLOOKUP(I$4,'4. Billing Determinants'!$B$19:$Z$41,4,0)/'4. Billing Determinants'!$E$41*$D29,IF($E29="kW",VLOOKUP(I$4,'4. Billing Determinants'!$B$19:$Z$41,5,0)/'4. Billing Determinants'!$F$41*$D29,IF($E29="Non-RPP kWh",VLOOKUP(I$4,'4. Billing Determinants'!$B$19:$Z$41,6,0)/'4. Billing Determinants'!$G$41*$D29,IF($E29="Distribution Rev.",VLOOKUP(I$4,'4. Billing Determinants'!$B$19:$Z$41,8,0)/'4. Billing Determinants'!$I$41*$D29, VLOOKUP(I$4,'4. Billing Determinants'!$B$19:$Z$41,3,0)/'4. Billing Determinants'!$D$41*$D29))))),0) -> 0 | J29: =IFERROR(IF(J$4="",0,IF($E29="kWh",VLOOKUP(J$4,'4. Billing Determinants'!$B$19:$Z$41,4,0)/'4. Billing Determinants'!$E$41*$D29,IF($E29="kW",VLOOKUP(J$4,'4. Billing Determinants'!$B$19:$Z$41,5,0)/'4. Billing Determinants'!$F$41*$D29,IF($E29="Non-RPP kWh",VLOOKUP(J$4,'4. Billing Determinants'!$B$19:$Z$41,6,0)/'4. Billing Determinants'!$G$41*$D29,IF($E29="Distribution Rev.",VLOOKUP(J$4,'4. Billing Determinants'!$B$19:$Z$41,8,0)/'4. Billing Determinants'!$I$41*$D29, VLOOKUP(J$4,'4. Billing Determinants'!$B$19:$Z$41,3,0)/'4. Billing Determinants'!$D$41*$D29))))),0) -> 0 | K29: =IFERROR(IF(K$4="",0,IF($E29="kWh",VLOOKUP(K$4,'4. Billing Determinants'!$B$19:$Z$41,4,0)/'4. Billing Determinants'!$E$41*$D29,IF($E29="kW",VLOOKUP(K$4,'4. Billing Determinants'!$B$19:$Z$41,5,0)/'4. Billing Determinants'!$F$41*$D29,IF($E29="Non-RPP kWh",VLOOKUP(K$4,'4. Billing Determinants'!$B$19:$Z$41,6,0)/'4. Billing Determinants'!$G$41*$D29,IF($E29="Distribution Rev.",VLOOKUP(K$4,'4. Billing Determinants'!$B$19:$Z$41,8,0)/'4. Billing Determinants'!$I$41*$D29, VLOOKUP(K$4,'4. Billing Determinants'!$B$19:$Z$41,3,0)/'4. Billing Determinants'!$D$41*$D29))))),0) -> 0 | L29: =IFERROR(IF(L$4="",0,IF($E29="kWh",VLOOKUP(L$4,'4. Billing Determinants'!$B$19:$Z$41,4,0)/'4. Billing Determinants'!$E$41*$D29,IF($E29="kW",VLOOKUP(L$4,'4. Billing Determinants'!$B$19:$Z$41,5,0)/'4. Billing Determinants'!$F$41*$D29,IF($E29="Non-RPP kWh",VLOOKUP(L$4,'4. Billing Determinants'!$B$19:$Z$41,6,0)/'4. Billing Determinants'!$G$41*$D29,IF($E29="Distribution Rev.",VLOOKUP(L$4,'4. Billing Determinants'!$B$19:$Z$41,8,0)/'4. Billing Determinants'!$I$41*$D29, VLOOKUP(L$4,'4. Billing Determinants'!$B$19:$Z$41,3,0)/'4. Billing Determinants'!$D$41*$D29))))),0) -> 0 | M29: =IFERROR(IF(M$4="",0,IF($E29="kWh",VLOOKUP(M$4,'4. Billing Determinants'!$B$19:$Z$41,4,0)/'4. Billing Determinants'!$E$41*$D29,IF($E29="kW",VLOOKUP(M$4,'4. Billing Determinants'!$B$19:$Z$41,5,0)/'4. Billing Determinants'!$F$41*$D29,IF($E29="Non-RPP kWh",VLOOKUP(M$4,'4. Billing Determinants'!$B$19:$Z$41,6,0)/'4. Billing Determinants'!$G$41*$D29,IF($E29="Distribution Rev.",VLOOKUP(M$4,'4. Billing Determinants'!$B$19:$Z$41,8,0)/'4. Billing Determinants'!$I$41*$D29, VLOOKUP(M$4,'4. Billing Determinants'!$B$19:$Z$41,3,0)/'4. Billing Determinants'!$D$41*$D29))))),0) -> 0 | N29: =IFERROR(IF(N$4="",0,IF($E29="kWh",VLOOKUP(N$4,'4. Billing Determinants'!$B$19:$Z$41,4,0)/'4. Billing Determinants'!$E$41*$D29,IF($E29="kW",VLOOKUP(N$4,'4. Billing Determinants'!$B$19:$Z$41,5,0)/'4. Billing Determinants'!$F$41*$D29,IF($E29="Non-RPP kWh",VLOOKUP(N$4,'4. Billing Determinants'!$B$19:$Z$41,6,0)/'4. Billing Determinants'!$G$41*$D29,IF($E29="Distribution Rev.",VLOOKUP(N$4,'4. Billing Determinants'!$B$19:$Z$41,8,0)/'4. Billing Determinants'!$I$41*$D29, VLOOKUP(N$4,'4. Billing Determinants'!$B$19:$Z$41,3,0)/'4. Billing Determinants'!$D$41*$D29))))),0) -> 0 | O29: =IFERROR(IF(O$4="",0,IF($E29="kWh",VLOOKUP(O$4,'4. Billing Determinants'!$B$19:$Z$41,4,0)/'4. Billing Determinants'!$E$41*$D29,IF($E29="kW",VLOOKUP(O$4,'4. Billing Determinants'!$B$19:$Z$41,5,0)/'4. Billing Determinants'!$F$41*$D29,IF($E29="Non-RPP kWh",VLOOKUP(O$4,'4. Billing Determinants'!$B$19:$Z$41,6,0)/'4. Billing Determinants'!$G$41*$D29,IF($E29="Distribution Rev.",VLOOKUP(O$4,'4. Billing Determinants'!$B$19:$Z$41,8,0)/'4. Billing Determinants'!$I$41*$D29, VLOOKUP(O$4,'4. Billing Determinants'!$B$19:$Z$41,3,0)/'4. Billing Determinants'!$D$41*$D29))))),0) -> 0 | P29: =IFERROR(IF(P$4="",0,IF($E29="kWh",VLOOKUP(P$4,'4. Billing Determinants'!$B$19:$Z$41,4,0)/'4. Billing Determinants'!$E$41*$D29,IF($E29="kW",VLOOKUP(P$4,'4. Billing Determinants'!$B$19:$Z$41,5,0)/'4. Billing Determinants'!$F$41*$D29,IF($E29="Non-RPP kWh",VLOOKUP(P$4,'4. Billing Determinants'!$B$19:$Z$41,6,0)/'4. Billing Determinants'!$G$41*$D29,IF($E29="Distribution Rev.",VLOOKUP(P$4,'4. Billing Determinants'!$B$19:$Z$41,8,0)/'4. Billing Determinants'!$I$41*$D29, VLOOKUP(P$4,'4. Billing Determinants'!$B$19:$Z$41,3,0)/'4. Billing Determinants'!$D$41*$D29))))),0) -> 0 | Q29: =IFERROR(IF(Q$4="",0,IF($E29="kWh",VLOOKUP(Q$4,'4. Billing Determinants'!$B$19:$Z$41,4,0)/'4. Billing Determinants'!$E$41*$D29,IF($E29="kW",VLOOKUP(Q$4,'4. Billing Determinants'!$B$19:$Z$41,5,0)/'4. Billing Determinants'!$F$41*$D29,IF($E29="Non-RPP kWh",VLOOKUP(Q$4,'4. Billing Determinants'!$B$19:$Z$41,6,0)/'4. Billing Determinants'!$G$41*$D29,IF($E29="Distribution Rev.",VLOOKUP(Q$4,'4. Billing Determinants'!$B$19:$Z$41,8,0)/'4. Billing Determinants'!$I$41*$D29, VLOOKUP(Q$4,'4. Billing Determinants'!$B$19:$Z$41,3,0)/'4. Billing Determinants'!$D$41*$D29))))),0) -> 0 | R29: =IFERROR(IF(R$4="",0,IF($E29="kWh",VLOOKUP(R$4,'4. Billing Determinants'!$B$19:$Z$41,4,0)/'4. Billing Determinants'!$E$41*$D29,IF($E29="kW",VLOOKUP(R$4,'4. Billing Determinants'!$B$19:$Z$41,5,0)/'4. Billing Determinants'!$F$41*$D29,IF($E29="Non-RPP kWh",VLOOKUP(R$4,'4. Billing Determinants'!$B$19:$Z$41,6,0)/'4. Billing Determinants'!$G$41*$D29,IF($E29="Distribution Rev.",VLOOKUP(R$4,'4. Billing Determinants'!$B$19:$Z$41,8,0)/'4. Billing Determinants'!$I$41*$D29, VLOOKUP(R$4,'4. Billing Determinants'!$B$19:$Z$41,3,0)/'4. Billing Determinants'!$D$41*$D29))))),0) -> 0 | S29: =IFERROR(IF(S$4="",0,IF($E29="kWh",VLOOKUP(S$4,'4. Billing Determinants'!$B$19:$Z$41,4,0)/'4. Billing Determinants'!$E$41*$D29,IF($E29="kW",VLOOKUP(S$4,'4. Billing Determinants'!$B$19:$Z$41,5,0)/'4. Billing Determinants'!$F$41*$D29,IF($E29="Non-RPP kWh",VLOOKUP(S$4,'4. Billing Determinants'!$B$19:$Z$41,6,0)/'4. Billing Determinants'!$G$41*$D29,IF($E29="Distribution Rev.",VLOOKUP(S$4,'4. Billing Determinants'!$B$19:$Z$41,8,0)/'4. Billing Determinants'!$I$41*$D29, VLOOKUP(S$4,'4. Billing Determinants'!$B$19:$Z$41,3,0)/'4. Billing Determinants'!$D$41*$D29))))),0) -> 0 | T29: =IFERROR(IF(T$4="",0,IF($E29="kWh",VLOOKUP(T$4,'4. Billing Determinants'!$B$19:$Z$41,4,0)/'4. Billing Determinants'!$E$41*$D29,IF($E29="kW",VLOOKUP(T$4,'4. Billing Determinants'!$B$19:$Z$41,5,0)/'4. Billing Determinants'!$F$41*$D29,IF($E29="Non-RPP kWh",VLOOKUP(T$4,'4. Billing Determinants'!$B$19:$Z$41,6,0)/'4. Billing Determinants'!$G$41*$D29,IF($E29="Distribution Rev.",VLOOKUP(T$4,'4. Billing Determinants'!$B$19:$Z$41,8,0)/'4. Billing Determinants'!$I$41*$D29, VLOOKUP(T$4,'4. Billing Determinants'!$B$19:$Z$41,3,0)/'4. Billing Determinants'!$D$41*$D29))))),0) -> 0 | U29: =IFERROR(IF(U$4="",0,IF($E29="kWh",VLOOKUP(U$4,'4. Billing Determinants'!$B$19:$Z$41,4,0)/'4. Billing Determinants'!$E$41*$D29,IF($E29="kW",VLOOKUP(U$4,'4. Billing Determinants'!$B$19:$Z$41,5,0)/'4. Billing Determinants'!$F$41*$D29,IF($E29="Non-RPP kWh",VLOOKUP(U$4,'4. Billing Determinants'!$B$19:$Z$41,6,0)/'4. Billing Determinants'!$G$41*$D29,IF($E29="Distribution Rev.",VLOOKUP(U$4,'4. Billing Determinants'!$B$19:$Z$41,8,0)/'4. Billing Determinants'!$I$41*$D29, VLOOKUP(U$4,'4. Billing Determinants'!$B$19:$Z$41,3,0)/'4. Billing Determinants'!$D$41*$D29))))),0) -> 0 | V29: =IFERROR(IF(V$4="",0,IF($E29="kWh",VLOOKUP(V$4,'4. Billing Determinants'!$B$19:$Z$41,4,0)/'4. Billing Determinants'!$E$41*$D29,IF($E29="kW",VLOOKUP(V$4,'4. Billing Determinants'!$B$19:$Z$41,5,0)/'4. Billing Determinants'!$F$41*$D29,IF($E29="Non-RPP kWh",VLOOKUP(V$4,'4. Billing Determinants'!$B$19:$Z$41,6,0)/'4. Billing Determinants'!$G$41*$D29,IF($E29="Distribution Rev.",VLOOKUP(V$4,'4. Billing Determinants'!$B$19:$Z$41,8,0)/'4. Billing Determinants'!$I$41*$D29, VLOOKUP(V$4,'4. Billing Determinants'!$B$19:$Z$41,3,0)/'4. Billing Determinants'!$D$41*$D29))))),0) -> 0 | W29: =IFERROR(IF(W$4="",0,IF($E29="kWh",VLOOKUP(W$4,'4. Billing Determinants'!$B$19:$Z$41,4,0)/'4. Billing Determinants'!$E$41*$D29,IF($E29="kW",VLOOKUP(W$4,'4. Billing Determinants'!$B$19:$Z$41,5,0)/'4. Billing Determinants'!$F$41*$D29,IF($E29="Non-RPP kWh",VLOOKUP(W$4,'4. Billing Determinants'!$B$19:$Z$41,6,0)/'4. Billing Determinants'!$G$41*$D29,IF($E29="Distribution Rev.",VLOOKUP(W$4,'4. Billing Determinants'!$B$19:$Z$41,8,0)/'4. Billing Determinants'!$I$41*$D29, VLOOKUP(W$4,'4. Billing Determinants'!$B$19:$Z$41,3,0)/'4. Billing Determinants'!$D$41*$D29))))),0) -> 0 | X29: =IFERROR(IF(X$4="",0,IF($E29="kWh",VLOOKUP(X$4,'4. Billing Determinants'!$B$19:$Z$41,4,0)/'4. Billing Determinants'!$E$41*$D29,IF($E29="kW",VLOOKUP(X$4,'4. Billing Determinants'!$B$19:$Z$41,5,0)/'4. Billing Determinants'!$F$41*$D29,IF($E29="Non-RPP kWh",VLOOKUP(X$4,'4. Billing Determinants'!$B$19:$Z$41,6,0)/'4. Billing Determinants'!$G$41*$D29,IF($E29="Distribution Rev.",VLOOKUP(X$4,'4. Billing Determinants'!$B$19:$Z$41,8,0)/'4. Billing Determinants'!$I$41*$D29, VLOOKUP(X$4,'4. Billing Determinants'!$B$19:$Z$41,3,0)/'4. Billing Determinants'!$D$41*$D29))))),0) -> 0 | Y29: =IFERROR(IF(Y$4="",0,IF($E29="kWh",VLOOKUP(Y$4,'4. Billing Determinants'!$B$19:$Z$41,4,0)/'4. Billing Determinants'!$E$41*$D29,IF($E29="kW",VLOOKUP(Y$4,'4. Billing Determinants'!$B$19:$Z$41,5,0)/'4. Billing Determinants'!$F$41*$D29,IF($E29="Non-RPP kWh",VLOOKUP(Y$4,'4. Billing Determinants'!$B$19:$Z$41,6,0)/'4. Billing Determinants'!$G$41*$D29,IF($E29="Distribution Rev.",VLOOKUP(Y$4,'4. Billing Determinants'!$B$19:$Z$41,8,0)/'4. Billing Determinants'!$I$41*$D29, VLOOKUP(Y$4,'4. Billing Determinants'!$B$19:$Z$41,3,0)/'4. Billing Determinants'!$D$41*$D29))))),0) -> 0
